Workbook

Sheet Sæson statistik
A1: Sæson statistik 2010
A3: Antal runder: | B3: =('Runde 1'!J1+'Runde 2'!J1+'Runde 3'!J1+'Runde 4'!J1+'Runde 5'!J1+'Runde 6'!J1+'Runde 7'!J1+'Runde 8'!J1+'Runde 9'!J1+'Runde 10'!J1+'Runde 11'!J1+'Runde 12'!J1+'Runde 13'!J1+'Runde 14'!J1+'Runde 15'!J1+'Runde 16'!J1+'Runde 17'!J1+'Runde 18'!J1+'Runde 19'!J1+'Runde 20'!J1+'Runde 21'!J1+'Runde 22'!J1+'Runde 23'!J1+'Runde 24'!J1+'Runde 25'!J1+'Runde 26'!J1+'Runde 27'!J1+'Runde 28'!J1+'Runde 29'!J1+'Runde 30'!J1) -> 26
A5: Gennemsnitlige scores i løbet af sæsonen:
A7: Scoring:
A8: Brutto Score | B8: =IF(B3=0,"",SUM('Runde 1'!E25,'Runde 2'!E25,'Runde 3'!E25,'Runde 4'!E25,'Runde 5'!E25,'Runde 6'!E25,'Runde 7'!E25,'Runde 8'!E25,'Runde 9'!E25,'Runde 10'!E25,'Runde 11'!E25,'Runde 12'!E25,'Runde 13'!E25,'Runde 14'!E25,'Runde 15'!E25,'Runde 16'!E25,'Runde 17'!E25,'Runde 18'!E25,'Runde 19'!E25,'Runde 20'!E25,'Runde 21'!E25,'Runde 22'!E25,'Runde 23'!E25,'Runde 24'!E25,'Runde 25'!E25,'Runde 26'!E25,'Runde 27'!E25,'Runde 27'!E25,'Runde 28'!E25,'Runde 29'!E25,'Runde 30'!E25)/B3) -> 75.73076923 | U8: Gennemsnitlig score/hul
A9: Netto Score | B9: =IF(B3=0,"",SUM('Runde 1'!F25,'Runde 2'!F25,'Runde 3'!F25,'Runde 4'!F25,'Runde 5'!F25,'Runde 6'!F25,'Runde 7'!F25,'Runde 8'!F25,'Runde 9'!F25,'Runde 10'!F25,'Runde 11'!F25,'Runde 12'!F25,'Runde 13'!F25,'Runde 14'!F25,'Runde 15'!F25,'Runde 16'!F25,'Runde 17'!F25,'Runde 18'!F25,'Runde 19'!F25,'Runde 20'!F25,'Runde 21'!F25,'Runde 22'!F25,'Runde 23'!F25,'Runde 24'!F25,'Runde 25'!F25,'Runde 26'!F25,'Runde 27'!F25,'Runde 27'!F25,'Runde 28'!F25,'Runde 29'!F25,'Runde 30'!F25)/B3) -> 72.46153846
A10: Front 9 (par 36) | B10: =IF(B3=0,"",SUM('Runde 1'!E14,'Runde 2'!E14,'Runde 3'!E14,'Runde 4'!E14,'Runde 5'!E14,'Runde 6'!E14,'Runde 7'!E14,'Runde 8'!E14,'Runde 9'!E14,'Runde 10'!E14,'Runde 11'!E14,'Runde 12'!E14,'Runde 13'!E14,'Runde 14'!E14,'Runde 15'!E14,'Runde 16'!E14,'Runde 17'!E14,'Runde 18'!E14,'Runde 19'!E14,'Runde 20'!E14,'Runde 21'!E14,'Runde 22'!E14,'Runde 23'!E14,'Runde 24'!E14,'Runde 25'!E14,'Runde 26'!E14,'Runde 27'!E14,'Runde 27'!E14,'Runde 28'!E14,'Runde 29'!E14,'Runde 30'!E14)/B3) -> 37.23076923 | U10: Hul | V10: Hcp | W10: Par | X10: Score
A11: Back 9 (par 37) | B11: =IF(B3=0,"",SUM('Runde 1'!E24,'Runde 2'!E24,'Runde 3'!E24,'Runde 4'!E24,'Runde 5'!E24,'Runde 6'!E24,'Runde 7'!E24,'Runde 8'!E24,'Runde 9'!E24,'Runde 10'!E24,'Runde 11'!E24,'Runde 12'!E24,'Runde 13'!E24,'Runde 14'!E24,'Runde 15'!E24,'Runde 16'!E24,'Runde 17'!E24,'Runde 18'!E24,'Runde 19'!E24,'Runde 20'!E24,'Runde 21'!E24,'Runde 22'!E24,'Runde 23'!E24,'Runde 24'!E24,'Runde 25'!E24,'Runde 26'!E24,'Runde 27'!E24,'Runde 27'!E24,'Runde 28'!E24,'Runde 29'!E24,'Runde 30'!E24)/B3) -> 38.5 | U11: 1 | V11: 11 | W11: 4 | X11: =IF(B3=0,"",SUM('Runde 1'!E5,'Runde 2'!E5,'Runde 3'!E5,'Runde 4'!E5,'Runde 5'!E5,'Runde 6'!E5,'Runde 7'!E5,'Runde 8'!E5,'Runde 9'!E5,'Runde 10'!E5,'Runde 11'!E5,'Runde 12'!E5,'Runde 13'!E5,'Runde 14'!E5,'Runde 15'!E5,'Runde 16'!E5,'Runde 17'!E5,'Runde 18'!E5,'Runde 19'!E5,'Runde 20'!E5,'Runde 21'!E5,'Runde 22'!E5,'Runde 23'!E5,'Runde 24'!E5,'Runde 25'!E5,'Runde 26'!E5,'Runde 27'!E5,'Runde 28'!E5,'Runde 29'!E5,'Runde 30'!E5)/B3) -> 4.269230769
A12: Eagles/runde | B12: =IF(B3=0,"",SUM('Runde 1'!W25,'Runde 2'!W25,'Runde 3'!W25,'Runde 4'!W25,'Runde 5'!W25,'Runde 6'!W25,'Runde 7'!W25,'Runde 8'!W25,'Runde 9'!W25,'Runde 10'!W25,'Runde 11'!W25,'Runde 12'!W25,'Runde 13'!W25,'Runde 14'!W25,'Runde 15'!W25,'Runde 16'!W25,'Runde 17'!W25,'Runde 18'!W25,'Runde 19'!W25,'Runde 20'!W25,'Runde 21'!W25,'Runde 22'!W25,'Runde 23'!W25,'Runde 24'!W25,'Runde 25'!W25,'Runde 26'!W25,'Runde 27'!W25,'Runde 27'!W25,'Runde 28'!W25,'Runde 29'!W25,'Runde 30'!W25)/B3) -> 0.03846153846 | U12: 2 | V12: 5 | W12: 4 | X12: =IF(B3=0,"",SUM('Runde 1'!E6,'Runde 2'!E6,'Runde 3'!E6,'Runde 4'!E6,'Runde 5'!E6,'Runde 6'!E6,'Runde 7'!E6,'Runde 8'!E6,'Runde 9'!E6,'Runde 10'!E6,'Runde 11'!E6,'Runde 12'!E6,'Runde 13'!E6,'Runde 14'!E6,'Runde 15'!E6,'Runde 16'!E6,'Runde 17'!E6,'Runde 18'!E6,'Runde 19'!E6,'Runde 20'!E6,'Runde 21'!E6,'Runde 22'!E6,'Runde 23'!E6,'Runde 24'!E6,'Runde 25'!E6,'Runde 26'!E6,'Runde 27'!E6,'Runde 28'!E6,'Runde 29'!E6,'Runde 30'!E6)/B3) -> 4.076923077
A13: Birdies/runde | B13: =IF(B3=0,"",SUM('Runde 1'!X25,'Runde 2'!X25,'Runde 3'!X25,'Runde 4'!X25,'Runde 5'!X25,'Runde 6'!X25,'Runde 7'!X25,'Runde 8'!X25,'Runde 9'!X25,'Runde 10'!X25,'Runde 11'!X25,'Runde 12'!X25,'Runde 13'!X25,'Runde 14'!X25,'Runde 15'!X25,'Runde 16'!X25,'Runde 17'!X25,'Runde 18'!X25,'Runde 19'!X25,'Runde 20'!X25,'Runde 21'!X25,'Runde 22'!X25,'Runde 23'!X25,'Runde 24'!X25,'Runde 25'!X25,'Runde 26'!X25,'Runde 27'!X25,'Runde 27'!X25,'Runde 28'!X25,'Runde 29'!X25,'Runde 30'!X25)/B3) -> 2.769230769 | U13: 3 | V13: 15 | W13: 3 | X13: =IF(B3=0,"",SUM('Runde 1'!E7,'Runde 2'!E7,'Runde 3'!E7,'Runde 4'!E7,'Runde 5'!E7,'Runde 6'!E7,'Runde 7'!E7,'Runde 8'!E7,'Runde 9'!E7,'Runde 10'!E7,'Runde 11'!E7,'Runde 12'!E7,'Runde 13'!E7,'Runde 14'!E7,'Runde 15'!E7,'Runde 16'!E7,'Runde 17'!E7,'Runde 18'!E7,'Runde 19'!E7,'Runde 20'!E7,'Runde 21'!E7,'Runde 22'!E7,'Runde 23'!E7,'Runde 24'!E7,'Runde 25'!E7,'Runde 26'!E7,'Runde 27'!E7,'Runde 28'!E7,'Runde 29'!E7,'Runde 30'!E7)/B3) -> 3.230769231
A14: Bogeys/runde | B14: =IF(B3=0,"",SUM('Runde 1'!Y25,'Runde 2'!Y25,'Runde 3'!Y25,'Runde 4'!Y25,'Runde 5'!Y25,'Runde 6'!Y25,'Runde 7'!Y25,'Runde 8'!Y25,'Runde 9'!Y25,'Runde 10'!Y25,'Runde 11'!Y25,'Runde 12'!Y25,'Runde 13'!Y25,'Runde 14'!Y25,'Runde 15'!Y25,'Runde 16'!Y25,'Runde 17'!Y25,'Runde 18'!Y25,'Runde 19'!Y25,'Runde 20'!Y25,'Runde 21'!Y25,'Runde 22'!Y25,'Runde 23'!Y25,'Runde 24'!Y25,'Runde 25'!Y25,'Runde 26'!Y25,'Runde 27'!Y25,'Runde 27'!Y25,'Runde 28'!Y25,'Runde 29'!Y25,'Runde 30'!Y25)/B3) -> 3.461538462 | U14: 4 | V14: 13 | W14: 4 | X14: =IF(B3=0,"",SUM('Runde 1'!E8,'Runde 2'!E8,'Runde 3'!E8,'Runde 4'!E8,'Runde 5'!E8,'Runde 6'!E8,'Runde 7'!E8,'Runde 8'!E8,'Runde 9'!E8,'Runde 10'!E8,'Runde 11'!E8,'Runde 12'!E8,'Runde 13'!E8,'Runde 14'!E8,'Runde 15'!E8,'Runde 16'!E8,'Runde 17'!E8,'Runde 18'!E8,'Runde 19'!E8,'Runde 20'!E8,'Runde 21'!E8,'Runde 22'!E8,'Runde 23'!E8,'Runde 24'!E8,'Runde 25'!E8,'Runde 26'!E8,'Runde 27'!E8,'Runde 28'!E8,'Runde 29'!E8,'Runde 30'!E8)/B3) -> 4.230769231
A15: Værre/runde | B15: =IF(B3=0,"",SUM('Runde 1'!Z25,'Runde 2'!Z25,'Runde 3'!Z25,'Runde 4'!Z25,'Runde 5'!Z25,'Runde 6'!Z25,'Runde 7'!Z25,'Runde 8'!Z25,'Runde 9'!Z25,'Runde 10'!Z25,'Runde 11'!Z25,'Runde 12'!Z25,'Runde 13'!Z25,'Runde 14'!Z25,'Runde 15'!Z25,'Runde 16'!Z25,'Runde 17'!Z25,'Runde 18'!Z25,'Runde 19'!Z25,'Runde 20'!Z25,'Runde 21'!Z25,'Runde 22'!Z25,'Runde 23'!Z25,'Runde 24'!Z25,'Runde 25'!Z25,'Runde 26'!Z25,'Runde 27'!Z25,'Runde 27'!Z25,'Runde 28'!Z25,'Runde 29'!Z25,'Runde 30'!Z25)/B3) -> 0.9230769231 | U15: 5 | V15: 3 | W15: 5 | X15: =IF(B3=0,"",SUM('Runde 1'!E9,'Runde 2'!E9,'Runde 3'!E9,'Runde 4'!E9,'Runde 5'!E9,'Runde 6'!E9,'Runde 7'!E9,'Runde 8'!E9,'Runde 9'!E9,'Runde 10'!E9,'Runde 11'!E9,'Runde 12'!E9,'Runde 13'!E9,'Runde 14'!E9,'Runde 15'!E9,'Runde 16'!E9,'Runde 17'!E9,'Runde 18'!E9,'Runde 19'!E9,'Runde 20'!E9,'Runde 21'!E9,'Runde 22'!E9,'Runde 23'!E9,'Runde 24'!E9,'Runde 25'!E9,'Runde 26'!E9,'Runde 27'!E9,'Runde 28'!E9,'Runde 29'!E9,'Runde 30'!E9)/B3) -> 4.653846154
U16: 6 | V16: 9 | W16: 4 | X16: =IF(B3=0,"",SUM('Runde 1'!E10,'Runde 2'!E10,'Runde 3'!E10,'Runde 4'!E10,'Runde 5'!E10,'Runde 6'!E10,'Runde 7'!E10,'Runde 8'!E10,'Runde 9'!E10,'Runde 10'!E10,'Runde 11'!E10,'Runde 12'!E10,'Runde 13'!E10,'Runde 14'!E10,'Runde 15'!E10,'Runde 16'!E10,'Runde 17'!E10,'Runde 18'!E10,'Runde 19'!E10,'Runde 20'!E10,'Runde 21'!E10,'Runde 22'!E10,'Runde 23'!E10,'Runde 24'!E10,'Runde 25'!E10,'Runde 26'!E10,'Runde 27'!E10,'Runde 28'!E10,'Runde 29'!E10,'Runde 30'!E10)/B3) -> 4.038461538
A17: Putting: | U17: 7 | V17: 1 | W17: 5 | X17: =IF(B3=0,"",SUM('Runde 1'!E11,'Runde 2'!E11,'Runde 3'!E11,'Runde 4'!E11,'Runde 5'!E11,'Runde 6'!E11,'Runde 7'!E11,'Runde 8'!E11,'Runde 9'!E11,'Runde 10'!E11,'Runde 11'!E11,'Runde 12'!E11,'Runde 13'!E11,'Runde 14'!E11,'Runde 15'!E11,'Runde 16'!E11,'Runde 17'!E11,'Runde 18'!E11,'Runde 19'!E11,'Runde 20'!E11,'Runde 21'!E11,'Runde 22'!E11,'Runde 23'!E11,'Runde 24'!E11,'Runde 25'!E11,'Runde 26'!E11,'Runde 27'!E11,'Runde 28'!E11,'Runde 29'!E11,'Runde 30'!E11)/B3) -> 5.230769231
A18: Putts/runde | B18: =IF(B3=0,"",SUM('Runde 1'!P25,'Runde 2'!P25,'Runde 3'!P25,'Runde 4'!P25,'Runde 5'!P25,'Runde 6'!P25,'Runde 7'!P25,'Runde 8'!P25,'Runde 9'!P25,'Runde 10'!P25,'Runde 11'!P25,'Runde 12'!P25,'Runde 13'!P25,'Runde 14'!P25,'Runde 15'!P25,'Runde 16'!P25,'Runde 17'!P25,'Runde 18'!P25,'Runde 19'!P25,'Runde 20'!P25,'Runde 21'!P25,'Runde 22'!P25,'Runde 23'!P25,'Runde 24'!P25,'Runde 25'!P25,'Runde 26'!P25,'Runde 27'!P25,'Runde 27'!P25,'Runde 28'!P25,'Runde 29'!P25,'Runde 30'!P25)/B3) -> 31.57692308 | U18: 8 | V18: 17 | W18: 3 | X18: =IF(B3=0,"",SUM('Runde 1'!E12,'Runde 2'!E12,'Runde 3'!E12,'Runde 4'!E12,'Runde 5'!E12,'Runde 6'!E12,'Runde 7'!E12,'Runde 8'!E12,'Runde 9'!E12,'Runde 10'!E12,'Runde 11'!E12,'Runde 12'!E12,'Runde 13'!E12,'Runde 14'!E12,'Runde 15'!E12,'Runde 16'!E12,'Runde 17'!E12,'Runde 18'!E12,'Runde 19'!E12,'Runde 20'!E12,'Runde 21'!E12,'Runde 22'!E12,'Runde 23'!E12,'Runde 24'!E12,'Runde 25'!E12,'Runde 26'!E12,'Runde 27'!E12,'Runde 28'!E12,'Runde 29'!E12,'Runde 30'!E12)/B3) -> 3.423076923
A19: Putts/GIR | B19: =IF(B3=0,"",SUM('Runde 1'!V25,'Runde 2'!V25,'Runde 3'!V25,'Runde 4'!V25,'Runde 5'!V25,'Runde 6'!V25,'Runde 7'!V25,'Runde 8'!V25,'Runde 9'!V25,'Runde 10'!V25,'Runde 11'!V25,'Runde 12'!V25,'Runde 13'!V25,'Runde 14'!V25,'Runde 15'!V25,'Runde 16'!V25,'Runde 17'!V25,'Runde 18'!V25,'Runde 19'!V25,'Runde 20'!V25,'Runde 21'!V25,'Runde 22'!V25,'Runde 23'!V25,'Runde 24'!V25,'Runde 25'!V25,'Runde 26'!V25,'Runde 27'!V25,'Runde 27'!V25,'Runde 28'!V25,'Runde 29'!V25,'Runde 30'!V25)/B3) -> 1.831694748 | U19: 9 | V19: 7 | W19: 4 | X19: =IF(B3=0,"",SUM('Runde 1'!E13,'Runde 2'!E13,'Runde 3'!E13,'Runde 4'!E13,'Runde 5'!E13,'Runde 6'!E13,'Runde 7'!E13,'Runde 8'!E13,'Runde 9'!E13,'Runde 10'!E13,'Runde 11'!E13,'Runde 12'!E13,'Runde 13'!E13,'Runde 14'!E13,'Runde 15'!E13,'Runde 16'!E13,'Runde 17'!E13,'Runde 18'!E13,'Runde 19'!E13,'Runde 20'!E13,'Runde 21'!E13,'Runde 22'!E13,'Runde 23'!E13,'Runde 24'!E13,'Runde 25'!E13,'Runde 26'!E13,'Runde 27'!E13,'Runde 28'!E13,'Runde 29'!E13,'Runde 30'!E13)/B3) -> 4.076923077
A20: 3+ Putts/runde | B20: =IF(B3=0,"",SUM('Runde 1'!AB25,'Runde 2'!AB25,'Runde 3'!AB25,'Runde 4'!AB25,'Runde 5'!AB25,'Runde 6'!AB25,'Runde 7'!AB25,'Runde 8'!AB25,'Runde 9'!AB25,'Runde 10'!AB25,'Runde 11'!AB25,'Runde 12'!AB25,'Runde 13'!AB25,'Runde 14'!AB25,'Runde 15'!AB25,'Runde 16'!AB25,'Runde 17'!AB25,'Runde 18'!AB25,'Runde 19'!AB25,'Runde 20'!AB25,'Runde 21'!AB25,'Runde 22'!AB25,'Runde 23'!AB25,'Runde 24'!AB25,'Runde 25'!AB25,'Runde 26'!AB25,'Runde 27'!AB25,'Runde 27'!AB25,'Runde 28'!AB25,'Runde 29'!AB25,'Runde 30'!AB25)/B3) -> 0.9615384615 | W20: =SUM(W11:W19) -> 36 | X20: =SUM(X11:X19) -> 37.23076923
U21: 10 | V21: 4 | W21: 5 | X21: =IF(B3=0,"",SUM('Runde 1'!E15,'Runde 2'!E15,'Runde 3'!E15,'Runde 4'!E15,'Runde 5'!E15,'Runde 6'!E15,'Runde 7'!E15,'Runde 8'!E15,'Runde 9'!E15,'Runde 10'!E15,'Runde 11'!E15,'Runde 12'!E15,'Runde 13'!E15,'Runde 14'!E15,'Runde 15'!E15,'Runde 16'!E15,'Runde 17'!E15,'Runde 18'!E15,'Runde 19'!E15,'Runde 20'!E15,'Runde 21'!E15,'Runde 22'!E15,'Runde 23'!E15,'Runde 24'!E15,'Runde 25'!E15,'Runde 26'!E15,'Runde 27'!E15,'Runde 28'!E15,'Runde 29'!E15,'Runde 30'!E15)/B3) -> 5
A22: Driving: | U22: 11 | V22: 16 | W22: 4 | X22: =IF(B3=0,"",SUM('Runde 1'!E16,'Runde 2'!E16,'Runde 3'!E16,'Runde 4'!E16,'Runde 5'!E16,'Runde 6'!E16,'Runde 7'!E16,'Runde 8'!E16,'Runde 9'!E16,'Runde 10'!E16,'Runde 11'!E16,'Runde 12'!E16,'Runde 13'!E16,'Runde 14'!E16,'Runde 15'!E16,'Runde 16'!E16,'Runde 17'!E16,'Runde 18'!E16,'Runde 19'!E16,'Runde 20'!E16,'Runde 21'!E16,'Runde 22'!E16,'Runde 23'!E16,'Runde 24'!E16,'Runde 25'!E16,'Runde 26'!E16,'Runde 27'!E16,'Runde 28'!E16,'Runde 29'!E16,'Runde 30'!E16)/B3) -> 4
A23: Drivers/runde | B23: =IF(B3=0,"",SUM('Runde 1'!G25,'Runde 2'!G25,'Runde 3'!G25,'Runde 4'!G25,'Runde 5'!G25,'Runde 6'!G25,'Runde 7'!G25,'Runde 8'!G25,'Runde 9'!G25,'Runde 10'!G25,'Runde 11'!G25,'Runde 12'!G25,'Runde 13'!G25,'Runde 14'!G25,'Runde 15'!G25,'Runde 16'!G25,'Runde 17'!G25,'Runde 18'!G25,'Runde 19'!G25,'Runde 20'!G25,'Runde 21'!G25,'Runde 22'!G25,'Runde 23'!G25,'Runde 24'!G25,'Runde 25'!G25,'Runde 26'!G25,'Runde 27'!G25,'Runde 27'!G25,'Runde 28'!G25,'Runde 29'!G25,'Runde 30'!G25)/B3) -> 8.5 | U23: 12 | V23: 2 | W23: 5 | X23: =IF(B3=0,"",SUM('Runde 1'!E17,'Runde 2'!E17,'Runde 3'!E17,'Runde 4'!E17,'Runde 5'!E17,'Runde 6'!E17,'Runde 7'!E17,'Runde 8'!E17,'Runde 9'!E17,'Runde 10'!E17,'Runde 11'!E17,'Runde 12'!E17,'Runde 13'!E17,'Runde 14'!E17,'Runde 15'!E17,'Runde 16'!E17,'Runde 17'!E17,'Runde 18'!E17,'Runde 19'!E17,'Runde 20'!E17,'Runde 21'!E17,'Runde 22'!E17,'Runde 23'!E17,'Runde 24'!E17,'Runde 25'!E17,'Runde 26'!E17,'Runde 27'!E17,'Runde 28'!E17,'Runde 29'!E17,'Runde 30'!E17)/B3) -> 5
A24: % Fairway hits (Driver) | B24: =IF(B3=0,"",SUM('Runde 1'!AC25,'Runde 2'!AC25,'Runde 3'!AC25,'Runde 4'!AC25,'Runde 5'!AC25,'Runde 6'!AC25,'Runde 7'!AC25,'Runde 8'!AC25,'Runde 9'!AC25,'Runde 10'!AC25,'Runde 11'!AC25,'Runde 12'!AC25,'Runde 13'!AC25,'Runde 14'!AC25,'Runde 15'!AC25,'Runde 16'!AC25,'Runde 17'!AC25,'Runde 18'!AC25,'Runde 19'!AC25,'Runde 20'!AC25,'Runde 21'!AC25,'Runde 22'!AC25,'Runde 23'!AC25,'Runde 24'!AC25,'Runde 25'!AC25,'Runde 26'!AC25,'Runde 27'!AC25,'Runde 27'!AC25,'Runde 28'!AC25,'Runde 29'!AC25,'Runde 30'!AC25)/B3) -> 71.66666667 | U24: 13 | V24: 18 | W24: 3 | X24: =IF(B3=0,"",SUM('Runde 1'!E18,'Runde 2'!E18,'Runde 3'!E18,'Runde 4'!E18,'Runde 5'!E18,'Runde 6'!E18,'Runde 7'!E18,'Runde 8'!E18,'Runde 9'!E18,'Runde 10'!E18,'Runde 11'!E18,'Runde 12'!E18,'Runde 13'!E18,'Runde 14'!E18,'Runde 15'!E18,'Runde 16'!E18,'Runde 17'!E18,'Runde 18'!E18,'Runde 19'!E18,'Runde 20'!E18,'Runde 21'!E18,'Runde 22'!E18,'Runde 23'!E18,'Runde 24'!E18,'Runde 25'!E18,'Runde 26'!E18,'Runde 27'!E18,'Runde 28'!E18,'Runde 29'!E18,'Runde 30'!E18)/B3) -> 3.076923077
A25: % Fairway hits (alle) | B25: =IF(B3=0,"",SUM('Runde 1'!K25,'Runde 2'!K25,'Runde 3'!K25,'Runde 4'!K25,'Runde 5'!K25,'Runde 6'!K25,'Runde 7'!K25,'Runde 8'!K25,'Runde 9'!K25,'Runde 10'!K25,'Runde 11'!K25,'Runde 12'!K25,'Runde 13'!K25,'Runde 14'!K25,'Runde 15'!K25,'Runde 16'!K25,'Runde 17'!K25,'Runde 18'!K25,'Runde 19'!K25,'Runde 20'!K25,'Runde 21'!K25,'Runde 22'!K25,'Runde 23'!K25,'Runde 24'!K25,'Runde 25'!K25,'Runde 26'!K25,'Runde 27'!K25,'Runde 27'!K25,'Runde 28'!K25,'Runde 29'!K25,'Runde 30'!K25)/B3) -> 78.42032967 | U25: 14 | V25: 6 | W25: 4 | X25: =IF(B3=0,"",SUM('Runde 1'!E19,'Runde 2'!E19,'Runde 3'!E19,'Runde 4'!E19,'Runde 5'!E19,'Runde 6'!E19,'Runde 7'!E19,'Runde 8'!E19,'Runde 9'!E19,'Runde 10'!E19,'Runde 11'!E19,'Runde 12'!E19,'Runde 13'!E19,'Runde 14'!E19,'Runde 15'!E19,'Runde 16'!E19,'Runde 17'!E19,'Runde 18'!E19,'Runde 19'!E19,'Runde 20'!E19,'Runde 21'!E19,'Runde 22'!E19,'Runde 23'!E19,'Runde 24'!E19,'Runde 25'!E19,'Runde 26'!E19,'Runde 27'!E19,'Runde 28'!E19,'Runde 29'!E19,'Runde 30'!E19)/B3) -> 4.461538462
A26: % Teeslag i venstre | B26: =IF(B3=0,"",SUM('Runde 1'!J25,'Runde 2'!J25,'Runde 3'!J25,'Runde 4'!J25,'Runde 5'!J25,'Runde 6'!J25,'Runde 7'!J25,'Runde 8'!J25,'Runde 9'!J25,'Runde 10'!J25,'Runde 11'!J25,'Runde 12'!J25,'Runde 13'!J25,'Runde 14'!J25,'Runde 15'!J25,'Runde 16'!J25,'Runde 17'!J25,'Runde 18'!J25,'Runde 19'!J25,'Runde 20'!J25,'Runde 21'!J25,'Runde 22'!J25,'Runde 23'!J25,'Runde 24'!J25,'Runde 25'!J25,'Runde 26'!J25,'Runde 27'!J25,'Runde 27'!J25,'Runde 28'!J25,'Runde 29'!J25,'Runde 30'!J25)/B3) -> 13.47527473 | U26: 15 | V26: 8 | W26: 4 | X26: =IF(B3=0,"",SUM('Runde 1'!E20,'Runde 2'!E20,'Runde 3'!E20,'Runde 4'!E20,'Runde 5'!E20,'Runde 6'!E20,'Runde 7'!E20,'Runde 8'!E20,'Runde 9'!E20,'Runde 10'!E20,'Runde 11'!E20,'Runde 12'!E20,'Runde 13'!E20,'Runde 14'!E20,'Runde 15'!E20,'Runde 16'!E20,'Runde 17'!E20,'Runde 18'!E20,'Runde 19'!E20,'Runde 20'!E20,'Runde 21'!E20,'Runde 22'!E20,'Runde 23'!E20,'Runde 24'!E20,'Runde 25'!E20,'Runde 26'!E20,'Runde 27'!E20,'Runde 28'!E20,'Runde 29'!E20,'Runde 30'!E20)/B3) -> 4.5
A27: % Teeslag i højre | B27: =IF(B3=0,"",SUM('Runde 1'!L25,'Runde 2'!L25,'Runde 3'!L25,'Runde 4'!L25,'Runde 5'!L25,'Runde 6'!L25,'Runde 7'!L25,'Runde 8'!L25,'Runde 9'!L25,'Runde 10'!L25,'Runde 11'!L25,'Runde 12'!L25,'Runde 13'!L25,'Runde 14'!L25,'Runde 15'!L25,'Runde 16'!L25,'Runde 17'!L25,'Runde 18'!L25,'Runde 19'!L25,'Runde 20'!L25,'Runde 21'!L25,'Runde 22'!L25,'Runde 23'!L25,'Runde 24'!L25,'Runde 25'!L25,'Runde 26'!L25,'Runde 27'!L25,'Runde 27'!L25,'Runde 28'!L25,'Runde 29'!L25,'Runde 30'!L25)/B3) -> 8.104395604 | U27: 16 | V27: 14 | W27: 4 | X27: =IF(B3=0,"",SUM('Runde 1'!E21,'Runde 2'!E21,'Runde 3'!E21,'Runde 4'!E21,'Runde 5'!E21,'Runde 6'!E21,'Runde 7'!E21,'Runde 8'!E21,'Runde 9'!E21,'Runde 10'!E21,'Runde 11'!E21,'Runde 12'!E21,'Runde 13'!E21,'Runde 14'!E21,'Runde 15'!E21,'Runde 16'!E21,'Runde 17'!E21,'Runde 18'!E21,'Runde 19'!E21,'Runde 20'!E21,'Runde 21'!E21,'Runde 22'!E21,'Runde 23'!E21,'Runde 24'!E21,'Runde 25'!E21,'Runde 26'!E21,'Runde 27'!E21,'Runde 28'!E21,'Runde 29'!E21,'Runde 30'!E21)/B3) -> 4.076923077
U28: 17 | V28: 10 | W28: 4 | X28: =IF(B3=0,"",SUM('Runde 1'!E22,'Runde 2'!E22,'Runde 3'!E22,'Runde 4'!E22,'Runde 5'!E22,'Runde 6'!E22,'Runde 7'!E22,'Runde 8'!E22,'Runde 9'!E22,'Runde 10'!E22,'Runde 11'!E22,'Runde 12'!E22,'Runde 13'!E22,'Runde 14'!E22,'Runde 15'!E22,'Runde 16'!E22,'Runde 17'!E22,'Runde 18'!E22,'Runde 19'!E22,'Runde 20'!E22,'Runde 21'!E22,'Runde 22'!E22,'Runde 23'!E22,'Runde 24'!E22,'Runde 25'!E22,'Runde 26'!E22,'Runde 27'!E22,'Runde 28'!E22,'Runde 29'!E22,'Runde 30'!E22)/B3) -> 4.307692308
A29: Generelt: | U29: 18 | V29: 12 | W29: 4 | X29: =IF(B3=0,"",SUM('Runde 1'!E23,'Runde 2'!E23,'Runde 3'!E23,'Runde 4'!E23,'Runde 5'!E23,'Runde 6'!E23,'Runde 7'!E23,'Runde 8'!E23,'Runde 9'!E23,'Runde 10'!E23,'Runde 11'!E23,'Runde 12'!E23,'Runde 13'!E23,'Runde 14'!E23,'Runde 15'!E23,'Runde 16'!E23,'Runde 17'!E23,'Runde 18'!E23,'Runde 19'!E23,'Runde 20'!E23,'Runde 21'!E23,'Runde 22'!E23,'Runde 23'!E23,'Runde 24'!E23,'Runde 25'!E23,'Runde 26'!E23,'Runde 27'!E23,'Runde 28'!E23,'Runde 29'!E23,'Runde 30'!E23)/B3) -> 4.076923077
A30: % GIR | B30: =IF(B3=0,"",SUM('Runde 1'!U25,'Runde 2'!U25,'Runde 3'!U25,'Runde 4'!U25,'Runde 5'!U25,'Runde 6'!U25,'Runde 7'!U25,'Runde 8'!U25,'Runde 9'!U25,'Runde 10'!U25,'Runde 11'!U25,'Runde 12'!U25,'Runde 13'!U25,'Runde 14'!U25,'Runde 15'!U25,'Runde 16'!U25,'Runde 17'!U25,'Runde 18'!U25,'Runde 19'!U25,'Runde 20'!U25,'Runde 21'!U25,'Runde 22'!U25,'Runde 23'!U25,'Runde 24'!U25,'Runde 25'!U25,'Runde 26'!U25,'Runde 27'!U25,'Runde 27'!U25,'Runde 28'!U25,'Runde 29'!U25,'Runde 30'!U25)/B3) -> 66.23931624 | W30: =SUM(W21:W29) -> 37 | X30: =SUM(X21:X29) -> 38.5
A31: Afstand til hul (GIR) | B31: =IF(B3=0,"",AVERAGE('Runde 1'!S25,'Runde 2'!S25,'Runde 3'!S25,'Runde 4'!S25,'Runde 5'!S25,'Runde 6'!S25,'Runde 7'!S25,'Runde 8'!S25,'Runde 9'!S25,'Runde 10'!S25,'Runde 11'!S25,'Runde 12'!S25,'Runde 13'!S25,'Runde 14'!S25,'Runde 15'!S25,'Runde 16'!S25,'Runde 17'!S25,'Runde 18'!S25,'Runde 19'!S25,'Runde 20'!S25,'Runde 21'!S25,'Runde 22'!S25,'Runde 23'!S25,'Runde 24'!S25,'Runde 25'!S25,'Runde 26'!S25,'Runde 27'!S25,'Runde 27'!S25,'Runde 28'!S25,'Runde 29'!S25,'Runde 30'!S25)) -> 4.655724206 | W31: =SUM(W30,W20) -> 73 | X31: =SUM(X30,X20) -> 75.73076923
A32: % Scrambles | B32: =IF(B3=0,"",SUM('Runde 1'!AA25,'Runde 2'!AA25,'Runde 3'!AA25,'Runde 4'!AA25,'Runde 5'!AA25,'Runde 6'!AA25,'Runde 7'!AA25,'Runde 8'!AA25,'Runde 9'!AA25,'Runde 10'!AA25,'Runde 11'!AA25,'Runde 12'!AA25,'Runde 13'!AA25,'Runde 14'!AA25,'Runde 15'!AA25,'Runde 16'!AA25,'Runde 17'!AA25,'Runde 18'!AA25,'Runde 19'!AA25,'Runde 20'!AA25,'Runde 21'!AA25,'Runde 22'!AA25,'Runde 23'!AA25,'Runde 24'!AA25,'Runde 25'!AA25,'Runde 26'!AA25,'Runde 27'!AA25,'Runde 27'!AA25,'Runde 28'!AA25,'Runde 29'!AA25,'Runde 30'!AA25)/B3) -> 46.42948718
A34: Hulscore ifht par:
A35: Par 3's | B35: =IF(B3=0,"",SUM('Runde 1'!T30,'Runde 2'!T30,'Runde 3'!T30,'Runde 4'!T30,'Runde 5'!T30,'Runde 6'!U30,'Runde 7'!T30,'Runde 8'!T30,'Runde 9'!T30,'Runde 10'!T30,'Runde 11'!T30,'Runde 12'!T30,'Runde 13'!T30,'Runde 14'!T30,'Runde 15'!T30,'Runde 16'!T30,'Runde 17'!T30,'Runde 18'!T30,'Runde 19'!T30,'Runde 20'!T30,'Runde 21'!T30,'Runde 22'!T30,'Runde 23'!T30,'Runde 24'!T30,'Runde 25'!T30,'Runde 26'!T30,'Runde 27'!T30,'Runde 27'!T30,'Runde 28'!T30,'Runde 29'!T30,'Runde 30'!T30)/B3) -> 3.243589744
A36: Par 4's | B36: =IF(B3=0,"",SUM('Runde 1'!T31,'Runde 2'!T31,'Runde 3'!T31,'Runde 4'!T31,'Runde 5'!T31,'Runde 6'!U31,'Runde 7'!T31,'Runde 8'!T31,'Runde 9'!T31,'Runde 10'!T31,'Runde 11'!T31,'Runde 12'!T31,'Runde 13'!T31,'Runde 14'!T31,'Runde 15'!T31,'Runde 16'!T31,'Runde 17'!T31,'Runde 18'!T31,'Runde 19'!T31,'Runde 20'!T31,'Runde 21'!T31,'Runde 22'!T31,'Runde 23'!T31,'Runde 24'!T31,'Runde 25'!T31,'Runde 26'!T31,'Runde 27'!T31,'Runde 27'!T31,'Runde 28'!T31,'Runde 29'!T31,'Runde 30'!T31)/B3) -> 4.192307692
A37: Par 5's | B37: =IF(B3=0,"",SUM('Runde 1'!T32,'Runde 2'!T32,'Runde 3'!T32,'Runde 4'!T32,'Runde 5'!T32,'Runde 6'!U32,'Runde 7'!T32,'Runde 8'!T32,'Runde 9'!T32,'Runde 10'!T32,'Runde 11'!T32,'Runde 12'!T32,'Runde 13'!T32,'Runde 14'!T32,'Runde 15'!T32,'Runde 16'!T32,'Runde 17'!T32,'Runde 18'!T32,'Runde 19'!T32,'Runde 20'!T32,'Runde 21'!T32,'Runde 22'!T32,'Runde 23'!T32,'Runde 24'!T32,'Runde 25'!T32,'Runde 26'!T32,'Runde 27'!T32,'Runde 27'!T32,'Runde 28'!T32,'Runde 29'!T32,'Runde 30'!T32)/B3) -> 4.971153846
A38: First 4 holes to par (+-) | B38: =IF(B3=0,"",SUM('Runde 1'!T34,'Runde 2'!T34,'Runde 3'!T34,'Runde 4'!T34,'Runde 5'!T34,'Runde 6'!U34,'Runde 7'!T34,'Runde 8'!T34,'Runde 9'!T34,'Runde 10'!T34,'Runde 11'!T34,'Runde 12'!T34,'Runde 13'!T34,'Runde 14'!T34,'Runde 15'!T34,'Runde 16'!T34,'Runde 17'!T34,'Runde 18'!T34,'Runde 19'!T34,'Runde 20'!T34,'Runde 21'!T34,'Runde 22'!T34,'Runde 23'!T34,'Runde 24'!T34,'Runde 25'!T34,'Runde 26'!T34,'Runde 27'!T34,'Runde 27'!T34,'Runde 28'!T34,'Runde 29'!T34,'Runde 30'!T34)/B3) -> 0.7692307692
A39: Last 4 holes to par (+-) | B39: =IF(B3=0,"",SUM('Runde 1'!T35,'Runde 2'!T35,'Runde 3'!T35,'Runde 4'!T35,'Runde 5'!T35,'Runde 6'!U35,'Runde 7'!T35,'Runde 8'!T35,'Runde 9'!T35,'Runde 10'!T35,'Runde 11'!T35,'Runde 12'!T35,'Runde 13'!T35,'Runde 14'!T35,'Runde 15'!T35,'Runde 16'!T35,'Runde 17'!T35,'Runde 18'!T35,'Runde 19'!T35,'Runde 20'!T35,'Runde 21'!T35,'Runde 22'!T35,'Runde 23'!T35,'Runde 24'!T35,'Runde 25'!T35,'Runde 26'!T35,'Runde 27'!T35,'Runde 27'!T35,'Runde 28'!T35,'Runde 29'!T35,'Runde 30'!T35)/B3) -> 0.8846153846 | D39: * markerer runder spillet fra hvid tee
A41: Approach (GIR) | D41: Putting (GIR) | G41: Greenbunkers | J41: Scoring
A42: Længde (m) | B42: Afstand (m) | D42: Afstand (m) | E42: Holet (%) | G42: Bunkers/runde | H42: =IF(B3=0,"",'DATA - nix pille'!C22/B3) -> 0.7692307692 | J42: Type | K42: Antal | L42: % Andel
A43: 45 - 70 | B43: =IF(B3=0,"",AVERAGE('Runde 1'!Y30,'Runde 2'!Y30,'Runde 3'!Y30,'Runde 4'!Y30,'Runde 5'!Y30,'Runde 6'!Y30,'Runde 7'!Y30,'Runde 8'!Y30,'Runde 9'!Y30,'Runde 10'!Y30,'Runde 11'!Y30,'Runde 12'!Y30,'Runde 13'!Y30,'Runde 14'!Y30,'Runde 15'!Y30,'Runde 16'!Y30,'Runde 17'!Y30,'Runde 18'!Y30,'Runde 19'!Y30,'Runde 20'!Y30,'Runde 21'!Y30,'Runde 22'!Y30,'Runde 23'!Y30,'Runde 24'!Y30,'Runde 25'!Y30,'Runde 26'!Y30,'Runde 27'!Y30,'Runde 27'!Y30,'Runde 28'!Y30,'Runde 29'!Y30,'Runde 30'!Y30)) -> 4.520833333 | D43: 0 - 1 | E43: =IF(B3=0,"",AVERAGE('Runde 1'!Z39,'Runde 2'!Z39,'Runde 3'!Z39,'Runde 4'!Z39,'Runde 5'!Z39,'Runde 6'!Z39,'Runde 7'!Z39,'Runde 8'!Z39,'Runde 9'!Z39,'Runde 10'!Z39,'Runde 11'!Z39,'Runde 12'!Z39,'Runde 13'!Z39,'Runde 14'!Z39,'Runde 15'!Z39,'Runde 16'!Z39,'Runde 17'!Z39,'Runde 18'!Z39,'Runde 19'!Z39,'Runde 20'!Z39,'Runde 21'!Z39,'Runde 22'!Z39,'Runde 23'!Z39,'Runde 24'!Z39,'Runde 25'!Z39,'Runde 26'!Z39,'Runde 27'!Z39,'Runde 27'!Z39,'Runde 28'!Z39,'Runde 29'!Z39,'Runde 30'!Z39)) -> 100 | G43: Sandsave% | H43: =IF(B3=0,"",('DATA - nix pille'!C23/'DATA - nix pille'!C22)) -> 0.2 | J43: Eagles | K43: =IF(B3=0,"",SUM('Runde 1'!W25,'Runde 2'!W25,'Runde 3'!W25,'Runde 4'!W25,'Runde 5'!W25,'Runde 6'!W25,'Runde 7'!W25,'Runde 8'!W25,'Runde 9'!W25,'Runde 10'!W25,'Runde 11'!W25,'Runde 12'!W25,'Runde 13'!W25,'Runde 14'!W25,'Runde 15'!W25,'Runde 16'!W25,'Runde 17'!W25,'Runde 18'!W25,'Runde 19'!W25,'Runde 20'!W25,'Runde 21'!W25,'Runde 22'!W25,'Runde 23'!W25,'Runde 24'!W25,'Runde 25'!W25,'Runde 26'!W25,'Runde 27'!W25,'Runde 27'!W25,'Runde 28'!W25,'Runde 29'!W25,'Runde 30'!W25)) -> 1 | L43: =IF(B3=0,"",(K43/(B3*18))*100) -> 0.2136752137
A44: 71 - 90 | B44: =IF(B3=0,"",AVERAGE('Runde 1'!Y31,'Runde 2'!Y31,'Runde 3'!Y31,'Runde 4'!Y31,'Runde 5'!Y31,'Runde 6'!Y31,'Runde 7'!Y31,'Runde 8'!Y31,'Runde 9'!Y31,'Runde 10'!Y31,'Runde 11'!Y31,'Runde 12'!Y31,'Runde 13'!Y31,'Runde 14'!Y31,'Runde 15'!Y31,'Runde 16'!Y31,'Runde 17'!Y31,'Runde 18'!Y31,'Runde 19'!Y31,'Runde 20'!Y31,'Runde 21'!Y31,'Runde 22'!Y31,'Runde 23'!Y31,'Runde 24'!Y31,'Runde 25'!Y31,'Runde 26'!Y31,'Runde 27'!Y31,'Runde 27'!Y31,'Runde 28'!Y31,'Runde 29'!Y31,'Runde 30'!Y31)) -> 4.935555556 | D44: 1 - 1,5 | E44: =IF(B3=0,"",AVERAGE('Runde 1'!Z40,'Runde 2'!Z40,'Runde 3'!Z40,'Runde 4'!Z40,'Runde 5'!Z40,'Runde 6'!Z40,'Runde 7'!Z40,'Runde 8'!Z40,'Runde 9'!Z40,'Runde 10'!Z40,'Runde 11'!Z40,'Runde 12'!Z40,'Runde 13'!Z40,'Runde 14'!Z40,'Runde 15'!Z40,'Runde 16'!Z40,'Runde 17'!Z40,'Runde 18'!Z40,'Runde 19'!Z40,'Runde 20'!Z40,'Runde 21'!Z40,'Runde 22'!Z40,'Runde 23'!Z40,'Runde 24'!Z40,'Runde 25'!Z40,'Runde 26'!Z40,'Runde 27'!Z40,'Runde 27'!Z40,'Runde 28'!Z40,'Runde 29'!Z40,'Runde 30'!Z40)) -> 59.09090909 | J44: Birdies | K44: =IF(B3=0,"",SUM('Runde 1'!X25,'Runde 2'!X25,'Runde 3'!X25,'Runde 4'!X25,'Runde 5'!X25,'Runde 6'!X25,'Runde 7'!X25,'Runde 8'!X25,'Runde 9'!X25,'Runde 10'!X25,'Runde 11'!X25,'Runde 12'!X25,'Runde 13'!X25,'Runde 14'!X25,'Runde 15'!X25,'Runde 16'!X25,'Runde 17'!X25,'Runde 18'!X25,'Runde 19'!X25,'Runde 20'!X25,'Runde 21'!X25,'Runde 22'!X25,'Runde 23'!X25,'Runde 24'!X25,'Runde 25'!X25,'Runde 26'!X25,'Runde 27'!X25,'Runde 27'!X25,'Runde 28'!X25,'Runde 29'!X25,'Runde 30'!X25)) -> 72 | L44: =IF(B3=0,"",(K44/(B3*18))*100) -> 15.38461538
A45: 91 - 115 | B45: =IF(B3=0,"",AVERAGE('Runde 1'!Y32,'Runde 2'!Y32,'Runde 3'!Y32,'Runde 4'!Y32,'Runde 5'!Y32,'Runde 6'!Y32,'Runde 7'!Y32,'Runde 8'!Y32,'Runde 9'!Y32,'Runde 10'!Y32,'Runde 11'!Y32,'Runde 12'!Y32,'Runde 13'!Y32,'Runde 14'!Y32,'Runde 15'!Y32,'Runde 16'!Y32,'Runde 17'!Y32,'Runde 18'!Y32,'Runde 19'!Y32,'Runde 20'!Y32,'Runde 21'!Y32,'Runde 22'!Y32,'Runde 23'!Y32,'Runde 24'!Y32,'Runde 25'!Y32,'Runde 26'!Y32,'Runde 27'!Y32,'Runde 27'!Y32,'Runde 28'!Y32,'Runde 29'!Y32,'Runde 30'!Y32)) -> 4.254901961 | D45: 1,5 - 3 | E45: =IF(B3=0,"",AVERAGE('Runde 1'!Z41,'Runde 2'!Z41,'Runde 3'!Z41,'Runde 4'!Z41,'Runde 5'!Z41,'Runde 6'!Z41,'Runde 7'!Z41,'Runde 8'!Z41,'Runde 9'!Z41,'Runde 10'!Z41,'Runde 11'!Z41,'Runde 12'!Z41,'Runde 13'!Z41,'Runde 14'!Z41,'Runde 15'!Z41,'Runde 16'!Z41,'Runde 17'!Z41,'Runde 18'!Z41,'Runde 19'!Z41,'Runde 20'!Z41,'Runde 21'!Z41,'Runde 22'!Z41,'Runde 23'!Z41,'Runde 24'!Z41,'Runde 25'!Z41,'Runde 26'!Z41,'Runde 27'!Z41,'Runde 27'!Z41,'Runde 28'!Z41,'Runde 29'!Z41,'Runde 30'!Z41)) -> 47.77777778 | J45: Pars | K45: =IF(B3=0,"",((B3*18)-SUM(K43,K44,K46,K47))) -> 281 | L45: =IF(B3=0,"",(K45/(B3*18))*100) -> 60.04273504
A46: 116 - 140 | B46: =IF(B3=0,"",AVERAGE('Runde 1'!Y33,'Runde 2'!Y33,'Runde 3'!Y33,'Runde 4'!Y33,'Runde 5'!Y33,'Runde 6'!Y33,'Runde 7'!Y33,'Runde 8'!Y33,'Runde 9'!Y33,'Runde 10'!Y33,'Runde 11'!Y33,'Runde 12'!Y33,'Runde 13'!Y33,'Runde 14'!Y33,'Runde 15'!Y33,'Runde 16'!Y33,'Runde 17'!Y33,'Runde 18'!Y33,'Runde 19'!Y33,'Runde 20'!Y33,'Runde 21'!Y33,'Runde 22'!Y33,'Runde 23'!Y33,'Runde 24'!Y33,'Runde 25'!Y33,'Runde 26'!Y33,'Runde 27'!Y33,'Runde 27'!Y33,'Runde 28'!Y33,'Runde 29'!Y33,'Runde 30'!Y33)) -> 4.798888889 | D46: 3 - 4,5 | E46: =IF(B3=0,"",AVERAGE('Runde 1'!Z42,'Runde 2'!Z42,'Runde 3'!Z42,'Runde 4'!Z42,'Runde 5'!Z42,'Runde 6'!Z42,'Runde 7'!Z42,'Runde 8'!Z42,'Runde 9'!Z42,'Runde 10'!Z42,'Runde 11'!Z42,'Runde 12'!Z42,'Runde 13'!Z42,'Runde 14'!Z42,'Runde 15'!Z42,'Runde 16'!Z42,'Runde 17'!Z42,'Runde 18'!Z42,'Runde 19'!Z42,'Runde 20'!Z42,'Runde 21'!Z42,'Runde 22'!Z42,'Runde 23'!Z42,'Runde 24'!Z42,'Runde 25'!Z42,'Runde 26'!Z42,'Runde 27'!Z42,'Runde 27'!Z42,'Runde 28'!Z42,'Runde 29'!Z42,'Runde 30'!Z42)) -> 18.33333333 | J46: Bogeys | K46: =IF(B3=0,"",SUM('Runde 1'!Y25,'Runde 2'!Y25,'Runde 3'!Y25,'Runde 4'!Y25,'Runde 5'!Y25,'Runde 6'!Y25,'Runde 7'!Y25,'Runde 8'!Y25,'Runde 9'!Y25,'Runde 10'!Y25,'Runde 11'!Y25,'Runde 12'!Y25,'Runde 13'!Y25,'Runde 14'!Y25,'Runde 15'!Y25,'Runde 16'!Y25,'Runde 17'!Y25,'Runde 18'!Y25,'Runde 19'!Y25,'Runde 20'!Y25,'Runde 21'!Y25,'Runde 22'!Y25,'Runde 23'!Y25,'Runde 24'!Y25,'Runde 25'!Y25,'Runde 26'!Y25,'Runde 27'!Y25,'Runde 27'!Y25,'Runde 28'!Y25,'Runde 29'!Y25,'Runde 30'!Y25)) -> 90 | L46: =IF(B3=0,"",(K46/(B3*18))*100) -> 19.23076923
A47: 141 - 160 | B47: =IF(B3=0,"",AVERAGE('Runde 1'!Y34,'Runde 2'!Y34,'Runde 3'!Y34,'Runde 4'!Y34,'Runde 5'!Y34,'Runde 6'!Y34,'Runde 7'!Y34,'Runde 8'!Y34,'Runde 9'!Y34,'Runde 10'!Y34,'Runde 11'!Y34,'Runde 12'!Y34,'Runde 13'!Y34,'Runde 14'!Y34,'Runde 15'!Y34,'Runde 16'!Y34,'Runde 17'!Y34,'Runde 18'!Y34,'Runde 19'!Y34,'Runde 20'!Y34,'Runde 21'!Y34,'Runde 22'!Y34,'Runde 23'!Y34,'Runde 24'!Y34,'Runde 25'!Y34,'Runde 26'!Y34,'Runde 27'!Y34,'Runde 27'!Y34,'Runde 28'!Y34,'Runde 29'!Y34,'Runde 30'!Y34)) -> 5.214285714 | D47: 4,5 - 6 | E47: =IF(B3=0,"",AVERAGE('Runde 1'!Z43,'Runde 2'!Z43,'Runde 3'!Z43,'Runde 4'!Z43,'Runde 5'!Z43,'Runde 6'!Z43,'Runde 7'!Z43,'Runde 8'!Z43,'Runde 9'!Z43,'Runde 10'!Z43,'Runde 11'!Z43,'Runde 12'!Z43,'Runde 13'!Z43,'Runde 14'!Z43,'Runde 15'!Z43,'Runde 16'!Z43,'Runde 17'!Z43,'Runde 18'!Z43,'Runde 19'!Z43,'Runde 20'!Z43,'Runde 21'!Z43,'Runde 22'!Z43,'Runde 23'!Z43,'Runde 24'!Z43,'Runde 25'!Z43,'Runde 26'!Z43,'Runde 27'!Z43,'Runde 27'!Z43,'Runde 28'!Z43,'Runde 29'!Z43,'Runde 30'!Z43)) -> 7.453703704 | J47: Doubles | K47: =IF(B3=0,"",SUM('Runde 1'!Z25,'Runde 2'!Z25,'Runde 3'!Z25,'Runde 4'!Z25,'Runde 5'!Z25,'Runde 6'!Z25,'Runde 7'!Z25,'Runde 8'!Z25,'Runde 9'!Z25,'Runde 10'!Z25,'Runde 11'!Z25,'Runde 12'!Z25,'Runde 13'!Z25,'Runde 14'!Z25,'Runde 15'!Z25,'Runde 16'!Z25,'Runde 17'!Z25,'Runde 18'!Z25,'Runde 19'!Z25,'Runde 20'!Z25,'Runde 21'!Z25,'Runde 22'!Z25,'Runde 23'!Z25,'Runde 24'!Z25,'Runde 25'!Z25,'Runde 26'!Z25,'Runde 27'!Z25,'Runde 27'!Z25,'Runde 28'!Z25,'Runde 29'!Z25,'Runde 30'!Z25)) -> 24 | L47: =IF(B3=0,"",(K47/(B3*18))*100) -> 5.128205128
A48: 161 - 180 | B48: =IF(B3=0,"",AVERAGE('Runde 1'!Y35,'Runde 2'!Y35,'Runde 3'!Y35,'Runde 4'!Y35,'Runde 5'!Y35,'Runde 6'!Y35,'Runde 7'!Y35,'Runde 8'!Y35,'Runde 9'!Y35,'Runde 10'!Y35,'Runde 11'!Y35,'Runde 12'!Y35,'Runde 13'!Y35,'Runde 14'!Y35,'Runde 15'!Y35,'Runde 16'!Y35,'Runde 17'!Y35,'Runde 18'!Y35,'Runde 19'!Y35,'Runde 20'!Y35,'Runde 21'!Y35,'Runde 22'!Y35,'Runde 23'!Y35,'Runde 24'!Y35,'Runde 25'!Y35,'Runde 26'!Y35,'Runde 27'!Y35,'Runde 27'!Y35,'Runde 28'!Y35,'Runde 29'!Y35,'Runde 30'!Y35)) -> 6.75 | D48: over 6 m | E48: =IF(B3=0,"",AVERAGE('Runde 1'!Z44,'Runde 2'!Z44,'Runde 3'!Z44,'Runde 4'!Z44,'Runde 5'!Z44,'Runde 6'!Z44,'Runde 7'!Z44,'Runde 8'!Z44,'Runde 9'!Z44,'Runde 10'!Z44,'Runde 11'!Z44,'Runde 12'!Z44,'Runde 13'!Z44,'Runde 14'!Z44,'Runde 15'!Z44,'Runde 16'!Z44,'Runde 17'!Z44,'Runde 18'!Z44,'Runde 19'!Z44,'Runde 20'!Z44,'Runde 21'!Z44,'Runde 22'!Z44,'Runde 23'!Z44,'Runde 24'!Z44,'Runde 25'!Z44,'Runde 26'!Z44,'Runde 27'!Z44,'Runde 27'!Z44,'Runde 28'!Z44,'Runde 29'!Z44,'Runde 30'!Z44)) -> 6.111111111

Sheet Sæson graf

Sheet Scorekort til print
A1: Vallø Golf Klub - 18 huller - Gul tee | J1: =IF(E25="0","0","1") -> 1 | L1: Dato:
H3: Tee shot | K3: Fairway hits i % | N3: Bunker
A4: Hul | B4: Gul tee | C4: Par | D4: HCP | E4: Score | F4: Netto | G4: Driver | H4: Wood | I4: Jern | J4: Venstre | K4: Midt | L4: Højre | M4: FB | N4: GB | O4: SS | P4: Putts | Q4: GIR
A5: 1 | B5: 387 | C5: 4 | D5: 3
A6: 2 | B6: 126 | C6: 3 | D6: 13
A7: 3 | B7: 437 | C7: 5 | D7: 11
A8: 4 | B8: 437 | C8: 5 | D8: 9
A9: 5 | B9: 391 | C9: 4 | D9: 5
A10: 6 | B10: 164 | C10: 3 | D10: 15
A11: 7 | B11: 397 | C11: 4 | D11: 1
A12: 8 | B12: 101 | C12: 3 | D12: 17
A13: 9 | B13: 343 | C13: 4 | D13: 7
B14: =SUM(B5:B13) -> 2783 | C14: =SUM(C5:C13) -> 35 | D14: UD
A15: 10 | B15: 384 | C15: 4 | D15: 4
A16: 11 | B16: 322 | C16: 4 | D16: 12
A17: 12 | B17: 262 | C17: 4 | D17: 16
A18: 13 | B18: 167 | C18: 3 | D18: 14
A19: 14 | B19: 355 | C19: 4 | D19: 10
A20: 15 | B20: 126 | C20: 3 | D20: 18
A21: 16 | B21: 522 | C21: 5 | D21: 8
A22: 17 | B22: 451 | C22: 5 | D22: 6
A23: 18 | B23: 405 | C23: 4 | D23: 2
B24: =SUM(B15:B23) -> 2994 | C24: =SUM(C15:C23) -> 36 | D24: IND
B25: =SUM(B24,B14) -> 5777 | C25: =SUM(C24,C14) -> 71 | D25: TOTAL
A29: Korsør Golf Klub - 18 huller - Gul tee | J29: =IF(E53="0","0","1") -> 1 | L29: Dato:
H31: Tee shot | K31: Fairway hits i % | N31: Bunker
A32: Hul | B32: Gul tee | C32: Par | D32: HCP | E32: Score | F32: Netto | G32: Driver | H32: Wood | I32: Jern | J32: Venstre | K32: Midt | L32: Højre | M32: FB | N32: GB | O32: SS | P32: Putts | Q32: GIR
A33: 1 | B33: 307 | C33: 4 | D33: 11
A34: 2 | B34: 323 | C34: 4 | D34: 5
A35: 3 | B35: 138 | C35: 3 | D35: 15
A36: 4 | B36: 310 | C36: 4 | D36: 13
A37: 5 | B37: 431 | C37: 5 | D37: 3
A38: 6 | B38: 312 | C38: 4 | D38: 9
A39: 7 | B39: 498 | C39: 5 | D39: 1
A40: 8 | B40: 138 | C40: 3 | D40: 17
A41: 9 | B41: 310 | C41: 4 | D41: 7
B42: =SUM(B33:B41) -> 2767 | C42: =SUM(C33:C41) -> 36 | D42: UD
A43: 10 | B43: 481 | C43: 5 | D43: 4
A44: 11 | B44: 319 | C44: 4 | D44: 16
A45: 12 | B45: 431 | C45: 5 | D45: 2
A46: 13 | B46: 122 | C46: 3 | D46: 18
A47: 14 | B47: 379 | C47: 4 | D47: 6
A48: 15 | B48: 316 | C48: 4 | D48: 8
A49: 16 | B49: 322 | C49: 4 | D49: 14
A50: 17 | B50: 345 | C50: 4 | D50: 10
A51: 18 | B51: 281 | C51: 4 | D51: 12
B52: =SUM(B43:B51) -> 2996 | C52: =SUM(C43:C51) -> 37 | D52: IND
B53: =SUM(B52,B42) -> 5763 | C53: =SUM(C52,C42) -> 73 | D53: TOTAL
A57: Roskilde Golf Klub - 18 huller - Gul tee | J57: =IF(E81="0","0","1") -> 1 | L57: Dato:
H59: Tee shot | K59: Fairway hits i % | N59: Bunker
A60: Hul | B60: Gul tee | C60: Par | D60: HCP | E60: Score | F60: Netto | G60: Driver | H60: Wood | I60: Jern | J60: Venstre | K60: Midt | L60: Højre | M60: FB | N60: GB | O60: SS | P60: Putts | Q60: GIR
A61: 1 | B61: 453 | C61: 5 | D61: 4
A62: 2 | B62: 294 | C62: 4 | D62: 8
A63: 3 | B63: 317 | C63: 4 | D63: 12
A64: 4 | B64: 308 | C64: 4 | D64: 10
A65: 5 | B65: 160 | C65: 3 | D65: 18
A66: 6 | B66: 299 | C66: 4 | D66: 14
A67: 7 | B67: 152 | C67: 3 | D67: 16
A68: 8 | B68: 308 | C68: 4 | D68: 6
A69: 9 | B69: 332 | C69: 4 | D69: 2
B70: =SUM(B61:B69) -> 2623 | C70: =SUM(C61:C69) -> 35 | D70: UD
A71: 10 | B71: 372 | C71: 4 | D71: 1
A72: 11 | B72: 269 | C72: 4 | D72: 9
A73: 12 | B73: 496 | C73: 5 | D73: 3
A74: 13 | B74: 178 | C74: 3 | D74: 15
A75: 14 | B75: 390 | C75: 4 | D75: 7
A76: 15 | B76: 485 | C76: 5 | D76: 5
A77: 16 | B77: 310 | C77: 4 | D77: 13
A78: 17 | B78: 147 | C78: 3 | D78: 17
A79: 18 | B79: 453 | C79: 5 | D79: 11
B80: =SUM(B71:B79) -> 3100 | C80: =SUM(C71:C79) -> 37 | D80: IND
B81: =SUM(B80,B70) -> 5723 | C81: =SUM(C80,C70) -> 72 | D81: TOTAL
A85: Trelleborg Golf Klub - 18 huller - Gul tee | J85: =IF(E109="0","0","1") -> 1 | L85: Dato:
H87: Tee shot | K87: Fairway hits i % | N87: Bunker
A88: Hul | B88: Gul tee | C88: Par | D88: HCP | E88: Score | F88: Netto | G88: Driver | H88: Wood | I88: Jern | J88: Venstre | K88: Midt | L88: Højre | M88: FB | N88: GB | O88: SS | P88: Putts | Q88: GIR
A89: 1 | B89: 432 | C89: 5 | D89: 5
A90: 2 | B90: 336 | C90: 4 | D90: 15
A91: 3 | B91: 351 | C91: 4 | D91: 3
A92: 4 | B92: 340 | C92: 4 | D92: 11
A93: 5 | B93: 145 | C93: 3 | D93: 17
A94: 6 | B94: 318 | C94: 4 | D94: 13
A95: 7 | B95: 517 | C95: 5 | D95: 1
A96: 8 | B96: 387 | C96: 4 | D96: 7
A97: 9 | B97: 115 | C97: 3 | D97: 9
B98: =SUM(B89:B97) -> 2941 | C98: =SUM(C89:C97) -> 36 | D98: UD
A99: 10 | B99: 360 | C99: 4 | D99: 14
A100: 11 | B100: 325 | C100: 4 | D100: 12
A101: 12 | B101: 482 | C101: 5 | D101: 2
A102: 13 | B102: 370 | C102: 4 | D102: 8
A103: 14 | B103: 365 | C103: 4 | D103: 4
A104: 15 | B104: 128 | C104: 3 | D104: 16
A105: 16 | B105: 380 | C105: 4 | D105: 10
A106: 17 | B106: 160 | C106: 3 | D106: 18
A107: 18 | B107: 504 | C107: 5 | D107: 6
B108: =SUM(B99:B107) -> 3074 | C108: =SUM(C99:C107) -> 36 | D108: IND
B109: =SUM(B108,B98) -> 6015 | C109: =SUM(C108,C98) -> 72 | D109: TOTAL
A113: Korsør Golf Klub - 18 huller - Hvid tee | J113: =IF(E137="0","0","1") -> 1 | L113: Dato:
H115: Tee shot | K115: Fairway hits i % | N115: Bunker
A116: Hul | B116: Gul tee | C116: Par | D116: HCP | E116: Score | F116: Netto | G116: Driver | H116: Wood | I116: Jern | J116: Venstre | K116: Midt | L116: Højre | M116: FB | N116: GB | O116: SS | P116: Putts | Q116: GIR
A117: 1 | B117: 313 | C117: 4 | D117: 11
A118: 2 | B118: 340 | C118: 4 | D118: 5
A119: 3 | B119: 143 | C119: 3 | D119: 15
A120: 4 | B120: 335 | C120: 4 | D120: 13
A121: 5 | B121: 443 | C121: 5 | D121: 3
A122: 6 | B122: 319 | C122: 4 | D122: 9
A123: 7 | B123: 555 | C123: 5 | D123: 1
A124: 8 | B124: 143 | C124: 3 | D124: 17
A125: 9 | B125: 320 | C125: 4 | D125: 7
B126: =SUM(B117:B125) -> 2911 | C126: =SUM(C117:C125) -> 36 | D126: UD
A127: 10 | B127: 490 | C127: 5 | D127: 4
A128: 11 | B128: 330 | C128: 4 | D128: 16
A129: 12 | B129: 451 | C129: 5 | D129: 2
A130: 13 | B130: 140 | C130: 3 | D130: 18
A131: 14 | B131: 383 | C131: 4 | D131: 6
A132: 15 | B132: 332 | C132: 4 | D132: 8
A133: 16 | B133: 334 | C133: 4 | D133: 14
A134: 17 | B134: 368 | C134: 4 | D134: 10
A135: 18 | B135: 299 | C135: 4 | D135: 12
B136: =SUM(B127:B135) -> 3127 | C136: =SUM(C127:C135) -> 37 | D136: IND
B137: =SUM(B136,B126) -> 6038 | C137: =SUM(C136,C126) -> 73 | D137: TOTAL

Sheet Runde 1
A1: Korsør Golf Klub - 18 huller - Gul tee | J1: =IF(E25="0","0","1") -> 1 | K1: Dato: | L1: 2010-04-18 | N1: Handicap: | O1: 4.5 | Q1: ATS: | R1: 3 | T1: Vejr: | U1: 10-15 grader, jævn vind | W1: Turnering: | X1: Åbningsturnering | AA1: Gunstart hul 16
H3: Tee shot | K3: Fairway hits i % | N3: Bunker | R3: Approach shots
A4: Hul | B4: Gul tee | C4: Par | D4: HCP | E4: Score | F4: Netto | G4: Driver | H4: Wood | I4: Jern | J4: Venstre | K4: Midt | L4: Højre | M4: FB | N4: GB | O4: SS | P4: Putts | Q4: GIR | R4: Dist. to pin (m) | S4: Dist. to hole (m) | T4: % SS | U4: % GIR | V4: Putts/GIR | W4: Eagles | X4: Birdies | Y4: Bogeys | Z4: Værre | AA4: % Scramble | AB4: 3+ Putts | AC4: % Driver/Fairwayhits
A5: 1 | B5: 307 | C5: 4 | D5: 11 | E5: 5 | F5: 5 | H5: 1 | J5: 1 | P5: 3 | Q5: 1 | V5: =IF(Q5=0,"",P5) -> 3 | AA5: =IF(AND(Q5="",P5=1),1,"") ->  | AC5: =IF(AND(G5=""),"",SUM(K5)) -> 
A6: 2 | B6: 323 | C6: 4 | D6: 5 | E6: 5 | F6: 5 | G6: 1 | J6: 1 | P6: 2 | AC6: 0
A7: 3 | B7: 138 | C7: 3 | D7: 15 | E7: 4 | F7: 4 | P7: 2
A8: 4 | B8: 310 | C8: 4 | D8: 13 | E8: 3 | F8: 3 | H8: 1 | K8: 1 | P8: 1 | Q8: 1 | V8: 1
A9: 5 | B9: 431 | C9: 5 | D9: 3 | E9: 5 | F9: 4 | G9: 1 | J9: 1 | P9: 2 | Q9: 1 | V9: 2 | AC9: 0
A10: 6 | B10: 312 | C10: 4 | D10: 9 | E10: 4 | F10: 4 | H10: 1 | K10: 1 | P10: 2 | Q10: 1 | V10: 2
A11: 7 | B11: 498 | C11: 5 | D11: 1 | E11: 7 | F11: 6 | I11: 1 | J11: 1 | P11: 2
A12: 8 | B12: 138 | C12: 3 | D12: 17 | E12: 3 | F12: 3 | P12: 2 | Q12: 1 | V12: 2
A13: 9 | B13: 310 | C13: 4 | D13: 7 | E13: 4 | F13: 4 | H13: 1 | K13: 1 | P13: 1 | AA13: 1
B14: =SUM(B5:B13) -> 2767 | C14: =SUM(C5:C13) -> 36 | D14: UD | E14: =SUM(E5:E13) -> 40 | F14: =SUM(F5:F13) -> 38 | G14: =SUM(G5:G13) -> 2 | H14: =SUM(H5:H13) -> 4 | I14: =SUM(I5:I13) -> 1 | J14: =IF((A28=27),"",(SUM(J5:J13)/SUM(J5:L13))*100) -> 57.14285714 | K14: =IF((A28=27),"",(SUM(K5:K13)/SUM(J5:L13))*100) -> 42.85714286 | L14: =IF((A28=27),"",(SUM(L5:L13)/SUM(J5:L13))*100) -> 0 | M14: =SUM(M5:M13) -> 0 | N14: =SUM(N5:N13) -> 0 | O14: =SUM(O5:O13) -> 0 | P14: =SUM(P5:P13) -> 17 | Q14: =SUM(Q5:Q13) -> 5 | S14: =IF(Q14=0,"",SUM(S5:S13)/Q14) -> 0 | V14: =SUM(V5:V13) -> 10 | W14: =ColorFunction($E$30,$E$5:$E$13) -> 0 | X14: =ColorFunction($E$31,$E$5:$E$13) -> 1 | Y14: =ColorFunction($E$32,$E$5:$E$13) -> 3 | Z14: =ColorFunction($E$33,$E$5:$E$13) -> 1 | AA14: =SUM(AA5:AA13)/(9-Q14)*100 -> 25 | AB14: =COUNTIF(P5:P13,">2") -> 1 | AC14: =IF((G14=0),"",SUM(AC5:AC13)/G14*100) -> 0
A15: 10 | B15: 481 | C15: 5 | D15: 4 | E15: 5 | F15: 5 | G15: 1 | K15: 1 | P15: 2 | Q15: 1 | V15: =IF(Q15=0,"",P15) -> 2 | AA15: =IF(AND(Q15="",P15=1),1,"") ->  | AC15: =IF(AND(G15=""),"",SUM(K15)) -> 1
A16: 11 | B16: 319 | C16: 4 | D16: 16 | E16: 5 | F16: 5 | H16: 1 | K16: 1 | P16: 2
A17: 12 | B17: 431 | C17: 5 | D17: 2 | E17: 5 | F17: 4 | G17: 1 | K17: 1 | P17: 2 | Q17: 1 | V17: 2 | AC17: 1
A18: 13 | B18: 122 | C18: 3 | D18: 18 | E18: 3 | F18: 3 | P18: 2 | Q18: 1 | V18: 2
A19: 14 | B19: 379 | C19: 4 | D19: 6 | E19: 4 | F19: 4 | G19: 1 | L19: 1 | P19: 1 | AA19: 1 | AC19: 0
A20: 15 | B20: 316 | C20: 4 | D20: 8 | E20: 6 | F20: 6 | G20: 1 | K20: 1 | N20: 1 | P20: 2 | AC20: 1
A21: 16 | B21: 322 | C21: 4 | D21: 14 | E21: 5 | F21: 5 | H21: 1 | L21: 1 | P21: 2
A22: 17 | B22: 345 | C22: 4 | D22: 10 | E22: 4 | F22: 4 | G22: 1 | K22: 1 | P22: 2 | Q22: 1 | V22: 2 | AC22: 1
A23: 18 | B23: 281 | C23: 4 | D23: 12 | E23: 4 | F23: 4 | I23: 1 | K23: 1 | P23: 2 | Q23: 1 | V23: 2
B24: =SUM(B15:B23) -> 2996 | C24: =SUM(C15:C23) -> 37 | D24: IND | E24: =SUM(E15:E23) -> 41 | F24: =SUM(F15:F23) -> 40 | G24: =SUM(G15:G23) -> 5 | H24: =SUM(H15:H23) -> 2 | I24: =SUM(I15:I23) -> 1 | J24: =IF((A29=27),"",(SUM(J15:J23)/SUM(J15:L23))*100) -> 0 | K24: =IF((A29=27),"",(SUM(K15:K23)/SUM(J15:L23))*100) -> 75 | L24: =IF((A29=27),"",(SUM(L15:L23)/SUM(J15:L23))*100) -> 25 | M24: =SUM(M15:M23) -> 0 | N24: =SUM(N15:N23) -> 1 | O24: =SUM(O15:O23) -> 0 | P24: =SUM(P15:P23) -> 17 | Q24: =SUM(Q15:Q23) -> 5 | S24: =IF(Q24=0,"",SUM(S15:S23)/Q24) -> 0 | V24: =SUM(V15:V23) -> 10 | W24: =ColorFunction($E$30,$E$15:$E$23) -> 0 | X24: =ColorFunction($E$31,$E$15:$E$23) -> 0 | Y24: =ColorFunction($E$32,$E$15:$E$23) -> 2 | Z24: =ColorFunction($E$33,$E$15:$E$23) -> 1 | AA24: =SUM(AA15:AA23)/(9-Q24)*100 -> 25 | AB24: =COUNTIF(P15:P23,">2") -> 0 | AC24: =IF((G24=0),"",SUM(AC15:AC23)/G24*100) -> 80
B25: =SUM(B24,B14) -> 5763 | C25: =SUM(C24,C14) -> 73 | D25: TOTAL | E25: =IF(E14=0,"0",(E24+E14)) -> 81 | F25: =SUM(F14,F24) -> 78 | G25: =SUM(G24,G14) -> 7 | H25: =SUM(H24,H14) -> 6 | I25: =SUM(I24,I14) -> 2 | J25: =IF((A28=27),"",(SUM(J14,J24)/2)) -> 28.57142857 | K25: =IF((A28=27),"",(SUM(K14,K24)/2)) -> 58.92857143 | L25: =IF((A28=27),"",(SUM(L14,L24)/2)) -> 12.5 | M25: =SUM(M24,M14) -> 0 | N25: =SUM(N24,N14) -> 1 | O25: =SUM(O24,O14) -> 0 | P25: =IF(P14+P24=0,"",SUM(P24,P14)) -> 34 | Q25: =IF(Q14+Q24=0,"",SUM(Q24,Q14)) -> 10 | S25: =IF(S14+S24=0,"",SUM(S24,S14)/2) ->  | T25: =IF(N25=0,"",(O25)/N25*100) -> 0 | U25: =IF(Q25="","",(Q25)/18*100) -> 55.55555556 | V25: =IF(Q25="","",(V14+V24)/Q25) -> 2 | W25: =SUM(W14,W24) -> 0 | X25: =SUM(X14,X24) -> 1 | Y25: =SUM(Y14,Y24) -> 5 | Z25: =SUM(Z14,Z24) -> 2 | AA25: =SUM(AA14,AA24)/2 -> 25 | AB25: =SUM(AB14,AB24) -> 1 | AC25: =SUM(AC24,AC14)/2 -> 40
E27: Udfyld alle grønne felter med 1 for positiv eller antal i tal
A28: =COUNTBLANK(J5:L13) -> 20 | W28: Approach
A29: =COUNTBLANK(J15:L23) -> 19 | E29: Udfyld følgende farver: | S29: Holes to par | W29: Længde (m) | X29: Antal | Y29: Afstand (m)
A30: =SUM(M5:M23) -> 0 | E30: Eagles | S30: Par 3 | T30: =SUMIF(C:C,"3",E:E)/COUNTIF(C:C,3) -> 3.333333333 | W30: 45-70 | X30: =COUNTIFS(R5:R23,">=45",R5:R23,"<=70") -> 0 | Y30: =IF(X30=0,"",AVERAGEIFS(S5:S23,R5:R23,">=45",R5:R23,"<=70")) -> 
E31: Birdies | S31: Par 4 | T31: =SUMIF(C:C,"4",E:E)/COUNTIF(C:C,4) -> 4.454545455 | W31: 71-90 | X31: =COUNTIFS(R5:R23,">=71",R5:R23,"<=90") -> 0 | Y31: =IF(X31=0,"",AVERAGEIFS(S5:S23,R5:R23,">=71",R5:R23,"<=90")) -> 
E32: Bogeys | S32: Par 5 | T32: =SUMIF(C:C,"5",E:E)/COUNTIF(C:C,5) -> 5.5 | W32: 91-115 | X32: =COUNTIFS(R5:R23,">=91",R5:R23,"<=115") -> 0 | Y32: =IF(X32=0,"",AVERAGEIFS(S5:S23,R5:R23,">=91",R5:R23,"<=115")) -> 
E33: Doublebogeys eller værre | W33: 116-140 | X33: =COUNTIFS(R5:R23,">=116",R5:R23,"<=140") -> 0 | Y33: =IF(X33=0,"",AVERAGEIFS(S5:S23,R5:R23,">=116",R5:R23,"<=140")) -> 
S34: First 4 | T34: =IF(E25="0","",SUM(E5:E8)-SUM(C5:C8)) -> 2 | W34: 141-160 | X34: =COUNTIFS(R5:R23,">=141",R5:R23,"<=161") -> 0 | Y34: =IF(X34=0,"",AVERAGEIFS(S5:S23,R5:R23,">=141",R5:R23,"<=160")) -> 
S35: Last 4 | T35: 2 | W35: 161-180 | X35: =COUNTIFS(R5:R23,">=161",R5:R23,"<=180") -> 0 | Y35: =IF(X35=0,"",AVERAGEIFS(S5:S23,R5:R23,">=161",R5:R23,"<=180")) -> 
W37: Putting
W38: Længde (m) | X38: Antal | Y38: Holet | Z38: Holet (%)
W39: under 1 m | X39: =COUNTIFS(S5:S23,">=0,1",S5:S23,"<=0,9") -> 0 | Y39: =IF(X39=0,"",COUNTIFS(P5:P23,"=1",S5:S23,"<1")) ->  | Z39: =IF(X39=0,"",Y39/X39*100) -> 
W40: 1 - 1,5 | X40: =COUNTIFS(S5:S23,">=1",S5:S23,"<=1,5") -> 0 | Y40: =IF(X40=0,"",COUNTIFS(P5:P23,"=1",S5:S23,">=1",S5:S23,"<=1,5")) ->  | Z40: =IF(X40=0,"",Y40/X40*100) -> 
W41: 1,5 - 3 | X41: =COUNTIFS(S5:S23,">=1,6",S5:S23,"<=3") -> 0 | Y41: =IF(X41=0,"",COUNTIFS(P5:P23,"=1",S5:S23,">=1,6",S5:S23,"<=3")) ->  | Z41: =IF(X41=0,"",Y41/X41*100) -> 
W42: 3 - 4,5 | X42: =COUNTIFS(S5:S23,">=3,1",S5:S23,"<=4,5") -> 0 | Y42: =IF(X42=0,"",COUNTIFS(P5:P23,"=1",S5:S23,">=3,1",S5:S23,"<=4,5")) -> 
W43: 4,5 - 6 | X43: =COUNTIFS(S5:S23,">=4,6",S5:S23,"<=6") -> 0 | Y43: =IF(X43=0,"",COUNTIFS(P5:P23,"=1",S5:S23,">=4,6",S5:S23,"<=6")) -> 
W44: over 6 meter | X44: =COUNTIFS(S5:S23,">6") -> 0 | Y44: =IF(X44=0,"",COUNTIFS(P5:P23,"=1",S5:S23,">6")) -> 

Sheet Runde 2
A1: Korsør Golf Klub - 18 huller - Gul tee | J1: =IF(E25="0","0","1") -> 1 | K1: Dato: | L1: 2010-04-20 | N1: Handicap: | O1: 4.5 | Q1: ATS: | R1: 3 | T1: Vejr: | U1: 3-6 grader, regn og jævn vind | X1: Turnering: | Y1: Tirsdagsklub
H3: Tee shot | K3: Fairway hits i % | N3: Bunker | R3: Approach shots
A4: Hul | B4: Gul tee | C4: Par | D4: HCP | E4: Score | F4: Netto | G4: Driver | H4: Wood | I4: Jern | J4: Venstre | K4: Midt | L4: Højre | M4: FB | N4: GB | O4: SS | P4: Putts | Q4: GIR | R4: Dist. to pin (m) | S4: Dist. to hole (m) | T4: % SS | U4: % GIR | V4: Putts/GIR | W4: Eagles | X4: Birdies | Y4: Bogeys | Z4: Værre | AA4: % Scramble | AB4: 3+ Putts | AC4: % Driver/Fairwayhits
A5: 1 | B5: 307 | C5: 4 | D5: 11 | E5: 4 | F5: 4 | H5: 1 | K5: 1 | P5: 1 | R5: 25 | S5: 1 | V5: =IF(Q5=0,"",P5) ->  | AA5: =IF(AND(Q5="",P5=1),1,"") -> 1 | AC5: =IF(AND(G5=""),"",SUM(K5)) -> 
A6: 2 | B6: 323 | C6: 4 | D6: 5 | E6: 5 | F6: 5 | G6: 1 | K6: 1 | P6: 2 | AC6: 1
A7: 3 | B7: 138 | C7: 3 | D7: 15 | E7: 2 | F7: 2 | P7: 1 | Q7: 1 | R7: 145 | S7: 3 | V7: 1
A8: 4 | B8: 310 | C8: 4 | D8: 13 | E8: 5 | F8: 5 | H8: 1 | L8: 1 | P8: 2 | R8: 44 | S8: 3
A9: 5 | B9: 431 | C9: 5 | D9: 3 | E9: 4 | F9: 3 | G9: 1 | K9: 1 | P9: 1 | Q9: 1 | R9: 48 | S9: 6 | V9: 1 | AC9: 1
A10: 6 | B10: 312 | C10: 4 | D10: 9 | E10: 4 | F10: 4 | G10: 1 | L10: 1 | P10: 2 | Q10: 1 | R10: 98 | S10: 5 | V10: 2 | AC10: 0
A11: 7 | B11: 498 | C11: 5 | D11: 1 | E11: 5 | F11: 4 | I11: 1 | K11: 1 | P11: 2 | Q11: 1 | R11: 116 | S11: 6 | V11: 2
A12: 8 | B12: 138 | C12: 3 | D12: 17 | E12: 5 | F12: 5 | N12: 1 | P12: 2
A13: 9 | B13: 310 | C13: 4 | D13: 7 | E13: 4 | F13: 4 | H13: 1 | K13: 1 | P13: 2 | Q13: 1 | R13: 124 | S13: 6 | V13: 2
B14: =SUM(B5:B13) -> 2767 | C14: =SUM(C5:C13) -> 36 | D14: UD | E14: =SUM(E5:E13) -> 38 | F14: =SUM(F5:F13) -> 36 | G14: =SUM(G5:G13) -> 3 | H14: =SUM(H5:H13) -> 3 | I14: =SUM(I5:I13) -> 1 | J14: =IF((A28=27),"",(SUM(J5:J13)/SUM(J5:L13))*100) -> 0 | K14: =IF((A28=27),"",(SUM(K5:K13)/SUM(J5:L13))*100) -> 71.42857143 | L14: =IF((A28=27),"",(SUM(L5:L13)/SUM(J5:L13))*100) -> 28.57142857 | M14: =SUM(M5:M13) -> 0 | N14: =SUM(N5:N13) -> 1 | O14: =SUM(O5:O13) -> 0 | P14: =SUM(P5:P13) -> 15 | Q14: =SUM(Q5:Q13) -> 5 | S14: =IF(Q14=0,"",SUM(S5:S13)/Q14) -> 6 | V14: =SUM(V5:V13) -> 8 | W14: =ColorFunction($E$30,$E$5:$E$13) -> 0 | X14: =ColorFunction($E$31,$E$5:$E$13) -> 2 | Y14: =ColorFunction($E$32,$E$5:$E$13) -> 2 | Z14: =ColorFunction($E$33,$E$5:$E$13) -> 1 | AA14: =SUM(AA5:AA13)/(9-Q14)*100 -> 25 | AB14: =COUNTIF(P5:P13,">2") -> 0 | AC14: =IF((G14=0),"",SUM(AC5:AC13)/G14*100) -> 66.66666667
A15: 10 | B15: 481 | C15: 5 | D15: 4 | E15: 5 | F15: 5 | G15: 1 | K15: 1 | P15: 2 | Q15: 1 | R15: 99 | S15: 10 | V15: =IF(Q15=0,"",P15) -> 2 | AA15: =IF(AND(Q15="",P15=1),1,"") ->  | AC15: =IF(AND(G15=""),"",SUM(K15)) -> 1
A16: 11 | B16: 319 | C16: 4 | D16: 16 | E16: 4 | F16: 4 | H16: 1 | K16: 1 | P16: 2 | Q16: 1 | R16: 123 | S16: 5 | V16: 2
A17: 12 | B17: 431 | C17: 5 | D17: 2 | E17: 6 | F17: 5 | G17: 1 | K17: 1 | P17: 3 | Q17: 1 | R17: 88 | S17: 8 | V17: 3 | AC17: 1
A18: 13 | B18: 122 | C18: 3 | D18: 18 | E18: 3 | F18: 3 | P18: 2 | Q18: 1 | R18: 120 | S18: 6 | V18: 2
A19: 14 | B19: 379 | C19: 4 | D19: 6 | E19: 6 | F19: 6 | G19: 1 | J19: 1 | P19: 2 | AC19: 0
A20: 15 | B20: 316 | C20: 4 | D20: 8 | E20: 4 | F20: 4 | G20: 1 | K20: 1 | P20: 1 | AA20: 1 | AC20: 1
A21: 16 | B21: 322 | C21: 4 | D21: 14 | E21: 4 | F21: 4 | G21: 1 | K21: 1 | P21: 2 | Q21: 1 | R21: 94 | S21: 4 | V21: 2 | AC21: 1
A22: 17 | B22: 345 | C22: 4 | D22: 10 | E22: 4 | F22: 4 | G22: 1 | K22: 1 | P22: 1 | AA22: 1 | AC22: 1
A23: 18 | B23: 281 | C23: 4 | D23: 12 | E23: 4 | F23: 4 | H23: 1 | K23: 1 | P23: 2 | Q23: 1 | R23: 82 | S23: 5 | V23: 2
B24: =SUM(B15:B23) -> 2996 | C24: =SUM(C15:C23) -> 37 | D24: IND | E24: =SUM(E15:E23) -> 40 | F24: =SUM(F15:F23) -> 39 | G24: =SUM(G15:G23) -> 6 | H24: =SUM(H15:H23) -> 2 | I24: =SUM(I15:I23) -> 0 | J24: =IF((A29=27),"",(SUM(J15:J23)/SUM(J15:L23))*100) -> 12.5 | K24: =IF((A29=27),"",(SUM(K15:K23)/SUM(J15:L23))*100) -> 87.5 | L24: =IF((A29=27),"",(SUM(L15:L23)/SUM(J15:L23))*100) -> 0 | M24: =SUM(M15:M23) -> 0 | N24: =SUM(N15:N23) -> 0 | O24: =SUM(O15:O23) -> 0 | P24: =SUM(P15:P23) -> 17 | Q24: =SUM(Q15:Q23) -> 6 | S24: =IF(Q24=0,"",SUM(S15:S23)/Q24) -> 6.333333333 | V24: =SUM(V15:V23) -> 13 | W24: =ColorFunction($E$30,$E$15:$E$23) -> 0 | X24: =ColorFunction($E$31,$E$15:$E$23) -> 0 | Y24: =ColorFunction($E$32,$E$15:$E$23) -> 1 | Z24: =ColorFunction($E$33,$E$15:$E$23) -> 1 | AA24: =SUM(AA15:AA23)/(9-Q24)*100 -> 66.66666667 | AB24: =COUNTIF(P15:P23,">2") -> 1 | AC24: =IF((G24=0),"",SUM(AC15:AC23)/G24*100) -> 83.33333333
B25: =SUM(B24,B14) -> 5763 | C25: =SUM(C24,C14) -> 73 | D25: TOTAL | E25: =IF(E14=0,"0",(E24+E14)) -> 78 | F25: =SUM(F14,F24) -> 75 | G25: =SUM(G24,G14) -> 9 | H25: =SUM(H24,H14) -> 5 | I25: =SUM(I24,I14) -> 1 | J25: =IF((A28=27),"",(SUM(J14,J24)/2)) -> 6.25 | K25: =IF((A28=27),"",(SUM(K14,K24)/2)) -> 79.46428571 | L25: =IF((A28=27),"",(SUM(L14,L24)/2)) -> 14.28571429 | M25: =SUM(M24,M14) -> 0 | N25: =SUM(N24,N14) -> 1 | O25: =SUM(O24,O14) -> 0 | P25: =IF(P14+P24=0,"",SUM(P24,P14)) -> 32 | Q25: =IF(Q14+Q24=0,"",SUM(Q24,Q14)) -> 11 | S25: =IF(S14+S24=0,"",SUM(S24,S14)/2) -> 6.166666667 | T25: =IF(N25=0,"",(O25)/N25*100) -> 0 | U25: =IF(Q25="","",(Q25)/18*100) -> 61.11111111 | V25: =IF(Q25="","",(V14+V24)/Q25) -> 1.909090909 | W25: =SUM(W14,W24) -> 0 | X25: =SUM(X14,X24) -> 2 | Y25: =SUM(Y14,Y24) -> 3 | Z25: =SUM(Z14,Z24) -> 2 | AA25: =SUM(AA14,AA24)/2 -> 45.83333333 | AB25: =SUM(AB14,AB24) -> 1 | AC25: =SUM(AC24,AC14)/2 -> 75
E27: Udfyld alle grønne felter med 1 for positiv eller antal i tal
A28: =COUNTBLANK(I5:K13) -> 21 | W28: Approach
A29: =COUNTBLANK(I15:K23) -> 19 | E29: Udfyld følgende farver: | S29: Holes to par | W29: Længde (m) | X29: Antal | Y29: Afstand (m)
A30: =SUM(L5:L23) -> 30.57142857 | E30: Eagles | S30: Par 3 | T30: =SUMIF(C:C,"3",E:E)/COUNTIF(C:C,3) -> 3.333333333 | W30: 45-70 | X30: =COUNTIFS(R5:R23,">=45",R5:R23,"<=70") -> 1 | Y30: =IF(X30=0,"",AVERAGEIFS(S5:S23,R5:R23,">=45",R5:R23,"<=70")) -> 6
E31: Birdies | S31: Par 4 | T31: =SUMIF(C:C,"4",E:E)/COUNTIF(C:C,4) -> 4.363636364 | W31: 71-90 | X31: =COUNTIFS(R5:R23,">=71",R5:R23,"<=90") -> 2 | Y31: =IF(X31=0,"",AVERAGEIFS(S5:S23,R5:R23,">=71",R5:R23,"<=90")) -> 6.5
E32: Bogeys | S32: Par 5 | T32: =SUMIF(C:C,"5",E:E)/COUNTIF(C:C,5) -> 5 | W32: 91-115 | X32: =COUNTIFS(R5:R23,">=91",R5:R23,"<=115") -> 3 | Y32: =IF(X32=0,"",AVERAGEIFS(S5:S23,R5:R23,">=91",R5:R23,"<=115")) -> 6.333333333
E33: Doublebogeys eller værre | W33: 116-140 | X33: =COUNTIFS(R5:R23,">=116",R5:R23,"<=140") -> 4 | Y33: =IF(X33=0,"",AVERAGEIFS(S5:S23,R5:R23,">=116",R5:R23,"<=140")) -> 5.75
S34: First 4 | T34: =IF(E25="0","",SUM(E5:E8)-SUM(C5:C8)) -> 1 | W34: 141-160 | X34: =COUNTIFS(R5:R23,">=141",R5:R23,"<=161") -> 1 | Y34: =IF(X34=0,"",AVERAGEIFS(S5:S23,R5:R23,">=141",R5:R23,"<=160")) -> 3
S35: Last 4 | T35: =IF(E25="0","",SUM(E20:E23)-SUM(C20:C23)) -> 0 | W35: 161-180 | X35: =COUNTIFS(R5:R23,">=161",R5:R23,"<=180") -> 0 | Y35: =IF(X35=0,"",AVERAGEIFS(S5:S23,R5:R23,">=161",R5:R23,"<=180")) -> 
W37: Putting
W38: Længde (m) | X38: Antal | Y38: Holet | Z38: Holet (%)
W39: under 1 m | X39: =COUNTIFS(S5:S23,">=0,1",S5:S23,"<=0,9") -> 0 | Y39: =IF(X39=0,"",COUNTIFS(P5:P23,"=1",S5:S23,"<1")) ->  | Z39: =IF(X39=0,"",Y39/X39*100) -> 
W40: 1 - 1,5 | X40: =COUNTIFS(S5:S23,">=1",S5:S23,"<=1,5") -> 1 | Y40: =IF(X40=0,"",COUNTIFS(P5:P23,"=1",S5:S23,">=1",S5:S23,"<=1,5")) -> 1 | Z40: =IF(X40=0,"",Y40/X40*100) -> 100
W41: 1,5 - 3 | X41: =COUNTIFS(S5:S23,">=1,6",S5:S23,"<=3") -> 2 | Y41: =IF(X41=0,"",COUNTIFS(P5:P23,"=1",S5:S23,">=1,6",S5:S23,"<=3")) -> 1 | Z41: =IF(X41=0,"",Y41/X41*100) -> 50
W42: 3 - 4,5 | X42: =COUNTIFS(S5:S23,">=3,1",S5:S23,"<=4,5") -> 1 | Y42: =IF(X42=0,"",COUNTIFS(P5:P23,"=1",S5:S23,">=3,1",S5:S23,"<=4,5")) -> 0 | Z42: 0
W43: 4,5 - 6 | X43: =COUNTIFS(S5:S23,">=4,6",S5:S23,"<=6") -> 8 | Y43: =IF(X43=0,"",COUNTIFS(P5:P23,"=1",S5:S23,">=4,6",S5:S23,"<=6")) -> 1 | Z43: 12.5
W44: over 6 meter | X44: =COUNTIFS(S5:S23,">6") -> 2 | Y44: =IF(X44=0,"",COUNTIFS(P5:P23,"=1",S5:S23,">6")) -> 0 | Z44: 0

Sheet Runde 3
A1: Korsør Golf Klub - 18 huller - Gul tee | J1: =IF(E25="0","0","1") -> 1 | K1: Dato: | L1: 2010-04-27 | N1: Handicap: | O1: 4.8 | Q1: ATS: | R1: 4 | T1: Vejr: | U1: 15 grader, sol og frisk vind | W1: Turnering: | X1: Tirsdagsklub
H3: Tee shot | K3: Fairway hits i % | N3: Bunker | R3: Approach shots
A4: Hul | B4: Gul tee | C4: Par | D4: HCP | E4: Score | F4: Netto | G4: Driver | H4: Wood | I4: Jern | J4: Venstre | K4: Midt | L4: Højre | M4: FB | N4: GB | O4: SS | P4: Putts | Q4: GIR | R4: Dist. to pin (m) | S4: Dist. to hole (m) | T4: % SS | U4: % GIR | V4: Putts/GIR | W4: Eagles | X4: Birdies | Y4: Bogeys | Z4: Værre | AA4: % Scramble | AB4: 3+ Putts | AC4: % Driver/Fairwayhits
A5: 1 | B5: 307 | C5: 4 | D5: 11 | E5: 4 | F5: 4 | G5: 1 | K5: 1 | P5: 2 | Q5: 1 | R5: 143 | S5: 8 | V5: =IF(Q5=0,"",P5) -> 2 | AA5: =IF(AND(Q5="",P5=1),1,"") ->  | AC5: =IF(AND(G5=""),"",SUM(K5)) -> 1
A6: 2 | B6: 323 | C6: 4 | D6: 5 | E6: 4 | F6: 4 | G6: 1 | J6: 1 | P6: 2 | Q6: 1 | R6: 95 | S6: 4 | V6: 2 | AC6: 0
A7: 3 | B7: 138 | C7: 3 | D7: 15 | E7: 3 | F7: 3 | P7: 1 | AA7: 1
A8: 4 | B8: 310 | C8: 4 | D8: 13 | E8: 4 | F8: 4 | I8: 1 | K8: 1 | P8: 2 | Q8: 1 | R8: 125 | S8: 7 | V8: 2
A9: 5 | B9: 431 | C9: 5 | D9: 3 | E9: 6 | F9: 5 | G9: 1 | K9: 1 | P9: 4 | Q9: 1 | R9: 150 | S9: 8 | V9: 4 | AC9: 1
A10: 6 | B10: 312 | C10: 4 | D10: 9 | E10: 5 | F10: 5 | G10: 1 | L10: 1 | P10: 2 | AC10: 0
A11: 7 | B11: 498 | C11: 5 | D11: 1 | E11: 5 | F11: 4 | I11: 1 | K11: 1 | P11: 2 | Q11: 1 | R11: 135 | S11: 6 | V11: 2
A12: 8 | B12: 138 | C12: 3 | D12: 17 | E12: 2 | F12: 2 | P12: 1 | Q12: 1 | R12: 144 | S12: 8 | V12: 1
A13: 9 | B13: 310 | C13: 4 | D13: 7 | E13: 4 | F13: 4 | H13: 1 | K13: 1 | P13: 2 | Q13: 1 | R13: 115 | S13: 5 | V13: 2
B14: =SUM(B5:B13) -> 2767 | C14: =SUM(C5:C13) -> 36 | D14: UD | E14: =SUM(E5:E13) -> 37 | F14: =SUM(F5:F13) -> 35 | G14: =SUM(G5:G13) -> 4 | H14: =SUM(H5:H13) -> 1 | I14: =SUM(I5:I13) -> 2 | J14: =IF((A28=27),"",(SUM(J5:J13)/SUM(J5:L13))*100) -> 14.28571429 | K14: =IF((A28=27),"",(SUM(K5:K13)/SUM(J5:L13))*100) -> 71.42857143 | L14: =IF((A28=27),"",(SUM(L5:L13)/SUM(J5:L13))*100) -> 14.28571429 | M14: =SUM(M5:M13) -> 0 | N14: =SUM(N5:N13) -> 0 | O14: =SUM(O5:O13) -> 0 | P14: =SUM(P5:P13) -> 18 | Q14: =SUM(Q5:Q13) -> 7 | S14: =IF(Q14=0,"",SUM(S5:S13)/Q14) -> 6.571428571 | V14: =SUM(V5:V13) -> 15 | W14: =ColorFunction($E$30,$E$5:$E$13) -> 0 | X14: =ColorFunction($E$31,$E$5:$E$13) -> 1 | Y14: =ColorFunction($E$32,$E$5:$E$13) -> 2 | Z14: =ColorFunction($E$33,$E$5:$E$13) -> 0 | AA14: =SUM(AA5:AA13)/(9-Q14)*100 -> 50 | AB14: =COUNTIF(P5:P13,">2") -> 1 | AC14: =IF((G14=0),"",SUM(AC5:AC13)/G14*100) -> 50
A15: 10 | B15: 481 | C15: 5 | D15: 4 | E15: 5 | F15: 4 | G15: 1 | K15: 1 | P15: 2 | Q15: 1 | R15: 95 | S15: 2 | V15: =IF(Q15=0,"",P15) -> 2 | AA15: =IF(AND(Q15="",P15=1),1,"") ->  | AC15: =IF(AND(G15=""),"",SUM(K15)) -> 1
A16: 11 | B16: 319 | C16: 4 | D16: 16 | E16: 3 | F16: 3 | H16: 1 | K16: 1 | P16: 1 | Q16: 1 | R16: 124 | S16: 6 | V16: 1
A17: 12 | B17: 431 | C17: 5 | D17: 2 | E17: 6 | F17: 5 | G17: 1 | K17: 1 | P17: 2 | AC17: 1
A18: 13 | B18: 122 | C18: 3 | D18: 18 | E18: 3 | F18: 3 | P18: 2 | Q18: 1 | R18: 123 | S18: 6 | V18: 2
A19: 14 | B19: 379 | C19: 4 | D19: 6 | E19: 4 | F19: 4 | G19: 1 | K19: 1 | P19: 2 | Q19: 1 | R19: 115 | S19: 3 | V19: 2 | AC19: 1
A20: 15 | B20: 316 | C20: 4 | D20: 8 | E20: 5 | F20: 5 | G20: 1 | K20: 1 | P20: 3 | Q20: 1 | R20: 126 | S20: 15 | V20: 3 | AC20: 1
A21: 16 | B21: 322 | C21: 4 | D21: 14 | E21: 5 | F21: 5 | G21: 1 | J21: 1 | P21: 1 | AA21: 1 | AC21: 0
A22: 17 | B22: 345 | C22: 4 | D22: 10 | E22: 6 | F22: 6 | G22: 1 | J22: 1 | P22: 3 | AC22: 0
A23: 18 | B23: 281 | C23: 4 | D23: 12 | E23: 4 | F23: 4 | H23: 1 | K23: 1 | P23: 2 | Q23: 1 | R23: 100 | S23: 6 | V23: 2
B24: =SUM(B15:B23) -> 2996 | C24: =SUM(C15:C23) -> 37 | D24: IND | E24: =SUM(E15:E23) -> 41 | F24: =SUM(F15:F23) -> 39 | G24: =SUM(G15:G23) -> 6 | H24: =SUM(H15:H23) -> 2 | I24: =SUM(I15:I23) -> 0 | J24: =IF((A29=27),"",(SUM(J15:J23)/SUM(J15:L23))*100) -> 25 | K24: =IF((A29=27),"",(SUM(K15:K23)/SUM(J15:L23))*100) -> 75 | L24: =IF((A29=27),"",(SUM(L15:L23)/SUM(J15:L23))*100) -> 0 | M24: =SUM(M15:M23) -> 0 | N24: =SUM(N15:N23) -> 0 | O24: =SUM(O15:O23) -> 0 | P24: =SUM(P15:P23) -> 18 | Q24: =SUM(Q15:Q23) -> 6 | S24: =IF(Q24=0,"",SUM(S15:S23)/Q24) -> 6.333333333 | V24: =SUM(V15:V23) -> 12 | W24: =ColorFunction($E$30,$E$15:$E$23) -> 0 | X24: =ColorFunction($E$31,$E$15:$E$23) -> 1 | Y24: =ColorFunction($E$32,$E$15:$E$23) -> 3 | Z24: =ColorFunction($E$33,$E$15:$E$23) -> 1 | AA24: =SUM(AA15:AA23)/(9-Q24)*100 -> 33.33333333 | AB24: =COUNTIF(P15:P23,">2") -> 2 | AC24: =IF((G24=0),"",SUM(AC15:AC23)/G24*100) -> 66.66666667
B25: =SUM(B24,B14) -> 5763 | C25: =SUM(C24,C14) -> 73 | D25: TOTAL | E25: =IF(E14=0,"0",(E24+E14)) -> 78 | F25: =SUM(F14,F24) -> 74 | G25: =SUM(G24,G14) -> 10 | H25: =SUM(H24,H14) -> 3 | I25: =SUM(I24,I14) -> 2 | J25: =IF((A28=27),"",(SUM(J14,J24)/2)) -> 19.64285714 | K25: =IF((A28=27),"",(SUM(K14,K24)/2)) -> 73.21428571 | L25: =IF((A28=27),"",(SUM(L14,L24)/2)) -> 7.142857143 | M25: =SUM(M24,M14) -> 0 | N25: =SUM(N24,N14) -> 0 | O25: =SUM(O24,O14) -> 0 | P25: =IF(P14+P24=0,"",SUM(P24,P14)) -> 36 | Q25: =IF(Q14+Q24=0,"",SUM(Q24,Q14)) -> 13 | S25: =IF(S14+S24=0,"",SUM(S24,S14)/2) -> 6.452380952 | T25: =IF(N25=0,"",(O25)/N25*100) ->  | U25: =IF(Q25="","",(Q25)/18*100) -> 72.22222222 | V25: =IF(Q25="","",(V14+V24)/Q25) -> 2.076923077 | W25: =SUM(W14,W24) -> 0 | X25: =SUM(X14,X24) -> 2 | Y25: =SUM(Y14,Y24) -> 5 | Z25: =SUM(Z14,Z24) -> 1 | AA25: =SUM(AA14,AA24)/2 -> 41.66666667 | AB25: =SUM(AB14,AB24) -> 3 | AC25: =SUM(AC24,AC14)/2 -> 58.33333333
E27: Udfyld alle grønne felter med 1 for positiv eller antal i tal
A28: =COUNTBLANK(I5:K13) -> 19 | W28: Approach
A29: =COUNTBLANK(I15:K23) -> 19 | E29: Udfyld følgende farver: | S29: Holes to par | W29: Længde (m) | X29: Antal | Y29: Afstand (m)
A30: =SUM(L5:L23) -> 15.28571429 | E30: Eagles | S30: Par 3 | T30: =SUMIF(C:C,"3",E:E)/COUNTIF(C:C,3) -> 2.666666667 | W30: 45-70 | X30: =COUNTIFS(R5:R23,">=45",R5:R23,"<=70") -> 0 | Y30: =IF(X30=0,"",AVERAGEIFS(S5:S23,R5:R23,">=45",R5:R23,"<=70")) -> 
E31: Birdies | S31: Par 4 | T31: =SUMIF(C:C,"4",E:E)/COUNTIF(C:C,4) -> 4.363636364 | W31: 71-90 | X31: =COUNTIFS(R5:R23,">=71",R5:R23,"<=90") -> 0 | Y31: =IF(X31=0,"",AVERAGEIFS(S5:S23,R5:R23,">=71",R5:R23,"<=90")) -> 
E32: Bogeys | S32: Par 5 | T32: =SUMIF(C:C,"5",E:E)/COUNTIF(C:C,5) -> 5.5 | W32: 91-115 | X32: =COUNTIFS(R5:R23,">=91",R5:R23,"<=115") -> 5 | Y32: =IF(X32=0,"",AVERAGEIFS(S5:S23,R5:R23,">=91",R5:R23,"<=115")) -> 4
E33: Doublebogeys eller værre | W33: 116-140 | X33: =COUNTIFS(R5:R23,">=116",R5:R23,"<=140") -> 5 | Y33: =IF(X33=0,"",AVERAGEIFS(S5:S23,R5:R23,">=116",R5:R23,"<=140")) -> 8
S34: First 4 | T34: =IF(E25="0","",SUM(E5:E8)-SUM(C5:C8)) -> 0 | W34: 141-160 | X34: =COUNTIFS(R5:R23,">=141",R5:R23,"<=161") -> 3 | Y34: =IF(X34=0,"",AVERAGEIFS(S5:S23,R5:R23,">=141",R5:R23,"<=160")) -> 8
S35: Last 4 | T35: =IF(E25="0","",SUM(E20:E23)-SUM(C20:C23)) -> 4 | W35: 161-180 | X35: =COUNTIFS(R5:R23,">=161",R5:R23,"<=180") -> 0 | Y35: =IF(X35=0,"",AVERAGEIFS(S5:S23,R5:R23,">=161",R5:R23,"<=180")) -> 
W37: Putting
W38: Længde (m) | X38: Antal | Y38: Holet | Z38: Holet (%)
W39: under 1 m | X39: =COUNTIFS(S5:S23,">=0,1",S5:S23,"<=0,9") -> 0 | Y39: =IF(X39=0,"",COUNTIFS(P5:P23,"=1",S5:S23,"<1")) ->  | Z39: =IF(X39=0,"",Y39/X39*100) -> 
W40: 1 - 1,5 | X40: =COUNTIFS(S5:S23,">=1",S5:S23,"<=1,5") -> 0 | Y40: =IF(X40=0,"",COUNTIFS(P5:P23,"=1",S5:S23,">=1",S5:S23,"<=1,5")) ->  | Z40: =IF(X40=0,"",Y40/X40*100) -> 
W41: 1,5 - 3 | X41: =COUNTIFS(S5:S23,">=1,6",S5:S23,"<=3") -> 2 | Y41: =IF(X41=0,"",COUNTIFS(P5:P23,"=1",S5:S23,">=1,6",S5:S23,"<=3")) -> 0 | Z41: =IF(X41=0,"",Y41/X41*100) -> 0
W42: 3 - 4,5 | X42: =COUNTIFS(S5:S23,">=3,1",S5:S23,"<=4,5") -> 1 | Y42: =IF(X42=0,"",COUNTIFS(P5:P23,"=1",S5:S23,">=3,1",S5:S23,"<=4,5")) -> 0 | Z42: 0
W43: 4,5 - 6 | X43: =COUNTIFS(S5:S23,">=4,6",S5:S23,"<=6") -> 5 | Y43: =IF(X43=0,"",COUNTIFS(P5:P23,"=1",S5:S23,">=4,6",S5:S23,"<=6")) -> 1 | Z43: 20
W44: over 6 meter | X44: =COUNTIFS(S5:S23,">6") -> 6 | Y44: =IF(X44=0,"",COUNTIFS(P5:P23,"=1",S5:S23,">6")) -> 1 | Z44: 16.66666667

Sheet Runde 4
A1: Korsør Golf Klub - 18 huller - Gul tee | J1: =IF(E25="0","0","1") -> 1 | K1: Dato: | L1: 2010-05-11 | N1: Handicap: | O1: 4.8 | Q1: ATS: | R1: 4 | T1: Vejr: | U1: Sol og svag vind, 10 grader | W1: Turnering: | X1: Tirsdagsklub
H3: Tee shot | K3: Fairway hits i % | N3: Bunker | R3: Approach shots
A4: Hul | B4: Gul tee | C4: Par | D4: HCP | E4: Score | F4: Netto | G4: Driver | H4: Wood | I4: Jern | J4: Venstre | K4: Midt | L4: Højre | M4: FB | N4: GB | O4: SS | P4: Putts | Q4: GIR | R4: Dist. to pin (m) | S4: Dist. to hole (m) | T4: % SS | U4: % GIR | V4: Putts/GIR | W4: Eagles | X4: Birdies | Y4: Bogeys | Z4: Værre | AA4: % Scramble | AB4: 3+ Putts | AC4: % Driver/Fairwayhits
A5: 1 | B5: 307 | C5: 4 | D5: 11 | E5: 5 | F5: 5 | H5: 1 | K5: 1 | P5: 2 | V5: =IF(Q5=0,"",P5) ->  | AA5: =IF(AND(Q5="",P5=1),1,"") ->  | AC5: =IF(AND(G5=""),"",SUM(K5)) -> 
A6: 2 | B6: 323 | C6: 4 | D6: 5 | E6: 4 | F6: 4 | G6: 1 | K6: 1 | P6: 2 | Q6: 1 | R6: 120 | S6: 4 | V6: 2 | AC6: 1
A7: 3 | B7: 138 | C7: 3 | D7: 15 | E7: 4 | F7: 4 | P7: 3 | Q7: 1 | R7: 135 | S7: 7 | V7: 3
A8: 4 | B8: 310 | C8: 4 | D8: 13 | E8: 4 | F8: 4 | H8: 1 | K8: 1 | P8: 2 | Q8: 1 | R8: 112 | S8: 9 | V8: 2
A9: 5 | B9: 431 | C9: 5 | D9: 3 | E9: 5 | F9: 4 | G9: 1 | K9: 1 | P9: 2 | Q9: 1 | R9: 43 | S9: 5 | V9: 2 | AC9: 1
A10: 6 | B10: 312 | C10: 4 | D10: 9 | E10: 4 | F10: 4 | H10: 1 | K10: 1 | P10: 2 | Q10: 1 | R10: 77 | S10: 1 | V10: 2
A11: 7 | B11: 498 | C11: 5 | D11: 1 | E11: 4 | F11: 3 | I11: 1 | K11: 1 | P11: 1 | Q11: 1 | R11: 100 | S11: 0.2 | V11: 1
A12: 8 | B12: 138 | C12: 3 | D12: 17 | E12: 3 | F12: 3 | P12: 1 | AA12: 1
A13: 1 | B13: 310 | C13: 4 | D13: 7 | E13: 4 | F13: 4 | H13: 1 | K13: 1 | P13: 1 | AA13: 1
B14: =SUM(B5:B13) -> 2767 | C14: =SUM(C5:C13) -> 36 | D14: UD | E14: =SUM(E5:E13) -> 37 | F14: =SUM(F5:F13) -> 35 | G14: =SUM(G5:G13) -> 2 | H14: =SUM(H5:H13) -> 4 | I14: =SUM(I5:I13) -> 1 | J14: =IF((A28=27),"",(SUM(J5:J13)/SUM(J5:L13))*100) -> 0 | K14: =IF((A28=27),"",(SUM(K5:K13)/SUM(J5:L13))*100) -> 100 | L14: =IF((A28=27),"",(SUM(L5:L13)/SUM(J5:L13))*100) -> 0 | M14: =SUM(M5:M13) -> 0 | N14: =SUM(N5:N13) -> 0 | O14: =SUM(O5:O13) -> 0 | P14: =SUM(P5:P13) -> 16 | Q14: =SUM(Q5:Q13) -> 6 | S14: =IF(Q14=0,"",SUM(S5:S13)/Q14) -> 4.366666667 | V14: =SUM(V5:V13) -> 12 | W14: =ColorFunction($E$30,$E$5:$E$13) -> 0 | X14: =ColorFunction($E$31,$E$5:$E$13) -> 1 | Y14: =ColorFunction($E$32,$E$5:$E$13) -> 2 | Z14: =ColorFunction($E$33,$E$5:$E$13) -> 0 | AA14: =SUM(AA5:AA13)/(9-Q14)*100 -> 66.66666667 | AB14: =COUNTIF(P5:P13,">2") -> 1 | AC14: =IF((G14=0),"",SUM(AC5:AC13)/G14*100) -> 100
A15: 10 | B15: 481 | C15: 5 | D15: 4 | E15: 4 | F15: 3 | G15: 1 | K15: 1 | P15: 1 | Q15: 1 | R15: 50 | S15: 4 | V15: =IF(Q15=0,"",P15) -> 1 | AA15: =IF(AND(Q15="",P15=1),1,"") ->  | AC15: =IF(AND(G15=""),"",SUM(K15)) -> 1
A16: 11 | B16: 319 | C16: 4 | D16: 16 | E16: 5 | F16: 5 | I16: 1 | K16: 1 | P16: 2
A17: 12 | B17: 431 | C17: 5 | D17: 2 | E17: 6 | F17: 5 | G17: 1 | K17: 1 | P17: 2 | AC17: 1
A18: 13 | B18: 122 | C18: 3 | D18: 18 | E18: 4 | F18: 4 | P18: 2
A19: 14 | B19: 379 | C19: 4 | D19: 6 | E19: 5 | F19: 5 | G19: 1 | K19: 1 | P19: 2 | AC19: 1
A20: 15 | B20: 316 | C20: 4 | D20: 8 | E20: 4 | F20: 4 | G20: 1 | K20: 1 | P20: 2 | Q20: 1 | R20: 95 | S20: 8 | V20: 2 | AC20: 1
A21: 16 | B21: 322 | C21: 4 | D21: 14 | E21: 4 | F21: 4 | G21: 1 | K21: 1 | P21: 2 | Q21: 1 | R21: 101 | S21: 6 | V21: 2 | AC21: 1
A22: 17 | B22: 345 | C22: 4 | D22: 10 | E22: 4 | F22: 4 | H22: 1 | K22: 1 | P22: 2 | Q22: 1 | R22: 135 | S22: 7 | V22: 2
A23: 18 | B23: 281 | C23: 4 | D23: 12 | E23: 3 | F23: 3 | H23: 1 | K23: 1 | P23: 1 | Q23: 1 | R23: 72 | S23: 3.5 | V23: 1
B24: =SUM(B15:B23) -> 2996 | C24: =SUM(C15:C23) -> 37 | D24: IND | E24: =SUM(E15:E23) -> 39 | F24: =SUM(F15:F23) -> 37 | G24: =SUM(G15:G23) -> 5 | H24: =SUM(H15:H23) -> 2 | I24: =SUM(I15:I23) -> 1 | J24: =IF((A29=27),"",(SUM(J15:J23)/SUM(J15:L23))*100) -> 0 | K24: =IF((A29=27),"",(SUM(K15:K23)/SUM(J15:L23))*100) -> 100 | L24: =IF((A29=27),"",(SUM(L15:L23)/SUM(J15:L23))*100) -> 0 | M24: =SUM(M15:M23) -> 0 | N24: =SUM(N15:N23) -> 0 | O24: =SUM(O15:O23) -> 0 | P24: =SUM(P15:P23) -> 16 | Q24: =SUM(Q15:Q23) -> 5 | S24: =IF(Q24=0,"",SUM(S15:S23)/Q24) -> 5.7 | V24: =SUM(V15:V23) -> 8 | W24: =ColorFunction($E$30,$E$15:$E$23) -> 0 | X24: =ColorFunction($E$31,$E$15:$E$23) -> 2 | Y24: =ColorFunction($E$32,$E$15:$E$23) -> 4 | Z24: =ColorFunction($E$33,$E$15:$E$23) -> 0 | AA24: =SUM(AA15:AA23)/(9-Q24)*100 -> 0 | AB24: =COUNTIF(P15:P23,">2") -> 0 | AC24: =IF((G24=0),"",SUM(AC15:AC23)/G24*100) -> 100
B25: =SUM(B24,B14) -> 5763 | C25: =SUM(C24,C14) -> 73 | D25: TOTAL | E25: =IF(E14=0,"0",(E24+E14)) -> 76 | F25: =SUM(F14,F24) -> 72 | G25: =SUM(G24,G14) -> 7 | H25: =SUM(H24,H14) -> 6 | I25: =SUM(I24,I14) -> 2 | J25: =IF((A28=27),"",(SUM(J14,J24)/2)) -> 0 | K25: =IF((A28=27),"",(SUM(K14,K24)/2)) -> 100 | L25: =IF((A28=27),"",(SUM(L14,L24)/2)) -> 0 | M25: =SUM(M24,M14) -> 0 | N25: =SUM(N24,N14) -> 0 | O25: =SUM(O24,O14) -> 0 | P25: =IF(P14+P24=0,"",SUM(P24,P14)) -> 32 | Q25: =IF(Q14+Q24=0,"",SUM(Q24,Q14)) -> 11 | S25: =IF(S14+S24=0,"",SUM(S24,S14)/2) -> 5.033333333 | T25: =IF(N25=0,"",(O25)/N25*100) ->  | U25: =IF(Q25="","",(Q25)/18*100) -> 61.11111111 | V25: =IF(Q25="","",(V14+V24)/Q25) -> 1.818181818 | W25: =SUM(W14,W24) -> 0 | X25: =SUM(X14,X24) -> 3 | Y25: =SUM(Y14,Y24) -> 6 | Z25: =SUM(Z14,Z24) -> 0 | AA25: =SUM(AA14,AA24)/2 -> 33.33333333 | AB25: =SUM(AB14,AB24) -> 1 | AC25: =SUM(AC24,AC14)/2 -> 100
E27: Udfyld alle grønne felter med 1 for positiv eller antal i tal
A28: =COUNTBLANK(I5:K13) -> 19 | W28: Approach
A29: =COUNTBLANK(I15:K23) -> 18 | E29: Udfyld følgende farver: | S29: Holes to par | W29: Længde (m) | X29: Antal | Y29: Afstand (m)
A30: =SUM(L5:L23) -> 0 | E30: Eagles | S30: Par 3 | T30: =SUMIF(C:C,"3",E:E)/COUNTIF(C:C,3) -> 3.666666667 | W30: 45-70 | X30: =COUNTIFS(R5:R23,">=45",R5:R23,"<=70") -> 1 | Y30: =IF(X30=0,"",AVERAGEIFS(S5:S23,R5:R23,">=45",R5:R23,"<=70")) -> 4
E31: Birdies | S31: Par 4 | T31: =SUMIF(C:C,"4",E:E)/COUNTIF(C:C,4) -> 4.181818182 | W31: 71-90 | X31: =COUNTIFS(R5:R23,">=71",R5:R23,"<=90") -> 2 | Y31: =IF(X31=0,"",AVERAGEIFS(S5:S23,R5:R23,">=71",R5:R23,"<=90")) -> 2.25
E32: Bogeys | S32: Par 5 | T32: =SUMIF(C:C,"5",E:E)/COUNTIF(C:C,5) -> 4.75 | W32: 91-115 | X32: =COUNTIFS(R5:R23,">=91",R5:R23,"<=115") -> 4 | Y32: =IF(X32=0,"",AVERAGEIFS(S5:S23,R5:R23,">=91",R5:R23,"<=115")) -> 5.8
E33: Doublebogeys eller værre | W33: 116-140 | X33: =COUNTIFS(R5:R23,">=116",R5:R23,"<=140") -> 3 | Y33: =IF(X33=0,"",AVERAGEIFS(S5:S23,R5:R23,">=116",R5:R23,"<=140")) -> 6
S34: First 4 | T34: =IF(E25="0","",SUM(E5:E8)-SUM(C5:C8)) -> 2 | W34: 141-160 | X34: =COUNTIFS(R5:R23,">=141",R5:R23,"<=161") -> 0 | Y34: =IF(X34=0,"",AVERAGEIFS(S5:S23,R5:R23,">=141",R5:R23,"<=160")) -> 
S35: Last 4 | T35: =IF(E25="0","",SUM(E20:E23)-SUM(C20:C23)) -> -1 | W35: 161-180 | X35: =COUNTIFS(R5:R23,">=161",R5:R23,"<=180") -> 0 | Y35: =IF(X35=0,"",AVERAGEIFS(S5:S23,R5:R23,">=161",R5:R23,"<=180")) -> 
W37: Putting
W38: Længde (m) | X38: Antal | Y38: Holet | Z38: Holet (%)
W39: under 1 m | X39: =COUNTIFS(S5:S23,">=0,1",S5:S23,"<=0,9") -> 1 | Y39: =IF(X39=0,"",COUNTIFS(P5:P23,"=1",S5:S23,"<1")) -> 1 | Z39: =IF(X39=0,"",Y39/X39*100) -> 100
W40: 1 - 1,5 | X40: =COUNTIFS(S5:S23,">=1",S5:S23,"<=1,5") -> 1 | Y40: =IF(X40=0,"",COUNTIFS(P5:P23,"=1",S5:S23,">=1",S5:S23,"<=1,5")) -> 0 | Z40: =IF(X40=0,"",Y40/X40*100) -> 0
W41: 1,5 - 3 | X41: =COUNTIFS(S5:S23,">=1,6",S5:S23,"<=3") -> 0 | Y41: =IF(X41=0,"",COUNTIFS(P5:P23,"=1",S5:S23,">=1,6",S5:S23,"<=3")) ->  | Z41: =IF(X41=0,"",Y41/X41*100) -> 
W42: 3 - 4,5 | X42: =COUNTIFS(S5:S23,">=3,1",S5:S23,"<=4,5") -> 4 | Y42: =IF(X42=0,"",COUNTIFS(P5:P23,"=1",S5:S23,">=3,1",S5:S23,"<=4,5")) -> 2 | Z42: 50
W43: 4,5 - 6 | X43: =COUNTIFS(S5:S23,">=4,6",S5:S23,"<=6") -> 2 | Y43: =IF(X43=0,"",COUNTIFS(P5:P23,"=1",S5:S23,">=4,6",S5:S23,"<=6")) -> 0 | Z43: 0
W44: over 6 meter | X44: =COUNTIFS(S5:S23,">6") -> 4 | Y44: =IF(X44=0,"",COUNTIFS(P5:P23,"=1",S5:S23,">6")) -> 0 | Z44: 0

Sheet Runde 5
A1: Korsør Golf Klub - 18 huller - Gul tee | J1: =IF(E25="0","0","1") -> 1 | K1: Dato: | L1: 2010-05-18 | N1: Handicap: | O1: 4.6 | Q1: ATS: | R1: 3 | T1: Vejr: | U1: Sol 10-15 grader, jævn vind | W1: Turnering: | X1: Tirsdagsklub
H3: Tee shot | K3: Fairway hits i % | N3: Bunker | R3: Approach shots
A4: Hul | B4: Gul tee | C4: Par | D4: HCP | E4: Score | F4: Netto | G4: Driver | H4: Wood | I4: Jern | J4: Venstre | K4: Midt | L4: Højre | M4: FB | N4: GB | O4: SS | P4: Putts | Q4: GIR | R4: Dist. to pin (m) | S4: Dist. to hole (m) | T4: % SS | U4: % GIR | V4: Putts/GIR | W4: Eagles | X4: Birdies | Y4: Bogeys | Z4: Værre | AA4: % Scramble | AB4: 3+ Putts | AC4: % Driver/Fairwayhits
A5: 1 | B5: 307 | C5: 4 | D5: 11 | E5: 4 | F5: 4 | H5: 1 | K5: 1 | P5: 2 | Q5: 1 | R5: 85 | S5: 5 | V5: =IF(Q5=0,"",P5) -> 2 | AA5: =IF(AND(Q5="",P5=1),1,"") ->  | AC5: =IF(AND(G5=""),"",SUM(K5)) -> 
A6: 2 | B6: 323 | C6: 4 | D6: 5 | E6: 4 | F6: 4 | G6: 1 | K6: 1 | P6: 2 | Q6: 1 | R6: 71 | S6: 3.5 | V6: 2 | AC6: 1
A7: 3 | B7: 138 | C7: 3 | D7: 15 | E7: 3 | F7: 3 | P7: 2 | Q7: 1 | R7: 131 | S7: 4.5 | V7: 2
A8: 4 | B8: 310 | C8: 4 | D8: 13 | E8: 4 | F8: 4 | I8: 1 | K8: 1 | P8: 1 | AA8: 1
A9: 5 | B9: 431 | C9: 5 | D9: 3 | E9: 4 | F9: 3 | G9: 1 | K9: 1 | P9: 1 | Q9: 1 | R9: 15 | S9: 0.5 | V9: 1 | AC9: 1
A10: 6 | B10: 312 | C10: 4 | D10: 9 | E10: 4 | F10: 4 | G10: 1 | K10: 1 | P10: 2 | Q10: 1 | R10: 72 | S10: 3.5 | V10: 2 | AC10: 1
A11: 7 | B11: 498 | C11: 5 | D11: 1 | E11: 4 | F11: 3 | I11: 1 | K11: 1 | P11: 1 | Q11: 1 | R11: 155 | S11: 6 | V11: 1
A12: 8 | B12: 138 | C12: 3 | D12: 17 | E12: 3 | F12: 3 | P12: 2 | Q12: 1 | R12: 138 | S12: 5 | V12: 2
A13: 9 | B13: 310 | C13: 4 | D13: 7 | E13: 4 | F13: 4 | H13: 1 | K13: 1 | P13: 1 | AA13: 1
B14: =SUM(B5:B13) -> 2767 | C14: =SUM(C5:C13) -> 36 | D14: UD | E14: =SUM(E5:E13) -> 34 | F14: =SUM(F5:F13) -> 32 | G14: =SUM(G5:G13) -> 3 | H14: =SUM(H5:H13) -> 2 | I14: =SUM(I5:I13) -> 2 | J14: =IF((A28=27),"",(SUM(J5:J13)/SUM(J5:L13))*100) -> 0 | K14: =IF((A28=27),"",(SUM(K5:K13)/SUM(J5:L13))*100) -> 100 | L14: =IF((A28=27),"",(SUM(L5:L13)/SUM(J5:L13))*100) -> 0 | M14: =SUM(M5:M13) -> 0 | N14: =SUM(N5:N13) -> 0 | O14: =SUM(O5:O13) -> 0 | P14: =SUM(P5:P13) -> 14 | Q14: =SUM(Q5:Q13) -> 7 | S14: =IF(Q14=0,"",SUM(S5:S13)/Q14) -> 4 | V14: =SUM(V5:V13) -> 12 | W14: =ColorFunction($E$30,$E$5:$E$13) -> 0 | X14: =ColorFunction($E$31,$E$5:$E$13) -> 2 | Y14: =ColorFunction($E$32,$E$5:$E$13) -> 0 | Z14: =ColorFunction($E$33,$E$5:$E$13) -> 0 | AA14: =SUM(AA5:AA13)/(9-Q14)*100 -> 100 | AB14: =COUNTIF(P5:P13,">2") -> 0 | AC14: =IF((G14=0),"",SUM(AC5:AC13)/G14*100) -> 100
A15: 10 | B15: 481 | C15: 5 | D15: 4 | E15: 5 | F15: 5 | G15: 1 | K15: 1 | P15: 2 | Q15: 1 | R15: 85 | S15: 7 | V15: =IF(Q15=0,"",P15) -> 2 | AA15: =IF(AND(Q15="",P15=1),1,"") ->  | AC15: =IF(AND(G15=""),"",SUM(K15)) -> 1
A16: 11 | B16: 319 | C16: 4 | D16: 16 | E16: 4 | F16: 4 | H16: 1 | K16: 1 | P16: 2 | Q16: 1 | R16: 135 | S16: 6 | V16: 2
A17: 12 | B17: 431 | C17: 5 | D17: 2 | E17: 5 | F17: 4 | G17: 1 | K17: 1 | P17: 1 | R17: 65 | S17: 4 | AA17: 1 | AC17: 1
A18: 13 | B18: 122 | C18: 3 | D18: 18 | E18: 4 | F18: 4 | P18: 2
A19: 14 | B19: 379 | C19: 4 | D19: 6 | E19: 4 | F19: 4 | G19: 1 | K19: 1 | P19: 2 | Q19: 1 | R19: 133 | S19: 5 | V19: 2 | AC19: 1
A20: 15 | B20: 316 | C20: 4 | D20: 8 | E20: 6 | F20: 6 | G20: 1 | J20: 1 | N20: 1 | P20: 2 | AC20: 0
A21: 16 | B21: 322 | C21: 4 | D21: 14 | E21: 4 | F21: 4 | G21: 1 | K21: 1 | P21: 1 | Q21: 1 | V21: 1 | AC21: 1
A22: 17 | B22: 345 | C22: 4 | D22: 10 | E22: 5 | F22: 5 | G22: 1 | K22: 1 | P22: 3 | Q22: 1 | R22: 148 | S22: 5 | V22: 3 | AC22: 1
A23: 18 | B23: 281 | C23: 4 | D23: 12 | E23: 3 | F23: 3 | H23: 1 | K23: 1 | P23: 1 | Q23: 1 | R23: 109 | S23: 1.5 | V23: 1
B24: =SUM(B15:B23) -> 2996 | C24: =SUM(C15:C23) -> 37 | D24: IND | E24: =SUM(E15:E23) -> 40 | F24: =SUM(F15:F23) -> 39 | G24: =SUM(G15:G23) -> 6 | H24: =SUM(H15:H23) -> 2 | I24: =SUM(I15:I23) -> 0 | J24: =IF((A29=27),"",(SUM(J15:J23)/SUM(J15:L23))*100) -> 12.5 | K24: =IF((A29=27),"",(SUM(K15:K23)/SUM(J15:L23))*100) -> 87.5 | L24: =IF((A29=27),"",(SUM(L15:L23)/SUM(J15:L23))*100) -> 0 | M24: =SUM(M15:M23) -> 0 | N24: =SUM(N15:N23) -> 1 | O24: =SUM(O15:O23) -> 0 | P24: =SUM(P15:P23) -> 16 | Q24: =SUM(Q15:Q23) -> 6 | S24: =IF(Q24=0,"",SUM(S15:S23)/Q24) -> 4.75 | V24: =SUM(V15:V23) -> 11 | W24: =ColorFunction($E$30,$E$15:$E$23) -> 0 | X24: =ColorFunction($E$31,$E$15:$E$23) -> 1 | Y24: =ColorFunction($E$32,$E$15:$E$23) -> 2 | Z24: =ColorFunction($E$33,$E$15:$E$23) -> 1 | AA24: =SUM(AA15:AA23)/(9-Q24)*100 -> 33.33333333 | AB24: =COUNTIF(P15:P23,">2") -> 1 | AC24: =IF((G24=0),"",SUM(AC15:AC23)/G24*100) -> 83.33333333
B25: =SUM(B24,B14) -> 5763 | C25: =SUM(C24,C14) -> 73 | D25: TOTAL | E25: =IF(E14=0,"0",(E24+E14)) -> 74 | F25: =SUM(F14,F24) -> 71 | G25: =SUM(G24,G14) -> 9 | H25: =SUM(H24,H14) -> 4 | I25: =SUM(I24,I14) -> 2 | J25: =IF((A28=27),"",(SUM(J14,J24)/2)) -> 6.25 | K25: =IF((A28=27),"",(SUM(K14,K24)/2)) -> 93.75 | L25: =IF((A28=27),"",(SUM(L14,L24)/2)) -> 0 | M25: =SUM(M24,M14) -> 0 | N25: =SUM(N24,N14) -> 1 | O25: =SUM(O24,O14) -> 0 | P25: =IF(P14+P24=0,"",SUM(P24,P14)) -> 30 | Q25: =IF(Q14+Q24=0,"",SUM(Q24,Q14)) -> 13 | S25: =IF(S14+S24=0,"",SUM(S24,S14)/2) -> 4.375 | T25: =IF(N25=0,"",(O25)/N25*100) -> 0 | U25: =IF(Q25="","",(Q25)/18*100) -> 72.22222222 | V25: =IF(Q25="","",(V14+V24)/Q25) -> 1.769230769 | W25: =SUM(W14,W24) -> 0 | X25: =SUM(X14,X24) -> 3 | Y25: =SUM(Y14,Y24) -> 2 | Z25: =SUM(Z14,Z24) -> 1 | AA25: =SUM(AA14,AA24)/2 -> 66.66666667 | AB25: =SUM(AB14,AB24) -> 1 | AC25: =SUM(AC24,AC14)/2 -> 91.66666667
E27: Udfyld alle grønne felter med 1 for positiv eller antal i tal
A28: =COUNTBLANK(I5:K13) -> 18 | W28: Approach
A29: =COUNTBLANK(I15:K23) -> 19 | E29: Udfyld følgende farver: | S29: Holes to par | W29: Længde (m) | X29: Antal | Y29: Afstand (m)
A30: =SUM(L5:L23) -> 0 | E30: Eagles | S30: Par 3 | T30: =SUMIF(C:C,"3",E:E)/COUNTIF(C:C,3) -> 3.333333333 | W30: 45-70 | X30: =COUNTIFS(R5:R23,">=45",R5:R23,"<=70") -> 1 | Y30: =IF(X30=0,"",AVERAGEIFS(S5:S23,R5:R23,">=45",R5:R23,"<=70")) -> 4
E31: Birdies | S31: Par 4 | T31: =SUMIF(C:C,"4",E:E)/COUNTIF(C:C,4) -> 4.181818182 | W31: 71-90 | X31: =COUNTIFS(R5:R23,">=71",R5:R23,"<=90") -> 4 | Y31: =IF(X31=0,"",AVERAGEIFS(S5:S23,R5:R23,">=71",R5:R23,"<=90")) -> 4.75
E32: Bogeys | S32: Par 5 | T32: =SUMIF(C:C,"5",E:E)/COUNTIF(C:C,5) -> 4.5 | W32: 91-115 | X32: =COUNTIFS(R5:R23,">=91",R5:R23,"<=115") -> 1 | Y32: =IF(X32=0,"",AVERAGEIFS(S5:S23,R5:R23,">=91",R5:R23,"<=115")) -> 1.5
E33: Doublebogeys eller værre | W33: 116-140 | X33: =COUNTIFS(R5:R23,">=116",R5:R23,"<=140") -> 4 | Y33: =IF(X33=0,"",AVERAGEIFS(S5:S23,R5:R23,">=116",R5:R23,"<=140")) -> 5.125
S34: First 4 | T34: =IF(E25="0","",SUM(E5:E8)-SUM(C5:C8)) -> 0 | W34: 141-160 | X34: =COUNTIFS(R5:R23,">=141",R5:R23,"<=161") -> 2 | Y34: =IF(X34=0,"",AVERAGEIFS(S5:S23,R5:R23,">=141",R5:R23,"<=160")) -> 5.5
S35: Last 4 | T35: =IF(E25="0","",SUM(E20:E23)-SUM(C20:C23)) -> 2 | W35: 161-180 | X35: =COUNTIFS(R5:R23,">=161",R5:R23,"<=180") -> 0 | Y35: =IF(X35=0,"",AVERAGEIFS(S5:S23,R5:R23,">=161",R5:R23,"<=180")) -> 
W37: Putting
W38: Længde (m) | X38: Antal | Y38: Holet | Z38: Holet (%)
W39: under 1 m | X39: =COUNTIFS(S5:S23,">=0,1",S5:S23,"<=0,9") -> 1 | Y39: =IF(X39=0,"",COUNTIFS(P5:P23,"=1",S5:S23,"<1")) -> 1 | Z39: =IF(X39=0,"",Y39/X39*100) -> 100
W40: 1 - 1,5 | X40: =COUNTIFS(S5:S23,">=1",S5:S23,"<=1,5") -> 1 | Y40: =IF(X40=0,"",COUNTIFS(P5:P23,"=1",S5:S23,">=1",S5:S23,"<=1,5")) -> 1 | Z40: =IF(X40=0,"",Y40/X40*100) -> 100
W41: 1,5 - 3 | X41: =COUNTIFS(S5:S23,">=1,6",S5:S23,"<=3") -> 0 | Y41: =IF(X41=0,"",COUNTIFS(P5:P23,"=1",S5:S23,">=1,6",S5:S23,"<=3")) ->  | Z41: =IF(X41=0,"",Y41/X41*100) -> 
W42: 3 - 4,5 | X42: =COUNTIFS(S5:S23,">=3,1",S5:S23,"<=4,5") -> 5 | Y42: =IF(X42=0,"",COUNTIFS(P5:P23,"=1",S5:S23,">=3,1",S5:S23,"<=4,5")) -> 1 | Z42: 20
W43: 4,5 - 6 | X43: =COUNTIFS(S5:S23,">=4,6",S5:S23,"<=6") -> 6 | Y43: =IF(X43=0,"",COUNTIFS(P5:P23,"=1",S5:S23,">=4,6",S5:S23,"<=6")) -> 1 | Z43: 16.66666667
W44: over 6 meter | X44: =COUNTIFS(S5:S23,">6") -> 1 | Y44: =IF(X44=0,"",COUNTIFS(P5:P23,"=1",S5:S23,">6")) -> 0 | Z44: 0

Sheet Runde 6
A1: Korsør Golf Klub - 18 huller - Hvid tee | J1: =IF(E25="0","0","1") -> 1 | K1: Dato: | L1: 22-05-2010* | N1: Handicap: | O1: 4.5 | Q1: ATS: | R1: 5 | T1: Vejr: | U1: Sol 15-20 grader, jævn vind | W1: Turnering: | X1: GTS elitepokal
H3: Tee shot | K3: Fairway hits i % | N3: Bunker | R3: Approach shots
A4: Hul | B4: Gul tee | C4: Par | D4: HCP | E4: Score | F4: Netto | G4: Driver | H4: Wood | I4: Jern | J4: Venstre | K4: Midt | L4: Højre | M4: FB | N4: GB | O4: SS | P4: Putts | Q4: GIR | R4: Dist. to pin (m) | S4: Dist. to hole (m) | T4: % SS | U4: % GIR | V4: Putts/GIR | W4: Eagles | X4: Birdies | Y4: Bogeys | Z4: Værre | AA4: % Scramble | AB4: 3+ Putts | AC4: % Driver/Fairwayhits
A5: 1 | B5: 313 | C5: 4 | D5: 11 | E5: 4 | F5: 4 | G5: 1 | K5: 1 | P5: 1 | V5: =IF(Q5=0,"",P5) ->  | AA5: =IF(AND(Q5="",P5=1),1,"") -> 1 | AC5: =IF(AND(G5=""),"",SUM(K5)) -> 1
A6: 2 | B6: 340 | C6: 4 | D6: 5 | E6: 4 | F6: 3 | G6: 1 | K6: 1 | P6: 1 | AA6: 1 | AC6: 1
A7: 3 | B7: 143 | C7: 3 | D7: 15 | E7: 3 | F7: 3 | P7: 1 | AA7: 1
A8: 4 | B8: 335 | C8: 4 | D8: 13 | E8: 5 | F8: 5 | H8: 1 | L8: 1 | P8: 2
A9: 5 | B9: 443 | C9: 5 | D9: 3 | E9: 4 | F9: 3 | G9: 1 | K9: 1 | P9: 1 | Q9: 1 | R9: 41 | S9: 4 | V9: 1 | AC9: 1
A10: 6 | B10: 319 | C10: 4 | D10: 9 | E10: 3 | F10: 3 | G10: 1 | J10: 1 | P10: 1 | Q10: 1 | R10: 81 | S10: 5 | V10: 1 | AC10: 0
A11: 7 | B11: 555 | C11: 5 | D11: 1 | E11: 6 | F11: 5 | G11: 1 | L11: 1 | P11: 2 | AC11: 0
A12: 8 | B12: 143 | C12: 3 | D12: 17 | E12: 3 | F12: 3 | P12: 2 | Q12: 1 | R12: 145 | S12: 3 | V12: 2
A13: 9 | B13: 320 | C13: 4 | D13: 7 | E13: 3 | F13: 3 | G13: 1 | K13: 1 | P13: 1 | Q13: 1 | R13: 103 | S13: 3.5 | V13: 1 | AC13: 1
B14: =SUM(B5:B13) -> 2911 | C14: =SUM(C5:C13) -> 36 | D14: UD | E14: =SUM(E5:E13) -> 35 | F14: =SUM(F5:F13) -> 32 | G14: =SUM(G5:G13) -> 6 | H14: =SUM(H5:H13) -> 1 | I14: =SUM(I5:I13) -> 0 | J14: =IF((A28=27),"",(SUM(J5:J13)/SUM(J5:L13))*100) -> 14.28571429 | K14: =IF((A28=27),"",(SUM(K5:K13)/SUM(J5:L13))*100) -> 57.14285714 | L14: =IF((A28=27),"",(SUM(L5:L13)/SUM(J5:L13))*100) -> 28.57142857 | M14: =SUM(M5:M13) -> 0 | N14: =SUM(N5:N13) -> 0 | O14: =SUM(O5:O13) -> 0 | P14: =SUM(P5:P13) -> 12 | Q14: =SUM(Q5:Q13) -> 4 | S14: =IF(Q14=0,"",SUM(S5:S13)/Q14) -> 3.875 | V14: =SUM(V5:V13) -> 5 | W14: =ColorFunction($E$30,$E$5:$E$13) -> 0 | X14: =ColorFunction($E$31,$E$5:$E$13) -> 3 | Y14: =ColorFunction($E$32,$E$5:$E$13) -> 2 | Z14: =ColorFunction($E$33,$E$5:$E$13) -> 0 | AA14: =SUM(AA5:AA13)/(9-Q14)*100 -> 60 | AB14: =COUNTIF(P5:P13,">2") -> 0 | AC14: =IF((G14=0),"",SUM(AC5:AC13)/G14*100) -> 66.66666667
A15: 10 | B15: 490 | C15: 5 | D15: 4 | E15: 6 | F15: 5 | G15: 1 | J15: 1 | P15: 2 | V15: =IF(Q15=0,"",P15) ->  | AA15: =IF(AND(Q15="",P15=1),1,"") ->  | AC15: =IF(AND(G15=""),"",SUM(K15)) -> 0
A16: 11 | B16: 330 | C16: 4 | D16: 16 | E16: 4 | F16: 4 | H16: 1 | K16: 1 | P16: 2 | Q16: 1 | R16: 134 | S16: 5 | V16: 2
A17: 12 | B17: 451 | C17: 5 | D17: 2 | E17: 5 | F17: 4 | G17: 1 | L17: 1 | P17: 2 | Q17: 1 | R17: 106 | S17: 5 | V17: 2 | AC17: 0
A18: 13 | B18: 140 | C18: 3 | D18: 18 | E18: 3 | F18: 3 | P18: 2 | Q18: 1 | R18: 143 | S18: 8 | V18: 2
A19: 14 | B19: 383 | C19: 4 | D19: 6 | E19: 4 | F19: 4 | G19: 1 | K19: 1 | P19: 2 | Q19: 1 | R19: 168 | S19: 8 | V19: 2 | AC19: 1
A20: 15 | B20: 332 | C20: 4 | D20: 8 | E20: 4 | F20: 4 | G20: 1 | J20: 1 | P20: 1 | AA20: 1 | AC20: 0
A21: 16 | B21: 334 | C21: 4 | D21: 14 | E21: 4 | F21: 4 | G21: 1 | K21: 1 | P21: 2 | Q21: 1 | R21: 127 | S21: 6 | V21: 2 | AC21: 1
A22: 17 | B22: 368 | C22: 4 | D22: 10 | E22: 4 | F22: 4 | G22: 1 | K22: 1 | P22: 2 | Q22: 1 | R22: 144 | S22: 5 | V22: 2 | AC22: 1
A23: 18 | B23: 299 | C23: 4 | D23: 12 | E23: 4 | F23: 4 | H23: 1 | K23: 1 | P23: 2 | Q23: 1 | R23: 95 | S23: 4 | V23: 2
B24: =SUM(B15:B23) -> 3127 | C24: =SUM(C15:C23) -> 37 | D24: IND | E24: =SUM(E15:E23) -> 38 | F24: =SUM(F15:F23) -> 36 | G24: =SUM(G15:G23) -> 6 | H24: =SUM(H15:H23) -> 2 | I24: =SUM(I15:I23) -> 0 | J24: =IF((A29=27),"",(SUM(J15:J23)/SUM(J15:L23))*100) -> 25 | K24: =IF((A29=27),"",(SUM(K15:K23)/SUM(J15:L23))*100) -> 62.5 | L24: =IF((A29=27),"",(SUM(L15:L23)/SUM(J15:L23))*100) -> 12.5 | M24: =SUM(M15:M23) -> 0 | N24: =SUM(N15:N23) -> 0 | O24: =SUM(O15:O23) -> 0 | P24: =SUM(P15:P23) -> 17 | Q24: =SUM(Q15:Q23) -> 7 | S24: =IF(Q24=0,"",SUM(S15:S23)/Q24) -> 5.857142857 | V24: =SUM(V15:V23) -> 14 | W24: =ColorFunction($E$30,$E$15:$E$23) -> 0 | X24: =ColorFunction($E$31,$E$15:$E$23) -> 0 | Y24: =ColorFunction($E$32,$E$15:$E$23) -> 1 | Z24: =ColorFunction($E$33,$E$15:$E$23) -> 0 | AA24: =SUM(AA15:AA23)/(9-Q24)*100 -> 50 | AB24: =COUNTIF(P15:P23,">2") -> 0 | AC24: =IF((G24=0),"",SUM(AC15:AC23)/G24*100) -> 50
B25: =SUM(B24,B14) -> 6038 | C25: =SUM(C24,C14) -> 73 | D25: TOTAL | E25: =IF(E14=0,"0",(E24+E14)) -> 73 | F25: =SUM(F14,F24) -> 68 | G25: =SUM(G24,G14) -> 12 | H25: =SUM(H24,H14) -> 3 | I25: =SUM(I24,I14) -> 0 | J25: =IF((A28=27),"",(SUM(J14,J24)/2)) -> 19.64285714 | K25: =IF((A28=27),"",(SUM(K14,K24)/2)) -> 59.82142857 | L25: =IF((A28=27),"",(SUM(L14,L24)/2)) -> 20.53571429 | M25: =SUM(M24,M14) -> 0 | N25: =SUM(N24,N14) -> 0 | O25: =SUM(O24,O14) -> 0 | P25: =IF(P14+P24=0,"",SUM(P24,P14)) -> 29 | Q25: =IF(Q14+Q24=0,"",SUM(Q24,Q14)) -> 11 | S25: =IF(S14+S24=0,"",SUM(S24,S14)/2) -> 4.866071429 | T25: =IF(N25=0,"",(O25)/N25*100) ->  | U25: =IF(Q25="","",(Q25)/18*100) -> 61.11111111 | V25: =IF(Q25="","",(V14+V24)/Q25) -> 1.727272727 | W25: =SUM(W14,W24) -> 0 | X25: =SUM(X14,X24) -> 3 | Y25: =SUM(Y14,Y24) -> 3 | Z25: =SUM(Z14,Z24) -> 0 | AA25: =SUM(AA14,AA24)/2 -> 55 | AB25: =SUM(AB14,AB24) -> 0 | AC25: =SUM(AC24,AC14)/2 -> 58.33333333
E27: Udfyld alle grønne felter med 1 for positiv eller antal i tal
A28: =COUNTBLANK(I5:K13) -> 22 | W28: Approach
A29: =COUNTBLANK(I15:K23) -> 20 | E29: Udfyld følgende farver: | T29: Holes to par | W29: Længde (m) | X29: Antal | Y29: Afstand (m)
A30: =SUM(L5:L23) -> 31.57142857 | E30: Eagles | T30: Par 3 | U30: =SUMIF(C:C,"3",E:E)/COUNTIF(C:C,3) -> 3 | W30: 45-70 | X30: =COUNTIFS(R5:R23,">=45",R5:R23,"<=70") -> 0 | Y30: =IF(X30=0,"",AVERAGEIFS(S5:S23,R5:R23,">=45",R5:R23,"<=70")) -> 
E31: Birdies | T31: Par 4 | U31: =SUMIF(C:C,"4",E:E)/COUNTIF(C:C,4) -> 3.909090909 | W31: 71-90 | X31: =COUNTIFS(R5:R23,">=71",R5:R23,"<=90") -> 1 | Y31: =IF(X31=0,"",AVERAGEIFS(S5:S23,R5:R23,">=71",R5:R23,"<=90")) -> 5
E32: Bogeys | T32: Par 5 | U32: =SUMIF(C:C,"5",E:E)/COUNTIF(C:C,5) -> 5.25 | W32: 91-115 | X32: =COUNTIFS(R5:R23,">=91",R5:R23,"<=115") -> 3 | Y32: =IF(X32=0,"",AVERAGEIFS(S5:S23,R5:R23,">=91",R5:R23,"<=115")) -> 4.166666667
E33: Doublebogeys eller værre | W33: 116-140 | X33: =COUNTIFS(R5:R23,">=116",R5:R23,"<=140") -> 2 | Y33: =IF(X33=0,"",AVERAGEIFS(S5:S23,R5:R23,">=116",R5:R23,"<=140")) -> 5.5
T34: First 4 | U34: =IF(E25="0","",SUM(E5:E8)-SUM(C5:C8)) -> 1 | W34: 141-160 | X34: =COUNTIFS(R5:R23,">=141",R5:R23,"<=161") -> 3 | Y34: =IF(X34=0,"",AVERAGEIFS(S5:S23,R5:R23,">=141",R5:R23,"<=160")) -> 5.333333333
T35: Last 4 | U35: =IF(E25="0","",SUM(E20:E23)-SUM(C20:C23)) -> 0 | W35: 161-180 | X35: =COUNTIFS(R5:R23,">=161",R5:R23,"<=180") -> 1 | Y35: =IF(X35=0,"",AVERAGEIFS(S5:S23,R5:R23,">=161",R5:R23,"<=180")) -> 8
W37: Putting
W38: Længde (m) | X38: Antal | Y38: Holet | Z38: Holet (%)
W39: under 1 m | X39: =COUNTIFS(S5:S23,">=0,1",S5:S23,"<=0,9") -> 0 | Y39: =IF(X39=0,"",COUNTIFS(P5:P23,"=1",S5:S23,"<1")) ->  | Z39: =IF(X39=0,"",Y39/X39*100) -> 
W40: 1 - 1,5 | X40: =COUNTIFS(S5:S23,">=1",S5:S23,"<=1,5") -> 0 | Y40: =IF(X40=0,"",COUNTIFS(P5:P23,"=1",S5:S23,">=1",S5:S23,"<=1,5")) ->  | Z40: =IF(X40=0,"",Y40/X40*100) -> 
W41: 1,5 - 3 | X41: =COUNTIFS(S5:S23,">=1,6",S5:S23,"<=3") -> 1 | Y41: =IF(X41=0,"",COUNTIFS(P5:P23,"=1",S5:S23,">=1,6",S5:S23,"<=3")) -> 0 | Z41: =IF(X41=0,"",Y41/X41*100) -> 0
W42: 3 - 4,5 | X42: =COUNTIFS(S5:S23,">=3,1",S5:S23,"<=4,5") -> 4 | Y42: =IF(X42=0,"",COUNTIFS(P5:P23,"=1",S5:S23,">=3,1",S5:S23,"<=4,5")) -> 2 | Z42: 50
W43: 4,5 - 6 | X43: =COUNTIFS(S5:S23,">=4,6",S5:S23,"<=6") -> 5 | Y43: =IF(X43=0,"",COUNTIFS(P5:P23,"=1",S5:S23,">=4,6",S5:S23,"<=6")) -> 1 | Z43: 20
W44: over 6 meter | X44: =COUNTIFS(S5:S23,">6") -> 2 | Y44: =IF(X44=0,"",COUNTIFS(P5:P23,"=1",S5:S23,">6")) -> 0 | Z44: 0

Sheet Runde 7
A1: Korsør Golf Klub - 18 huller - Gul tee | J1: =IF(E25="0","0","1") -> 1 | K1: Dato: | L1: 2010-05-24 | N1: Handicap: | O1: 4.5 | Q1: ATS: | R1: 3 | T1: Vejr: | U1: Regn, jævn-hård vind, 10-12 grader | W1: Turnering: | X1: Pinsemorgenturnering gunstart hul 3
H3: Tee shot | K3: Fairway hits i % | N3: Bunker | R3: Approach shots
A4: Hul | B4: Gul tee | C4: Par | D4: HCP | E4: Score | F4: Netto | G4: Driver | H4: Wood | I4: Jern | J4: Venstre | K4: Midt | L4: Højre | M4: FB | N4: GB | O4: SS | P4: Putts | Q4: GIR | R4: Dist. to pin (m) | S4: Dist. to hole (m) | T4: % SS | U4: % GIR | V4: Putts/GIR | W4: Eagles | X4: Birdies | Y4: Bogeys | Z4: Værre | AA4: % Scramble | AB4: 3+ Putts | AC4: % Driver/Fairwayhits
A5: 1 | B5: 307 | C5: 4 | D5: 11 | E5: 5 | F5: 5 | P5: 2 | V5: =IF(Q5=0,"",P5) ->  | AA5: =IF(AND(Q5="",P5=1),1,"") ->  | AC5: =IF(AND(G5=""),"",SUM(K5)) -> 
A6: 2 | B6: 323 | C6: 4 | D6: 5 | E6: 4 | F6: 4 | P6: 2 | Q6: 1 | V6: 2
A7: 3 | B7: 138 | C7: 3 | D7: 15 | E7: 3 | F7: 3 | P7: 1 | AA7: 1
A8: 4 | B8: 310 | C8: 4 | D8: 13 | E8: 4 | F8: 4 | I8: 1 | K8: 1 | P8: 1 | AA8: 1
A9: 5 | B9: 431 | C9: 5 | D9: 3 | E9: 5 | F9: 4 | G9: 1 | J9: 1 | P9: 2 | Q9: 1 | V9: 2 | AC9: 0
A10: 6 | B10: 312 | C10: 4 | D10: 9 | E10: 4 | F10: 4 | G10: 1 | J10: 1 | P10: 2 | Q10: 1 | V10: 2 | AC10: 0
A11: 7 | B11: 498 | C11: 5 | D11: 1 | E11: 5 | F11: 4 | I11: 1 | K11: 1 | P11: 2 | Q11: 1 | V11: 2
A12: 8 | B12: 138 | C12: 3 | D12: 17 | E12: 4 | F12: 4 | N12: 1 | P12: 2
A13: 9 | B13: 310 | C13: 4 | D13: 7 | E13: 4 | F13: 4 | G13: 1 | K13: 1 | P13: 2 | Q13: 1 | V13: 2 | AC13: 1
B14: =SUM(B5:B13) -> 2767 | C14: =SUM(C5:C13) -> 36 | D14: UD | E14: =SUM(E5:E13) -> 38 | F14: =SUM(F5:F13) -> 36 | G14: =SUM(G5:G13) -> 3 | H14: =SUM(H5:H13) -> 0 | I14: =SUM(I5:I13) -> 2 | J14: =IF((A28=27),"",(SUM(J5:J13)/SUM(J5:L13))*100) -> 40 | K14: =IF((A28=27),"",(SUM(K5:K13)/SUM(J5:L13))*100) -> 60 | L14: =IF((A28=27),"",(SUM(L5:L13)/SUM(J5:L13))*100) -> 0 | M14: =SUM(M5:M13) -> 0 | N14: =SUM(N5:N13) -> 1 | O14: =SUM(O5:O13) -> 0 | P14: =SUM(P5:P13) -> 16 | Q14: =SUM(Q5:Q13) -> 5 | S14: =IF(Q14=0,"",SUM(S5:S13)/Q14) -> 0 | V14: =SUM(V5:V13) -> 10 | W14: =ColorFunction($E$30,$E$5:$E$13) -> 0 | X14: =ColorFunction($E$31,$E$5:$E$13) -> 0 | Y14: =ColorFunction($E$32,$E$5:$E$13) -> 2 | Z14: =ColorFunction($E$33,$E$5:$E$13) -> 0 | AA14: =SUM(AA5:AA13)/(9-Q14)*100 -> 50 | AB14: =COUNTIF(P5:P13,">2") -> 0 | AC14: =IF((G14=0),"",SUM(AC5:AC13)/G14*100) -> 33.33333333
A15: 10 | B15: 481 | C15: 5 | D15: 4 | E15: 6 | F15: 6 | G15: 1 | K15: 1 | P15: 2 | V15: =IF(Q15=0,"",P15) ->  | AA15: =IF(AND(Q15="",P15=1),1,"") ->  | AC15: =IF(AND(G15=""),"",SUM(K15)) -> 1
A16: 11 | B16: 319 | C16: 4 | D16: 16 | E16: 4 | F16: 4 | I16: 1 | K16: 1 | P16: 1 | AA16: 1
A17: 12 | B17: 431 | C17: 5 | D17: 2 | E17: 5 | F17: 4 | H17: 1 | K17: 1 | P17: 2 | Q17: 1 | V17: 2
A18: 13 | B18: 122 | C18: 3 | D18: 18 | E18: 3 | F18: 3 | P18: 2 | Q18: 1 | V18: 2
A19: 14 | B19: 379 | C19: 4 | D19: 6 | E19: 4 | F19: 4 | G19: 1 | K19: 1 | P19: 2 | Q19: 1 | V19: 2 | AC19: 1
A20: 15 | B20: 316 | C20: 4 | D20: 8 | E20: 4 | F20: 4 | G20: 1 | J20: 1 | P20: 1 | AA20: 1 | AC20: 0
A21: 16 | B21: 322 | C21: 4 | D21: 14 | E21: 6 | F21: 6 | G21: 1 | K21: 1 | P21: 2 | AC21: 1
A22: 17 | B22: 345 | C22: 4 | D22: 10 | E22: 4 | F22: 4 | H22: 1 | K22: 1 | P22: 2 | Q22: 1 | V22: 2
A23: 18 | B23: 281 | C23: 4 | D23: 12 | E23: 4 | F23: 4 | H23: 1 | K23: 1 | P23: 2 | Q23: 1 | V23: 2
B24: =SUM(B15:B23) -> 2996 | C24: =SUM(C15:C23) -> 37 | D24: IND | E24: =SUM(E15:E23) -> 40 | F24: =SUM(F15:F23) -> 39 | G24: =SUM(G15:G23) -> 4 | H24: =SUM(H15:H23) -> 3 | I24: =SUM(I15:I23) -> 1 | J24: =IF((A29=27),"",(SUM(J15:J23)/SUM(J15:L23))*100) -> 12.5 | K24: =IF((A29=27),"",(SUM(K15:K23)/SUM(J15:L23))*100) -> 87.5 | L24: =IF((A29=27),"",(SUM(L15:L23)/SUM(J15:L23))*100) -> 0 | M24: =SUM(M15:M23) -> 0 | N24: =SUM(N15:N23) -> 0 | O24: =SUM(O15:O23) -> 0 | P24: =SUM(P15:P23) -> 16 | Q24: =SUM(Q15:Q23) -> 5 | S24: =IF(Q24=0,"",SUM(S15:S23)/Q24) -> 0 | V24: =SUM(V15:V23) -> 10 | W24: =ColorFunction($E$30,$E$15:$E$23) -> 0 | X24: =ColorFunction($E$31,$E$15:$E$23) -> 0 | Y24: =ColorFunction($E$32,$E$15:$E$23) -> 1 | Z24: =ColorFunction($E$33,$E$15:$E$23) -> 1 | AA24: =SUM(AA15:AA23)/(9-Q24)*100 -> 50 | AB24: =COUNTIF(P15:P23,">2") -> 0 | AC24: =IF((G24=0),"",SUM(AC15:AC23)/G24*100) -> 75
B25: =SUM(B24,B14) -> 5763 | C25: =SUM(C24,C14) -> 73 | D25: TOTAL | E25: =IF(E14=0,"0",(E24+E14)) -> 78 | F25: =SUM(F14,F24) -> 75 | G25: =SUM(G24,G14) -> 7 | H25: =SUM(H24,H14) -> 3 | I25: =SUM(I24,I14) -> 3 | J25: =IF((A28=27),"",(SUM(J14,J24)/2)) -> 26.25 | K25: =IF((A28=27),"",(SUM(K14,K24)/2)) -> 73.75 | L25: =IF((A28=27),"",(SUM(L14,L24)/2)) -> 0 | M25: =SUM(M24,M14) -> 0 | N25: =SUM(N24,N14) -> 1 | O25: =SUM(O24,O14) -> 0 | P25: =IF(P14+P24=0,"",SUM(P24,P14)) -> 32 | Q25: =IF(Q14+Q24=0,"",SUM(Q24,Q14)) -> 10 | S25: =IF(S14+S24=0,"",SUM(S24,S14)/2) ->  | T25: =IF(N25=0,"",(O25)/N25*100) -> 0 | U25: =IF(Q25="","",(Q25)/18*100) -> 55.55555556 | V25: =IF(Q25="","",(V14+V24)/Q25) -> 2 | W25: =SUM(W14,W24) -> 0 | X25: =SUM(X14,X24) -> 0 | Y25: =SUM(Y14,Y24) -> 3 | Z25: =SUM(Z14,Z24) -> 1 | AA25: =SUM(AA14,AA24)/2 -> 50 | AB25: =SUM(AB14,AB24) -> 0 | AC25: =SUM(AC24,AC14)/2 -> 54.16666667
E27: Udfyld alle grønne felter med 1 for positiv eller antal i tal
A28: =COUNTBLANK(I5:K13) -> 20 | W28: Approach
A29: =COUNTBLANK(I15:K23) -> 18 | E29: Udfyld følgende farver: | S29: Holes to par | W29: Længde (m) | X29: Antal | Y29: Afstand (m)
A30: =SUM(L5:L23) -> 0 | E30: Eagles | S30: Par 3 | T30: =SUMIF(C:C,"3",E:E)/COUNTIF(C:C,3) -> 3.333333333 | W30: 45-70 | X30: =COUNTIFS(R5:R23,">=45",R5:R23,"<=70") -> 0 | Y30: =IF(X30=0,"",AVERAGEIFS(S5:S23,R5:R23,">=45",R5:R23,"<=70")) -> 
E31: Birdies | S31: Par 4 | T31: =SUMIF(C:C,"4",E:E)/COUNTIF(C:C,4) -> 4.272727273 | W31: 71-90 | X31: =COUNTIFS(R5:R23,">=71",R5:R23,"<=90") -> 0 | Y31: =IF(X31=0,"",AVERAGEIFS(S5:S23,R5:R23,">=71",R5:R23,"<=90")) -> 
E32: Bogeys | S32: Par 5 | T32: =SUMIF(C:C,"5",E:E)/COUNTIF(C:C,5) -> 5.25 | W32: 91-115 | X32: =COUNTIFS(R5:R23,">=91",R5:R23,"<=115") -> 0 | Y32: =IF(X32=0,"",AVERAGEIFS(S5:S23,R5:R23,">=91",R5:R23,"<=115")) -> 
E33: Doublebogeys eller værre | W33: 116-140 | X33: =COUNTIFS(R5:R23,">=116",R5:R23,"<=140") -> 0 | Y33: =IF(X33=0,"",AVERAGEIFS(S5:S23,R5:R23,">=116",R5:R23,"<=140")) -> 
S34: First 4 | T34: =IF(E25="0","",SUM(E7:E10)-SUM(C7:C10)) -> 0 | W34: 141-160 | X34: =COUNTIFS(R5:R23,">=141",R5:R23,"<=161") -> 0 | Y34: =IF(X34=0,"",AVERAGEIFS(S5:S23,R5:R23,">=141",R5:R23,"<=160")) -> 
S35: Last 4 | T35: 1 | W35: 161-180 | X35: =COUNTIFS(R5:R23,">=161",R5:R23,"<=180") -> 0 | Y35: =IF(X35=0,"",AVERAGEIFS(S5:S23,R5:R23,">=161",R5:R23,"<=180")) -> 
W37: Putting
W38: Længde (m) | X38: Antal | Y38: Holet | Z38: Holet (%)
W39: under 1 m | X39: =COUNTIFS(S5:S23,">=0,1",S5:S23,"<=0,9") -> 0 | Y39: =IF(X39=0,"",COUNTIFS(P5:P23,"=1",S5:S23,"<1")) ->  | Z39: =IF(X39=0,"",Y39/X39*100) -> 
W40: 1 - 1,5 | X40: =COUNTIFS(S5:S23,">=1",S5:S23,"<=1,5") -> 0 | Y40: =IF(X40=0,"",COUNTIFS(P5:P23,"=1",S5:S23,">=1",S5:S23,"<=1,5")) ->  | Z40: =IF(X40=0,"",Y40/X40*100) -> 
W41: 1,5 - 3 | X41: =COUNTIFS(S5:S23,">=1,6",S5:S23,"<=3") -> 0 | Y41: =IF(X41=0,"",COUNTIFS(P5:P23,"=1",S5:S23,">=1,6",S5:S23,"<=3")) ->  | Z41: =IF(X41=0,"",Y41/X41*100) -> 
W42: 3 - 4,5 | X42: =COUNTIFS(S5:S23,">=3,1",S5:S23,"<=4,5") -> 0 | Y42: =IF(X42=0,"",COUNTIFS(P5:P23,"=1",S5:S23,">=3,1",S5:S23,"<=4,5")) -> 
W43: 4,5 - 6 | X43: =COUNTIFS(S5:S23,">=4,6",S5:S23,"<=6") -> 0 | Y43: =IF(X43=0,"",COUNTIFS(P5:P23,"=1",S5:S23,">=4,6",S5:S23,"<=6")) -> 
W44: over 6 meter | X44: =COUNTIFS(S5:S23,">6") -> 0 | Y44: =IF(X44=0,"",COUNTIFS(P5:P23,"=1",S5:S23,">6")) -> 

Sheet Runde 8
A1: Korsør Golf Klub - 18 huller - Gul tee | J1: =IF(E25="0","0","1") -> 1 | K1: Dato: | L1: 2010-06-08 | N1: Handicap: | O1: 4.3 | Q1: ATS: | R1: 3 | T1: Vejr: | U1: Sol, jævn vind, 18 grader | W1: Turnering: | X1: Tirsdagsklub
H3: Tee shot | K3: Fairway hits i % | N3: Bunker | R3: Approach shots
A4: Hul | B4: Gul tee | C4: Par | D4: HCP | E4: Score | F4: Netto | G4: Driver | H4: Wood | I4: Jern | J4: Venstre | K4: Midt | L4: Højre | M4: FB | N4: GB | O4: SS | P4: Putts | Q4: GIR | R4: Dist. to pin (m) | S4: Dist. to hole (m) | T4: % SS | U4: % GIR | V4: Putts/GIR | W4: Eagles | X4: Birdies | Y4: Bogeys | Z4: Værre | AA4: % Scramble | AB4: 3+ Putts | AC4: % Driver/Fairwayhits
A5: 1 | B5: 307 | C5: 4 | D5: 11 | E5: 5 | F5: 5 | H5: 1 | K5: 1 | P5: 2 | V5: =IF(Q5=0,"",P5) ->  | AA5: =IF(AND(Q5="",P5=1),1,"") ->  | AC5: =IF(AND(G5=""),"",SUM(K5)) -> 
A6: 2 | B6: 323 | C6: 4 | D6: 5 | E6: 4 | F6: 4 | G6: 1 | J6: 1 | P6: 2 | Q6: 1 | R6: 107 | S6: 3 | V6: 2 | AC6: 0
A7: 3 | B7: 138 | C7: 3 | D7: 15 | E7: 3 | F7: 3 | P7: 1 | AA7: 1
A8: 4 | B8: 310 | C8: 4 | D8: 13 | E8: 5 | F8: 5 | I8: 1 | K8: 1 | P8: 2
A9: 5 | B9: 431 | C9: 5 | D9: 3 | E9: 4 | F9: 3 | G9: 1 | K9: 1 | P9: 1 | Q9: 1 | R9: 20 | S9: 3 | V9: 1 | AC9: 1
A10: 6 | B10: 312 | C10: 4 | D10: 9 | E10: 4 | F10: 4 | G10: 1 | K10: 1 | P10: 2 | Q10: 1 | R10: 62 | S10: 8 | V10: 2 | AC10: 1
A11: 7 | B11: 498 | C11: 5 | D11: 1 | E11: 5 | F11: 4 | I11: 1 | K11: 1 | P11: 2 | Q11: 1 | R11: 128 | S11: 4 | V11: 2
A12: 8 | B12: 138 | C12: 3 | D12: 17 | E12: 3 | F12: 3 | P12: 2 | Q12: 1 | R12: 135 | S12: 6 | V12: 2
A13: 9 | B13: 310 | C13: 4 | D13: 7 | E13: 3 | F13: 3 | G13: 1 | K13: 1 | P13: 1 | Q13: 1 | R13: 115 | S13: 4 | V13: 1 | AC13: 1
B14: =SUM(B5:B13) -> 2767 | C14: =SUM(C5:C13) -> 36 | D14: UD | E14: =SUM(E5:E13) -> 36 | F14: =SUM(F5:F13) -> 34 | G14: =SUM(G5:G13) -> 4 | H14: =SUM(H5:H13) -> 1 | I14: =SUM(I5:I13) -> 2 | J14: =IF((A28=27),"",(SUM(J5:J13)/SUM(J5:L13))*100) -> 14.28571429 | K14: =IF((A28=27),"",(SUM(K5:K13)/SUM(J5:L13))*100) -> 85.71428571 | L14: =IF((A28=27),"",(SUM(L5:L13)/SUM(J5:L13))*100) -> 0 | M14: =SUM(M5:M13) -> 0 | N14: =SUM(N5:N13) -> 0 | O14: =SUM(O5:O13) -> 0 | P14: =SUM(P5:P13) -> 15 | Q14: =SUM(Q5:Q13) -> 6 | S14: =IF(Q14=0,"",SUM(S5:S13)/Q14) -> 4.666666667 | V14: =SUM(V5:V13) -> 10 | W14: =ColorFunction($E$30,$E$5:$E$13) -> 0 | X14: =ColorFunction($E$31,$E$5:$E$13) -> 2 | Y14: =ColorFunction($E$32,$E$5:$E$13) -> 2 | Z14: =ColorFunction($E$33,$E$5:$E$13) -> 0 | AA14: =SUM(AA5:AA13)/(9-Q14)*100 -> 33.33333333 | AB14: =COUNTIF(P5:P13,">2") -> 0 | AC14: =IF((G14=0),"",SUM(AC5:AC13)/G14*100) -> 75
A15: 10 | B15: 481 | C15: 5 | D15: 4 | E15: 5 | F15: 5 | G15: 1 | K15: 1 | N15: 1 | P15: 2 | Q15: 1 | R15: 12 | S15: 4 | V15: =IF(Q15=0,"",P15) -> 2 | AA15: =IF(AND(Q15="",P15=1),1,"") ->  | AC15: =IF(AND(G15=""),"",SUM(K15)) -> 1
A16: 11 | B16: 319 | C16: 4 | D16: 16 | E16: 3 | F16: 3 | H16: 1 | K16: 1 | P16: 1 | Q16: 1 | R16: 140 | S16: 5 | V16: 1
A17: 12 | B17: 431 | C17: 5 | D17: 2 | E17: 8 | F17: 7 | G17: 1 | K17: 1 | P17: 3 | AC17: 1
A18: 13 | B18: 122 | C18: 3 | D18: 18 | E18: 3 | F18: 3 | P18: 2 | Q18: 1 | R18: 129 | S18: 7 | V18: 2
A19: 14 | B19: 379 | C19: 4 | D19: 6 | E19: 4 | F19: 4 | G19: 1 | K19: 1 | P19: 2 | Q19: 1 | R19: 178 | S19: 10 | V19: 2 | AC19: 1
A20: 15 | B20: 316 | C20: 4 | D20: 8 | E20: 5 | F20: 5 | G20: 1 | K20: 1 | P20: 2 | AC20: 1
A21: 16 | B21: 322 | C21: 4 | D21: 14 | E21: 4 | F21: 4 | H21: 1 | K21: 1 | P21: 2 | Q21: 1 | R21: 106 | S21: 6 | V21: 2
A22: 17 | B22: 345 | C22: 4 | D22: 10 | E22: 4 | F22: 4 | G22: 1 | K22: 1 | P22: 2 | Q22: 1 | R22: 127 | S22: 1.5 | V22: 2 | AC22: 1
A23: 18 | B23: 281 | C23: 4 | D23: 12 | E23: 4 | F23: 4 | I23: 1 | K23: 1 | P23: 1 | AA23: 1
B24: =SUM(B15:B23) -> 2996 | C24: =SUM(C15:C23) -> 37 | D24: IND | E24: =SUM(E15:E23) -> 40 | F24: =SUM(F15:F23) -> 39 | G24: =SUM(G15:G23) -> 5 | H24: =SUM(H15:H23) -> 2 | I24: =SUM(I15:I23) -> 1 | J24: =IF((A29=27),"",(SUM(J15:J23)/SUM(J15:L23))*100) -> 0 | K24: =IF((A29=27),"",(SUM(K15:K23)/SUM(J15:L23))*100) -> 100 | L24: =IF((A29=27),"",(SUM(L15:L23)/SUM(J15:L23))*100) -> 0 | M24: =SUM(M15:M23) -> 0 | N24: =SUM(N15:N23) -> 1 | O24: =SUM(O15:O23) -> 0 | P24: =SUM(P15:P23) -> 17 | Q24: =SUM(Q15:Q23) -> 6 | S24: =IF(Q24=0,"",SUM(S15:S23)/Q24) -> 5.583333333 | V24: =SUM(V15:V23) -> 11 | W24: =ColorFunction($E$30,$E$15:$E$23) -> 0 | X24: =ColorFunction($E$31,$E$15:$E$23) -> 1 | Y24: =ColorFunction($E$32,$E$15:$E$23) -> 1 | Z24: =ColorFunction($E$33,$E$15:$E$23) -> 1 | AA24: =SUM(AA15:AA23)/(9-Q24)*100 -> 33.33333333 | AB24: =COUNTIF(P15:P23,">2") -> 1 | AC24: =IF((G24=0),"",SUM(AC15:AC23)/G24*100) -> 100
B25: =SUM(B24,B14) -> 5763 | C25: =SUM(C24,C14) -> 73 | D25: TOTAL | E25: =IF(E14=0,"0",(E24+E14)) -> 76 | F25: =SUM(F14,F24) -> 73 | G25: =SUM(G24,G14) -> 9 | H25: =SUM(H24,H14) -> 3 | I25: =SUM(I24,I14) -> 3 | J25: =IF((A28=27),"",(SUM(J14,J24)/2)) -> 7.142857143 | K25: =IF((A28=27),"",(SUM(K14,K24)/2)) -> 92.85714286 | L25: =IF((A28=27),"",(SUM(L14,L24)/2)) -> 0 | M25: =SUM(M24,M14) -> 0 | N25: =SUM(N24,N14) -> 1 | O25: =SUM(O24,O14) -> 0 | P25: =IF(P14+P24=0,"",SUM(P24,P14)) -> 32 | Q25: =IF(Q14+Q24=0,"",SUM(Q24,Q14)) -> 12 | S25: =IF(S14+S24=0,"",SUM(S24,S14)/2) -> 5.125 | T25: =IF(N25=0,"",(O25)/N25*100) -> 0 | U25: =IF(Q25="","",(Q25)/18*100) -> 66.66666667 | V25: =IF(Q25="","",(V14+V24)/Q25) -> 1.75 | W25: =SUM(W14,W24) -> 0 | X25: =SUM(X14,X24) -> 3 | Y25: =SUM(Y14,Y24) -> 3 | Z25: =SUM(Z14,Z24) -> 1 | AA25: =SUM(AA14,AA24)/2 -> 33.33333333 | AB25: =SUM(AB14,AB24) -> 1 | AC25: =SUM(AC24,AC14)/2 -> 87.5
E27: Udfyld alle grønne felter med 1 for positiv eller antal i tal
A28: =COUNTBLANK(I5:K13) -> 18 | W28: Approach
A29: =COUNTBLANK(I15:K23) -> 18 | E29: Udfyld følgende farver: | S29: Holes to par | W29: Længde (m) | X29: Antal | Y29: Afstand (m)
A30: =SUM(L5:L23) -> 0 | E30: Eagles | S30: Par 3 | T30: =SUMIF(C:C,"3",E:E)/COUNTIF(C:C,3) -> 3 | W30: 45-70 | X30: =COUNTIFS(R5:R23,">=45",R5:R23,"<=70") -> 1 | Y30: =IF(X30=0,"",AVERAGEIFS(S5:S23,R5:R23,">=45",R5:R23,"<=70")) -> 8
E31: Birdies | S31: Par 4 | T31: =SUMIF(C:C,"4",E:E)/COUNTIF(C:C,4) -> 4.090909091 | W31: 71-90 | X31: =COUNTIFS(R5:R23,">=71",R5:R23,"<=90") -> 0 | Y31: =IF(X31=0,"",AVERAGEIFS(S5:S23,R5:R23,">=71",R5:R23,"<=90")) -> 
E32: Bogeys | S32: Par 5 | T32: =SUMIF(C:C,"5",E:E)/COUNTIF(C:C,5) -> 5.5 | W32: 91-115 | X32: =COUNTIFS(R5:R23,">=91",R5:R23,"<=115") -> 3 | Y32: =IF(X32=0,"",AVERAGEIFS(S5:S23,R5:R23,">=91",R5:R23,"<=115")) -> 4.333333333
E33: Doublebogeys eller værre | W33: 116-140 | X33: =COUNTIFS(R5:R23,">=116",R5:R23,"<=140") -> 5 | Y33: =IF(X33=0,"",AVERAGEIFS(S5:S23,R5:R23,">=116",R5:R23,"<=140")) -> 4.7
S34: First 4 | T34: =IF(E25="0","",SUM(E5:E8)-SUM(C5:C8)) -> 2 | W34: 141-160 | X34: =COUNTIFS(R5:R23,">=141",R5:R23,"<=161") -> 0 | Y34: =IF(X34=0,"",AVERAGEIFS(S5:S23,R5:R23,">=141",R5:R23,"<=160")) -> 
S35: Last 4 | T35: =IF(E25="0","",SUM(E20:E23)-SUM(C20:C23)) -> 1 | W35: 161-180 | X35: =COUNTIFS(R5:R23,">=161",R5:R23,"<=180") -> 1 | Y35: =IF(X35=0,"",AVERAGEIFS(S5:S23,R5:R23,">=161",R5:R23,"<=180")) -> 10
W37: Putting
W38: Længde (m) | X38: Antal | Y38: Holet | Z38: Holet (%)
W39: under 1 m | X39: =COUNTIFS(S5:S23,">=0,1",S5:S23,"<=0,9") -> 0 | Y39: =IF(X39=0,"",COUNTIFS(P5:P23,"=1",S5:S23,"<1")) ->  | Z39: =IF(X39=0,"",Y39/X39*100) -> 
W40: 1 - 1,5 | X40: =COUNTIFS(S5:S23,">=1",S5:S23,"<=1,5") -> 1 | Y40: =IF(X40=0,"",COUNTIFS(P5:P23,"=1",S5:S23,">=1",S5:S23,"<=1,5")) -> 0 | Z40: =IF(X40=0,"",Y40/X40*100) -> 0
W41: 1,5 - 3 | X41: =COUNTIFS(S5:S23,">=1,6",S5:S23,"<=3") -> 2 | Y41: =IF(X41=0,"",COUNTIFS(P5:P23,"=1",S5:S23,">=1,6",S5:S23,"<=3")) -> 1 | Z41: =IF(X41=0,"",Y41/X41*100) -> 50
W42: 3 - 4,5 | X42: =COUNTIFS(S5:S23,">=3,1",S5:S23,"<=4,5") -> 3 | Y42: =IF(X42=0,"",COUNTIFS(P5:P23,"=1",S5:S23,">=3,1",S5:S23,"<=4,5")) -> 1 | Z42: 33.33333333
W43: 4,5 - 6 | X43: =COUNTIFS(S5:S23,">=4,6",S5:S23,"<=6") -> 4 | Y43: =IF(X43=0,"",COUNTIFS(P5:P23,"=1",S5:S23,">=4,6",S5:S23,"<=6")) -> 1 | Z43: 25
W44: over 6 meter | X44: =COUNTIFS(S5:S23,">6") -> 3 | Y44: =IF(X44=0,"",COUNTIFS(P5:P23,"=1",S5:S23,">6")) -> 0 | Z44: 0

Sheet Runde 9
A1: Korsør Golf Klub - 18 huller - Gul tee | J1: =IF(E25="0","0","1") -> 1 | K1: Dato: | L1: 2010-06-15 | N1: Handicap: | O1: 4.3 | Q1: ATS: | R1: 3 | T1: Vejr: | U1: Sol, 15 grader, frisk vind | W1: Turnering: | X1: Tirsdagsklub
H3: Tee shot | K3: Fairway hits i % | N3: Bunker | R3: Approach shots
A4: Hul | B4: Gul tee | C4: Par | D4: HCP | E4: Score | F4: Netto | G4: Driver | H4: Wood | I4: Jern | J4: Venstre | K4: Midt | L4: Højre | M4: FB | N4: GB | O4: SS | P4: Putts | Q4: GIR | R4: Dist. to pin (m) | S4: Dist. to hole (m) | T4: % SS | U4: % GIR | V4: Putts/GIR | W4: Eagles | X4: Birdies | Y4: Bogeys | Z4: Værre | AA4: % Scramble | AB4: 3+ Putts | AC4: % Driver/Fairwayhits
A5: 1 | B5: 307 | C5: 4 | D5: 11 | E5: 4 | F5: 4 | H5: 1 | K5: 1 | P5: 1 | V5: =IF(Q5=0,"",P5) ->  | AA5: =IF(AND(Q5="",P5=1),1,"") -> 1 | AC5: =IF(AND(G5=""),"",SUM(K5)) -> 
A6: 2 | B6: 323 | C6: 4 | D6: 5 | E6: 3 | F6: 3 | G6: 1 | K6: 1 | P6: 1 | Q6: 1 | R6: 115 | S6: 0.2 | V6: 1 | AC6: 1
A7: 3 | B7: 138 | C7: 3 | D7: 15 | E7: 4 | F7: 4 | P7: 3 | Q7: 1 | R7: 138 | S7: 5 | V7: 3
A8: 4 | B8: 310 | C8: 4 | D8: 13 | E8: 4 | F8: 4 | I8: 1 | K8: 1 | P8: 2 | Q8: 1 | R8: 135 | S8: 5 | V8: 2
A9: 5 | B9: 431 | C9: 5 | D9: 3 | E9: 5 | F9: 4 | G9: 1 | K9: 1 | P9: 2 | Q9: 1 | V9: 2 | AC9: 1
A10: 6 | B10: 312 | C10: 4 | D10: 9 | E10: 4 | F10: 4 | G10: 1 | K10: 1 | P10: 1 | AA10: 1 | AC10: 1
A11: 7 | B11: 498 | C11: 5 | D11: 1 | E11: 5 | F11: 4 | I11: 1 | K11: 1 | P11: 2 | Q11: 1 | R11: 152 | S11: 7 | V11: 2
A12: 8 | B12: 138 | C12: 3 | D12: 17 | E12: 4 | F12: 4 | P12: 2
A13: 9 | B13: 310 | C13: 4 | D13: 7 | E13: 4 | F13: 4 | H13: 1 | K13: 1 | P13: 1 | AA13: 1
B14: =SUM(B5:B13) -> 2767 | C14: =SUM(C5:C13) -> 36 | D14: UD | E14: =SUM(E5:E13) -> 37 | F14: =SUM(F5:F13) -> 35 | G14: =SUM(G5:G13) -> 3 | H14: =SUM(H5:H13) -> 2 | I14: =SUM(I5:I13) -> 2 | J14: =IF((A28=27),"",(SUM(J5:J13)/SUM(J5:L13))*100) -> 0 | K14: =IF((A28=27),"",(SUM(K5:K13)/SUM(J5:L13))*100) -> 100 | L14: =IF((A28=27),"",(SUM(L5:L13)/SUM(J5:L13))*100) -> 0 | M14: =SUM(M5:M13) -> 0 | N14: =SUM(N5:N13) -> 0 | O14: =SUM(O5:O13) -> 0 | P14: =SUM(P5:P13) -> 15 | Q14: =SUM(Q5:Q13) -> 5 | S14: =IF(Q14=0,"",SUM(S5:S13)/Q14) -> 3.44 | V14: =SUM(V5:V13) -> 10 | W14: =ColorFunction($E$30,$E$5:$E$13) -> 0 | X14: =ColorFunction($E$31,$E$5:$E$13) -> 1 | Y14: =ColorFunction($E$32,$E$5:$E$13) -> 2 | Z14: =ColorFunction($E$33,$E$5:$E$13) -> 0 | AA14: =SUM(AA5:AA13)/(9-Q14)*100 -> 75 | AB14: =COUNTIF(P5:P13,">2") -> 1 | AC14: =IF((G14=0),"",SUM(AC5:AC13)/G14*100) -> 100
A15: 10 | B15: 481 | C15: 5 | D15: 4 | E15: 5 | F15: 5 | G15: 1 | K15: 1 | P15: 2 | Q15: 1 | R15: 95 | S15: 6 | V15: =IF(Q15=0,"",P15) -> 2 | AA15: =IF(AND(Q15="",P15=1),1,"") ->  | AC15: =IF(AND(G15=""),"",SUM(K15)) -> 1
A16: 11 | B16: 319 | C16: 4 | D16: 16 | E16: 5 | F16: 5 | H16: 1 | K16: 1 | P16: 2
A17: 12 | B17: 431 | C17: 5 | D17: 2 | E17: 5 | F17: 4 | G17: 1 | L17: 1 | P17: 1 | AA17: 1 | AC17: 0
A18: 13 | B18: 122 | C18: 3 | D18: 18 | E18: 3 | F18: 3 | P18: 2 | Q18: 1 | R18: 118 | S18: 6 | V18: 2
A19: 14 | B19: 379 | C19: 4 | D19: 6 | E19: 5 | F19: 5 | G19: 1 | K19: 1 | P19: 2 | AC19: 1
A20: 15 | B20: 316 | C20: 4 | D20: 8 | E20: 4 | F20: 4 | G20: 1 | J20: 1 | P20: 2 | Q20: 1 | R20: 130 | S20: 4 | V20: 2 | AC20: 0
A21: 16 | B21: 322 | C21: 4 | D21: 14 | E21: 4 | F21: 4 | G21: 1 | K21: 1 | P21: 2 | Q21: 1 | R21: 96 | S21: 7 | V21: 2 | AC21: 1
A22: 17 | B22: 345 | C22: 4 | D22: 10 | E22: 4 | F22: 4 | G22: 1 | K22: 1 | P22: 1 | AA22: 1 | AC22: 1
A23: 18 | B23: 281 | C23: 4 | D23: 12 | E23: 4 | F23: 4 | H23: 1 | K23: 1 | P23: 2 | Q23: 1 | R23: 85 | S23: 6 | V23: 2
B24: =SUM(B15:B23) -> 2996 | C24: =SUM(C15:C23) -> 37 | D24: IND | E24: =SUM(E15:E23) -> 39 | F24: =SUM(F15:F23) -> 38 | G24: =SUM(G15:G23) -> 6 | H24: =SUM(H15:H23) -> 2 | I24: =SUM(I15:I23) -> 0 | J24: =IF((A29=27),"",(SUM(J15:J23)/SUM(J15:L23))*100) -> 12.5 | K24: =IF((A29=27),"",(SUM(K15:K23)/SUM(J15:L23))*100) -> 75 | L24: =IF((A29=27),"",(SUM(L15:L23)/SUM(J15:L23))*100) -> 12.5 | M24: =SUM(M15:M23) -> 0 | N24: =SUM(N15:N23) -> 0 | O24: =SUM(O15:O23) -> 0 | P24: =SUM(P15:P23) -> 16 | Q24: =SUM(Q15:Q23) -> 5 | S24: =IF(Q24=0,"",SUM(S15:S23)/Q24) -> 5.8 | V24: =SUM(V15:V23) -> 10 | W24: =ColorFunction($E$30,$E$15:$E$23) -> 0 | X24: =ColorFunction($E$31,$E$15:$E$23) -> 0 | Y24: =ColorFunction($E$32,$E$15:$E$23) -> 2 | Z24: =ColorFunction($E$33,$E$15:$E$23) -> 0 | AA24: =SUM(AA15:AA23)/(9-Q24)*100 -> 50 | AB24: =COUNTIF(P15:P23,">2") -> 0 | AC24: =IF((G24=0),"",SUM(AC15:AC23)/G24*100) -> 66.66666667
B25: =SUM(B24,B14) -> 5763 | C25: =SUM(C24,C14) -> 73 | D25: TOTAL | E25: =IF(E14=0,"0",(E24+E14)) -> 76 | F25: =SUM(F14,F24) -> 73 | G25: =SUM(G24,G14) -> 9 | H25: =SUM(H24,H14) -> 4 | I25: =SUM(I24,I14) -> 2 | J25: =IF((A28=27),"",(SUM(J14,J24)/2)) -> 6.25 | K25: =IF((A28=27),"",(SUM(K14,K24)/2)) -> 87.5 | L25: =IF((A28=27),"",(SUM(L14,L24)/2)) -> 6.25 | M25: =SUM(M24,M14) -> 0 | N25: =SUM(N24,N14) -> 0 | O25: =SUM(O24,O14) -> 0 | P25: =IF(P14+P24=0,"",SUM(P24,P14)) -> 31 | Q25: =IF(Q14+Q24=0,"",SUM(Q24,Q14)) -> 10 | S25: =IF(S14+S24=0,"",SUM(S24,S14)/2) -> 4.62 | T25: =IF(N25=0,"",(O25)/N25*100) ->  | U25: =IF(Q25="","",(Q25)/18*100) -> 55.55555556 | V25: =IF(Q25="","",(V14+V24)/Q25) -> 2 | W25: =SUM(W14,W24) -> 0 | X25: =SUM(X14,X24) -> 1 | Y25: =SUM(Y14,Y24) -> 4 | Z25: =SUM(Z14,Z24) -> 0 | AA25: =SUM(AA14,AA24)/2 -> 62.5 | AB25: =SUM(AB14,AB24) -> 1 | AC25: =SUM(AC24,AC14)/2 -> 83.33333333
E27: Udfyld alle grønne felter med 1 for positiv eller antal i tal
A28: =COUNTBLANK(I5:K13) -> 18 | W28: Approach
A29: =COUNTBLANK(I15:K23) -> 20 | E29: Udfyld følgende farver: | S29: Holes to par | W29: Længde (m) | X29: Antal | Y29: Afstand (m)
A30: =SUM(L5:L23) -> 1 | E30: Eagles | S30: Par 3 | T30: =SUMIF(C:C,"3",E:E)/COUNTIF(C:C,3) -> 3.666666667 | W30: 45-70 | X30: =COUNTIFS(R5:R23,">=45",R5:R23,"<=70") -> 0 | Y30: =IF(X30=0,"",AVERAGEIFS(S5:S23,R5:R23,">=45",R5:R23,"<=70")) -> 
E31: Birdies | S31: Par 4 | T31: =SUMIF(C:C,"4",E:E)/COUNTIF(C:C,4) -> 4.090909091 | W31: 71-90 | X31: =COUNTIFS(R5:R23,">=71",R5:R23,"<=90") -> 1 | Y31: =IF(X31=0,"",AVERAGEIFS(S5:S23,R5:R23,">=71",R5:R23,"<=90")) -> 6
E32: Bogeys | S32: Par 5 | T32: =SUMIF(C:C,"5",E:E)/COUNTIF(C:C,5) -> 5 | W32: 91-115 | X32: =COUNTIFS(R5:R23,">=91",R5:R23,"<=115") -> 3 | Y32: =IF(X32=0,"",AVERAGEIFS(S5:S23,R5:R23,">=91",R5:R23,"<=115")) -> 4.4
E33: Doublebogeys eller værre | W33: 116-140 | X33: =COUNTIFS(R5:R23,">=116",R5:R23,"<=140") -> 4 | Y33: =IF(X33=0,"",AVERAGEIFS(S5:S23,R5:R23,">=116",R5:R23,"<=140")) -> 5
S34: First 4 | T34: =IF(E25="0","",SUM(E5:E8)-SUM(C5:C8)) -> 0 | W34: 141-160 | X34: =COUNTIFS(R5:R23,">=141",R5:R23,"<=161") -> 1 | Y34: =IF(X34=0,"",AVERAGEIFS(S5:S23,R5:R23,">=141",R5:R23,"<=160")) -> 7
S35: Last 4 | T35: =IF(E25="0","",SUM(E20:E23)-SUM(C20:C23)) -> 0 | W35: 161-180 | X35: =COUNTIFS(R5:R23,">=161",R5:R23,"<=180") -> 0 | Y35: =IF(X35=0,"",AVERAGEIFS(S5:S23,R5:R23,">=161",R5:R23,"<=180")) -> 
W37: Putting
W38: Længde (m) | X38: Antal | Y38: Holet | Z38: Holet (%)
W39: under 1 m | X39: =COUNTIFS(S5:S23,">=0,1",S5:S23,"<=0,9") -> 1 | Y39: =IF(X39=0,"",COUNTIFS(P5:P23,"=1",S5:S23,"<1")) -> 1 | Z39: =IF(X39=0,"",Y39/X39*100) -> 100
W40: 1 - 1,5 | X40: =COUNTIFS(S5:S23,">=1",S5:S23,"<=1,5") -> 0 | Y40: =IF(X40=0,"",COUNTIFS(P5:P23,"=1",S5:S23,">=1",S5:S23,"<=1,5")) ->  | Z40: =IF(X40=0,"",Y40/X40*100) -> 
W41: 1,5 - 3 | X41: =COUNTIFS(S5:S23,">=1,6",S5:S23,"<=3") -> 0 | Y41: =IF(X41=0,"",COUNTIFS(P5:P23,"=1",S5:S23,">=1,6",S5:S23,"<=3")) ->  | Z41: =IF(X41=0,"",Y41/X41*100) -> 
W42: 3 - 4,5 | X42: =COUNTIFS(S5:S23,">=3,1",S5:S23,"<=4,5") -> 2 | Y42: =IF(X42=0,"",COUNTIFS(P5:P23,"=1",S5:S23,">=3,1",S5:S23,"<=4,5")) -> 0 | Z42: 0
W43: 4,5 - 6 | X43: =COUNTIFS(S5:S23,">=4,6",S5:S23,"<=6") -> 5 | Y43: =IF(X43=0,"",COUNTIFS(P5:P23,"=1",S5:S23,">=4,6",S5:S23,"<=6")) -> 0 | Z43: 0
W44: over 6 meter | X44: =COUNTIFS(S5:S23,">6") -> 2 | Y44: =IF(X44=0,"",COUNTIFS(P5:P23,"=1",S5:S23,">6")) -> 0 | Z44: 0

Sheet Runde 10
A1: Korsør Golf Klub - 18 huller - Gul tee | J1: =IF(E25="0","0","1") -> 1 | K1: Dato: | L1: 2010-06-22 | N1: Handicap: | O1: 4.3 | Q1: ATS: | R1: 3 | T1: Vejr: | U1: Skyet, 18 grader, svag vind | W1: Turnering: | X1: Tirsdagsklub
H3: Tee shot | K3: Fairway hits i % | N3: Bunker | R3: Approach shots
A4: Hul | B4: Gul tee | C4: Par | D4: HCP | E4: Score | F4: Netto | G4: Driver | H4: Wood | I4: Jern | J4: Venstre | K4: Midt | L4: Højre | M4: FB | N4: GB | O4: SS | P4: Putts | Q4: GIR | R4: Dist. to pin (m) | S4: Dist. to hole (m) | T4: % SS | U4: % GIR | V4: Putts/GIR | W4: Eagles | X4: Birdies | Y4: Bogeys | Z4: Værre | AA4: % Scramble | AB4: 3+ Putts | AC4: % Driver/Fairwayhits
A5: 1 | B5: 307 | C5: 4 | D5: 11 | E5: 4 | F5: 4 | H5: 1 | K5: 1 | P5: 2 | Q5: 1 | R5: 53 | S5: 4 | V5: =IF(Q5=0,"",P5) -> 2 | AA5: =IF(AND(Q5="",P5=1),1,"") ->  | AC5: =IF(AND(G5=""),"",SUM(K5)) -> 
A6: 2 | B6: 323 | C6: 4 | D6: 5 | E6: 4 | F6: 4 | H6: 1 | K6: 1 | P6: 2 | Q6: 1 | R6: 114 | S6: 6 | V6: 2
A7: 3 | B7: 138 | C7: 3 | D7: 15 | E7: 3 | F7: 3 | P7: 1 | AA7: 1
A8: 4 | B8: 310 | C8: 4 | D8: 13 | E8: 4 | F8: 4 | H8: 1 | K8: 1 | P8: 2 | Q8: 1 | R8: 115 | S8: 5 | V8: 2
A9: 5 | B9: 431 | C9: 5 | D9: 3 | E9: 5 | F9: 4 | G9: 1 | K9: 1 | P9: 2 | Q9: 1 | R9: 15 | S9: 3 | V9: 2 | AC9: 1
A10: 6 | B10: 312 | C10: 4 | D10: 9 | E10: 4 | F10: 4 | H10: 1 | K10: 1 | P10: 2 | Q10: 1 | R10: 112 | S10: 5 | V10: 2
A11: 7 | B11: 498 | C11: 5 | D11: 1 | E11: 5 | F11: 4 | I11: 1 | L11: 1 | P11: 1 | AA11: 1
A12: 8 | B12: 138 | C12: 3 | D12: 17 | E12: 6 | F12: 6 | N12: 1 | P12: 2
A13: 9 | B13: 310 | C13: 4 | D13: 7 | E13: 3 | F13: 3 | H13: 1 | J13: 1 | P13: 1 | Q13: 1 | R13: 75 | S13: 3 | V13: 1
B14: =SUM(B5:B13) -> 2767 | C14: =SUM(C5:C13) -> 36 | D14: UD | E14: =SUM(E5:E13) -> 38 | F14: =SUM(F5:F13) -> 36 | G14: =SUM(G5:G13) -> 1 | H14: =SUM(H5:H13) -> 5 | I14: =SUM(I5:I13) -> 1 | J14: =IF((A28=27),"",(SUM(J5:J13)/SUM(J5:L13))*100) -> 14.28571429 | K14: =IF((A28=27),"",(SUM(K5:K13)/SUM(J5:L13))*100) -> 71.42857143 | L14: =IF((A28=27),"",(SUM(L5:L13)/SUM(J5:L13))*100) -> 14.28571429 | M14: =SUM(M5:M13) -> 0 | N14: =SUM(N5:N13) -> 1 | O14: =SUM(O5:O13) -> 0 | P14: =SUM(P5:P13) -> 15 | Q14: =SUM(Q5:Q13) -> 6 | S14: =IF(Q14=0,0,SUM(S5:S13)/Q14) -> 4.333333333 | V14: =SUM(V5:V13) -> 11 | W14: =ColorFunction($E$30,$E$5:$E$13) -> 0 | X14: =ColorFunction($E$31,$E$5:$E$13) -> 1 | Y14: =ColorFunction($E$32,$E$5:$E$13) -> 0 | Z14: =ColorFunction($E$33,$E$5:$E$13) -> 1 | AA14: =SUM(AA5:AA13)/(9-Q14)*100 -> 66.66666667 | AB14: =COUNTIF(P5:P13,">2") -> 0 | AC14: =IF((G14=0),"",SUM(AC5:AC13)/G14*100) -> 100
A15: 10 | B15: 481 | C15: 5 | D15: 4 | E15: 4 | F15: 4 | G15: 1 | K15: 1 | N15: 1 | O15: 1 | P15: 1 | Q15: 1 | R15: 20 | S15: 3 | V15: =IF(Q15=0,"",P15) -> 1 | AA15: =IF(AND(Q15="",P15=1),1,"") ->  | AC15: =IF(AND(G15=""),"",SUM(K15)) -> 1
A16: 11 | B16: 319 | C16: 4 | D16: 16 | E16: 4 | F16: 4 | H16: 1 | K16: 1 | P16: 2 | Q16: 1 | R16: 124 | S16: 6 | V16: 2
A17: 12 | B17: 431 | C17: 5 | D17: 2 | E17: 5 | F17: 4 | G17: 1 | L17: 1 | P17: 2 | Q17: 1 | R17: 98 | S17: 8 | V17: 2 | AC17: 0
A18: 13 | B18: 122 | C18: 3 | D18: 18 | E18: 3 | F18: 3 | P18: 2 | Q18: 1 | R18: 105 | S18: 6 | V18: 2
A19: 14 | B19: 379 | C19: 4 | D19: 6 | E19: 4 | F19: 4 | G19: 1 | K19: 1 | P19: 2 | Q19: 1 | R19: 137 | S19: 5 | V19: 2 | AC19: 1
A20: 15 | B20: 316 | C20: 4 | D20: 8 | E20: 4 | F20: 4 | G20: 1 | J20: 1 | P20: 1 | AA20: 1 | AC20: 0
A21: 16 | B21: 322 | C21: 4 | D21: 14 | E21: 4 | F21: 4 | H21: 1 | K21: 1 | P21: 1 | AA21: 1
A22: 17 | B22: 345 | C22: 4 | D22: 10 | E22: 4 | F22: 4 | G22: 1 | K22: 1 | P22: 2 | Q22: 1 | R22: 125 | S22: 4 | V22: 2 | AC22: 1
A23: 18 | B23: 281 | C23: 4 | D23: 12 | E23: 4 | F23: 4 | H23: 1 | K23: 1 | P23: 2 | Q23: 1 | R23: 75 | S23: 4 | V23: 2
B24: =SUM(B15:B23) -> 2996 | C24: =SUM(C15:C23) -> 37 | D24: IND | E24: =SUM(E15:E23) -> 36 | F24: =SUM(F15:F23) -> 35 | G24: =SUM(G15:G23) -> 5 | H24: =SUM(H15:H23) -> 3 | I24: =SUM(I15:I23) -> 0 | J24: =IF((A29=27),"",(SUM(J15:J23)/SUM(J15:L23))*100) -> 12.5 | K24: =IF((A29=27),"",(SUM(K15:K23)/SUM(J15:L23))*100) -> 75 | L24: =IF((A29=27),"",(SUM(L15:L23)/SUM(J15:L23))*100) -> 12.5 | M24: =SUM(M15:M23) -> 0 | N24: =SUM(N15:N23) -> 1 | O24: =SUM(O15:O23) -> 1 | P24: =SUM(P15:P23) -> 15 | Q24: =SUM(Q15:Q23) -> 7 | S24: =IF(Q24=0,0,SUM(S15:S23)/Q24) -> 5.142857143 | V24: =SUM(V15:V23) -> 13 | W24: =ColorFunction($E$30,$E$15:$E$23) -> 0 | X24: =ColorFunction($E$31,$E$15:$E$23) -> 1 | Y24: =ColorFunction($E$32,$E$15:$E$23) -> 0 | Z24: =ColorFunction($E$33,$E$15:$E$23) -> 0 | AA24: =SUM(AA15:AA23)/(9-Q24)*100 -> 100 | AB24: =COUNTIF(P15:P23,">2") -> 0 | AC24: =IF((G24=0),"",SUM(AC15:AC23)/G24*100) -> 60
B25: =SUM(B24,B14) -> 5763 | C25: =SUM(C24,C14) -> 73 | D25: TOTAL | E25: =IF(E14=0,"0",(E24+E14)) -> 74 | F25: =SUM(F14,F24) -> 71 | G25: =SUM(G24,G14) -> 6 | H25: =SUM(H24,H14) -> 8 | I25: =SUM(I24,I14) -> 1 | J25: =IF((A28=27),"",(SUM(J14,J24)/2)) -> 13.39285714 | K25: =IF((A28=27),"",(SUM(K14,K24)/2)) -> 73.21428571 | L25: =IF((A28=27),"",(SUM(L14,L24)/2)) -> 13.39285714 | M25: =SUM(M24,M14) -> 0 | N25: =SUM(N24,N14) -> 2 | O25: =SUM(O24,O14) -> 1 | P25: =IF(P14+P24=0,"",SUM(P24,P14)) -> 30 | Q25: =IF(Q14+Q24=0,"",SUM(Q24,Q14)) -> 13 | S25: =IF(S14+S24=0,"",SUM(S24,S14)/2) -> 4.738095238 | T25: =IF(N25=0,"",(O25)/N25*100) -> 50 | U25: =IF(Q25="","",(Q25)/18*100) -> 72.22222222 | V25: =IF(Q25="","",(V14+V24)/Q25) -> 1.846153846 | W25: =SUM(W14,W24) -> 0 | X25: =SUM(X14,X24) -> 2 | Y25: =SUM(Y14,Y24) -> 0 | Z25: =SUM(Z14,Z24) -> 1 | AA25: =SUM(AA14,AA24)/2 -> 83.33333333 | AB25: =SUM(AB14,AB24) -> 0 | AC25: =SUM(AC24,AC14)/2 -> 80
E27: Udfyld alle grønne felter med 1 for positiv eller antal i tal
A28: =COUNTBLANK(I5:K13) -> 20 | W28: Approach
A29: =COUNTBLANK(I15:K23) -> 20 | E29: Udfyld følgende farver: | S29: Holes to par | W29: Længde (m) | X29: Antal | Y29: Afstand (m)
A30: =SUM(L5:L23) -> 16.28571429 | E30: Eagles | S30: Par 3 | T30: =SUMIF(C:C,"3",E:E)/COUNTIF(C:C,3) -> 4 | W30: 45-70 | X30: =COUNTIFS(R5:R23,">=45",R5:R23,"<=70") -> 1 | Y30: =IF(X30=0,"",AVERAGEIFS(S5:S23,R5:R23,">=45",R5:R23,"<=70")) -> 4
E31: Birdies | S31: Par 4 | T31: =SUMIF(C:C,"4",E:E)/COUNTIF(C:C,4) -> 3.909090909 | W31: 71-90 | X31: =COUNTIFS(R5:R23,">=71",R5:R23,"<=90") -> 2 | Y31: =IF(X31=0,"",AVERAGEIFS(S5:S23,R5:R23,">=71",R5:R23,"<=90")) -> 3.5
E32: Bogeys | S32: Par 5 | T32: =SUMIF(C:C,"5",E:E)/COUNTIF(C:C,5) -> 4.75 | W32: 91-115 | X32: =COUNTIFS(R5:R23,">=91",R5:R23,"<=115") -> 5 | Y32: =IF(X32=0,"",AVERAGEIFS(S5:S23,R5:R23,">=91",R5:R23,"<=115")) -> 6
E33: Doublebogeys eller værre | W33: 116-140 | X33: =COUNTIFS(R5:R23,">=116",R5:R23,"<=140") -> 3 | Y33: =IF(X33=0,"",AVERAGEIFS(S5:S23,R5:R23,">=116",R5:R23,"<=140")) -> 5
S34: First 4 | T34: =IF(E25="0","",SUM(E5:E8)-SUM(C5:C8)) -> 0 | W34: 141-160 | X34: =COUNTIFS(R5:R23,">=141",R5:R23,"<=161") -> 0 | Y34: =IF(X34=0,"",AVERAGEIFS(S5:S23,R5:R23,">=141",R5:R23,"<=160")) -> 
S35: Last 4 | T35: =IF(E25="0","",SUM(E20:E23)-SUM(C20:C23)) -> 0 | W35: 161-180 | X35: =COUNTIFS(R5:R23,">=161",R5:R23,"<=180") -> 0 | Y35: =IF(X35=0,"",AVERAGEIFS(S5:S23,R5:R23,">=161",R5:R23,"<=180")) -> 
W37: Putting
W38: Længde (m) | X38: Antal | Y38: Holet | Z38: Holet (%)
W39: under 1 m | X39: =COUNTIFS(S5:S23,">=0,1",S5:S23,"<=0,9") -> 0 | Y39: =IF(X39=0,"",COUNTIFS(P5:P23,"=1",S5:S23,"<1")) ->  | Z39: =IF(X39=0,"",Y39/X39*100) -> 
W40: 1 - 1,5 | X40: =COUNTIFS(S5:S23,">=1",S5:S23,"<=1,5") -> 0 | Y40: =IF(X40=0,"",COUNTIFS(P5:P23,"=1",S5:S23,">=1",S5:S23,"<=1,5")) ->  | Z40: =IF(X40=0,"",Y40/X40*100) -> 
W41: 1,5 - 3 | X41: =COUNTIFS(S5:S23,">=1,6",S5:S23,"<=3") -> 3 | Y41: =IF(X41=0,"",COUNTIFS(P5:P23,"=1",S5:S23,">=1,6",S5:S23,"<=3")) -> 2 | Z41: =IF(X41=0,"",Y41/X41*100) -> 66.66666667
W42: 3 - 4,5 | X42: =COUNTIFS(S5:S23,">=3,1",S5:S23,"<=4,5") -> 4 | Y42: =IF(X42=0,"",COUNTIFS(P5:P23,"=1",S5:S23,">=3,1",S5:S23,"<=4,5")) -> 0 | Z42: 0
W43: 4,5 - 6 | X43: =COUNTIFS(S5:S23,">=4,6",S5:S23,"<=6") -> 6 | Y43: =IF(X43=0,"",COUNTIFS(P5:P23,"=1",S5:S23,">=4,6",S5:S23,"<=6")) -> 0 | Z43: 0
W44: over 6 meter | X44: =COUNTIFS(S5:S23,">6") -> 1 | Y44: =IF(X44=0,"",COUNTIFS(P5:P23,"=1",S5:S23,">6")) -> 0 | Z44: 0

Sheet Runde 11
A1: Korsør Golf Klub - 18 huller - Gul tee | J1: =IF(E25="0","0","1") -> 1 | K1: Dato: | L1: 2010-06-29 | N1: Handicap: | O1: 4.3 | Q1: ATS: | R1: 3 | T1: Vejr: | U1: Solrigt, 25 grader, jævn vind | W1: Turnering: | X1: Tirsdagsklub
H3: Tee shot | K3: Fairway hits i % | N3: Bunker | R3: Approach shots
A4: Hul | B4: Gul tee | C4: Par | D4: HCP | E4: Score | F4: Netto | G4: Driver | H4: Wood | I4: Jern | J4: Venstre | K4: Midt | L4: Højre | M4: FB | N4: GB | O4: SS | P4: Putts | Q4: GIR | R4: Dist. to pin (m) | S4: Dist. to hole (m) | T4: % SS | U4: % GIR | V4: Putts/GIR | W4: Eagles | X4: Birdies | Y4: Bogeys | Z4: Værre | AA4: % Scramble | AB4: 3+ Putts | AC4: % Driver/Fairwayhits
A5: 1 | B5: 307 | C5: 4 | D5: 11 | E5: 6 | F5: 6 | G5: 1 | J5: 1 | P5: 2 | V5: =IF(Q5=0,"",P5) ->  | AA5: =IF(AND(Q5="",P5=1),1,"") ->  | AC5: =IF(AND(G5=""),"",SUM(K5)) -> 0
A6: 2 | B6: 323 | C6: 4 | D6: 5 | E6: 3 | F6: 3 | G6: 1 | J6: 1 | P6: 1 | Q6: 1 | R6: 104 | S6: 0.3 | V6: 1 | AC6: 0
A7: 3 | B7: 138 | C7: 3 | D7: 15 | E7: 6 | F7: 6 | P7: 2
A8: 4 | B8: 310 | C8: 4 | D8: 13 | E8: 4 | F8: 4 | H8: 1 | K8: 1 | P8: 1 | AA8: 1
A9: 5 | B9: 431 | C9: 5 | D9: 3 | E9: 6 | F9: 5 | G9: 1 | K9: 1 | P9: 2 | AC9: 1
A10: 6 | B10: 312 | C10: 4 | D10: 9 | E10: 3 | F10: 3 | G10: 1 | K10: 1 | P10: 1 | Q10: 1 | R10: 35 | S10: 1.5 | V10: 1 | AC10: 1
A11: 7 | B11: 498 | C11: 5 | D11: 1 | E11: 5 | F11: 4 | I11: 1 | K11: 1 | P11: 2 | Q11: 1 | R11: 88 | S11: 6 | V11: 2
A12: 8 | B12: 138 | C12: 3 | D12: 17 | E12: 4 | F12: 4 | N12: 1 | P12: 2
A13: 9 | B13: 310 | C13: 4 | D13: 7 | E13: 5 | F13: 5 | H13: 1 | J13: 1 | P13: 2
B14: =SUM(B5:B13) -> 2767 | C14: =SUM(C5:C13) -> 36 | D14: UD | E14: =SUM(E5:E13) -> 42 | F14: =SUM(F5:F13) -> 40 | G14: =SUM(G5:G13) -> 4 | H14: =SUM(H5:H13) -> 2 | I14: =SUM(I5:I13) -> 1 | J14: =IF((A28=27),"",(SUM(J5:J13)/SUM(J5:L13))*100) -> 42.85714286 | K14: =IF((A28=27),"",(SUM(K5:K13)/SUM(J5:L13))*100) -> 57.14285714 | L14: =IF((A28=27),"",(SUM(L5:L13)/SUM(J5:L13))*100) -> 0 | M14: =SUM(M5:M13) -> 0 | N14: =SUM(N5:N13) -> 1 | O14: =SUM(O5:O13) -> 0 | P14: =SUM(P5:P13) -> 15 | Q14: =SUM(Q5:Q13) -> 3 | S14: =IF(Q14=0,0,SUM(S5:S13)/Q14) -> 2.6 | V14: =SUM(V5:V13) -> 4 | W14: =ColorFunction($E$30,$E$5:$E$13) -> 0 | X14: =ColorFunction($E$31,$E$5:$E$13) -> 2 | Y14: =ColorFunction($E$32,$E$5:$E$13) -> 3 | Z14: =ColorFunction($E$33,$E$5:$E$13) -> 2 | AA14: =SUM(AA5:AA13)/(9-Q14)*100 -> 16.66666667 | AB14: =COUNTIF(P5:P13,">2") -> 0 | AC14: =IF((G14=0),"",SUM(AC5:AC13)/G14*100) -> 50
A15: 10 | B15: 481 | C15: 5 | D15: 4 | E15: 5 | F15: 5 | G15: 1 | L15: 1 | P15: 2 | Q15: 1 | R15: 42 | S15: 3 | V15: =IF(Q15=0,"",P15) -> 2 | AA15: =IF(AND(Q15="",P15=1),1,"") ->  | AC15: =IF(AND(G15=""),"",SUM(K15)) -> 0
A16: 11 | B16: 319 | C16: 4 | D16: 16 | E16: 4 | F16: 4 | H16: 1 | K16: 1 | P16: 2 | Q16: 1 | R16: 91 | S16: 4 | V16: 2
A17: 12 | B17: 431 | C17: 5 | D17: 2 | E17: 5 | F17: 4 | G17: 1 | L17: 1 | M17: 1 | P17: 2 | Q17: 1 | R17: 149 | S17: 3.5 | V17: 2 | AC17: 0
A18: 13 | B18: 122 | C18: 3 | D18: 18 | E18: 2 | F18: 2 | P18: 1 | Q18: 1 | R18: 127 | S18: 2.5 | V18: 1
A19: 14 | B19: 379 | C19: 4 | D19: 6 | E19: 5 | F19: 5 | G19: 1 | J19: 1 | P19: 2 | AC19: 0
A20: 15 | B20: 316 | C20: 4 | D20: 8 | E20: 4 | F20: 4 | G20: 1 | K20: 1 | P20: 2 | Q20: 1 | R20: 64 | S20: 4 | V20: 2 | AC20: 1
A21: 16 | B21: 322 | C21: 4 | D21: 14 | E21: 3 | F21: 3 | G21: 1 | L21: 1 | P21: 1 | Q21: 1 | R21: 89 | S21: 1 | V21: 1 | AC21: 0
A22: 17 | B22: 345 | C22: 4 | D22: 10 | E22: 7 | F22: 7 | G22: 1 | J22: 1 | P22: 2 | AC22: 0
A23: 18 | B23: 281 | C23: 4 | D23: 12 | E23: 4 | F23: 4 | H23: 1 | K23: 1 | P23: 2 | Q23: 1 | R23: 95 | S23: 4 | V23: 2
B24: =SUM(B15:B23) -> 2996 | C24: =SUM(C15:C23) -> 37 | D24: IND | E24: =SUM(E15:E23) -> 39 | F24: =SUM(F15:F23) -> 38 | G24: =SUM(G15:G23) -> 6 | H24: =SUM(H15:H23) -> 2 | I24: =SUM(I15:I23) -> 0 | J24: =IF((A29=27),"",(SUM(J15:J23)/SUM(J15:L23))*100) -> 25 | K24: =IF((A29=27),"",(SUM(K15:K23)/SUM(J15:L23))*100) -> 37.5 | L24: =IF((A29=27),"",(SUM(L15:L23)/SUM(J15:L23))*100) -> 37.5 | M24: =SUM(M15:M23) -> 1 | N24: =SUM(N15:N23) -> 0 | O24: =SUM(O15:O23) -> 0 | P24: =SUM(P15:P23) -> 16 | Q24: =SUM(Q15:Q23) -> 7 | S24: =IF(Q24=0,0,SUM(S15:S23)/Q24) -> 3.142857143 | V24: =SUM(V15:V23) -> 12 | W24: =ColorFunction($E$30,$E$15:$E$23) -> 0 | X24: =ColorFunction($E$31,$E$15:$E$23) -> 2 | Y24: =ColorFunction($E$32,$E$15:$E$23) -> 1 | Z24: =ColorFunction($E$33,$E$15:$E$23) -> 1 | AA24: =SUM(AA15:AA23)/(9-Q24)*100 -> 0 | AB24: =COUNTIF(P15:P23,">2") -> 0 | AC24: =IF((G24=0),"",SUM(AC15:AC23)/G24*100) -> 16.66666667
B25: =SUM(B24,B14) -> 5763 | C25: =SUM(C24,C14) -> 73 | D25: TOTAL | E25: =IF(E14=0,"0",(E24+E14)) -> 81 | F25: =SUM(F14,F24) -> 78 | G25: =SUM(G24,G14) -> 10 | H25: =SUM(H24,H14) -> 4 | I25: =SUM(I24,I14) -> 1 | J25: =IF((A28=27),"",(SUM(J14,J24)/2)) -> 33.92857143 | K25: =IF((A28=27),"",(SUM(K14,K24)/2)) -> 47.32142857 | L25: =IF((A28=27),"",(SUM(L14,L24)/2)) -> 18.75 | M25: =SUM(M24,M14) -> 1 | N25: =SUM(N24,N14) -> 1 | O25: =SUM(O24,O14) -> 0 | P25: =IF(P14+P24=0,"",SUM(P24,P14)) -> 31 | Q25: =IF(Q14+Q24=0,"",SUM(Q24,Q14)) -> 10 | S25: =IF(S14+S24=0,"",SUM(S24,S14)/2) -> 2.871428571 | T25: =IF(N25=0,"",(O25)/N25*100) -> 0 | U25: =IF(Q25="","",(Q25)/18*100) -> 55.55555556 | V25: =IF(Q25="","",(V14+V24)/Q25) -> 1.6 | W25: =SUM(W14,W24) -> 0 | X25: =SUM(X14,X24) -> 4 | Y25: =SUM(Y14,Y24) -> 4 | Z25: =SUM(Z14,Z24) -> 3 | AA25: =SUM(AA14,AA24)/2 -> 8.333333333 | AB25: =SUM(AB14,AB24) -> 0 | AC25: =SUM(AC24,AC14)/2 -> 33.33333333
E27: Udfyld alle grønne felter med 1 for positiv eller antal i tal
A28: =COUNTBLANK(I5:K13) -> 19 | W28: Approach
A29: =COUNTBLANK(I15:K23) -> 22 | E29: Udfyld følgende farver: | S29: Holes to par | W29: Længde (m) | X29: Antal | Y29: Afstand (m)
A30: =SUM(L5:L23) -> 3 | E30: Eagles | S30: Par 3 | T30: =SUMIF(C:C,"3",E:E)/COUNTIF(C:C,3) -> 4 | W30: 45-70 | X30: =COUNTIFS(R5:R23,">=45",R5:R23,"<=70") -> 1 | Y30: =IF(X30=0,"",AVERAGEIFS(S5:S23,R5:R23,">=45",R5:R23,"<=70")) -> 4
E31: Birdies | S31: Par 4 | T31: =SUMIF(C:C,"4",E:E)/COUNTIF(C:C,4) -> 4.363636364 | W31: 71-90 | X31: =COUNTIFS(R5:R23,">=71",R5:R23,"<=90") -> 2 | Y31: =IF(X31=0,"",AVERAGEIFS(S5:S23,R5:R23,">=71",R5:R23,"<=90")) -> 3.5
E32: Bogeys | S32: Par 5 | T32: =SUMIF(C:C,"5",E:E)/COUNTIF(C:C,5) -> 5.25 | W32: 91-115 | X32: =COUNTIFS(R5:R23,">=91",R5:R23,"<=115") -> 3 | Y32: =IF(X32=0,"",AVERAGEIFS(S5:S23,R5:R23,">=91",R5:R23,"<=115")) -> 2.766666667
E33: Doublebogeys eller værre | W33: 116-140 | X33: =COUNTIFS(R5:R23,">=116",R5:R23,"<=140") -> 1 | Y33: =IF(X33=0,"",AVERAGEIFS(S5:S23,R5:R23,">=116",R5:R23,"<=140")) -> 2.5
S34: First 4 | T34: =IF(E25="0","",SUM(E5:E8)-SUM(C5:C8)) -> 4 | W34: 141-160 | X34: =COUNTIFS(R5:R23,">=141",R5:R23,"<=161") -> 1 | Y34: =IF(X34=0,"",AVERAGEIFS(S5:S23,R5:R23,">=141",R5:R23,"<=160")) -> 3.5
S35: Last 4 | T35: =IF(E25="0","",SUM(E20:E23)-SUM(C20:C23)) -> 2 | W35: 161-180 | X35: =COUNTIFS(R5:R23,">=161",R5:R23,"<=180") -> 0 | Y35: =IF(X35=0,"",AVERAGEIFS(S5:S23,R5:R23,">=161",R5:R23,"<=180")) -> 
W37: Putting
W38: Længde (m) | X38: Antal | Y38: Holet | Z38: Holet (%)
W39: under 1 m | X39: =COUNTIFS(S5:S23,">=0,1",S5:S23,"<=0,9") -> 1 | Y39: =IF(X39=0,"",COUNTIFS(P5:P23,"=1",S5:S23,"<1")) -> 1 | Z39: =IF(X39=0,"",Y39/X39*100) -> 100
W40: 1 - 1,5 | X40: =COUNTIFS(S5:S23,">=1",S5:S23,"<=1,5") -> 2 | Y40: =IF(X40=0,"",COUNTIFS(P5:P23,"=1",S5:S23,">=1",S5:S23,"<=1,5")) -> 2 | Z40: =IF(X40=0,"",Y40/X40*100) -> 100
W41: 1,5 - 3 | X41: =COUNTIFS(S5:S23,">=1,6",S5:S23,"<=3") -> 3 | Y41: =IF(X41=0,"",COUNTIFS(P5:P23,"=1",S5:S23,">=1,6",S5:S23,"<=3")) -> 1 | Z41: =IF(X41=0,"",Y41/X41*100) -> 33.33333333
W42: 3 - 4,5 | X42: =COUNTIFS(S5:S23,">=3,1",S5:S23,"<=4,5") -> 4 | Y42: =IF(X42=0,"",COUNTIFS(P5:P23,"=1",S5:S23,">=3,1",S5:S23,"<=4,5")) -> 0 | Z42: 0
W43: 4,5 - 6 | X43: =COUNTIFS(S5:S23,">=4,6",S5:S23,"<=6") -> 1 | Y43: =IF(X43=0,"",COUNTIFS(P5:P23,"=1",S5:S23,">=4,6",S5:S23,"<=6")) -> 0 | Z43: 0
W44: over 6 meter | X44: =COUNTIFS(S5:S23,">6") -> 0 | Y44: =IF(X44=0,"",COUNTIFS(P5:P23,"=1",S5:S23,">6")) -> 

Sheet Runde 12
A1: Korsør Golf Klub - 18 huller - Gul tee | J1: =IF(E25="0","0","1") -> 1 | K1: Dato: | L1: 2010-07-03 | N1: Handicap: | O1: 4.5 | Q1: ATS: | R1: 3 | T1: Vejr: | U1: Sol, 25 grader, jævn vind | W1: Turnering: | X1: GTS sponsorturnering
H3: Tee shot | K3: Fairway hits i % | N3: Bunker | R3: Approach shots
A4: Hul | B4: Gul tee | C4: Par | D4: HCP | E4: Score | F4: Netto | G4: Driver | H4: Wood | I4: Jern | J4: Venstre | K4: Midt | L4: Højre | M4: FB | N4: GB | O4: SS | P4: Putts | Q4: GIR | R4: Dist. to pin (m) | S4: Dist. to hole (m) | T4: % SS | U4: % GIR | V4: Putts/GIR | W4: Eagles | X4: Birdies | Y4: Bogeys | Z4: Værre | AA4: % Scramble | AB4: 3+ Putts | AC4: % Driver/Fairwayhits
A5: 1 | B5: 307 | C5: 4 | D5: 11 | E5: 4 | F5: 4 | G5: 1 | K5: 1 | P5: 2 | Q5: 1 | R5: 53 | S5: 5 | V5: =IF(Q5=0,"",P5) -> 2 | AA5: =IF(AND(Q5="",P5=1),1,"") ->  | AC5: =IF(AND(G5=""),"",SUM(K5)) -> 1
A6: 2 | B6: 323 | C6: 4 | D6: 5 | E6: 4 | F6: 4 | G6: 1 | K6: 1 | P6: 2 | Q6: 1 | R6: 85 | S6: 6 | V6: 2 | AC6: 1
A7: 3 | B7: 138 | C7: 3 | D7: 15 | E7: 4 | F7: 4 | P7: 2
A8: 4 | B8: 310 | C8: 4 | D8: 13 | E8: 5 | F8: 5 | H8: 1 | L8: 1 | P8: 2
A9: 5 | B9: 431 | C9: 5 | D9: 3 | E9: 7 | F9: 6 | G9: 1 | K9: 1 | N9: 1 | P9: 1 | AA9: 1 | AC9: 1
A10: 6 | B10: 312 | C10: 4 | D10: 9 | E10: 4 | F10: 4 | G10: 1 | L10: 1 | P10: 1 | AA10: 1 | AC10: 0
A11: 7 | B11: 498 | C11: 5 | D11: 1 | E11: 5 | F11: 4 | I11: 1 | K11: 1 | P11: 2 | Q11: 1 | R11: 124 | S11: 8 | V11: 2
A12: 8 | B12: 138 | C12: 3 | D12: 17 | E12: 3 | F12: 3 | P12: 2 | Q12: 1 | R12: 127 | S12: 4 | V12: 2
A13: 9 | B13: 310 | C13: 4 | D13: 7 | E13: 6 | F13: 6 | H13: 1 | K13: 1 | P13: 2
B14: =SUM(B5:B13) -> 2767 | C14: =SUM(C5:C13) -> 36 | D14: UD | E14: =SUM(E5:E13) -> 42 | F14: =SUM(F5:F13) -> 40 | G14: =SUM(G5:G13) -> 4 | H14: =SUM(H5:H13) -> 2 | I14: =SUM(I5:I13) -> 1 | J14: =IF((A28=27),"",(SUM(J5:J13)/SUM(J5:L13))*100) -> 0 | K14: =IF((A28=27),"",(SUM(K5:K13)/SUM(J5:L13))*100) -> 71.42857143 | L14: =IF((A28=27),"",(SUM(L5:L13)/SUM(J5:L13))*100) -> 28.57142857 | M14: =SUM(M5:M13) -> 0 | N14: =SUM(N5:N13) -> 1 | O14: =SUM(O5:O13) -> 0 | P14: =SUM(P5:P13) -> 16 | Q14: =SUM(Q5:Q13) -> 4 | S14: =IF(Q14=0,0,SUM(S5:S13)/Q14) -> 5.75 | V14: =SUM(V5:V13) -> 8 | W14: =ColorFunction($E$30,$E$5:$E$13) -> 0 | X14: =ColorFunction($E$31,$E$5:$E$13) -> 0 | Y14: =ColorFunction($E$32,$E$5:$E$13) -> 2 | Z14: =ColorFunction($E$33,$E$5:$E$13) -> 2 | AA14: =SUM(AA5:AA13)/(9-Q14)*100 -> 40 | AB14: =COUNTIF(P5:P13,">2") -> 0 | AC14: =IF((G14=0),"",SUM(AC5:AC13)/G14*100) -> 75
A15: 10 | B15: 481 | C15: 5 | D15: 4 | E15: 4 | F15: 4 | G15: 1 | K15: 1 | P15: 1 | Q15: 1 | R15: 30 | S15: 2 | V15: =IF(Q15=0,"",P15) -> 1 | AA15: =IF(AND(Q15="",P15=1),1,"") ->  | AC15: =IF(AND(G15=""),"",SUM(K15)) -> 1
A16: 11 | B16: 319 | C16: 4 | D16: 16 | E16: 3 | F16: 3 | H16: 1 | K16: 1 | P16: 1 | Q16: 1 | R16: 116 | S16: 3.5 | V16: 1
A17: 12 | B17: 431 | C17: 5 | D17: 2 | E17: 4 | F17: 3 | G17: 1 | K17: 1 | P17: 1 | Q17: 1 | R17: 10 | S17: 1 | V17: 1 | AC17: 1
A18: 13 | B18: 122 | C18: 3 | D18: 18 | E18: 2 | F18: 2 | P18: 1 | Q18: 1 | R18: 124 | S18: 4 | V18: 1
A19: 14 | B19: 379 | C19: 4 | D19: 6 | E19: 5 | F19: 5 | G19: 1 | J19: 1 | P19: 2 | AC19: 0
A20: 15 | B20: 316 | C20: 4 | D20: 8 | E20: 4 | F20: 4 | G20: 1 | J20: 1 | P20: 1 | AA20: 1 | AC20: 0
A21: 16 | B21: 322 | C21: 4 | D21: 14 | E21: 3 | F21: 3 | H21: 1 | K21: 1 | P21: 1 | Q21: 1 | R21: 105 | S21: 1 | V21: 1
A22: 17 | B22: 345 | C22: 4 | D22: 10 | E22: 3 | F22: 3 | H22: 1 | K22: 1 | P22: 1 | Q22: 1 | R22: 148 | S22: 3 | V22: 1
A23: 18 | B23: 281 | C23: 4 | D23: 12 | E23: 4 | F23: 4 | I23: 1 | K23: 1 | P23: 2 | Q23: 1 | R23: 95 | S23: 5 | V23: 2
B24: =SUM(B15:B23) -> 2996 | C24: =SUM(C15:C23) -> 37 | D24: IND | E24: =SUM(E15:E23) -> 32 | F24: =SUM(F15:F23) -> 31 | G24: =SUM(G15:G23) -> 4 | H24: =SUM(H15:H23) -> 3 | I24: =SUM(I15:I23) -> 1 | J24: =IF((A29=27),"",(SUM(J15:J23)/SUM(J15:L23))*100) -> 25 | K24: =IF((A29=27),"",(SUM(K15:K23)/SUM(J15:L23))*100) -> 75 | L24: =IF((A29=27),"",(SUM(L15:L23)/SUM(J15:L23))*100) -> 0 | M24: =SUM(M15:M23) -> 0 | N24: =SUM(N15:N23) -> 0 | O24: =SUM(O15:O23) -> 0 | P24: =SUM(P15:P23) -> 11 | Q24: =SUM(Q15:Q23) -> 7 | S24: =IF(Q24=0,0,SUM(S15:S23)/Q24) -> 2.785714286 | V24: =SUM(V15:V23) -> 8 | W24: =ColorFunction($E$30,$E$15:$E$23) -> 0 | X24: =ColorFunction($E$31,$E$15:$E$23) -> 6 | Y24: =ColorFunction($E$32,$E$15:$E$23) -> 1 | Z24: =ColorFunction($E$33,$E$15:$E$23) -> 0 | AA24: =SUM(AA15:AA23)/(9-Q24)*100 -> 50 | AB24: =COUNTIF(P15:P23,">2") -> 0 | AC24: =IF((G24=0),"",SUM(AC15:AC23)/G24*100) -> 50
B25: =SUM(B24,B14) -> 5763 | C25: =SUM(C24,C14) -> 73 | D25: TOTAL | E25: =IF(E14=0,"0",(E24+E14)) -> 74 | F25: =SUM(F14,F24) -> 71 | G25: =SUM(G24,G14) -> 8 | H25: =SUM(H24,H14) -> 5 | I25: =SUM(I24,I14) -> 2 | J25: =IF((A28=27),"",(SUM(J14,J24)/2)) -> 12.5 | K25: =IF((A28=27),"",(SUM(K14,K24)/2)) -> 73.21428571 | L25: =IF((A28=27),"",(SUM(L14,L24)/2)) -> 14.28571429 | M25: =SUM(M24,M14) -> 0 | N25: =SUM(N24,N14) -> 1 | O25: =SUM(O24,O14) -> 0 | P25: =IF(P14+P24=0,"",SUM(P24,P14)) -> 27 | Q25: =IF(Q14+Q24=0,"",SUM(Q24,Q14)) -> 11 | S25: =IF(S14+S24=0,"",SUM(S24,S14)/2) -> 4.267857143 | T25: =IF(N25=0,"",(O25)/N25*100) -> 0 | U25: =IF(Q25="","",(Q25)/18*100) -> 61.11111111 | V25: =IF(Q25="","",(V14+V24)/Q25) -> 1.454545455 | W25: =SUM(W14,W24) -> 0 | X25: =SUM(X14,X24) -> 6 | Y25: =SUM(Y14,Y24) -> 3 | Z25: =SUM(Z14,Z24) -> 2 | AA25: =SUM(AA14,AA24)/2 -> 45 | AB25: =SUM(AB14,AB24) -> 0 | AC25: =SUM(AC24,AC14)/2 -> 62.5
E27: Udfyld alle grønne felter med 1 for positiv eller antal i tal
A28: =COUNTBLANK(I5:K13) -> 21 | W28: Approach
A29: =COUNTBLANK(I15:K23) -> 18 | E29: Udfyld følgende farver: | S29: Holes to par | W29: Længde (m) | X29: Antal | Y29: Afstand (m)
A30: =SUM(L5:L23) -> 30.57142857 | E30: Eagles | S30: Par 3 | T30: =SUMIF(C:C,"3",E:E)/COUNTIF(C:C,3) -> 3 | W30: 45-70 | X30: =COUNTIFS(R5:R23,">=45",R5:R23,"<=70") -> 1 | Y30: =IF(X30=0,"",AVERAGEIFS(S5:S23,R5:R23,">=45",R5:R23,"<=70")) -> 5
E31: Birdies | S31: Par 4 | T31: =SUMIF(C:C,"4",E:E)/COUNTIF(C:C,4) -> 4.090909091 | W31: 71-90 | X31: =COUNTIFS(R5:R23,">=71",R5:R23,"<=90") -> 1 | Y31: =IF(X31=0,"",AVERAGEIFS(S5:S23,R5:R23,">=71",R5:R23,"<=90")) -> 6
E32: Bogeys | S32: Par 5 | T32: =SUMIF(C:C,"5",E:E)/COUNTIF(C:C,5) -> 5 | W32: 91-115 | X32: =COUNTIFS(R5:R23,">=91",R5:R23,"<=115") -> 2 | Y32: =IF(X32=0,"",AVERAGEIFS(S5:S23,R5:R23,">=91",R5:R23,"<=115")) -> 3
E33: Doublebogeys eller værre | W33: 116-140 | X33: =COUNTIFS(R5:R23,">=116",R5:R23,"<=140") -> 4 | Y33: =IF(X33=0,"",AVERAGEIFS(S5:S23,R5:R23,">=116",R5:R23,"<=140")) -> 4.875
S34: First 4 | T34: =IF(E25="0","",SUM(E5:E8)-SUM(C5:C8)) -> 2 | W34: 141-160 | X34: =COUNTIFS(R5:R23,">=141",R5:R23,"<=161") -> 1 | Y34: =IF(X34=0,"",AVERAGEIFS(S5:S23,R5:R23,">=141",R5:R23,"<=160")) -> 3
S35: Last 4 | T35: =IF(E25="0","",SUM(E20:E23)-SUM(C20:C23)) -> -2 | W35: 161-180 | X35: =COUNTIFS(R5:R23,">=161",R5:R23,"<=180") -> 0 | Y35: =IF(X35=0,"",AVERAGEIFS(S5:S23,R5:R23,">=161",R5:R23,"<=180")) -> 
W37: Putting
W38: Længde (m) | X38: Antal | Y38: Holet | Z38: Holet (%)
W39: under 1 m | X39: =COUNTIFS(S5:S23,">=0,1",S5:S23,"<=0,9") -> 0 | Y39: =IF(X39=0,"",COUNTIFS(P5:P23,"=1",S5:S23,"<1")) ->  | Z39: =IF(X39=0,"",Y39/X39*100) -> 
W40: 1 - 1,5 | X40: =COUNTIFS(S5:S23,">=1",S5:S23,"<=1,5") -> 2 | Y40: =IF(X40=0,"",COUNTIFS(P5:P23,"=1",S5:S23,">=1",S5:S23,"<=1,5")) -> 2 | Z40: =IF(X40=0,"",Y40/X40*100) -> 100
W41: 1,5 - 3 | X41: =COUNTIFS(S5:S23,">=1,6",S5:S23,"<=3") -> 2 | Y41: =IF(X41=0,"",COUNTIFS(P5:P23,"=1",S5:S23,">=1,6",S5:S23,"<=3")) -> 2 | Z41: =IF(X41=0,"",Y41/X41*100) -> 100
W42: 3 - 4,5 | X42: =COUNTIFS(S5:S23,">=3,1",S5:S23,"<=4,5") -> 3 | Y42: =IF(X42=0,"",COUNTIFS(P5:P23,"=1",S5:S23,">=3,1",S5:S23,"<=4,5")) -> 2 | Z42: 66.66666667
W43: 4,5 - 6 | X43: =COUNTIFS(S5:S23,">=4,6",S5:S23,"<=6") -> 4 | Y43: =IF(X43=0,"",COUNTIFS(P5:P23,"=1",S5:S23,">=4,6",S5:S23,"<=6")) -> 0 | Z43: 0
W44: over 6 meter | X44: =COUNTIFS(S5:S23,">6") -> 1 | Y44: =IF(X44=0,"",COUNTIFS(P5:P23,"=1",S5:S23,">6")) -> 0 | Z44: 0

Sheet Runde 13
A1: Korsør Golf Klub - 18 huller - Hvid tee | J1: =IF(E25="0","0","1") -> 1 | K1: Dato: | L1: 07-07-2010* | N1: Handicap: | O1: 4.4 | Q1: ATS: | R1: 5 | T1: Vejr: | U1: Sol, hård vind og 20 grader | W1: Turnering: | X1: Tirsdagsklub
H3: Tee shot | K3: Fairway hits i % | N3: Bunker | R3: Approach shots
A4: Hul | B4: Gul tee | C4: Par | D4: HCP | E4: Score | F4: Netto | G4: Driver | H4: Wood | I4: Jern | J4: Venstre | K4: Midt | L4: Højre | M4: FB | N4: GB | O4: SS | P4: Putts | Q4: GIR | R4: Dist. to pin (m) | S4: Dist. to hole (m) | T4: % SS | U4: % GIR | V4: Putts/GIR | W4: Eagles | X4: Birdies | Y4: Bogeys | Z4: Værre | AA4: % Scramble | AB4: 3+ Putts | AC4: % Driver/Fairwayhits
A5: 1 | B5: 313 | C5: 4 | D5: 11 | E5: 3 | F5: 3 | G5: 1 | K5: 1 | P5: 1 | Q5: 1 | R5: 60 | S5: 3 | V5: =IF(Q5=0,"",P5) -> 1 | AA5: =IF(AND(Q5="",P5=1),1,"") ->  | AC5: =IF(AND(G5=""),"",SUM(K5)) -> 1
A6: 2 | B6: 340 | C6: 4 | D6: 5 | E6: 4 | F6: 3 | G6: 1 | K6: 1 | P6: 1 | AA6: 1 | AC6: 1
A7: 3 | B7: 143 | C7: 3 | D7: 15 | E7: 3 | F7: 3 | P7: 1 | AA7: 1
A8: 4 | B8: 335 | C8: 4 | D8: 13 | E8: 4 | F8: 4 | H8: 1 | K8: 1 | P8: 1 | AA8: 1
A9: 5 | B9: 443 | C9: 5 | D9: 3 | E9: 4 | F9: 3 | G9: 1 | K9: 1 | P9: 1 | Q9: 1 | R9: 15 | S9: 2 | V9: 1 | AC9: 1
A10: 6 | B10: 319 | C10: 4 | D10: 9 | E10: 4 | F10: 4 | G10: 1 | K10: 1 | P10: 2 | Q10: 1 | R10: 105 | S10: 5 | V10: 2 | AC10: 1
A11: 7 | B11: 555 | C11: 5 | D11: 1 | E11: 5 | F11: 4 | H11: 1 | L11: 1 | P11: 2 | Q11: 1 | R11: 200 | S11: 14 | V11: 2
A12: 8 | B12: 143 | C12: 3 | D12: 17 | E12: 5 | F12: 5 | N12: 1 | P12: 2
A13: 9 | B13: 320 | C13: 4 | D13: 7 | E13: 4 | F13: 4 | H13: 1 | J13: 1 | P13: 2 | Q13: 1 | R13: 132 | S13: 5 | V13: 2
B14: =SUM(B5:B13) -> 2911 | C14: =SUM(C5:C13) -> 36 | D14: UD | E14: =SUM(E5:E13) -> 36 | F14: =SUM(F5:F13) -> 33 | G14: =SUM(G5:G13) -> 4 | H14: =SUM(H5:H13) -> 3 | I14: =SUM(I5:I13) -> 0 | J14: =IF((A28=27),"",(SUM(J5:J13)/SUM(J5:L13))*100) -> 14.28571429 | K14: =IF((A28=27),"",(SUM(K5:K13)/SUM(J5:L13))*100) -> 71.42857143 | L14: =IF((A28=27),"",(SUM(L5:L13)/SUM(J5:L13))*100) -> 14.28571429 | M14: =SUM(M5:M13) -> 0 | N14: =SUM(N5:N13) -> 1 | O14: =SUM(O5:O13) -> 0 | P14: =SUM(P5:P13) -> 13 | Q14: =SUM(Q5:Q13) -> 5 | S14: =IF(Q14=0,0,SUM(S5:S13)/Q14) -> 5.8 | V14: =SUM(V5:V13) -> 8 | W14: =ColorFunction($E$30,$E$5:$E$13) -> 0 | X14: =ColorFunction($E$31,$E$5:$E$13) -> 2 | Y14: =ColorFunction($E$32,$E$5:$E$13) -> 0 | Z14: =ColorFunction($E$33,$E$5:$E$13) -> 1 | AA14: =SUM(AA5:AA13)/(9-Q14)*100 -> 75 | AB14: =COUNTIF(P5:P13,">2") -> 0 | AC14: =IF((G14=0),"",SUM(AC5:AC13)/G14*100) -> 100
A15: 10 | B15: 490 | C15: 5 | D15: 4 | E15: 5 | F15: 4 | G15: 1 | K15: 1 | P15: 2 | Q15: 1 | R15: 40 | S15: 3 | V15: =IF(Q15=0,"",P15) -> 2 | AA15: =IF(AND(Q15="",P15=1),1,"") ->  | AC15: =IF(AND(G15=""),"",SUM(K15)) -> 1
A16: 11 | B16: 330 | C16: 4 | D16: 16 | E16: 4 | F16: 4 | H16: 1 | K16: 1 | P16: 2 | Q16: 1 | R16: 131 | S16: 5 | V16: 2
A17: 12 | B17: 451 | C17: 5 | D17: 2 | E17: 5 | F17: 4 | G17: 1 | K17: 1 | P17: 2 | Q17: 1 | R17: 20 | S17: 1.5 | V17: 2 | AC17: 1
A18: 13 | B18: 140 | C18: 3 | D18: 18 | E18: 4 | F18: 4 | P18: 3 | Q18: 1 | R18: 141 | S18: 7 | V18: 3
A19: 14 | B19: 383 | C19: 4 | D19: 6 | E19: 5 | F19: 5 | G19: 1 | L19: 1 | P19: 2 | AC19: 0
A20: 15 | B20: 332 | C20: 4 | D20: 8 | E20: 3 | F20: 3 | G20: 1 | K20: 1 | P20: 1 | Q20: 1 | R20: 128 | S20: 6 | V20: 1 | AC20: 1
A21: 16 | B21: 334 | C21: 4 | D21: 14 | E21: 5 | F21: 5 | G21: 1 | K21: 1 | N21: 1 | P21: 2 | AC21: 1
A22: 17 | B22: 368 | C22: 4 | D22: 10 | E22: 4 | F22: 4 | G22: 1 | K22: 1 | P22: 2 | Q22: 1 | R22: 152 | S22: 8 | V22: 2 | AC22: 1
A23: 18 | B23: 299 | C23: 4 | D23: 12 | E23: 3 | F23: 3 | H23: 1 | K23: 1 | P23: 1 | Q23: 1 | R23: 85 | S23: 10 | V23: 1
B24: =SUM(B15:B23) -> 3127 | C24: =SUM(C15:C23) -> 37 | D24: IND | E24: =SUM(E15:E23) -> 38 | F24: =SUM(F15:F23) -> 36 | G24: =SUM(G15:G23) -> 6 | H24: =SUM(H15:H23) -> 2 | I24: =SUM(I15:I23) -> 0 | J24: =IF((A29=27),"",(SUM(J15:J23)/SUM(J15:L23))*100) -> 0 | K24: =IF((A29=27),"",(SUM(K15:K23)/SUM(J15:L23))*100) -> 87.5 | L24: =IF((A29=27),"",(SUM(L15:L23)/SUM(J15:L23))*100) -> 12.5 | M24: =SUM(M15:M23) -> 0 | N24: =SUM(N15:N23) -> 1 | O24: =SUM(O15:O23) -> 0 | P24: =SUM(P15:P23) -> 17 | Q24: =SUM(Q15:Q23) -> 7 | S24: =IF(Q24=0,0,SUM(S15:S23)/Q24) -> 5.785714286 | V24: =SUM(V15:V23) -> 13 | W24: =ColorFunction($E$30,$E$15:$E$23) -> 0 | X24: =ColorFunction($E$31,$E$15:$E$23) -> 2 | Y24: =ColorFunction($E$32,$E$15:$E$23) -> 3 | Z24: =ColorFunction($E$33,$E$15:$E$23) -> 0 | AA24: =SUM(AA15:AA23)/(9-Q24)*100 -> 0 | AB24: =COUNTIF(P15:P23,">2") -> 1 | AC24: =IF((G24=0),"",SUM(AC15:AC23)/G24*100) -> 83.33333333
B25: =SUM(B24,B14) -> 6038 | C25: =SUM(C24,C14) -> 73 | D25: TOTAL | E25: =IF(E14=0,"0",(E24+E14)) -> 74 | F25: =SUM(F14,F24) -> 69 | G25: =SUM(G24,G14) -> 10 | H25: =SUM(H24,H14) -> 5 | I25: =SUM(I24,I14) -> 0 | J25: =IF((A28=27),"",(SUM(J14,J24)/2)) -> 7.142857143 | K25: =IF((A28=27),"",(SUM(K14,K24)/2)) -> 79.46428571 | L25: =IF((A28=27),"",(SUM(L14,L24)/2)) -> 13.39285714 | M25: =SUM(M24,M14) -> 0 | N25: =SUM(N24,N14) -> 2 | O25: =SUM(O24,O14) -> 0 | P25: =IF(P14+P24=0,"",SUM(P24,P14)) -> 30 | Q25: =IF(Q14+Q24=0,"",SUM(Q24,Q14)) -> 12 | S25: =IF(S14+S24=0,"",SUM(S24,S14)/2) -> 5.792857143 | T25: =IF(N25=0,"",(O25)/N25*100) -> 0 | U25: =IF(Q25="","",(Q25)/18*100) -> 66.66666667 | V25: =IF(Q25="","",(V14+V24)/Q25) -> 1.75 | W25: =SUM(W14,W24) -> 0 | X25: =SUM(X14,X24) -> 4 | Y25: =SUM(Y14,Y24) -> 3 | Z25: =SUM(Z14,Z24) -> 1 | AA25: =SUM(AA14,AA24)/2 -> 37.5 | AB25: =SUM(AB14,AB24) -> 1 | AC25: =SUM(AC24,AC14)/2 -> 91.66666667
E27: Udfyld alle grønne felter med 1 for positiv eller antal i tal
A28: =COUNTBLANK(I5:K13) -> 21 | W28: Approach
A29: =COUNTBLANK(I15:K23) -> 20 | E29: Udfyld følgende farver: | S29: Holes to par | W29: Længde (m) | X29: Antal | Y29: Afstand (m)
A30: =SUM(L5:L23) -> 16.28571429 | E30: Eagles | S30: Par 3 | T30: =SUMIF(C:C,"3",E:E)/COUNTIF(C:C,3) -> 4 | W30: 45-70 | X30: =COUNTIFS(R5:R23,">=45",R5:R23,"<=70") -> 1 | Y30: =IF(X30=0,"",AVERAGEIFS(S5:S23,R5:R23,">=45",R5:R23,"<=70")) -> 3
E31: Birdies | S31: Par 4 | T31: =SUMIF(C:C,"4",E:E)/COUNTIF(C:C,4) -> 3.909090909 | W31: 71-90 | X31: =COUNTIFS(R5:R23,">=71",R5:R23,"<=90") -> 1 | Y31: =IF(X31=0,"",AVERAGEIFS(S5:S23,R5:R23,">=71",R5:R23,"<=90")) -> 10
E32: Bogeys | S32: Par 5 | T32: =SUMIF(C:C,"5",E:E)/COUNTIF(C:C,5) -> 4.75 | W32: 91-115 | X32: =COUNTIFS(R5:R23,">=91",R5:R23,"<=115") -> 1 | Y32: =IF(X32=0,"",AVERAGEIFS(S5:S23,R5:R23,">=91",R5:R23,"<=115")) -> 5
E33: Doublebogeys eller værre | W33: 116-140 | X33: =COUNTIFS(R5:R23,">=116",R5:R23,"<=140") -> 3 | Y33: =IF(X33=0,"",AVERAGEIFS(S5:S23,R5:R23,">=116",R5:R23,"<=140")) -> 5.333333333
S34: First 4 | T34: =IF(E25="0","",SUM(E5:E8)-SUM(C5:C8)) -> -1 | W34: 141-160 | X34: =COUNTIFS(R5:R23,">=141",R5:R23,"<=161") -> 2 | Y34: =IF(X34=0,"",AVERAGEIFS(S5:S23,R5:R23,">=141",R5:R23,"<=160")) -> 7.5
S35: Last 4 | T35: =IF(E25="0","",SUM(E20:E23)-SUM(C20:C23)) -> -1 | W35: 161-180 | X35: =COUNTIFS(R5:R23,">=161",R5:R23,"<=180") -> 0 | Y35: =IF(X35=0,"",AVERAGEIFS(S5:S23,R5:R23,">=161",R5:R23,"<=180")) -> 
W37: Putting
W38: Længde (m) | X38: Antal | Y38: Holet | Z38: Holet (%)
W39: under 1 m | X39: =COUNTIFS(S5:S23,">=0,1",S5:S23,"<=0,9") -> 0 | Y39: =IF(X39=0,"",COUNTIFS(P5:P23,"=1",S5:S23,"<1")) ->  | Z39: =IF(X39=0,"",Y39/X39*100) -> 
W40: 1 - 1,5 | X40: =COUNTIFS(S5:S23,">=1",S5:S23,"<=1,5") -> 1 | Y40: =IF(X40=0,"",COUNTIFS(P5:P23,"=1",S5:S23,">=1",S5:S23,"<=1,5")) -> 0 | Z40: =IF(X40=0,"",Y40/X40*100) -> 0
W41: 1,5 - 3 | X41: =COUNTIFS(S5:S23,">=1,6",S5:S23,"<=3") -> 3 | Y41: =IF(X41=0,"",COUNTIFS(P5:P23,"=1",S5:S23,">=1,6",S5:S23,"<=3")) -> 2 | Z41: =IF(X41=0,"",Y41/X41*100) -> 66.66666667
W42: 3 - 4,5 | X42: =COUNTIFS(S5:S23,">=3,1",S5:S23,"<=4,5") -> 0 | Y42: =IF(X42=0,"",COUNTIFS(P5:P23,"=1",S5:S23,">=3,1",S5:S23,"<=4,5")) -> 
W43: 4,5 - 6 | X43: =COUNTIFS(S5:S23,">=4,6",S5:S23,"<=6") -> 5 | Y43: =IF(X43=0,"",COUNTIFS(P5:P23,"=1",S5:S23,">=4,6",S5:S23,"<=6")) -> 1 | Z43: 20
W44: over 6 meter | X44: =COUNTIFS(S5:S23,">6") -> 4 | Y44: =IF(X44=0,"",COUNTIFS(P5:P23,"=1",S5:S23,">6")) -> 1 | Z44: 25

Sheet Runde 14
A1: Korsør Golf Klub - 18 huller - Gul tee | J1: =IF(E25="0","0","1") -> 1 | K1: Dato: | L1: 2010-07-13 | N1: Handicap: | O1: 3.9 | Q1: ATS: | R1: 3 | T1: Vejr: | U1: sol, skyet, 23 grader og hård vind | W1: Turnering: | X1: Tirsdagsklub
H3: Tee shot | K3: Fairway hits i % | N3: Bunker | R3: Approach shots
A4: Hul | B4: Gul tee | C4: Par | D4: HCP | E4: Score | F4: Netto | G4: Driver | H4: Wood | I4: Jern | J4: Venstre | K4: Midt | L4: Højre | M4: FB | N4: GB | O4: SS | P4: Putts | Q4: GIR | R4: Dist. to pin (m) | S4: Dist. to hole (m) | T4: % SS | U4: % GIR | V4: Putts/GIR | W4: Eagles | X4: Birdies | Y4: Bogeys | Z4: Værre | AA4: % Scramble | AB4: 3+ Putts | AC4: % Driver/Fairwayhits
A5: 1 | B5: 307 | C5: 4 | D5: 11 | E5: 4 | F5: 4 | I5: 1 | K5: 1 | P5: 2 | Q5: 1 | V5: =IF(Q5=0,"",P5) -> 2 | AA5: =IF(AND(Q5="",P5=1),1,"") ->  | AC5: =IF(AND(G5=""),"",SUM(K5)) -> 
A6: 2 | B6: 323 | C6: 4 | D6: 5 | E6: 4 | F6: 4 | G6: 1 | K6: 1 | P6: 2 | Q6: 1 | V6: 2 | AC6: 1
A7: 3 | B7: 138 | C7: 3 | D7: 15 | E7: 2 | F7: 2 | P7: 1 | Q7: 1 | V7: 1
A8: 4 | B8: 310 | C8: 4 | D8: 13 | E8: 4 | F8: 4 | I8: 1 | K8: 1 | P8: 2 | Q8: 1 | V8: 2
A9: 5 | B9: 431 | C9: 5 | D9: 3 | E9: 5 | F9: 4 | G9: 1 | K9: 1 | P9: 2 | Q9: 1 | V9: 2 | AC9: 1
A10: 6 | B10: 312 | C10: 4 | D10: 9 | E10: 6 | F10: 6 | G10: 1 | J10: 1 | P10: 2 | AC10: 0
A11: 7 | B11: 498 | C11: 5 | D11: 1 | E11: 5 | F11: 4 | I11: 1 | K11: 1 | P11: 2 | Q11: 1 | V11: 2
A12: 8 | B12: 138 | C12: 3 | D12: 17 | E12: 3 | F12: 3 | P12: 2 | Q12: 1 | V12: 2
A13: 9 | B13: 310 | C13: 4 | D13: 7 | E13: 5 | F13: 5 | H13: 1 | K13: 1 | P13: 2
B14: =SUM(B5:B13) -> 2767 | C14: =SUM(C5:C13) -> 36 | D14: UD | E14: =SUM(E5:E13) -> 38 | F14: =SUM(F5:F13) -> 36 | G14: =SUM(G5:G13) -> 3 | H14: =SUM(H5:H13) -> 1 | I14: =SUM(I5:I13) -> 3 | J14: =IF((A28=27),"",(SUM(J5:J13)/SUM(J5:L13))*100) -> 14.28571429 | K14: =IF((A28=27),"",(SUM(K5:K13)/SUM(J5:L13))*100) -> 85.71428571 | L14: =IF((A28=27),"",(SUM(L5:L13)/SUM(J5:L13))*100) -> 0 | M14: =SUM(M5:M13) -> 0 | N14: =SUM(N5:N13) -> 0 | O14: =SUM(O5:O13) -> 0 | P14: =SUM(P5:P13) -> 17 | Q14: =SUM(Q5:Q13) -> 7 | S14: =IF(Q14=0,0,SUM(S5:S13)/Q14) -> 0 | V14: =SUM(V5:V13) -> 13 | W14: =ColorFunction($E$30,$E$5:$E$13) -> 0 | X14: =ColorFunction($E$31,$E$5:$E$13) -> 1 | Y14: =ColorFunction($E$32,$E$5:$E$13) -> 1 | Z14: =ColorFunction($E$33,$E$5:$E$13) -> 1 | AA14: =SUM(AA5:AA13)/(9-Q14)*100 -> 0 | AB14: =COUNTIF(P5:P13,">2") -> 0 | AC14: =IF((G14=0),"",SUM(AC5:AC13)/G14*100) -> 66.66666667
A15: 10 | B15: 481 | C15: 5 | D15: 4 | E15: 5 | F15: 5 | G15: 1 | K15: 1 | P15: 2 | Q15: 1 | V15: =IF(Q15=0,"",P15) -> 2 | AA15: =IF(AND(Q15="",P15=1),1,"") ->  | AC15: =IF(AND(G15=""),"",SUM(K15)) -> 1
A16: 11 | B16: 319 | C16: 4 | D16: 16 | E16: 4 | F16: 4 | H16: 1 | K16: 1 | P16: 2 | Q16: 1 | V16: 2
A17: 12 | B17: 431 | C17: 5 | D17: 2 | E17: 4 | F17: 3 | G17: 1 | K17: 1 | P17: 1 | Q17: 1 | V17: 1 | AC17: 1
A18: 13 | B18: 122 | C18: 3 | D18: 18 | E18: 4 | F18: 4 | P18: 3 | Q18: 1 | V18: 3
A19: 14 | B19: 379 | C19: 4 | D19: 6 | E19: 4 | F19: 4 | G19: 1 | K19: 1 | P19: 2 | Q19: 1 | V19: 2 | AC19: 1
A20: 15 | B20: 316 | C20: 4 | D20: 8 | E20: 5 | F20: 5 | G20: 1 | K20: 1 | P20: 3 | Q20: 1 | V20: 3 | AC20: 1
A21: 16 | B21: 322 | C21: 4 | D21: 14 | E21: 4 | F21: 4 | G21: 1 | K21: 1 | P21: 2 | Q21: 1 | V21: 2 | AC21: 1
A22: 17 | B22: 345 | C22: 4 | D22: 10 | E22: 5 | F22: 5 | G22: 1 | K22: 1 | P22: 3 | Q22: 1 | V22: 3 | AC22: 1
A23: 18 | B23: 281 | C23: 4 | D23: 12 | E23: 4 | F23: 4 | H23: 1 | K23: 1 | P23: 2 | Q23: 1 | V23: 2
B24: =SUM(B15:B23) -> 2996 | C24: =SUM(C15:C23) -> 37 | D24: IND | E24: =SUM(E15:E23) -> 39 | F24: =SUM(F15:F23) -> 38 | G24: =SUM(G15:G23) -> 6 | H24: =SUM(H15:H23) -> 2 | I24: =SUM(I15:I23) -> 0 | J24: =IF((A29=27),"",(SUM(J15:J23)/SUM(J15:L23))*100) -> 0 | K24: =IF((A29=27),"",(SUM(K15:K23)/SUM(J15:L23))*100) -> 100 | L24: =IF((A29=27),"",(SUM(L15:L23)/SUM(J15:L23))*100) -> 0 | M24: =SUM(M15:M23) -> 0 | N24: =SUM(N15:N23) -> 0 | O24: =SUM(O15:O23) -> 0 | P24: =SUM(P15:P23) -> 20 | Q24: =SUM(Q15:Q23) -> 9 | S24: =IF(Q24=0,0,SUM(S15:S23)/Q24) -> 0 | V24: =SUM(V15:V23) -> 20 | W24: =ColorFunction($E$30,$E$15:$E$23) -> 0 | X24: =ColorFunction($E$31,$E$15:$E$23) -> 1 | Y24: =ColorFunction($E$32,$E$15:$E$23) -> 3 | Z24: =ColorFunction($E$33,$E$15:$E$23) -> 0 | AA24: 0 | AB24: =COUNTIF(P15:P23,">2") -> 3 | AC24: =IF((G24=0),"",SUM(AC15:AC23)/G24*100) -> 100
B25: =SUM(B24,B14) -> 5763 | C25: =SUM(C24,C14) -> 73 | D25: TOTAL | E25: =IF(E14=0,"0",(E24+E14)) -> 77 | F25: =SUM(F14,F24) -> 74 | G25: =SUM(G24,G14) -> 9 | H25: =SUM(H24,H14) -> 3 | I25: =SUM(I24,I14) -> 3 | J25: =IF((A28=27),"",(SUM(J14,J24)/2)) -> 7.142857143 | K25: =IF((A28=27),"",(SUM(K14,K24)/2)) -> 92.85714286 | L25: =IF((A28=27),"",(SUM(L14,L24)/2)) -> 0 | M25: =SUM(M24,M14) -> 0 | N25: =SUM(N24,N14) -> 0 | O25: =SUM(O24,O14) -> 0 | P25: =IF(P14+P24=0,"",SUM(P24,P14)) -> 37 | Q25: =IF(Q14+Q24=0,"",SUM(Q24,Q14)) -> 16 | S25: =IF(S14+S24=0,"",SUM(S24,S14)/2) ->  | T25: =IF(N25=0,"",(O25)/N25*100) ->  | U25: =IF(Q25="","",(Q25)/18*100) -> 88.88888889 | V25: =IF(Q25="","",(V14+V24)/Q25) -> 2.0625 | W25: =SUM(W14,W24) -> 0 | X25: =SUM(X14,X24) -> 2 | Y25: =SUM(Y14,Y24) -> 4 | Z25: =SUM(Z14,Z24) -> 1 | AA25: =SUM(AA14,AA24)/2 -> 0 | AB25: =SUM(AB14,AB24) -> 3 | AC25: =SUM(AC24,AC14)/2 -> 83.33333333
E27: Udfyld alle grønne felter med 1 for positiv eller antal i tal
A28: =COUNTBLANK(I5:K13) -> 17 | W28: Approach
A29: =COUNTBLANK(I15:K23) -> 19 | E29: Udfyld følgende farver: | S29: Holes to par | W29: Længde (m) | X29: Antal | Y29: Afstand (m)
A30: =SUM(L5:L23) -> 0 | E30: Eagles | S30: Par 3 | T30: =SUMIF(C:C,"3",E:E)/COUNTIF(C:C,3) -> 3 | W30: 45-70 | X30: =COUNTIFS(R5:R23,">=45",R5:R23,"<=70") -> 0 | Y30: =IF(X30=0,"",AVERAGEIFS(S5:S23,R5:R23,">=45",R5:R23,"<=70")) -> 
E31: Birdies | S31: Par 4 | T31: =SUMIF(C:C,"4",E:E)/COUNTIF(C:C,4) -> 4.454545455 | W31: 71-90 | X31: =COUNTIFS(R5:R23,">=71",R5:R23,"<=90") -> 0 | Y31: =IF(X31=0,"",AVERAGEIFS(S5:S23,R5:R23,">=71",R5:R23,"<=90")) -> 
E32: Bogeys | S32: Par 5 | T32: =SUMIF(C:C,"5",E:E)/COUNTIF(C:C,5) -> 4.75 | W32: 91-115 | X32: =COUNTIFS(R5:R23,">=91",R5:R23,"<=115") -> 0 | Y32: =IF(X32=0,"",AVERAGEIFS(S5:S23,R5:R23,">=91",R5:R23,"<=115")) -> 
E33: Doublebogeys eller værre | W33: 116-140 | X33: =COUNTIFS(R5:R23,">=116",R5:R23,"<=140") -> 0 | Y33: =IF(X33=0,"",AVERAGEIFS(S5:S23,R5:R23,">=116",R5:R23,"<=140")) -> 
S34: First 4 | T34: =IF(E25="0","",SUM(E5:E8)-SUM(C5:C8)) -> -1 | W34: 141-160 | X34: =COUNTIFS(R5:R23,">=141",R5:R23,"<=161") -> 0 | Y34: =IF(X34=0,"",AVERAGEIFS(S5:S23,R5:R23,">=141",R5:R23,"<=160")) -> 
S35: Last 4 | T35: =IF(E25="0","",SUM(E20:E23)-SUM(C20:C23)) -> 2 | W35: 161-180 | X35: =COUNTIFS(R5:R23,">=161",R5:R23,"<=180") -> 0 | Y35: =IF(X35=0,"",AVERAGEIFS(S5:S23,R5:R23,">=161",R5:R23,"<=180")) -> 
W37: Putting
W38: Længde (m) | X38: Antal | Y38: Holet | Z38: Holet (%)
W39: under 1 m | X39: =COUNTIFS(S5:S23,">=0,1",S5:S23,"<=0,9") -> 0 | Y39: =IF(X39=0,"",COUNTIFS(P5:P23,"=1",S5:S23,"<1")) ->  | Z39: =IF(X39=0,"",Y39/X39*100) -> 
W40: 1 - 1,5 | X40: =COUNTIFS(S5:S23,">=1",S5:S23,"<=1,5") -> 0 | Y40: =IF(X40=0,"",COUNTIFS(P5:P23,"=1",S5:S23,">=1",S5:S23,"<=1,5")) ->  | Z40: =IF(X40=0,"",Y40/X40*100) -> 
W41: 1,5 - 3 | X41: =COUNTIFS(S5:S23,">=1,6",S5:S23,"<=3") -> 0 | Y41: =IF(X41=0,"",COUNTIFS(P5:P23,"=1",S5:S23,">=1,6",S5:S23,"<=3")) ->  | Z41: =IF(X41=0,"",Y41/X41*100) -> 
W42: 3 - 4,5 | X42: =COUNTIFS(S5:S23,">=3,1",S5:S23,"<=4,5") -> 0 | Y42: =IF(X42=0,"",COUNTIFS(P5:P23,"=1",S5:S23,">=3,1",S5:S23,"<=4,5")) -> 
W43: 4,5 - 6 | X43: =COUNTIFS(S5:S23,">=4,6",S5:S23,"<=6") -> 0 | Y43: =IF(X43=0,"",COUNTIFS(P5:P23,"=1",S5:S23,">=4,6",S5:S23,"<=6")) -> 
W44: over 6 meter | X44: =COUNTIFS(S5:S23,">6") -> 0 | Y44: =IF(X44=0,"",COUNTIFS(P5:P23,"=1",S5:S23,">6")) -> 

Sheet Runde 15
A1: Korsør Golf Klub - 18 huller - Gul tee | J1: =IF(E25="0","0","1") -> 1 | K1: Dato: | L1: 2010-07-20 | N1: Handicap: | O1: 3.9 | Q1: ATS: | R1: 3 | T1: Vejr: | U1: Sol, hård vind 25 grader | W1: Turnering: | X1: Tirsdagsklub
H3: Tee shot | K3: Fairway hits i % | N3: Bunker | R3: Approach shots
A4: Hul | B4: Gul tee | C4: Par | D4: HCP | E4: Score | F4: Netto | G4: Driver | H4: Wood | I4: Jern | J4: Venstre | K4: Midt | L4: Højre | M4: FB | N4: GB | O4: SS | P4: Putts | Q4: GIR | R4: Dist. to pin (m) | S4: Dist. to hole (m) | T4: % SS | U4: % GIR | V4: Putts/GIR | W4: Eagles | X4: Birdies | Y4: Bogeys | Z4: Værre | AA4: % Scramble | AB4: 3+ Putts | AC4: % Driver/Fairwayhits
A5: 1 | B5: 307 | C5: 4 | D5: 11 | E5: 4 | F5: 4 | G5: 1 | K5: 1 | P5: 2 | Q5: 1 | V5: =IF(Q5=0,"",P5) -> 2 | AA5: =IF(AND(Q5="",P5=1),1,"") ->  | AC5: =IF(AND(G5=""),"",SUM(K5)) -> 1
A6: 2 | B6: 323 | C6: 4 | D6: 5 | E6: 5 | F6: 5 | G6: 1 | K6: 1 | P6: 3 | Q6: 1 | V6: 3 | AC6: 1
A7: 3 | B7: 138 | C7: 3 | D7: 15 | E7: 3 | F7: 3 | P7: 1 | AA7: 1
A8: 4 | B8: 310 | C8: 4 | D8: 13 | E8: 5 | F8: 5 | I8: 1 | K8: 1 | P8: 2
A9: 5 | B9: 431 | C9: 5 | D9: 3 | E9: 5 | F9: 4 | G9: 1 | K9: 1 | P9: 2 | Q9: 1 | V9: 2 | AC9: 1
A10: 6 | B10: 312 | C10: 4 | D10: 9 | E10: 4 | F10: 4 | H10: 1 | K10: 1 | P10: 2 | Q10: 1 | V10: 2
A11: 7 | B11: 498 | C11: 5 | D11: 1 | E11: 5 | F11: 4 | I11: 1 | K11: 1 | P11: 2 | Q11: 1 | V11: 2
A12: 8 | B12: 138 | C12: 3 | D12: 17 | E12: 3 | F12: 3 | P12: 2 | Q12: 1 | V12: 2
A13: 9 | B13: 310 | C13: 4 | D13: 7 | E13: 4 | F13: 4 | H13: 1 | K13: 1 | P13: 2 | Q13: 1 | V13: 2
B14: =SUM(B5:B13) -> 2767 | C14: =SUM(C5:C13) -> 36 | D14: UD | E14: =SUM(E5:E13) -> 38 | F14: =SUM(F5:F13) -> 36 | G14: =SUM(G5:G13) -> 3 | H14: =SUM(H5:H13) -> 2 | I14: =SUM(I5:I13) -> 2 | J14: =IF((A28=27),"",(SUM(J5:J13)/SUM(J5:L13))*100) -> 0 | K14: =IF((A28=27),"",(SUM(K5:K13)/SUM(J5:L13))*100) -> 100 | L14: =IF((A28=27),"",(SUM(L5:L13)/SUM(J5:L13))*100) -> 0 | M14: =SUM(M5:M13) -> 0 | N14: =SUM(N5:N13) -> 0 | O14: =SUM(O5:O13) -> 0 | P14: =SUM(P5:P13) -> 18 | Q14: =SUM(Q5:Q13) -> 7 | S14: =IF(Q14=0,0,SUM(S5:S13)/Q14) -> 0 | V14: =SUM(V5:V13) -> 15 | W14: =ColorFunction($E$30,$E$5:$E$13) -> 0 | X14: =ColorFunction($E$31,$E$5:$E$13) -> 0 | Y14: =ColorFunction($E$32,$E$5:$E$13) -> 2 | Z14: =ColorFunction($E$33,$E$5:$E$13) -> 0 | AA14: =SUM(AA5:AA13)/(9-Q14)*100 -> 50 | AB14: =COUNTIF(P5:P13,">2") -> 1 | AC14: =IF((G14=0),"",SUM(AC5:AC13)/G14*100) -> 100
A15: 10 | B15: 481 | C15: 5 | D15: 4 | E15: 5 | F15: 5 | G15: 1 | K15: 1 | M15: 1 | P15: 1 | V15: =IF(Q15=0,"",P15) ->  | AA15: =IF(AND(Q15="",P15=1),1,"") -> 1 | AC15: =IF(AND(G15=""),"",SUM(K15)) -> 1
A16: 11 | B16: 319 | C16: 4 | D16: 16 | E16: 4 | F16: 4 | H16: 1 | K16: 1 | P16: 2 | Q16: 1 | V16: 2
A17: 12 | B17: 431 | C17: 5 | D17: 2 | E17: 5 | F17: 4 | G17: 1 | K17: 1 | P17: 2 | Q17: 1 | V17: 2 | AC17: 1
A18: 13 | B18: 122 | C18: 3 | D18: 18 | E18: 3 | F18: 3 | P18: 2 | Q18: 1 | V18: 2
A19: 14 | B19: 379 | C19: 4 | D19: 6 | E19: 6 | F19: 6 | G19: 1 | L19: 1 | P19: 3 | AC19: 0
A20: 15 | B20: 316 | C20: 4 | D20: 8 | E20: 5 | F20: 5 | H20: 1 | J20: 1 | P20: 3 | Q20: 1 | V20: 3
A21: 16 | B21: 322 | C21: 4 | D21: 14 | E21: 3 | F21: 3 | G21: 1 | K21: 1 | P21: 1 | Q21: 1 | V21: 1 | AC21: 1
A22: 17 | B22: 345 | C22: 4 | D22: 10 | E22: 4 | F22: 4 | H22: 1 | J22: 1 | P22: 2 | Q22: 1 | V22: 2
A23: 18 | B23: 281 | C23: 4 | D23: 12 | E23: 4 | F23: 4 | H23: 1 | K23: 1 | P23: 2 | Q23: 1 | V23: 2
B24: =SUM(B15:B23) -> 2996 | C24: =SUM(C15:C23) -> 37 | D24: IND | E24: =SUM(E15:E23) -> 39 | F24: =SUM(F15:F23) -> 38 | G24: =SUM(G15:G23) -> 4 | H24: =SUM(H15:H23) -> 4 | I24: =SUM(I15:I23) -> 0 | J24: =IF((A29=27),"",(SUM(J15:J23)/SUM(J15:L23))*100) -> 25 | K24: =IF((A29=27),"",(SUM(K15:K23)/SUM(J15:L23))*100) -> 62.5 | L24: =IF((A29=27),"",(SUM(L15:L23)/SUM(J15:L23))*100) -> 12.5 | M24: =SUM(M15:M23) -> 1 | N24: =SUM(N15:N23) -> 0 | O24: =SUM(O15:O23) -> 0 | P24: =SUM(P15:P23) -> 18 | Q24: =SUM(Q15:Q23) -> 7 | S24: =IF(Q24=0,0,SUM(S15:S23)/Q24) -> 0 | V24: =SUM(V15:V23) -> 14 | W24: =ColorFunction($E$30,$E$15:$E$23) -> 0 | X24: =ColorFunction($E$31,$E$15:$E$23) -> 1 | Y24: =ColorFunction($E$32,$E$15:$E$23) -> 1 | Z24: =ColorFunction($E$33,$E$15:$E$23) -> 1 | AA24: =SUM(AA15:AA23)/(9-Q24)*100 -> 50 | AB24: =COUNTIF(P15:P23,">2") -> 2 | AC24: =IF((G24=0),"",SUM(AC15:AC23)/G24*100) -> 75
B25: =SUM(B24,B14) -> 5763 | C25: =SUM(C24,C14) -> 73 | D25: TOTAL | E25: =IF(E14=0,"0",(E24+E14)) -> 77 | F25: =SUM(F14,F24) -> 74 | G25: =SUM(G24,G14) -> 7 | H25: =SUM(H24,H14) -> 6 | I25: =SUM(I24,I14) -> 2 | J25: =IF((A28=27),"",(SUM(J14,J24)/2)) -> 12.5 | K25: =IF((A28=27),"",(SUM(K14,K24)/2)) -> 81.25 | L25: =IF((A28=27),"",(SUM(L14,L24)/2)) -> 6.25 | M25: =SUM(M24,M14) -> 1 | N25: =SUM(N24,N14) -> 0 | O25: =SUM(O24,O14) -> 0 | P25: =IF(P14+P24=0,"",SUM(P24,P14)) -> 36 | Q25: =IF(Q14+Q24=0,"",SUM(Q24,Q14)) -> 14 | S25: =IF(S14+S24=0,"",SUM(S24,S14)/2) ->  | T25: =IF(N25=0,"",(O25)/N25*100) ->  | U25: =IF(Q25="","",(Q25)/18*100) -> 77.77777778 | V25: =IF(Q25="","",(V14+V24)/Q25) -> 2.071428571 | W25: =SUM(W14,W24) -> 0 | X25: =SUM(X14,X24) -> 1 | Y25: =SUM(Y14,Y24) -> 3 | Z25: =SUM(Z14,Z24) -> 1 | AA25: =SUM(AA14,AA24)/2 -> 50 | AB25: =SUM(AB14,AB24) -> 3 | AC25: =SUM(AC24,AC14)/2 -> 87.5
E27: Udfyld alle grønne felter med 1 for positiv eller antal i tal
A28: =COUNTBLANK(I5:K13) -> 18 | W28: Approach
A29: =COUNTBLANK(I15:K23) -> 20 | E29: Udfyld følgende farver: | S29: Holes to par | W29: Længde (m) | X29: Antal | Y29: Afstand (m)
A30: =SUM(L5:L23) -> 1 | E30: Eagles | S30: Par 3 | T30: =SUMIF(C:C,"3",E:E)/COUNTIF(C:C,3) -> 3 | W30: 45-70 | X30: =COUNTIFS(R5:R23,">=45",R5:R23,"<=70") -> 0 | Y30: =IF(X30=0,"",AVERAGEIFS(S5:S23,R5:R23,">=45",R5:R23,"<=70")) -> 
E31: Birdies | S31: Par 4 | T31: =SUMIF(C:C,"4",E:E)/COUNTIF(C:C,4) -> 4.363636364 | W31: 71-90 | X31: =COUNTIFS(R5:R23,">=71",R5:R23,"<=90") -> 0 | Y31: =IF(X31=0,"",AVERAGEIFS(S5:S23,R5:R23,">=71",R5:R23,"<=90")) -> 
E32: Bogeys | S32: Par 5 | T32: =SUMIF(C:C,"5",E:E)/COUNTIF(C:C,5) -> 5 | W32: 91-115 | X32: =COUNTIFS(R5:R23,">=91",R5:R23,"<=115") -> 0 | Y32: =IF(X32=0,"",AVERAGEIFS(S5:S23,R5:R23,">=91",R5:R23,"<=115")) -> 
E33: Doublebogeys eller værre | W33: 116-140 | X33: =COUNTIFS(R5:R23,">=116",R5:R23,"<=140") -> 0 | Y33: =IF(X33=0,"",AVERAGEIFS(S5:S23,R5:R23,">=116",R5:R23,"<=140")) -> 
S34: First 4 | T34: =IF(E25="0","",SUM(E5:E8)-SUM(C5:C8)) -> 2 | W34: 141-160 | X34: =COUNTIFS(R5:R23,">=141",R5:R23,"<=161") -> 0 | Y34: =IF(X34=0,"",AVERAGEIFS(S5:S23,R5:R23,">=141",R5:R23,"<=160")) -> 
S35: Last 4 | T35: =IF(E25="0","",SUM(E20:E23)-SUM(C20:C23)) -> 0 | W35: 161-180 | X35: =COUNTIFS(R5:R23,">=161",R5:R23,"<=180") -> 0 | Y35: =IF(X35=0,"",AVERAGEIFS(S5:S23,R5:R23,">=161",R5:R23,"<=180")) -> 
W37: Putting
W38: Længde (m) | X38: Antal | Y38: Holet | Z38: Holet (%)
W39: under 1 m | X39: =COUNTIFS(S5:S23,">=0,1",S5:S23,"<=0,9") -> 0 | Y39: =IF(X39=0,"",COUNTIFS(P5:P23,"=1",S5:S23,"<1")) ->  | Z39: =IF(X39=0,"",Y39/X39*100) -> 
W40: 1 - 1,5 | X40: =COUNTIFS(S5:S23,">=1",S5:S23,"<=1,5") -> 0 | Y40: =IF(X40=0,"",COUNTIFS(P5:P23,"=1",S5:S23,">=1",S5:S23,"<=1,5")) ->  | Z40: =IF(X40=0,"",Y40/X40*100) -> 
W41: 1,5 - 3 | X41: =COUNTIFS(S5:S23,">=1,6",S5:S23,"<=3") -> 0 | Y41: =IF(X41=0,"",COUNTIFS(P5:P23,"=1",S5:S23,">=1,6",S5:S23,"<=3")) ->  | Z41: =IF(X41=0,"",Y41/X41*100) -> 
W42: 3 - 4,5 | X42: =COUNTIFS(S5:S23,">=3,1",S5:S23,"<=4,5") -> 0 | Y42: =IF(X42=0,"",COUNTIFS(P5:P23,"=1",S5:S23,">=3,1",S5:S23,"<=4,5")) -> 
W43: 4,5 - 6 | X43: =COUNTIFS(S5:S23,">=4,6",S5:S23,"<=6") -> 0 | Y43: =IF(X43=0,"",COUNTIFS(P5:P23,"=1",S5:S23,">=4,6",S5:S23,"<=6")) -> 
W44: over 6 meter | X44: =COUNTIFS(S5:S23,">6") -> 0 | Y44: =IF(X44=0,"",COUNTIFS(P5:P23,"=1",S5:S23,">6")) -> 

Sheet Runde 16
A1: Korsør Golf Klub - 18 huller - Gul tee | J1: =IF(E25="0","0","1") -> 1 | K1: Dato: | L1: 2010-07-22 | N1: Handicap: | O1: 4 | Q1: ATS: | R1: 3 | T1: Vejr: | U1: Sol, frisk til hård vind, 22-25 grader | W1: Turnering: | X1: Privat med Sacha
H3: Tee shot | K3: Fairway hits i % | N3: Bunker | R3: Approach shots
A4: Hul | B4: Gul tee | C4: Par | D4: HCP | E4: Score | F4: Netto | G4: Driver | H4: Wood | I4: Jern | J4: Venstre | K4: Midt | L4: Højre | M4: FB | N4: GB | O4: SS | P4: Putts | Q4: GIR | R4: Dist. to pin (m) | S4: Dist. to hole (m) | T4: % SS | U4: % GIR | V4: Putts/GIR | W4: Eagles | X4: Birdies | Y4: Bogeys | Z4: Værre | AA4: % Scramble | AB4: 3+ Putts | AC4: % Driver/Fairwayhits
A5: 1 | B5: 307 | C5: 4 | D5: 11 | E5: 4 | F5: 4 | G5: 1 | L5: 1 | P5: 2 | Q5: 1 | R5: 85 | S5: 6 | V5: =IF(Q5=0,"",P5) -> 2 | AA5: =IF(AND(Q5="",P5=1),1,"") ->  | AC5: =IF(AND(G5=""),"",SUM(K5)) -> 0
A6: 2 | B6: 323 | C6: 4 | D6: 5 | E6: 3 | F6: 3 | G6: 1 | K6: 1 | P6: 1 | Q6: 1 | R6: 94 | S6: 3 | V6: 1 | AC6: 1
A7: 3 | B7: 138 | C7: 3 | D7: 15 | E7: 3 | F7: 3 | P7: 2 | Q7: 1 | R7: 131 | S7: 5 | V7: 2
A8: 4 | B8: 310 | C8: 4 | D8: 13 | E8: 5 | F8: 5 | I8: 1 | K8: 1 | N8: 1 | P8: 2
A9: 5 | B9: 431 | C9: 5 | D9: 3 | E9: 4 | F9: 3 | G9: 1 | K9: 1 | P9: 1 | Q9: 1 | R9: 15 | S9: 2.5 | V9: 1 | AC9: 1
A10: 6 | B10: 312 | C10: 4 | D10: 9 | E10: 4 | F10: 4 | G10: 1 | K10: 1 | P10: 2 | Q10: 1 | R10: 74 | S10: 4 | V10: 2 | AC10: 1
A11: 7 | B11: 498 | C11: 5 | D11: 1 | E11: 5 | F11: 4 | I11: 1 | K11: 1 | P11: 2 | Q11: 1 | R11: 76 | S11: 5 | V11: 2
A12: 8 | B12: 138 | C12: 3 | D12: 17 | E12: 3 | F12: 3 | P12: 1 | AA12: 1
A13: 9 | B13: 310 | C13: 4 | D13: 7 | E13: 5 | F13: 5 | H13: 1 | K13: 1 | P13: 2
B14: =SUM(B5:B13) -> 2767 | C14: =SUM(C5:C13) -> 36 | D14: UD | E14: =SUM(E5:E13) -> 36 | F14: =SUM(F5:F13) -> 34 | G14: =SUM(G5:G13) -> 4 | H14: =SUM(H5:H13) -> 1 | I14: =SUM(I5:I13) -> 2 | J14: =IF((A28=27),"",(SUM(J5:J13)/SUM(J5:L13))*100) -> 0 | K14: =IF((A28=27),"",(SUM(K5:K13)/SUM(J5:L13))*100) -> 85.71428571 | L14: =IF((A28=27),"",(SUM(L5:L13)/SUM(J5:L13))*100) -> 14.28571429 | M14: =SUM(M5:M13) -> 0 | N14: =SUM(N5:N13) -> 1 | O14: =SUM(O5:O13) -> 0 | P14: =SUM(P5:P13) -> 15 | Q14: =SUM(Q5:Q13) -> 6 | S14: =IF(Q14=0,0,SUM(S5:S13)/Q14) -> 4.25 | V14: =SUM(V5:V13) -> 10 | W14: =ColorFunction($E$30,$E$5:$E$13) -> 0 | X14: =ColorFunction($E$31,$E$5:$E$13) -> 2 | Y14: =ColorFunction($E$32,$E$5:$E$13) -> 2 | Z14: =ColorFunction($E$33,$E$5:$E$13) -> 0 | AA14: =SUM(AA5:AA13)/(9-Q14)*100 -> 33.33333333 | AB14: =COUNTIF(P5:P13,">2") -> 0 | AC14: =IF((G14=0),"",SUM(AC5:AC13)/G14*100) -> 75
A15: 10 | B15: 481 | C15: 5 | D15: 4 | E15: 6 | F15: 6 | G15: 1 | J15: 1 | P15: 2 | V15: =IF(Q15=0,"",P15) ->  | AA15: =IF(AND(Q15="",P15=1),1,"") ->  | AC15: =IF(AND(G15=""),"",SUM(K15)) -> 0
A16: 11 | B16: 319 | C16: 4 | D16: 16 | E16: 3 | F16: 3 | I16: 1 | K16: 1 | P16: 1 | Q16: 1 | R16: 93 | S16: 1.5 | V16: 1
A17: 12 | B17: 431 | C17: 5 | D17: 2 | E17: 5 | F17: 4 | G17: 1 | K17: 1 | P17: 2 | Q17: 1 | R17: 10 | S17: 3 | V17: 2 | AC17: 1
A18: 13 | B18: 122 | C18: 3 | D18: 18 | E18: 4 | F18: 4 | P18: 2
A19: 14 | B19: 379 | C19: 4 | D19: 6 | E19: 5 | F19: 5 | G19: 1 | J19: 1 | P19: 2 | AC19: 0
A20: 15 | B20: 316 | C20: 4 | D20: 8 | E20: 4 | F20: 4 | G20: 1 | J20: 1 | P20: 2 | Q20: 1 | R20: 111 | S20: 10 | V20: 2 | AC20: 0
A21: 16 | B21: 322 | C21: 4 | D21: 14 | E21: 4 | F21: 4 | G21: 1 | K21: 1 | N21: 1 | O21: 1 | P21: 1 | AA21: 1 | AC21: 1
A22: 17 | B22: 345 | C22: 4 | D22: 10 | E22: 5 | F22: 5 | H22: 1 | K22: 1 | P22: 2
A23: 18 | B23: 281 | C23: 4 | D23: 12 | E23: 3 | F23: 3 | H23: 1 | K23: 1 | P23: 1 | Q23: 1 | R23: 108 | S23: 3.5 | V23: 1
B24: =SUM(B15:B23) -> 2996 | C24: =SUM(C15:C23) -> 37 | D24: IND | E24: =SUM(E15:E23) -> 39 | F24: =SUM(F15:F23) -> 38 | G24: =SUM(G15:G23) -> 5 | H24: =SUM(H15:H23) -> 2 | I24: =SUM(I15:I23) -> 1 | J24: =IF((A29=27),"",(SUM(J15:J23)/SUM(J15:L23))*100) -> 37.5 | K24: =IF((A29=27),"",(SUM(K15:K23)/SUM(J15:L23))*100) -> 62.5 | L24: =IF((A29=27),"",(SUM(L15:L23)/SUM(J15:L23))*100) -> 0 | M24: =SUM(M15:M23) -> 0 | N24: =SUM(N15:N23) -> 1 | O24: =SUM(O15:O23) -> 1 | P24: =SUM(P15:P23) -> 15 | Q24: =SUM(Q15:Q23) -> 4 | S24: =IF(Q24=0,0,SUM(S15:S23)/Q24) -> 4.5 | V24: =SUM(V15:V23) -> 6 | W24: =ColorFunction($E$30,$E$15:$E$23) -> 0 | X24: =ColorFunction($E$31,$E$15:$E$23) -> 2 | Y24: =ColorFunction($E$32,$E$15:$E$23) -> 4 | Z24: =ColorFunction($E$33,$E$15:$E$23) -> 0 | AA24: =SUM(AA15:AA23)/(9-Q24)*100 -> 20 | AB24: =COUNTIF(P15:P23,">2") -> 0 | AC24: =IF((G24=0),"",SUM(AC15:AC23)/G24*100) -> 40
B25: =SUM(B24,B14) -> 5763 | C25: =SUM(C24,C14) -> 73 | D25: TOTAL | E25: =IF(E14=0,"0",(E24+E14)) -> 75 | F25: =SUM(F14,F24) -> 72 | G25: =SUM(G24,G14) -> 9 | H25: =SUM(H24,H14) -> 3 | I25: =SUM(I24,I14) -> 3 | J25: =IF((A28=27),"",(SUM(J14,J24)/2)) -> 18.75 | K25: =IF((A28=27),"",(SUM(K14,K24)/2)) -> 74.10714286 | L25: =IF((A28=27),"",(SUM(L14,L24)/2)) -> 7.142857143 | M25: =SUM(M24,M14) -> 0 | N25: =SUM(N24,N14) -> 2 | O25: =SUM(O24,O14) -> 1 | P25: =IF(P14+P24=0,"",SUM(P24,P14)) -> 30 | Q25: =IF(Q14+Q24=0,"",SUM(Q24,Q14)) -> 10 | S25: =IF(S14+S24=0,"",SUM(S24,S14)/2) -> 4.375 | T25: =IF(N25=0,"",(O25)/N25*100) -> 50 | U25: =IF(Q25="","",(Q25)/18*100) -> 55.55555556 | V25: =IF(Q25="","",(V14+V24)/Q25) -> 1.6 | W25: =SUM(W14,W24) -> 0 | X25: =SUM(X14,X24) -> 4 | Y25: =SUM(Y14,Y24) -> 6 | Z25: =SUM(Z14,Z24) -> 0 | AA25: =SUM(AA14,AA24)/2 -> 26.66666667 | AB25: =SUM(AB14,AB24) -> 0 | AC25: =SUM(AC24,AC14)/2 -> 57.5
E27: Udfyld alle grønne felter med 1 for positiv eller antal i tal
A28: =COUNTBLANK(I5:K13) -> 19 | W28: Approach
A29: =COUNTBLANK(I15:K23) -> 18 | E29: Udfyld følgende farver: | S29: Holes to par | W29: Længde (m) | X29: Antal | Y29: Afstand (m)
A30: =SUM(L5:L23) -> 15.28571429 | E30: Eagles | S30: Par 3 | T30: =SUMIF(C:C,"3",E:E)/COUNTIF(C:C,3) -> 3.333333333 | W30: 45-70 | X30: =COUNTIFS(R5:R23,">=45",R5:R23,"<=70") -> 0 | Y30: =IF(X30=0,"",AVERAGEIFS(S5:S23,R5:R23,">=45",R5:R23,"<=70")) -> 
E31: Birdies | S31: Par 4 | T31: =SUMIF(C:C,"4",E:E)/COUNTIF(C:C,4) -> 4.090909091 | W31: 71-90 | X31: =COUNTIFS(R5:R23,">=71",R5:R23,"<=90") -> 3 | Y31: =IF(X31=0,"",AVERAGEIFS(S5:S23,R5:R23,">=71",R5:R23,"<=90")) -> 5
E32: Bogeys | S32: Par 5 | T32: =SUMIF(C:C,"5",E:E)/COUNTIF(C:C,5) -> 5 | W32: 91-115 | X32: =COUNTIFS(R5:R23,">=91",R5:R23,"<=115") -> 4 | Y32: =IF(X32=0,"",AVERAGEIFS(S5:S23,R5:R23,">=91",R5:R23,"<=115")) -> 4.5
E33: Doublebogeys eller værre | W33: 116-140 | X33: =COUNTIFS(R5:R23,">=116",R5:R23,"<=140") -> 1 | Y33: =IF(X33=0,"",AVERAGEIFS(S5:S23,R5:R23,">=116",R5:R23,"<=140")) -> 5
S34: First 4 | T34: =IF(E25="0","",SUM(E5:E8)-SUM(C5:C8)) -> 0 | W34: 141-160 | X34: =COUNTIFS(R5:R23,">=141",R5:R23,"<=161") -> 0 | Y34: =IF(X34=0,"",AVERAGEIFS(S5:S23,R5:R23,">=141",R5:R23,"<=160")) -> 
S35: Last 4 | T35: =IF(E25="0","",SUM(E20:E23)-SUM(C20:C23)) -> 0 | W35: 161-180 | X35: =COUNTIFS(R5:R23,">=161",R5:R23,"<=180") -> 0 | Y35: =IF(X35=0,"",AVERAGEIFS(S5:S23,R5:R23,">=161",R5:R23,"<=180")) -> 
W37: Putting
W38: Længde (m) | X38: Antal | Y38: Holet | Z38: Holet (%)
W39: under 1 m | X39: =COUNTIFS(S5:S23,">=0,1",S5:S23,"<=0,9") -> 0 | Y39: =IF(X39=0,"",COUNTIFS(P5:P23,"=1",S5:S23,"<1")) ->  | Z39: =IF(X39=0,"",Y39/X39*100) -> 
W40: 1 - 1,5 | X40: =COUNTIFS(S5:S23,">=1",S5:S23,"<=1,5") -> 1 | Y40: =IF(X40=0,"",COUNTIFS(P5:P23,"=1",S5:S23,">=1",S5:S23,"<=1,5")) -> 1 | Z40: =IF(X40=0,"",Y40/X40*100) -> 100
W41: 1,5 - 3 | X41: =COUNTIFS(S5:S23,">=1,6",S5:S23,"<=3") -> 3 | Y41: =IF(X41=0,"",COUNTIFS(P5:P23,"=1",S5:S23,">=1,6",S5:S23,"<=3")) -> 2 | Z41: =IF(X41=0,"",Y41/X41*100) -> 66.66666667
W42: 3 - 4,5 | X42: =COUNTIFS(S5:S23,">=3,1",S5:S23,"<=4,5") -> 3 | Y42: =IF(X42=0,"",COUNTIFS(P5:P23,"=1",S5:S23,">=3,1",S5:S23,"<=4,5")) -> 1 | Z42: 33.33333333
W43: 4,5 - 6 | X43: =COUNTIFS(S5:S23,">=4,6",S5:S23,"<=6") -> 3 | Y43: =IF(X43=0,"",COUNTIFS(P5:P23,"=1",S5:S23,">=4,6",S5:S23,"<=6")) -> 0 | Z43: 0
W44: over 6 meter | X44: =COUNTIFS(S5:S23,">6") -> 1 | Y44: =IF(X44=0,"",COUNTIFS(P5:P23,"=1",S5:S23,">6")) -> 0 | Z44: 0

Sheet Runde 17
A1: Korsør Golf Klub - 18 huller - Gul tee | J1: =IF(E25="0","0","1") -> 1 | K1: Dato: | L1: 2010-07-23 | N1: Handicap: | O1: 4 | Q1: ATS: | R1: 3 | T1: Vejr: | U1: Skyet, 23 grader, svag vind | W1: Turnering: | X1: Privat med Sacha
H3: Tee shot | K3: Fairway hits i % | N3: Bunker | R3: Approach shots
A4: Hul | B4: Gul tee | C4: Par | D4: HCP | E4: Score | F4: Netto | G4: Driver | H4: Wood | I4: Jern | J4: Venstre | K4: Midt | L4: Højre | M4: FB | N4: GB | O4: SS | P4: Putts | Q4: GIR | R4: Dist. to pin (m) | S4: Dist. to hole (m) | T4: % SS | U4: % GIR | V4: Putts/GIR | W4: Eagles | X4: Birdies | Y4: Bogeys | Z4: Værre | AA4: % Scramble | AB4: 3+ Putts | AC4: % Driver/Fairwayhits
A5: 1 | B5: 307 | C5: 4 | D5: 11 | E5: 5 | F5: 5 | G5: 1 | J5: 1 | P5: 3 | Q5: 1 | R5: 77 | S5: 8 | V5: =IF(Q5=0,"",P5) -> 3 | AA5: =IF(AND(Q5="",P5=1),1,"") ->  | AC5: =IF(AND(G5=""),"",SUM(K5)) -> 0
A6: 2 | B6: 323 | C6: 4 | D6: 5 | E6: 4 | F6: 4 | G6: 1 | K6: 1 | P6: 2 | Q6: 1 | R6: 56 | S6: 3.5 | V6: 2 | AC6: 1
A7: 3 | B7: 138 | C7: 3 | D7: 15 | E7: 3 | F7: 3 | P7: 2 | Q7: 1 | R7: 131 | S7: 4 | V7: 2
A8: 4 | B8: 310 | C8: 4 | D8: 13 | E8: 4 | F8: 4 | I8: 1 | K8: 1 | P8: 1 | AA8: 1
A9: 5 | B9: 431 | C9: 5 | D9: 3 | E9: 4 | F9: 3 | G9: 1 | K9: 1 | P9: 2 | Q9: 1 | R9: 179 | S9: 5 | V9: 2 | AC9: 1
A10: 6 | B10: 312 | C10: 4 | D10: 9 | E10: 3 | F10: 3 | H10: 1 | K10: 1 | P10: 1 | Q10: 1 | R10: 93 | S10: 2 | V10: 1
A11: 7 | B11: 498 | C11: 5 | D11: 1 | E11: 5 | F11: 4 | I11: 1 | K11: 1 | P11: 2 | Q11: 1 | R11: 85 | S11: 6 | V11: 2
A12: 8 | B12: 138 | C12: 3 | D12: 17 | E12: 3 | F12: 3 | P12: 2 | Q12: 1 | R12: 139 | S12: 7 | V12: 2
A13: 9 | B13: 310 | C13: 4 | D13: 7 | E13: 5 | F13: 5 | H13: 1 | K13: 1 | P13: 3 | Q13: 1 | R13: 89 | S13: 5 | V13: 3
B14: =SUM(B5:B13) -> 2767 | C14: =SUM(C5:C13) -> 36 | D14: UD | E14: =SUM(E5:E13) -> 36 | F14: =SUM(F5:F13) -> 34 | G14: =SUM(G5:G13) -> 3 | H14: =SUM(H5:H13) -> 2 | I14: =SUM(I5:I13) -> 2 | J14: =IF((A28=27),"",(SUM(J5:J13)/SUM(J5:L13))*100) -> 14.28571429 | K14: =IF((A28=27),"",(SUM(K5:K13)/SUM(J5:L13))*100) -> 85.71428571 | L14: =IF((A28=27),"",(SUM(L5:L13)/SUM(J5:L13))*100) -> 0 | M14: =SUM(M5:M13) -> 0 | N14: =SUM(N5:N13) -> 0 | O14: =SUM(O5:O13) -> 0 | P14: =SUM(P5:P13) -> 18 | Q14: =SUM(Q5:Q13) -> 8 | S14: =IF(Q14=0,0,SUM(S5:S13)/Q14) -> 5.0625 | V14: =SUM(V5:V13) -> 17 | W14: =ColorFunction($E$30,$E$5:$E$13) -> 0 | X14: =ColorFunction($E$31,$E$5:$E$13) -> 2 | Y14: =ColorFunction($E$32,$E$5:$E$13) -> 2 | Z14: =ColorFunction($E$33,$E$5:$E$13) -> 0 | AA14: =SUM(AA5:AA13)/(9-Q14)*100 -> 100 | AB14: =COUNTIF(P5:P13,">2") -> 2 | AC14: =IF((G14=0),"",SUM(AC5:AC13)/G14*100) -> 66.66666667
A15: 10 | B15: 481 | C15: 5 | D15: 4 | E15: 5 | F15: 5 | G15: 1 | K15: 1 | P15: 2 | Q15: 1 | R15: 54 | S15: 4 | V15: =IF(Q15=0,"",P15) -> 2 | AA15: =IF(AND(Q15="",P15=1),1,"") ->  | AC15: =IF(AND(G15=""),"",SUM(K15)) -> 1
A16: 11 | B16: 319 | C16: 4 | D16: 16 | E16: 4 | F16: 4 | I16: 1 | K16: 1 | P16: 2 | Q16: 1 | R16: 139 | S16: 6 | V16: 2
A17: 12 | B17: 431 | C17: 5 | D17: 2 | E17: 4 | F17: 3 | G17: 1 | L17: 1 | P17: 1 | Q17: 1 | R17: 74 | S17: 1 | V17: 1 | AC17: 0
A18: 13 | B18: 122 | C18: 3 | D18: 18 | E18: 2 | F18: 2 | P18: 1 | Q18: 1 | R18: 132 | S18: 2 | V18: 1
A19: 14 | B19: 379 | C19: 4 | D19: 6 | E19: 4 | F19: 4 | G19: 1 | K19: 1 | P19: 2 | Q19: 1 | R19: 139 | S19: 1.5 | V19: 2 | AC19: 1
A20: 15 | B20: 316 | C20: 4 | D20: 8 | E20: 4 | F20: 4 | G20: 1 | J20: 1 | P20: 2 | Q20: 1 | R20: 108 | S20: 5 | V20: 2 | AC20: 0
A21: 16 | B21: 322 | C21: 4 | D21: 14 | E21: 4 | F21: 4 | G21: 1 | K21: 1 | P21: 2 | Q21: 1 | R21: 88 | S21: 6 | V21: 2 | AC21: 1
A22: 17 | B22: 345 | C22: 4 | D22: 10 | E22: 4 | F22: 4 | I22: 1 | K22: 1 | P22: 2 | Q22: 1 | R22: 148 | S22: 4 | V22: 2
A23: 18 | B23: 281 | C23: 4 | D23: 12 | E23: 5 | F23: 5 | H23: 1 | K23: 1 | P23: 3 | Q23: 1 | R23: 91 | S23: 5 | V23: 3
B24: =SUM(B15:B23) -> 2996 | C24: =SUM(C15:C23) -> 37 | D24: IND | E24: =SUM(E15:E23) -> 36 | F24: =SUM(F15:F23) -> 35 | G24: =SUM(G15:G23) -> 5 | H24: =SUM(H15:H23) -> 1 | I24: =SUM(I15:I23) -> 2 | J24: =IF((A29=27),"",(SUM(J15:J23)/SUM(J15:L23))*100) -> 12.5 | K24: =IF((A29=27),"",(SUM(K15:K23)/SUM(J15:L23))*100) -> 75 | L24: =IF((A29=27),"",(SUM(L15:L23)/SUM(J15:L23))*100) -> 12.5 | M24: =SUM(M15:M23) -> 0 | N24: =SUM(N15:N23) -> 0 | O24: =SUM(O15:O23) -> 0 | P24: =SUM(P15:P23) -> 17 | Q24: =SUM(Q15:Q23) -> 9 | S24: =IF(Q24=0,0,SUM(S15:S23)/Q24) -> 3.833333333 | V24: =SUM(V15:V23) -> 17 | W24: =ColorFunction($E$30,$E$15:$E$23) -> 0 | X24: =ColorFunction($E$31,$E$15:$E$23) -> 2 | Y24: =ColorFunction($E$32,$E$15:$E$23) -> 1 | Z24: =ColorFunction($E$33,$E$15:$E$23) -> 0 | AB24: =COUNTIF(P15:P23,">2") -> 1 | AC24: =IF((G24=0),"",SUM(AC15:AC23)/G24*100) -> 60
B25: =SUM(B24,B14) -> 5763 | C25: =SUM(C24,C14) -> 73 | D25: TOTAL | E25: =IF(E14=0,"0",(E24+E14)) -> 72 | F25: =SUM(F14,F24) -> 69 | G25: =SUM(G24,G14) -> 8 | H25: =SUM(H24,H14) -> 3 | I25: =SUM(I24,I14) -> 4 | J25: =IF((A28=27),"",(SUM(J14,J24)/2)) -> 13.39285714 | K25: =IF((A28=27),"",(SUM(K14,K24)/2)) -> 80.35714286 | L25: =IF((A28=27),"",(SUM(L14,L24)/2)) -> 6.25 | M25: =SUM(M24,M14) -> 0 | N25: =SUM(N24,N14) -> 0 | O25: =SUM(O24,O14) -> 0 | P25: =IF(P14+P24=0,"",SUM(P24,P14)) -> 35 | Q25: =IF(Q14+Q24=0,"",SUM(Q24,Q14)) -> 17 | S25: =IF(S14+S24=0,"",SUM(S24,S14)/2) -> 4.447916667 | T25: =IF(N25=0,"",(O25)/N25*100) ->  | U25: =IF(Q25="","",(Q25)/18*100) -> 94.44444444 | V25: =IF(Q25="","",(V14+V24)/Q25) -> 2 | W25: =SUM(W14,W24) -> 0 | X25: =SUM(X14,X24) -> 4 | Y25: =SUM(Y14,Y24) -> 3 | Z25: =SUM(Z14,Z24) -> 0 | AA25: 100 | AB25: =SUM(AB14,AB24) -> 3 | AC25: =SUM(AC24,AC14)/2 -> 63.33333333
E27: Udfyld alle grønne felter med 1 for positiv eller antal i tal
A28: =COUNTBLANK(I5:K13) -> 18 | W28: Approach
A29: =COUNTBLANK(I15:K23) -> 18 | E29: Udfyld følgende farver: | S29: Holes to par | W29: Længde (m) | X29: Antal | Y29: Afstand (m)
A30: =SUM(L5:L23) -> 1 | E30: Eagles | S30: Par 3 | T30: =SUMIF(C:C,"3",E:E)/COUNTIF(C:C,3) -> 2.666666667 | W30: 45-70 | X30: =COUNTIFS(R5:R23,">=45",R5:R23,"<=70") -> 2 | Y30: =IF(X30=0,"",AVERAGEIFS(S5:S23,R5:R23,">=45",R5:R23,"<=70")) -> 3.75
E31: Birdies | S31: Par 4 | T31: =SUMIF(C:C,"4",E:E)/COUNTIF(C:C,4) -> 4.181818182 | W31: 71-90 | X31: =COUNTIFS(R5:R23,">=71",R5:R23,"<=90") -> 5 | Y31: =IF(X31=0,"",AVERAGEIFS(S5:S23,R5:R23,">=71",R5:R23,"<=90")) -> 5.2
E32: Bogeys | S32: Par 5 | T32: =SUMIF(C:C,"5",E:E)/COUNTIF(C:C,5) -> 4.5 | W32: 91-115 | X32: =COUNTIFS(R5:R23,">=91",R5:R23,"<=115") -> 3 | Y32: =IF(X32=0,"",AVERAGEIFS(S5:S23,R5:R23,">=91",R5:R23,"<=115")) -> 4
E33: Doublebogeys eller værre | W33: 116-140 | X33: =COUNTIFS(R5:R23,">=116",R5:R23,"<=140") -> 5 | Y33: =IF(X33=0,"",AVERAGEIFS(S5:S23,R5:R23,">=116",R5:R23,"<=140")) -> 4.1
S34: First 4 | T34: =IF(E25="0","",SUM(E5:E8)-SUM(C5:C8)) -> 1 | W34: 141-160 | X34: =COUNTIFS(R5:R23,">=141",R5:R23,"<=161") -> 1 | Y34: =IF(X34=0,"",AVERAGEIFS(S5:S23,R5:R23,">=141",R5:R23,"<=160")) -> 4
S35: Last 4 | T35: =IF(E25="0","",SUM(E20:E23)-SUM(C20:C23)) -> 1 | W35: 161-180 | X35: =COUNTIFS(R5:R23,">=161",R5:R23,"<=180") -> 1 | Y35: =IF(X35=0,"",AVERAGEIFS(S5:S23,R5:R23,">=161",R5:R23,"<=180")) -> 5
W37: Putting
W38: Længde (m) | X38: Antal | Y38: Holet | Z38: Holet (%)
W39: under 1 m | X39: =COUNTIFS(S5:S23,">=0,1",S5:S23,"<=0,9") -> 0 | Y39: =IF(X39=0,"",COUNTIFS(P5:P23,"=1",S5:S23,"<1")) ->  | Z39: =IF(X39=0,"",Y39/X39*100) -> 
W40: 1 - 1,5 | X40: =COUNTIFS(S5:S23,">=1",S5:S23,"<=1,5") -> 2 | Y40: =IF(X40=0,"",COUNTIFS(P5:P23,"=1",S5:S23,">=1",S5:S23,"<=1,5")) -> 1 | Z40: =IF(X40=0,"",Y40/X40*100) -> 50
W41: 1,5 - 3 | X41: =COUNTIFS(S5:S23,">=1,6",S5:S23,"<=3") -> 2 | Y41: =IF(X41=0,"",COUNTIFS(P5:P23,"=1",S5:S23,">=1,6",S5:S23,"<=3")) -> 2 | Z41: =IF(X41=0,"",Y41/X41*100) -> 100
W42: 3 - 4,5 | X42: =COUNTIFS(S5:S23,">=3,1",S5:S23,"<=4,5") -> 4 | Y42: =IF(X42=0,"",COUNTIFS(P5:P23,"=1",S5:S23,">=3,1",S5:S23,"<=4,5")) -> 0 | Z42: 0
W43: 4,5 - 6 | X43: =COUNTIFS(S5:S23,">=4,6",S5:S23,"<=6") -> 8 | Y43: =IF(X43=0,"",COUNTIFS(P5:P23,"=1",S5:S23,">=4,6",S5:S23,"<=6")) -> 0 | Z43: 0
W44: over 6 meter | X44: =COUNTIFS(S5:S23,">6") -> 2 | Y44: =IF(X44=0,"",COUNTIFS(P5:P23,"=1",S5:S23,">6")) -> 0 | Z44: 0

Sheet Runde 18
A1: Korsør Golf Klub - 18 huller - Gul tee | J1: =IF(E25="0","0","1") -> 1 | K1: Dato: | L1: 2010-07-26 | N1: Handicap: | O1: 4 | Q1: ATS: | R1: 3 | T1: Vejr: | U1: Sol, 22 grader, jævn vind | W1: Turnering: | X1: Max Bank slagspil
H3: Tee shot | K3: Fairway hits i % | N3: Bunker | R3: Approach shots
A4: Hul | B4: Gul tee | C4: Par | D4: HCP | E4: Score | F4: Netto | G4: Driver | H4: Wood | I4: Jern | J4: Venstre | K4: Midt | L4: Højre | M4: FB | N4: GB | O4: SS | P4: Putts | Q4: GIR | R4: Dist. to pin (m) | S4: Dist. to hole (m) | T4: % SS | U4: % GIR | V4: Putts/GIR | W4: Eagles | X4: Birdies | Y4: Bogeys | Z4: Værre | AA4: % Scramble | AB4: 3+ Putts | AC4: % Driver/Fairwayhits
A5: 1 | B5: 307 | C5: 4 | D5: 11 | E5: 4 | F5: 4 | H5: 1 | K5: 1 | P5: 1 | V5: =IF(Q5=0,"",P5) ->  | AA5: =IF(AND(Q5="",P5=1),1,"") -> 1 | AC5: =IF(AND(G5=""),"",SUM(K5)) -> 
A6: 2 | B6: 323 | C6: 4 | D6: 5 | E6: 5 | F6: 5 | G6: 1 | J6: 1 | P6: 2 | AC6: 0
A7: 3 | B7: 138 | C7: 3 | D7: 15 | E7: 3 | F7: 3 | P7: 2 | Q7: 1 | V7: 2
A8: 4 | B8: 310 | C8: 4 | D8: 13 | E8: 4 | F8: 4 | H8: 1 | K8: 1 | P8: 2 | Q8: 1 | V8: 2
A9: 5 | B9: 431 | C9: 5 | D9: 3 | E9: 4 | F9: 3 | G9: 1 | K9: 1 | P9: 2 | Q9: 1 | V9: 2 | AC9: 1
A10: 6 | B10: 312 | C10: 4 | D10: 9 | E10: 4 | F10: 4 | H10: 1 | K10: 1 | P10: 2 | Q10: 1 | V10: 2
A11: 7 | B11: 498 | C11: 5 | D11: 1 | E11: 5 | F11: 4 | I11: 1 | K11: 1 | P11: 2 | Q11: 1 | V11: 2
A12: 8 | B12: 138 | C12: 3 | D12: 17 | E12: 4 | F12: 4 | N12: 1 | P12: 2
A13: 9 | B13: 310 | C13: 4 | D13: 7 | E13: 4 | F13: 4 | H13: 1 | K13: 1 | P13: 2 | Q13: 1 | V13: 2
B14: =SUM(B5:B13) -> 2767 | C14: =SUM(C5:C13) -> 36 | D14: UD | E14: =SUM(E5:E13) -> 37 | F14: =SUM(F5:F13) -> 35 | G14: =SUM(G5:G13) -> 2 | H14: =SUM(H5:H13) -> 4 | I14: =SUM(I5:I13) -> 1 | J14: =IF((A28=27),"",(SUM(J5:J13)/SUM(J5:L13))*100) -> 14.28571429 | K14: =IF((A28=27),"",(SUM(K5:K13)/SUM(J5:L13))*100) -> 85.71428571 | L14: =IF((A28=27),"",(SUM(L5:L13)/SUM(J5:L13))*100) -> 0 | M14: =SUM(M5:M13) -> 0 | N14: =SUM(N5:N13) -> 1 | O14: =SUM(O5:O13) -> 0 | P14: =SUM(P5:P13) -> 17 | Q14: =SUM(Q5:Q13) -> 6 | S14: =IF(Q14=0,0,SUM(S5:S13)/Q14) -> 0 | V14: =SUM(V5:V13) -> 12 | W14: =ColorFunction($E$30,$E$5:$E$13) -> 0 | X14: =ColorFunction($E$31,$E$5:$E$13) -> 1 | Y14: =ColorFunction($E$32,$E$5:$E$13) -> 2 | Z14: =ColorFunction($E$33,$E$5:$E$13) -> 0 | AA14: =SUM(AA5:AA13)/(9-Q14)*100 -> 33.33333333 | AB14: =COUNTIF(P5:P13,">2") -> 0 | AC14: =IF((G14=0),"",SUM(AC5:AC13)/G14*100) -> 50
A15: 10 | B15: 481 | C15: 5 | D15: 4 | E15: 5 | F15: 5 | G15: 1 | K15: 1 | P15: 2 | Q15: 1 | V15: =IF(Q15=0,"",P15) -> 2 | AA15: =IF(AND(Q15="",P15=1),1,"") ->  | AC15: =IF(AND(G15=""),"",SUM(K15)) -> 1
A16: 11 | B16: 319 | C16: 4 | D16: 16 | E16: 5 | F16: 5 | H16: 1 | K16: 1 | P16: 2
A17: 12 | B17: 431 | C17: 5 | D17: 2 | E17: 5 | F17: 4 | G17: 1 | K17: 1 | P17: 2 | Q17: 1 | V17: 2 | AC17: 1
A18: 13 | B18: 122 | C18: 3 | D18: 18 | E18: 3 | F18: 3 | P18: 2 | Q18: 1 | V18: 2
A19: 14 | B19: 379 | C19: 4 | D19: 6 | E19: 5 | F19: 5 | G19: 1 | J19: 1 | P19: 3 | Q19: 1 | V19: 3 | AC19: 0
A20: 15 | B20: 316 | C20: 4 | D20: 8 | E20: 5 | F20: 5 | G20: 1 | L20: 1 | P20: 2 | AC20: 0
A21: 16 | B21: 322 | C21: 4 | D21: 14 | E21: 4 | F21: 4 | H21: 1 | K21: 1 | P21: 2 | Q21: 1 | V21: 2
A22: 17 | B22: 345 | C22: 4 | D22: 10 | E22: 5 | F22: 5 | H22: 1 | K22: 1 | P22: 3 | Q22: 1 | V22: 3
A23: 18 | B23: 281 | C23: 4 | D23: 12 | E23: 3 | F23: 3 | H23: 1 | K23: 1 | P23: 1 | Q23: 1 | V23: 1
B24: =SUM(B15:B23) -> 2996 | C24: =SUM(C15:C23) -> 37 | D24: IND | E24: =SUM(E15:E23) -> 40 | F24: =SUM(F15:F23) -> 39 | G24: =SUM(G15:G23) -> 4 | H24: =SUM(H15:H23) -> 4 | I24: =SUM(I15:I23) -> 0 | J24: =IF((A29=27),"",(SUM(J15:J23)/SUM(J15:L23))*100) -> 12.5 | K24: =IF((A29=27),"",(SUM(K15:K23)/SUM(J15:L23))*100) -> 75 | L24: =IF((A29=27),"",(SUM(L15:L23)/SUM(J15:L23))*100) -> 12.5 | M24: =SUM(M15:M23) -> 0 | N24: =SUM(N15:N23) -> 0 | O24: =SUM(O15:O23) -> 0 | P24: =SUM(P15:P23) -> 19 | Q24: =SUM(Q15:Q23) -> 7 | S24: =IF(Q24=0,0,SUM(S15:S23)/Q24) -> 0 | V24: =SUM(V15:V23) -> 15 | W24: =ColorFunction($E$30,$E$15:$E$23) -> 0 | X24: =ColorFunction($E$31,$E$15:$E$23) -> 1 | Y24: =ColorFunction($E$32,$E$15:$E$23) -> 4 | Z24: =ColorFunction($E$33,$E$15:$E$23) -> 0 | AA24: =SUM(AA15:AA23)/(9-Q24)*100 -> 0 | AB24: =COUNTIF(P15:P23,">2") -> 2 | AC24: =IF((G24=0),"",SUM(AC15:AC23)/G24*100) -> 50
B25: =SUM(B24,B14) -> 5763 | C25: =SUM(C24,C14) -> 73 | D25: TOTAL | E25: =IF(E14=0,"0",(E24+E14)) -> 77 | F25: =SUM(F14,F24) -> 74 | G25: =SUM(G24,G14) -> 6 | H25: =SUM(H24,H14) -> 8 | I25: =SUM(I24,I14) -> 1 | J25: =IF((A28=27),"",(SUM(J14,J24)/2)) -> 13.39285714 | K25: =IF((A28=27),"",(SUM(K14,K24)/2)) -> 80.35714286 | L25: =IF((A28=27),"",(SUM(L14,L24)/2)) -> 6.25 | M25: =SUM(M24,M14) -> 0 | N25: =SUM(N24,N14) -> 1 | O25: =SUM(O24,O14) -> 0 | P25: =IF(P14+P24=0,"",SUM(P24,P14)) -> 36 | Q25: =IF(Q14+Q24=0,"",SUM(Q24,Q14)) -> 13 | S25: =IF(S14+S24=0,"",SUM(S24,S14)/2) ->  | T25: =IF(N25=0,"",(O25)/N25*100) -> 0 | U25: =IF(Q25="","",(Q25)/18*100) -> 72.22222222 | V25: =IF(Q25="","",(V14+V24)/Q25) -> 2.076923077 | W25: =SUM(W14,W24) -> 0 | X25: =SUM(X14,X24) -> 2 | Y25: =SUM(Y14,Y24) -> 6 | Z25: =SUM(Z14,Z24) -> 0 | AA25: =SUM(AA14,AA24)/2 -> 16.66666667 | AB25: =SUM(AB14,AB24) -> 2 | AC25: =SUM(AC24,AC14)/2 -> 50
E27: Udfyld alle grønne felter med 1 for positiv eller antal i tal
A28: =COUNTBLANK(I5:K13) -> 19 | W28: Approach
A29: =COUNTBLANK(I15:K23) -> 20 | E29: Udfyld følgende farver: | S29: Holes to par | W29: Længde (m) | X29: Antal | Y29: Afstand (m)
A30: =SUM(L5:L23) -> 1 | E30: Eagles | S30: Par 3 | T30: =SUMIF(C:C,"3",E:E)/COUNTIF(C:C,3) -> 3.333333333 | W30: 45-70 | X30: =COUNTIFS(R5:R23,">=45",R5:R23,"<=70") -> 0 | Y30: =IF(X30=0,"",AVERAGEIFS(S5:S23,R5:R23,">=45",R5:R23,"<=70")) -> 
E31: Birdies | S31: Par 4 | T31: =SUMIF(C:C,"4",E:E)/COUNTIF(C:C,4) -> 4.363636364 | W31: 71-90 | X31: =COUNTIFS(R5:R23,">=71",R5:R23,"<=90") -> 0 | Y31: =IF(X31=0,"",AVERAGEIFS(S5:S23,R5:R23,">=71",R5:R23,"<=90")) -> 
E32: Bogeys | S32: Par 5 | T32: =SUMIF(C:C,"5",E:E)/COUNTIF(C:C,5) -> 4.75 | W32: 91-115 | X32: =COUNTIFS(R5:R23,">=91",R5:R23,"<=115") -> 0 | Y32: =IF(X32=0,"",AVERAGEIFS(S5:S23,R5:R23,">=91",R5:R23,"<=115")) -> 
E33: Doublebogeys eller værre | W33: 116-140 | X33: =COUNTIFS(R5:R23,">=116",R5:R23,"<=140") -> 0 | Y33: =IF(X33=0,"",AVERAGEIFS(S5:S23,R5:R23,">=116",R5:R23,"<=140")) -> 
S34: First 4 | T34: =IF(E25="0","",SUM(E5:E8)-SUM(C5:C8)) -> 1 | W34: 141-160 | X34: =COUNTIFS(R5:R23,">=141",R5:R23,"<=161") -> 0 | Y34: =IF(X34=0,"",AVERAGEIFS(S5:S23,R5:R23,">=141",R5:R23,"<=160")) -> 
S35: Last 4 | T35: =IF(E25="0","",SUM(E20:E23)-SUM(C20:C23)) -> 1 | W35: 161-180 | X35: =COUNTIFS(R5:R23,">=161",R5:R23,"<=180") -> 0 | Y35: =IF(X35=0,"",AVERAGEIFS(S5:S23,R5:R23,">=161",R5:R23,"<=180")) -> 
W37: Putting
W38: Længde (m) | X38: Antal | Y38: Holet | Z38: Holet (%)
W39: under 1 m | X39: =COUNTIFS(S5:S23,">=0,1",S5:S23,"<=0,9") -> 0 | Y39: =IF(X39=0,"",COUNTIFS(P5:P23,"=1",S5:S23,"<1")) ->  | Z39: =IF(X39=0,"",Y39/X39*100) -> 
W40: 1 - 1,5 | X40: =COUNTIFS(S5:S23,">=1",S5:S23,"<=1,5") -> 0 | Y40: =IF(X40=0,"",COUNTIFS(P5:P23,"=1",S5:S23,">=1",S5:S23,"<=1,5")) ->  | Z40: =IF(X40=0,"",Y40/X40*100) -> 
W41: 1,5 - 3 | X41: =COUNTIFS(S5:S23,">=1,6",S5:S23,"<=3") -> 0 | Y41: =IF(X41=0,"",COUNTIFS(P5:P23,"=1",S5:S23,">=1,6",S5:S23,"<=3")) ->  | Z41: =IF(X41=0,"",Y41/X41*100) -> 
W42: 3 - 4,5 | X42: =COUNTIFS(S5:S23,">=3,1",S5:S23,"<=4,5") -> 0 | Y42: =IF(X42=0,"",COUNTIFS(P5:P23,"=1",S5:S23,">=3,1",S5:S23,"<=4,5")) -> 
W43: 4,5 - 6 | X43: =COUNTIFS(S5:S23,">=4,6",S5:S23,"<=6") -> 0 | Y43: =IF(X43=0,"",COUNTIFS(P5:P23,"=1",S5:S23,">=4,6",S5:S23,"<=6")) -> 
W44: over 6 meter | X44: =COUNTIFS(S5:S23,">6") -> 0 | Y44: =IF(X44=0,"",COUNTIFS(P5:P23,"=1",S5:S23,">6")) -> 

Sheet Runde 19
A1: Korsør Golf Klub - 18 huller - Gul tee | J1: =IF(E25="0","0","1") -> 1 | K1: Dato: | L1: 2010-07-27 | N1: Handicap: | O1: 3.9 | Q1: ATS: | R1: 3 | T1: Vejr: | U1: Sol, 24 grader, svag vind | W1: Turnering: | X1: Tirsdagsklub
H3: Tee shot | K3: Fairway hits i % | N3: Bunker | R3: Approach shots
A4: Hul | B4: Gul tee | C4: Par | D4: HCP | E4: Score | F4: Netto | G4: Driver | H4: Wood | I4: Jern | J4: Venstre | K4: Midt | L4: Højre | M4: FB | N4: GB | O4: SS | P4: Putts | Q4: GIR | R4: Dist. to pin (m) | S4: Dist. to hole (m) | T4: % SS | U4: % GIR | V4: Putts/GIR | W4: Eagles | X4: Birdies | Y4: Bogeys | Z4: Værre | AA4: % Scramble | AB4: 3+ Putts | AC4: % Driver/Fairwayhits
A5: 1 | B5: 307 | C5: 4 | D5: 11 | E5: 5 | F5: 5 | I5: 1 | L5: 1 | P5: 2 | V5: =IF(Q5=0,"",P5) ->  | AA5: =IF(AND(Q5="",P5=1),1,"") ->  | AC5: =IF(AND(G5=""),"",SUM(K5)) -> 
A6: 2 | B6: 323 | C6: 4 | D6: 5 | E6: 5 | F6: 5 | G6: 1 | J6: 1 | P6: 2 | AC6: 0
A7: 3 | B7: 138 | C7: 3 | D7: 15 | E7: 3 | F7: 3 | P7: 1 | AA7: 1
A8: 4 | B8: 310 | C8: 4 | D8: 13 | E8: 4 | F8: 4 | H8: 1 | J8: 1 | P8: 2 | Q8: 1 | R8: 132 | S8: 6 | V8: 2
A9: 5 | B9: 431 | C9: 5 | D9: 3 | E9: 3 | F9: 2 | G9: 1 | K9: 1 | P9: 1 | Q9: 1 | R9: 150 | S9: 7 | V9: 1 | AC9: 1
A10: 6 | B10: 312 | C10: 4 | D10: 9 | E10: 4 | F10: 4 | H10: 1 | K10: 1 | P10: 2 | Q10: 1 | R10: 95 | S10: 2 | V10: 2
A11: 7 | B11: 498 | C11: 5 | D11: 1 | E11: 6 | F11: 5 | I11: 1 | K11: 1 | N11: 1 | P11: 2
A12: 8 | B12: 138 | C12: 3 | D12: 17 | E12: 3 | F12: 3 | P12: 2 | Q12: 1 | R12: 131 | S12: 6 | V12: 2
A13: 9 | B13: 310 | C13: 4 | D13: 7 | E13: 4 | F13: 4 | H13: 1 | K13: 1 | P13: 2 | Q13: 1 | R13: 103 | S13: 3 | V13: 2
B14: =SUM(B5:B13) -> 2767 | C14: =SUM(C5:C13) -> 36 | D14: UD | E14: =SUM(E5:E13) -> 37 | F14: =SUM(F5:F13) -> 35 | G14: =SUM(G5:G13) -> 2 | H14: =SUM(H5:H13) -> 3 | I14: =SUM(I5:I13) -> 2 | J14: =IF((A28=27),"",(SUM(J5:J13)/SUM(J5:L13))*100) -> 28.57142857 | K14: =IF((A28=27),"",(SUM(K5:K13)/SUM(J5:L13))*100) -> 57.14285714 | L14: =IF((A28=27),"",(SUM(L5:L13)/SUM(J5:L13))*100) -> 14.28571429 | M14: =SUM(M5:M13) -> 0 | N14: =SUM(N5:N13) -> 1 | O14: =SUM(O5:O13) -> 0 | P14: =SUM(P5:P13) -> 16 | Q14: =SUM(Q5:Q13) -> 5 | S14: =IF(Q14=0,0,SUM(S5:S13)/Q14) -> 4.8 | V14: =SUM(V5:V13) -> 9 | W14: =ColorFunction($E$30,$E$5:$E$13) -> 1 | X14: =ColorFunction($E$31,$E$5:$E$13) -> 0 | Y14: =ColorFunction($E$32,$E$5:$E$13) -> 3 | Z14: =ColorFunction($E$33,$E$5:$E$13) -> 0 | AA14: =SUM(AA5:AA13)/(9-Q14)*100 -> 25 | AB14: =COUNTIF(P5:P13,">2") -> 0 | AC14: =IF((G14=0),"",SUM(AC5:AC13)/G14*100) -> 50
A15: 10 | B15: 481 | C15: 5 | D15: 4 | E15: 4 | F15: 4 | G15: 1 | K15: 1 | P15: 2 | Q15: 1 | R15: 213 | S15: 12 | V15: =IF(Q15=0,"",P15) -> 2 | AA15: =IF(AND(Q15="",P15=1),1,"") ->  | AC15: =IF(AND(G15=""),"",SUM(K15)) -> 1
A16: 11 | B16: 319 | C16: 4 | D16: 16 | E16: 5 | F16: 5 | H16: 1 | K16: 1 | N16: 1 | P16: 1 | AA16: 1
A17: 12 | B17: 431 | C17: 5 | D17: 2 | E17: 5 | F17: 4 | G17: 1 | J17: 1 | P17: 1 | AA17: 1 | AC17: 0
A18: 13 | B18: 122 | C18: 3 | D18: 18 | E18: 2 | F18: 2 | P18: 1 | Q18: 1 | R18: 108 | S18: 3 | V18: 1
A19: 14 | B19: 379 | C19: 4 | D19: 6 | E19: 5 | F19: 5 | G19: 1 | L19: 1 | P19: 2 | AC19: 0
A20: 15 | B20: 316 | C20: 4 | D20: 8 | E20: 4 | F20: 4 | G20: 1 | K20: 1 | P20: 2 | Q20: 1 | R20: 64 | S20: 6 | V20: 2 | AC20: 1
A21: 16 | B21: 322 | C21: 4 | D21: 14 | E21: 4 | F21: 4 | H21: 1 | K21: 1 | P21: 2 | Q21: 1 | R21: 125 | S21: 5 | V21: 2
A22: 17 | B22: 345 | C22: 4 | D22: 10 | E22: 4 | F22: 4 | H22: 1 | J22: 1 | P22: 2 | Q22: 1 | R22: 155 | S22: 5 | V22: 2
A23: 18 | B23: 281 | C23: 4 | D23: 12 | E23: 5 | F23: 5 | H23: 1 | J23: 1 | P23: 2
B24: =SUM(B15:B23) -> 2996 | C24: =SUM(C15:C23) -> 37 | D24: IND | E24: =SUM(E15:E23) -> 38 | F24: =SUM(F15:F23) -> 37 | G24: =SUM(G15:G23) -> 4 | H24: =SUM(H15:H23) -> 4 | I24: =SUM(I15:I23) -> 0 | J24: =IF((A29=27),"",(SUM(J15:J23)/SUM(J15:L23))*100) -> 37.5 | K24: =IF((A29=27),"",(SUM(K15:K23)/SUM(J15:L23))*100) -> 50 | L24: =IF((A29=27),"",(SUM(L15:L23)/SUM(J15:L23))*100) -> 12.5 | M24: =SUM(M15:M23) -> 0 | N24: =SUM(N15:N23) -> 1 | O24: =SUM(O15:O23) -> 0 | P24: =SUM(P15:P23) -> 15 | Q24: =SUM(Q15:Q23) -> 5 | S24: =IF(Q24=0,0,SUM(S15:S23)/Q24) -> 6.2 | V24: =SUM(V15:V23) -> 9 | W24: =ColorFunction($E$30,$E$15:$E$23) -> 0 | X24: =ColorFunction($E$31,$E$15:$E$23) -> 2 | Y24: =ColorFunction($E$32,$E$15:$E$23) -> 3 | Z24: =ColorFunction($E$33,$E$15:$E$23) -> 0 | AA24: =SUM(AA15:AA23)/(9-Q24)*100 -> 50 | AB24: =COUNTIF(P15:P23,">2") -> 0 | AC24: =IF((G24=0),"",SUM(AC15:AC23)/G24*100) -> 50
B25: =SUM(B24,B14) -> 5763 | C25: =SUM(C24,C14) -> 73 | D25: TOTAL | E25: =IF(E14=0,"0",(E24+E14)) -> 75 | F25: =SUM(F14,F24) -> 72 | G25: =SUM(G24,G14) -> 6 | H25: =SUM(H24,H14) -> 7 | I25: =SUM(I24,I14) -> 2 | J25: =IF((A28=27),"",(SUM(J14,J24)/2)) -> 33.03571429 | K25: =IF((A28=27),"",(SUM(K14,K24)/2)) -> 53.57142857 | L25: =IF((A28=27),"",(SUM(L14,L24)/2)) -> 13.39285714 | M25: =SUM(M24,M14) -> 0 | N25: =SUM(N24,N14) -> 2 | O25: =SUM(O24,O14) -> 0 | P25: =IF(P14+P24=0,"",SUM(P24,P14)) -> 31 | Q25: =IF(Q14+Q24=0,"",SUM(Q24,Q14)) -> 10 | S25: =IF(S14+S24=0,"",SUM(S24,S14)/2) -> 5.5 | T25: =IF(N25=0,"",(O25)/N25*100) -> 0 | U25: =IF(Q25="","",(Q25)/18*100) -> 55.55555556 | V25: =IF(Q25="","",(V14+V24)/Q25) -> 1.8 | W25: =SUM(W14,W24) -> 1 | X25: =SUM(X14,X24) -> 2 | Y25: =SUM(Y14,Y24) -> 6 | Z25: =SUM(Z14,Z24) -> 0 | AA25: =SUM(AA14,AA24)/2 -> 37.5 | AB25: =SUM(AB14,AB24) -> 0 | AC25: =SUM(AC24,AC14)/2 -> 50
E27: Udfyld alle grønne felter med 1 for positiv eller antal i tal
A28: =COUNTBLANK(I5:K13) -> 19 | W28: Approach
A29: =COUNTBLANK(I15:K23) -> 20 | E29: Udfyld følgende farver: | S29: Holes to par | W29: Længde (m) | X29: Antal | Y29: Afstand (m)
A30: =SUM(L5:L23) -> 16.28571429 | E30: Eagles | S30: Par 3 | T30: =SUMIF(C:C,"3",E:E)/COUNTIF(C:C,3) -> 2.666666667 | W30: 45-70 | X30: =COUNTIFS(R5:R23,">=45",R5:R23,"<=70") -> 1 | Y30: =IF(X30=0,"",AVERAGEIFS(S5:S23,R5:R23,">=45",R5:R23,"<=70")) -> 6
E31: Birdies | S31: Par 4 | T31: =SUMIF(C:C,"4",E:E)/COUNTIF(C:C,4) -> 4.454545455 | W31: 71-90 | X31: =COUNTIFS(R5:R23,">=71",R5:R23,"<=90") -> 0 | Y31: =IF(X31=0,"",AVERAGEIFS(S5:S23,R5:R23,">=71",R5:R23,"<=90")) -> 
E32: Bogeys | S32: Par 5 | T32: =SUMIF(C:C,"5",E:E)/COUNTIF(C:C,5) -> 4.5 | W32: 91-115 | X32: =COUNTIFS(R5:R23,">=91",R5:R23,"<=115") -> 3 | Y32: =IF(X32=0,"",AVERAGEIFS(S5:S23,R5:R23,">=91",R5:R23,"<=115")) -> 2.666666667
E33: Doublebogeys eller værre | W33: 116-140 | X33: =COUNTIFS(R5:R23,">=116",R5:R23,"<=140") -> 3 | Y33: =IF(X33=0,"",AVERAGEIFS(S5:S23,R5:R23,">=116",R5:R23,"<=140")) -> 5.666666667
S34: First 4 | T34: =IF(E25="0","",SUM(E5:E8)-SUM(C5:C8)) -> 2 | W34: 141-160 | X34: =COUNTIFS(R5:R23,">=141",R5:R23,"<=161") -> 2 | Y34: =IF(X34=0,"",AVERAGEIFS(S5:S23,R5:R23,">=141",R5:R23,"<=160")) -> 6
S35: Last 4 | T35: =IF(E25="0","",SUM(E20:E23)-SUM(C20:C23)) -> 1 | W35: 161-180 | X35: =COUNTIFS(R5:R23,">=161",R5:R23,"<=180") -> 0 | Y35: =IF(X35=0,"",AVERAGEIFS(S5:S23,R5:R23,">=161",R5:R23,"<=180")) -> 
W37: Putting
W38: Længde (m) | X38: Antal | Y38: Holet | Z38: Holet (%)
W39: under 1 m | X39: =COUNTIFS(S5:S23,">=0,1",S5:S23,"<=0,9") -> 0 | Y39: =IF(X39=0,"",COUNTIFS(P5:P23,"=1",S5:S23,"<1")) ->  | Z39: =IF(X39=0,"",Y39/X39*100) -> 
W40: 1 - 1,5 | X40: =COUNTIFS(S5:S23,">=1",S5:S23,"<=1,5") -> 0 | Y40: =IF(X40=0,"",COUNTIFS(P5:P23,"=1",S5:S23,">=1",S5:S23,"<=1,5")) ->  | Z40: =IF(X40=0,"",Y40/X40*100) -> 
W41: 1,5 - 3 | X41: =COUNTIFS(S5:S23,">=1,6",S5:S23,"<=3") -> 3 | Y41: =IF(X41=0,"",COUNTIFS(P5:P23,"=1",S5:S23,">=1,6",S5:S23,"<=3")) -> 1 | Z41: =IF(X41=0,"",Y41/X41*100) -> 33.33333333
W42: 3 - 4,5 | X42: =COUNTIFS(S5:S23,">=3,1",S5:S23,"<=4,5") -> 0 | Y42: =IF(X42=0,"",COUNTIFS(P5:P23,"=1",S5:S23,">=3,1",S5:S23,"<=4,5")) -> 
W43: 4,5 - 6 | X43: =COUNTIFS(S5:S23,">=4,6",S5:S23,"<=6") -> 6 | Y43: =IF(X43=0,"",COUNTIFS(P5:P23,"=1",S5:S23,">=4,6",S5:S23,"<=6")) -> 0 | Z43: 0
W44: over 6 meter | X44: =COUNTIFS(S5:S23,">6") -> 2 | Y44: =IF(X44=0,"",COUNTIFS(P5:P23,"=1",S5:S23,">6")) -> 1 | Z44: 50

Sheet Runde 20
A1: Korsør Golf Klub - 18 huller - Gul tee | J1: =IF(E25="0","0","1") -> 1 | K1: Dato: | L1: 2010-06-28 | N1: Handicap: | O1: 4 | Q1: ATS: | R1: 3 | T1: Vejr: | U1: 24 grader, sol og svag til jævn vind | W1: Turnering: | X1: Punkt1 Bestball med Jan
H3: Tee shot | K3: Fairway hits i % | N3: Bunker | R3: Approach shots
A4: Hul | B4: Gul tee | C4: Par | D4: HCP | E4: Score | F4: Netto | G4: Driver | H4: Wood | I4: Jern | J4: Venstre | K4: Midt | L4: Højre | M4: FB | N4: GB | O4: SS | P4: Putts | Q4: GIR | R4: Dist. to pin (m) | S4: Dist. to hole (m) | T4: % SS | U4: % GIR | V4: Putts/GIR | W4: Eagles | X4: Birdies | Y4: Bogeys | Z4: Værre | AA4: % Scramble | AB4: 3+ Putts | AC4: % Driver/Fairwayhits
A5: 1 | B5: 307 | C5: 4 | D5: 11 | E5: 4 | F5: 4 | G5: 1 | K5: 1 | P5: 2 | Q5: 1 | R5: 37 | S5: 5 | V5: =IF(Q5=0,"",P5) -> 2 | AA5: =IF(AND(Q5="",P5=1),1,"") ->  | AC5: =IF(AND(G5=""),"",SUM(K5)) -> 1
A6: 2 | B6: 323 | C6: 4 | D6: 5 | E6: 3 | F6: 3 | G6: 1 | K6: 1 | P6: 1 | Q6: 1 | R6: 79 | S6: 2 | V6: 1 | AC6: 1
A7: 3 | B7: 138 | C7: 3 | D7: 15 | E7: 3 | F7: 3 | P7: 2 | Q7: 1 | R7: 128 | S7: 4 | V7: 2
A8: 4 | B8: 310 | C8: 4 | D8: 13 | E8: 4 | F8: 4 | H8: 1 | K8: 1 | P8: 2 | Q8: 1 | R8: 131 | S8: 6 | V8: 2
A9: 5 | B9: 431 | C9: 5 | D9: 3 | E9: 4 | F9: 3 | G9: 1 | K9: 1 | P9: 1 | Q9: 1 | R9: 10 | S9: 2 | V9: 1 | AC9: 1
A10: 6 | B10: 312 | C10: 4 | D10: 9 | E10: 4 | F10: 4 | H10: 1 | K10: 1 | P10: 2 | Q10: 1 | R10: 124 | S10: 6 | V10: 2
A11: 7 | B11: 498 | C11: 5 | D11: 1 | E11: 5 | F11: 4 | I11: 1 | K11: 1 | P11: 2 | Q11: 1 | R11: 101 | S11: 7 | V11: 2
A12: 8 | B12: 138 | C12: 3 | D12: 17 | E12: 3 | F12: 3 | P12: 2 | Q12: 1 | R12: 132 | S12: 5 | V12: 2
A13: 9 | B13: 310 | C13: 4 | D13: 7 | E13: 4 | F13: 4 | H13: 1 | K13: 1 | P13: 2 | Q13: 1 | R13: 102 | S13: 3 | V13: 2
B14: =SUM(B5:B13) -> 2767 | C14: =SUM(C5:C13) -> 36 | D14: UD | E14: =SUM(E5:E13) -> 34 | F14: =SUM(F5:F13) -> 32 | G14: =SUM(G5:G13) -> 3 | H14: =SUM(H5:H13) -> 3 | I14: =SUM(I5:I13) -> 1 | J14: =IF((A28=27),"",(SUM(J5:J13)/SUM(J5:L13))*100) -> 0 | K14: =IF((A28=27),"",(SUM(K5:K13)/SUM(J5:L13))*100) -> 100 | L14: =IF((A28=27),"",(SUM(L5:L13)/SUM(J5:L13))*100) -> 0 | M14: =SUM(M5:M13) -> 0 | N14: =SUM(N5:N13) -> 0 | O14: =SUM(O5:O13) -> 0 | P14: =SUM(P5:P13) -> 16 | Q14: =SUM(Q5:Q13) -> 9 | S14: =IF(Q14=0,0,SUM(S5:S13)/Q14) -> 4.444444444 | V14: =SUM(V5:V13) -> 16 | W14: =ColorFunction($E$30,$E$5:$E$13) -> 0 | X14: =ColorFunction($E$31,$E$5:$E$13) -> 2 | Y14: =ColorFunction($E$32,$E$5:$E$13) -> 0 | Z14: =ColorFunction($E$33,$E$5:$E$13) -> 0 | AB14: =COUNTIF(P5:P13,">2") -> 0 | AC14: =IF((G14=0),"",SUM(AC5:AC13)/G14*100) -> 100
A15: 10 | B15: 481 | C15: 5 | D15: 4 | E15: 5 | F15: 5 | G15: 1 | K15: 1 | P15: 2 | Q15: 1 | R15: 15 | S15: 2 | V15: =IF(Q15=0,"",P15) -> 2 | AA15: =IF(AND(Q15="",P15=1),1,"") ->  | AC15: =IF(AND(G15=""),"",SUM(K15)) -> 1
A16: 11 | B16: 319 | C16: 4 | D16: 16 | E16: 3 | F16: 3 | H16: 1 | K16: 1 | P16: 1 | Q16: 1 | R16: 93 | S16: 1.5 | V16: 1
A17: 12 | B17: 431 | C17: 5 | D17: 2 | E17: 4 | F17: 3 | G17: 1 | K17: 1 | P17: 1 | Q17: 1 | R17: 10 | S17: 1.5 | V17: 1 | AC17: 1
A18: 13 | B18: 122 | C18: 3 | D18: 18 | E18: 2 | F18: 2 | P18: 1 | Q18: 1 | R18: 111 | S18: 5 | V18: 1
A19: 14 | B19: 379 | C19: 4 | D19: 6 | E19: 4 | F19: 4 | G19: 1 | K19: 1 | P19: 2 | Q19: 1 | R19: 143 | S19: 8 | V19: 2 | AC19: 1
A20: 15 | B20: 316 | C20: 4 | D20: 8 | E20: 7 | F20: 7 | G20: 1 | L20: 1 | P20: 2 | AC20: 0
A21: 16 | B21: 322 | C21: 4 | D21: 14 | E21: 3 | F21: 3 | H21: 1 | K21: 1 | P21: 1 | Q21: 1 | R21: 94 | S21: 2 | V21: 1
A22: 17 | B22: 345 | C22: 4 | D22: 10 | E22: 4 | F22: 4 | H22: 1 | K22: 1 | P22: 2 | Q22: 1 | R22: 161 | S22: 4 | V22: 2
A23: 18 | B23: 281 | C23: 4 | D23: 12 | E23: 4 | F23: 4 | H23: 1 | K23: 1 | P23: 1 | AA23: 1
B24: =SUM(B15:B23) -> 2996 | C24: =SUM(C15:C23) -> 37 | D24: IND | E24: =SUM(E15:E23) -> 36 | F24: =SUM(F15:F23) -> 35 | G24: =SUM(G15:G23) -> 4 | H24: =SUM(H15:H23) -> 4 | I24: =SUM(I15:I23) -> 0 | J24: =IF((A29=27),"",(SUM(J15:J23)/SUM(J15:L23))*100) -> 0 | K24: =IF((A29=27),"",(SUM(K15:K23)/SUM(J15:L23))*100) -> 87.5 | L24: =IF((A29=27),"",(SUM(L15:L23)/SUM(J15:L23))*100) -> 12.5 | M24: =SUM(M15:M23) -> 0 | N24: =SUM(N15:N23) -> 0 | O24: =SUM(O15:O23) -> 0 | P24: =SUM(P15:P23) -> 13 | Q24: =SUM(Q15:Q23) -> 7 | S24: =IF(Q24=0,0,SUM(S15:S23)/Q24) -> 3.428571429 | V24: =SUM(V15:V23) -> 10 | W24: =ColorFunction($E$30,$E$15:$E$23) -> 0 | X24: =ColorFunction($E$31,$E$15:$E$23) -> 4 | Y24: =ColorFunction($E$32,$E$15:$E$23) -> 0 | Z24: =ColorFunction($E$33,$E$15:$E$23) -> 1 | AA24: =SUM(AA15:AA23)/(9-Q24)*100 -> 50 | AB24: =COUNTIF(P15:P23,">2") -> 0 | AC24: =IF((G24=0),"",SUM(AC15:AC23)/G24*100) -> 75
B25: =SUM(B24,B14) -> 5763 | C25: =SUM(C24,C14) -> 73 | D25: TOTAL | E25: =IF(E14=0,"0",(E24+E14)) -> 70 | F25: =SUM(F14,F24) -> 67 | G25: =SUM(G24,G14) -> 7 | H25: =SUM(H24,H14) -> 7 | I25: =SUM(I24,I14) -> 1 | J25: =IF((A28=27),"",(SUM(J14,J24)/2)) -> 0 | K25: =IF((A28=27),"",(SUM(K14,K24)/2)) -> 93.75 | L25: =IF((A28=27),"",(SUM(L14,L24)/2)) -> 6.25 | M25: =SUM(M24,M14) -> 0 | N25: =SUM(N24,N14) -> 0 | O25: =SUM(O24,O14) -> 0 | P25: =IF(P14+P24=0,"",SUM(P24,P14)) -> 29 | Q25: =IF(Q14+Q24=0,"",SUM(Q24,Q14)) -> 16 | S25: =IF(S14+S24=0,"",SUM(S24,S14)/2) -> 3.936507937 | T25: =IF(N25=0,"",(O25)/N25*100) ->  | U25: =IF(Q25="","",(Q25)/18*100) -> 88.88888889 | V25: =IF(Q25="","",(V14+V24)/Q25) -> 1.625 | W25: =SUM(W14,W24) -> 0 | X25: =SUM(X14,X24) -> 6 | Y25: =SUM(Y14,Y24) -> 0 | Z25: =SUM(Z14,Z24) -> 1 | AA25: 50 | AB25: =SUM(AB14,AB24) -> 0 | AC25: =SUM(AC24,AC14)/2 -> 87.5
E27: Udfyld alle grønne felter med 1 for positiv eller antal i tal
A28: =COUNTBLANK(I5:K13) -> 19 | W28: Approach
A29: =COUNTBLANK(I15:K23) -> 20 | E29: Udfyld følgende farver: | S29: Holes to par | W29: Længde (m) | X29: Antal | Y29: Afstand (m)
A30: =SUM(L5:L23) -> 1 | E30: Eagles | S30: Par 3 | T30: =SUMIF(C:C,"3",E:E)/COUNTIF(C:C,3) -> 2.666666667 | W30: 45-70 | X30: =COUNTIFS(R5:R23,">=45",R5:R23,"<=70") -> 0 | Y30: =IF(X30=0,"",AVERAGEIFS(S5:S23,R5:R23,">=45",R5:R23,"<=70")) -> 
E31: Birdies | S31: Par 4 | T31: =SUMIF(C:C,"4",E:E)/COUNTIF(C:C,4) -> 4 | W31: 71-90 | X31: =COUNTIFS(R5:R23,">=71",R5:R23,"<=90") -> 1 | Y31: =IF(X31=0,"",AVERAGEIFS(S5:S23,R5:R23,">=71",R5:R23,"<=90")) -> 2
E32: Bogeys | S32: Par 5 | T32: =SUMIF(C:C,"5",E:E)/COUNTIF(C:C,5) -> 4.5 | W32: 91-115 | X32: =COUNTIFS(R5:R23,">=91",R5:R23,"<=115") -> 5 | Y32: =IF(X32=0,"",AVERAGEIFS(S5:S23,R5:R23,">=91",R5:R23,"<=115")) -> 3.7
E33: Doublebogeys eller værre | W33: 116-140 | X33: =COUNTIFS(R5:R23,">=116",R5:R23,"<=140") -> 4 | Y33: =IF(X33=0,"",AVERAGEIFS(S5:S23,R5:R23,">=116",R5:R23,"<=140")) -> 5.25
S34: First 4 | T34: =IF(E25="0","",SUM(E5:E8)-SUM(C5:C8)) -> -1 | W34: 141-160 | X34: =COUNTIFS(R5:R23,">=141",R5:R23,"<=161") -> 2 | Y34: =IF(X34=0,"",AVERAGEIFS(S5:S23,R5:R23,">=141",R5:R23,"<=160")) -> 8
S35: Last 4 | T35: =IF(E25="0","",SUM(E20:E23)-SUM(C20:C23)) -> 2 | W35: 161-180 | X35: =COUNTIFS(R5:R23,">=161",R5:R23,"<=180") -> 1 | Y35: =IF(X35=0,"",AVERAGEIFS(S5:S23,R5:R23,">=161",R5:R23,"<=180")) -> 4
W37: Putting
W38: Længde (m) | X38: Antal | Y38: Holet | Z38: Holet (%)
W39: under 1 m | X39: =COUNTIFS(S5:S23,">=0,1",S5:S23,"<=0,9") -> 0 | Y39: =IF(X39=0,"",COUNTIFS(P5:P23,"=1",S5:S23,"<1")) ->  | Z39: =IF(X39=0,"",Y39/X39*100) -> 
W40: 1 - 1,5 | X40: =COUNTIFS(S5:S23,">=1",S5:S23,"<=1,5") -> 2 | Y40: =IF(X40=0,"",COUNTIFS(P5:P23,"=1",S5:S23,">=1",S5:S23,"<=1,5")) -> 2 | Z40: =IF(X40=0,"",Y40/X40*100) -> 100
W41: 1,5 - 3 | X41: =COUNTIFS(S5:S23,">=1,6",S5:S23,"<=3") -> 5 | Y41: =IF(X41=0,"",COUNTIFS(P5:P23,"=1",S5:S23,">=1,6",S5:S23,"<=3")) -> 3 | Z41: =IF(X41=0,"",Y41/X41*100) -> 60
W42: 3 - 4,5 | X42: =COUNTIFS(S5:S23,">=3,1",S5:S23,"<=4,5") -> 3 | Y42: =IF(X42=0,"",COUNTIFS(P5:P23,"=1",S5:S23,">=3,1",S5:S23,"<=4,5")) -> 0 | Z42: 0
W43: 4,5 - 6 | X43: =COUNTIFS(S5:S23,">=4,6",S5:S23,"<=6") -> 5 | Y43: =IF(X43=0,"",COUNTIFS(P5:P23,"=1",S5:S23,">=4,6",S5:S23,"<=6")) -> 1 | Z43: 20
W44: over 6 meter | X44: =COUNTIFS(S5:S23,">6") -> 2 | Y44: =IF(X44=0,"",COUNTIFS(P5:P23,"=1",S5:S23,">6")) -> 0 | Z44: 0

Sheet Runde 21
A1: Korsør Golf Klub - 18 huller - Gul tee | J1: =IF(E25="0","0","1") -> 1 | K1: Dato: | L1: 2010-07-29 | N1: Handicap: | O1: 4 | Q1: ATS: | R1: 3 | T1: Vejr: | U1: Skyet, 20 grader, frisk til hård vind | W1: Turnering: | X1: Golf og Ski, festugen
H3: Tee shot | K3: Fairway hits i % | N3: Bunker | R3: Approach shots
A4: Hul | B4: Gul tee | C4: Par | D4: HCP | E4: Score | F4: Netto | G4: Driver | H4: Wood | I4: Jern | J4: Venstre | K4: Midt | L4: Højre | M4: FB | N4: GB | O4: SS | P4: Putts | Q4: GIR | R4: Dist. to pin (m) | S4: Dist. to hole (m) | T4: % SS | U4: % GIR | V4: Putts/GIR | W4: Eagles | X4: Birdies | Y4: Bogeys | Z4: Værre | AA4: % Scramble | AB4: 3+ Putts | AC4: % Driver/Fairwayhits
A5: 1 | B5: 307 | C5: 4 | D5: 11 | E5: 4 | F5: 4 | G5: 1 | K5: 1 | P5: 2 | Q5: 1 | V5: =IF(Q5=0,"",P5) -> 2 | AA5: =IF(AND(Q5="",P5=1),1,"") ->  | AC5: =IF(AND(G5=""),"",SUM(K5)) -> 1
A6: 2 | B6: 323 | C6: 4 | D6: 5 | E6: 4 | F6: 4 | G6: 1 | K6: 1 | P6: 2 | Q6: 1 | V6: 2 | AC6: 1
A7: 3 | B7: 138 | C7: 3 | D7: 15 | E7: 4 | F7: 4 | P7: 2
A8: 4 | B8: 310 | C8: 4 | D8: 13 | E8: 4 | F8: 4 | I8: 1 | K8: 1 | P8: 2 | Q8: 1 | V8: 2
A9: 5 | B9: 431 | C9: 5 | D9: 3 | E9: 4 | F9: 3 | G9: 1 | K9: 1 | P9: 1 | Q9: 1 | V9: 1 | AC9: 1
A10: 6 | B10: 312 | C10: 4 | D10: 9 | E10: 4 | F10: 4 | G10: 1 | K10: 1 | P10: 2 | Q10: 1 | V10: 2 | AC10: 1
A11: 7 | B11: 498 | C11: 5 | D11: 1 | E11: 6 | F11: 5 | I11: 1 | K11: 1 | P11: 1 | AA11: 1
A12: 8 | B12: 138 | C12: 3 | D12: 17 | E12: 4 | F12: 4 | P12: 2
A13: 9 | B13: 310 | C13: 4 | D13: 7 | E13: 4 | F13: 4 | H13: 1 | K13: 1 | P13: 1 | AA13: 1
B14: =SUM(B5:B13) -> 2767 | C14: =SUM(C5:C13) -> 36 | D14: UD | E14: =SUM(E5:E13) -> 38 | F14: =SUM(F5:F13) -> 36 | G14: =SUM(G5:G13) -> 4 | H14: =SUM(H5:H13) -> 1 | I14: =SUM(I5:I13) -> 2 | J14: =IF((A28=27),"",(SUM(J5:J13)/SUM(J5:L13))*100) -> 0 | K14: =IF((A28=27),"",(SUM(K5:K13)/SUM(J5:L13))*100) -> 100 | L14: =IF((A28=27),"",(SUM(L5:L13)/SUM(J5:L13))*100) -> 0 | M14: =SUM(M5:M13) -> 0 | N14: =SUM(N5:N13) -> 0 | O14: =SUM(O5:O13) -> 0 | P14: =SUM(P5:P13) -> 15 | Q14: =SUM(Q5:Q13) -> 5 | S14: =IF(Q14=0,0,SUM(S5:S13)/Q14) -> 0 | V14: =SUM(V5:V13) -> 9 | W14: =ColorFunction($E$30,$E$5:$E$13) -> 0 | X14: =ColorFunction($E$31,$E$5:$E$13) -> 1 | Y14: =ColorFunction($E$32,$E$5:$E$13) -> 3 | Z14: =ColorFunction($E$33,$E$5:$E$13) -> 0 | AA14: =SUM(AA5:AA13)/(9-Q14)*100 -> 50 | AB14: =COUNTIF(P5:P13,">2") -> 0 | AC14: =IF((G14=0),"",SUM(AC5:AC13)/G14*100) -> 100
A15: 10 | B15: 481 | C15: 5 | D15: 4 | E15: 6 | F15: 6 | G15: 1 | K15: 1 | N15: 1 | P15: 1 | V15: =IF(Q15=0,"",P15) ->  | AA15: =IF(AND(Q15="",P15=1),1,"") -> 1 | AC15: =IF(AND(G15=""),"",SUM(K15)) -> 1
A16: 11 | B16: 319 | C16: 4 | D16: 16 | E16: 4 | F16: 4 | H16: 1 | K16: 1 | P16: 2 | Q16: 1 | V16: 2
A17: 12 | B17: 431 | C17: 5 | D17: 2 | E17: 4 | F17: 3 | G17: 1 | K17: 1 | P17: 1 | Q17: 1 | V17: 1 | AC17: 1
A18: 13 | B18: 122 | C18: 3 | D18: 18 | E18: 4 | F18: 4 | P18: 3 | Q18: 1 | V18: 3
A19: 14 | B19: 379 | C19: 4 | D19: 6 | E19: 3 | F19: 3 | G19: 1 | K19: 1 | P19: 1 | Q19: 1 | V19: 1 | AC19: 1
A20: 15 | B20: 316 | C20: 4 | D20: 8 | E20: 4 | F20: 4 | G20: 1 | J20: 1 | P20: 2 | Q20: 1 | V20: 2 | AC20: 0
A21: 16 | B21: 322 | C21: 4 | D21: 14 | E21: 4 | F21: 4 | G21: 1 | K21: 1 | P21: 2 | Q21: 1 | V21: 2 | AC21: 1
A22: 17 | B22: 345 | C22: 4 | D22: 10 | E22: 4 | F22: 4 | H22: 1 | K22: 1 | P22: 2 | Q22: 1 | V22: 2
A23: 18 | B23: 281 | C23: 4 | D23: 12 | E23: 4 | F23: 4 | H23: 1 | K23: 1 | P23: 2 | Q23: 1 | V23: 2
B24: =SUM(B15:B23) -> 2996 | C24: =SUM(C15:C23) -> 37 | D24: IND | E24: =SUM(E15:E23) -> 37 | F24: =SUM(F15:F23) -> 36 | G24: =SUM(G15:G23) -> 5 | H24: =SUM(H15:H23) -> 3 | I24: =SUM(I15:I23) -> 0 | J24: =IF((A29=27),"",(SUM(J15:J23)/SUM(J15:L23))*100) -> 12.5 | K24: =IF((A29=27),"",(SUM(K15:K23)/SUM(J15:L23))*100) -> 87.5 | L24: =IF((A29=27),"",(SUM(L15:L23)/SUM(J15:L23))*100) -> 0 | M24: =SUM(M15:M23) -> 0 | N24: =SUM(N15:N23) -> 1 | O24: =SUM(O15:O23) -> 0 | P24: =SUM(P15:P23) -> 16 | Q24: =SUM(Q15:Q23) -> 8 | S24: =IF(Q24=0,0,SUM(S15:S23)/Q24) -> 0 | V24: =SUM(V15:V23) -> 15 | W24: =ColorFunction($E$30,$E$15:$E$23) -> 0 | X24: =ColorFunction($E$31,$E$15:$E$23) -> 2 | Y24: =ColorFunction($E$32,$E$15:$E$23) -> 1 | Z24: =ColorFunction($E$33,$E$15:$E$23) -> 0 | AA24: =SUM(AA15:AA23)/(9-Q24)*100 -> 100 | AB24: =COUNTIF(P15:P23,">2") -> 1 | AC24: =IF((G24=0),"",SUM(AC15:AC23)/G24*100) -> 80
B25: =SUM(B24,B14) -> 5763 | C25: =SUM(C24,C14) -> 73 | D25: TOTAL | E25: =IF(E14=0,"0",(E24+E14)) -> 75 | F25: =SUM(F14,F24) -> 72 | G25: =SUM(G24,G14) -> 9 | H25: =SUM(H24,H14) -> 4 | I25: =SUM(I24,I14) -> 2 | J25: =IF((A28=27),"",(SUM(J14,J24)/2)) -> 6.25 | K25: =IF((A28=27),"",(SUM(K14,K24)/2)) -> 93.75 | L25: =IF((A28=27),"",(SUM(L14,L24)/2)) -> 0 | M25: =SUM(M24,M14) -> 0 | N25: =SUM(N24,N14) -> 1 | O25: =SUM(O24,O14) -> 0 | P25: =IF(P14+P24=0,"",SUM(P24,P14)) -> 31 | Q25: =IF(Q14+Q24=0,"",SUM(Q24,Q14)) -> 13 | S25: =IF(S14+S24=0,"",SUM(S24,S14)/2) ->  | T25: =IF(N25=0,"",(O25)/N25*100) -> 0 | U25: =IF(Q25="","",(Q25)/18*100) -> 72.22222222 | V25: =IF(Q25="","",(V14+V24)/Q25) -> 1.846153846 | W25: =SUM(W14,W24) -> 0 | X25: =SUM(X14,X24) -> 3 | Y25: =SUM(Y14,Y24) -> 4 | Z25: =SUM(Z14,Z24) -> 0 | AA25: =SUM(AA14,AA24)/2 -> 75 | AB25: =SUM(AB14,AB24) -> 1 | AC25: =SUM(AC24,AC14)/2 -> 90
E27: Udfyld alle grønne felter med 1 for positiv eller antal i tal
A28: =COUNTBLANK(I5:K13) -> 18 | W28: Approach
A29: =COUNTBLANK(I15:K23) -> 19 | E29: Udfyld følgende farver: | S29: Holes to par | W29: Længde (m) | X29: Antal | Y29: Afstand (m)
A30: =SUM(L5:L23) -> 0 | E30: Eagles | S30: Par 3 | T30: =SUMIF(C:C,"3",E:E)/COUNTIF(C:C,3) -> 4 | W30: 45-70 | X30: =COUNTIFS(R5:R23,">=45",R5:R23,"<=70") -> 0 | Y30: =IF(X30=0,"",AVERAGEIFS(S5:S23,R5:R23,">=45",R5:R23,"<=70")) -> 
E31: Birdies | S31: Par 4 | T31: =SUMIF(C:C,"4",E:E)/COUNTIF(C:C,4) -> 3.909090909 | W31: 71-90 | X31: =COUNTIFS(R5:R23,">=71",R5:R23,"<=90") -> 0 | Y31: =IF(X31=0,"",AVERAGEIFS(S5:S23,R5:R23,">=71",R5:R23,"<=90")) -> 
E32: Bogeys | S32: Par 5 | T32: =SUMIF(C:C,"5",E:E)/COUNTIF(C:C,5) -> 5 | W32: 91-115 | X32: =COUNTIFS(R5:R23,">=91",R5:R23,"<=115") -> 0 | Y32: =IF(X32=0,"",AVERAGEIFS(S5:S23,R5:R23,">=91",R5:R23,"<=115")) -> 
E33: Doublebogeys eller værre | W33: 116-140 | X33: =COUNTIFS(R5:R23,">=116",R5:R23,"<=140") -> 0 | Y33: =IF(X33=0,"",AVERAGEIFS(S5:S23,R5:R23,">=116",R5:R23,"<=140")) -> 
S34: First 4 | T34: =IF(E25="0","",SUM(E5:E8)-SUM(C5:C8)) -> 1 | W34: 141-160 | X34: =COUNTIFS(R5:R23,">=141",R5:R23,"<=161") -> 0 | Y34: =IF(X34=0,"",AVERAGEIFS(S5:S23,R5:R23,">=141",R5:R23,"<=160")) -> 
S35: Last 4 | T35: =IF(E25="0","",SUM(E20:E23)-SUM(C20:C23)) -> 0 | W35: 161-180 | X35: =COUNTIFS(R5:R23,">=161",R5:R23,"<=180") -> 0 | Y35: =IF(X35=0,"",AVERAGEIFS(S5:S23,R5:R23,">=161",R5:R23,"<=180")) -> 
W37: Putting
W38: Længde (m) | X38: Antal | Y38: Holet | Z38: Holet (%)
W39: under 1 m | X39: =COUNTIFS(S5:S23,">=0,1",S5:S23,"<=0,9") -> 0 | Y39: =IF(X39=0,"",COUNTIFS(P5:P23,"=1",S5:S23,"<1")) ->  | Z39: =IF(X39=0,"",Y39/X39*100) -> 
W40: 1 - 1,5 | X40: =COUNTIFS(S5:S23,">=1",S5:S23,"<=1,5") -> 0 | Y40: =IF(X40=0,"",COUNTIFS(P5:P23,"=1",S5:S23,">=1",S5:S23,"<=1,5")) ->  | Z40: =IF(X40=0,"",Y40/X40*100) -> 
W41: 1,5 - 3 | X41: =COUNTIFS(S5:S23,">=1,6",S5:S23,"<=3") -> 0 | Y41: =IF(X41=0,"",COUNTIFS(P5:P23,"=1",S5:S23,">=1,6",S5:S23,"<=3")) ->  | Z41: =IF(X41=0,"",Y41/X41*100) -> 
W42: 3 - 4,5 | X42: =COUNTIFS(S5:S23,">=3,1",S5:S23,"<=4,5") -> 0 | Y42: =IF(X42=0,"",COUNTIFS(P5:P23,"=1",S5:S23,">=3,1",S5:S23,"<=4,5")) -> 
W43: 4,5 - 6 | X43: =COUNTIFS(S5:S23,">=4,6",S5:S23,"<=6") -> 0 | Y43: =IF(X43=0,"",COUNTIFS(P5:P23,"=1",S5:S23,">=4,6",S5:S23,"<=6")) -> 
W44: over 6 meter | X44: =COUNTIFS(S5:S23,">6") -> 0 | Y44: =IF(X44=0,"",COUNTIFS(P5:P23,"=1",S5:S23,">6")) -> 

Sheet Runde 22
A1: Korsør Golf Klub - 18 huller - Gul tee | J1: =IF(E25="0","0","1") -> 1 | K1: Dato: | L1: 2010-07-31 | N1: Handicap: | O1: 3.9 | Q1: ATS: | R1: 3 | T1: Vejr: | U1: Sol, 20 grader, hård vind | W1: Turnering: | X1: Flagspil festugen
H3: Tee shot | K3: Fairway hits i % | N3: Bunker | R3: Approach shots
A4: Hul | B4: Gul tee | C4: Par | D4: HCP | E4: Score | F4: Netto | G4: Driver | H4: Wood | I4: Jern | J4: Venstre | K4: Midt | L4: Højre | M4: FB | N4: GB | O4: SS | P4: Putts | Q4: GIR | R4: Dist. to pin (m) | S4: Dist. to hole (m) | T4: % SS | U4: % GIR | V4: Putts/GIR | W4: Eagles | X4: Birdies | Y4: Bogeys | Z4: Værre | AA4: % Scramble | AB4: 3+ Putts | AC4: % Driver/Fairwayhits
A5: 1 | B5: 307 | C5: 4 | D5: 11 | E5: 3 | F5: 3 | G5: 1 | K5: 1 | P5: 1 | Q5: 1 | V5: =IF(Q5=0,"",P5) -> 1 | AA5: =IF(AND(Q5="",P5=1),1,"") ->  | AC5: =IF(AND(G5=""),"",SUM(K5)) -> 1
A6: 2 | B6: 323 | C6: 4 | D6: 5 | E6: 5 | F6: 5 | G6: 1 | J6: 1 | P6: 2 | AC6: 0
A7: 3 | B7: 138 | C7: 3 | D7: 15 | E7: 3 | F7: 3 | P7: 1 | AA7: 1
A8: 4 | B8: 310 | C8: 4 | D8: 13 | E8: 4 | F8: 4 | H8: 1 | K8: 1 | P8: 1 | AA8: 1
A9: 5 | B9: 431 | C9: 5 | D9: 3 | E9: 6 | F9: 5 | G9: 1 | K9: 1 | P9: 2 | AC9: 1
A10: 6 | B10: 312 | C10: 4 | D10: 9 | E10: 3 | F10: 3 | G10: 1 | K10: 1 | P10: 1 | Q10: 1 | V10: 1 | AC10: 1
A11: 7 | B11: 498 | C11: 5 | D11: 1 | E11: 5 | F11: 4 | I11: 1 | K11: 1 | P11: 1 | AA11: 1
A12: 8 | B12: 138 | C12: 3 | D12: 17 | E12: 3 | F12: 3 | P12: 2 | Q12: 1 | V12: 2
A13: 9 | B13: 310 | C13: 4 | D13: 7 | E13: 4 | F13: 4 | H13: 1 | K13: 1 | P13: 1 | AA13: 1
B14: =SUM(B5:B13) -> 2767 | C14: =SUM(C5:C13) -> 36 | D14: UD | E14: =SUM(E5:E13) -> 36 | F14: =SUM(F5:F13) -> 34 | G14: =SUM(G5:G13) -> 4 | H14: =SUM(H5:H13) -> 2 | I14: =SUM(I5:I13) -> 1 | J14: =IF((A28=27),"",(SUM(J5:J13)/SUM(J5:L13))*100) -> 14.28571429 | K14: =IF((A28=27),"",(SUM(K5:K13)/SUM(J5:L13))*100) -> 85.71428571 | L14: =IF((A28=27),"",(SUM(L5:L13)/SUM(J5:L13))*100) -> 0 | M14: =SUM(M5:M13) -> 0 | N14: =SUM(N5:N13) -> 0 | O14: =SUM(O5:O13) -> 0 | P14: =SUM(P5:P13) -> 12 | Q14: =SUM(Q5:Q13) -> 3 | S14: =IF(Q14=0,0,SUM(S5:S13)/Q14) -> 0 | V14: =SUM(V5:V13) -> 4 | W14: =ColorFunction($E$30,$E$5:$E$13) -> 0 | X14: =ColorFunction($E$31,$E$5:$E$13) -> 2 | Y14: =ColorFunction($E$32,$E$5:$E$13) -> 2 | Z14: =ColorFunction($E$33,$E$5:$E$13) -> 0 | AA14: =SUM(AA5:AA13)/(9-Q14)*100 -> 66.66666667 | AB14: =COUNTIF(P5:P13,">2") -> 0 | AC14: =IF((G14=0),"",SUM(AC5:AC13)/G14*100) -> 75
A15: 10 | B15: 481 | C15: 5 | D15: 4 | E15: 5 | F15: 5 | G15: 1 | K15: 1 | P15: 1 | V15: =IF(Q15=0,"",P15) ->  | AA15: =IF(AND(Q15="",P15=1),1,"") -> 1 | AC15: =IF(AND(G15=""),"",SUM(K15)) -> 1
A16: 11 | B16: 319 | C16: 4 | D16: 16 | E16: 4 | F16: 4 | H16: 1 | K16: 1 | P16: 2 | Q16: 1 | V16: 2
A17: 12 | B17: 431 | C17: 5 | D17: 2 | E17: 5 | F17: 4 | G17: 1 | K17: 1 | P17: 1 | AA17: 1 | AC17: 1
A18: 13 | B18: 122 | C18: 3 | D18: 18 | E18: 4 | F18: 4 | P18: 2
A19: 14 | B19: 379 | C19: 4 | D19: 6 | E19: 4 | F19: 4 | G19: 1 | K19: 1 | P19: 2 | Q19: 1 | V19: 2 | AC19: 1
A20: 15 | B20: 316 | C20: 4 | D20: 8 | E20: 5 | F20: 5 | G20: 1 | J20: 1 | P20: 2 | AC20: 0
A21: 16 | B21: 322 | C21: 4 | D21: 14 | E21: 3 | F21: 3 | H21: 1 | K21: 1 | P21: 1 | Q21: 1 | V21: 1
A22: 17 | B22: 345 | C22: 4 | D22: 10 | E22: 4 | F22: 4 | H22: 1 | K22: 1 | P22: 2 | Q22: 1 | V22: 2
A23: 18 | B23: 281 | C23: 4 | D23: 12 | E23: 7 | F23: 7 | H23: 1 | J23: 1 | P23: 2
B24: =SUM(B15:B23) -> 2996 | C24: =SUM(C15:C23) -> 37 | D24: IND | E24: =SUM(E15:E23) -> 41 | F24: =SUM(F15:F23) -> 40 | G24: =SUM(G15:G23) -> 4 | H24: =SUM(H15:H23) -> 4 | I24: =SUM(I15:I23) -> 0 | J24: =IF((A29=27),"",(SUM(J15:J23)/SUM(J15:L23))*100) -> 25 | K24: =IF((A29=27),"",(SUM(K15:K23)/SUM(J15:L23))*100) -> 75 | L24: =IF((A29=27),"",(SUM(L15:L23)/SUM(J15:L23))*100) -> 0 | M24: =SUM(M15:M23) -> 0 | N24: =SUM(N15:N23) -> 0 | O24: =SUM(O15:O23) -> 0 | P24: =SUM(P15:P23) -> 15 | Q24: =SUM(Q15:Q23) -> 4 | S24: =IF(Q24=0,0,SUM(S15:S23)/Q24) -> 0 | V24: =SUM(V15:V23) -> 7 | W24: =ColorFunction($E$30,$E$15:$E$23) -> 0 | X24: =ColorFunction($E$31,$E$15:$E$23) -> 1 | Y24: =ColorFunction($E$32,$E$15:$E$23) -> 2 | Z24: =ColorFunction($E$33,$E$15:$E$23) -> 1 | AA24: =SUM(AA15:AA23)/(9-Q24)*100 -> 40 | AB24: =COUNTIF(P15:P23,">2") -> 0 | AC24: =IF((G24=0),"",SUM(AC15:AC23)/G24*100) -> 75
B25: =SUM(B24,B14) -> 5763 | C25: =SUM(C24,C14) -> 73 | D25: TOTAL | E25: =IF(E14=0,"0",(E24+E14)) -> 77 | F25: =SUM(F14,F24) -> 74 | G25: =SUM(G24,G14) -> 8 | H25: =SUM(H24,H14) -> 6 | I25: =SUM(I24,I14) -> 1 | J25: =IF((A28=27),"",(SUM(J14,J24)/2)) -> 19.64285714 | K25: =IF((A28=27),"",(SUM(K14,K24)/2)) -> 80.35714286 | L25: =IF((A28=27),"",(SUM(L14,L24)/2)) -> 0 | M25: =SUM(M24,M14) -> 0 | N25: =SUM(N24,N14) -> 0 | O25: =SUM(O24,O14) -> 0 | P25: =IF(P14+P24=0,"",SUM(P24,P14)) -> 27 | Q25: =IF(Q14+Q24=0,"",SUM(Q24,Q14)) -> 7 | S25: =IF(S14+S24=0,"",SUM(S24,S14)/2) ->  | T25: =IF(N25=0,"",(O25)/N25*100) ->  | U25: =IF(Q25="","",(Q25)/18*100) -> 38.88888889 | V25: =IF(Q25="","",(V14+V24)/Q25) -> 1.571428571 | W25: =SUM(W14,W24) -> 0 | X25: =SUM(X14,X24) -> 3 | Y25: =SUM(Y14,Y24) -> 4 | Z25: =SUM(Z14,Z24) -> 1 | AA25: =SUM(AA14,AA24)/2 -> 53.33333333 | AB25: =SUM(AB14,AB24) -> 0 | AC25: =SUM(AC24,AC14)/2 -> 75
E27: Udfyld alle grønne felter med 1 for positiv eller antal i tal
A28: =COUNTBLANK(I5:K13) -> 19 | W28: Approach
A29: =COUNTBLANK(I15:K23) -> 19 | E29: Udfyld følgende farver: | S29: Holes to par | W29: Længde (m) | X29: Antal | Y29: Afstand (m)
A30: =SUM(L5:L23) -> 0 | E30: Eagles | S30: Par 3 | T30: =SUMIF(C:C,"3",E:E)/COUNTIF(C:C,3) -> 3.333333333 | W30: 45-70 | X30: =COUNTIFS(R5:R23,">=45",R5:R23,"<=70") -> 0 | Y30: =IF(X30=0,"",AVERAGEIFS(S5:S23,R5:R23,">=45",R5:R23,"<=70")) -> 
E31: Birdies | S31: Par 4 | T31: =SUMIF(C:C,"4",E:E)/COUNTIF(C:C,4) -> 4.181818182 | W31: 71-90 | X31: =COUNTIFS(R5:R23,">=71",R5:R23,"<=90") -> 0 | Y31: =IF(X31=0,"",AVERAGEIFS(S5:S23,R5:R23,">=71",R5:R23,"<=90")) -> 
E32: Bogeys | S32: Par 5 | T32: =SUMIF(C:C,"5",E:E)/COUNTIF(C:C,5) -> 5.25 | W32: 91-115 | X32: =COUNTIFS(R5:R23,">=91",R5:R23,"<=115") -> 0 | Y32: =IF(X32=0,"",AVERAGEIFS(S5:S23,R5:R23,">=91",R5:R23,"<=115")) -> 
E33: Doublebogeys eller værre | W33: 116-140 | X33: =COUNTIFS(R5:R23,">=116",R5:R23,"<=140") -> 0 | Y33: =IF(X33=0,"",AVERAGEIFS(S5:S23,R5:R23,">=116",R5:R23,"<=140")) -> 
S34: First 4 | T34: =IF(E25="0","",SUM(E5:E8)-SUM(C5:C8)) -> 0 | W34: 141-160 | X34: =COUNTIFS(R5:R23,">=141",R5:R23,"<=161") -> 0 | Y34: =IF(X34=0,"",AVERAGEIFS(S5:S23,R5:R23,">=141",R5:R23,"<=160")) -> 
S35: Last 4 | T35: =IF(E25="0","",SUM(E20:E23)-SUM(C20:C23)) -> 3 | W35: 161-180 | X35: =COUNTIFS(R5:R23,">=161",R5:R23,"<=180") -> 0 | Y35: =IF(X35=0,"",AVERAGEIFS(S5:S23,R5:R23,">=161",R5:R23,"<=180")) -> 
W37: Putting
W38: Længde (m) | X38: Antal | Y38: Holet | Z38: Holet (%)
W39: under 1 m | X39: =COUNTIFS(S5:S23,">=0,1",S5:S23,"<=0,9") -> 0 | Y39: =IF(X39=0,"",COUNTIFS(P5:P23,"=1",S5:S23,"<1")) ->  | Z39: =IF(X39=0,"",Y39/X39*100) -> 
W40: 1 - 1,5 | X40: =COUNTIFS(S5:S23,">=1",S5:S23,"<=1,5") -> 0 | Y40: =IF(X40=0,"",COUNTIFS(P5:P23,"=1",S5:S23,">=1",S5:S23,"<=1,5")) ->  | Z40: =IF(X40=0,"",Y40/X40*100) -> 
W41: 1,5 - 3 | X41: =COUNTIFS(S5:S23,">=1,6",S5:S23,"<=3") -> 0 | Y41: =IF(X41=0,"",COUNTIFS(P5:P23,"=1",S5:S23,">=1,6",S5:S23,"<=3")) ->  | Z41: =IF(X41=0,"",Y41/X41*100) -> 
W42: 3 - 4,5 | X42: =COUNTIFS(S5:S23,">=3,1",S5:S23,"<=4,5") -> 0 | Y42: =IF(X42=0,"",COUNTIFS(P5:P23,"=1",S5:S23,">=3,1",S5:S23,"<=4,5")) -> 
W43: 4,5 - 6 | X43: =COUNTIFS(S5:S23,">=4,6",S5:S23,"<=6") -> 0 | Y43: =IF(X43=0,"",COUNTIFS(P5:P23,"=1",S5:S23,">=4,6",S5:S23,"<=6")) -> 
W44: over 6 meter | X44: =COUNTIFS(S5:S23,">6") -> 0 | Y44: =IF(X44=0,"",COUNTIFS(P5:P23,"=1",S5:S23,">6")) -> 

Sheet Runde 23
A1: Korsør Golf Klub - 18 huller - Hvid tee | J1: =IF(E25="0","0","1") -> 1 | K1: Dato: | L1: 03-08-2010* | N1: Handicap: | O1: 3.9 | Q1: ATS: | R1: 4 | T1: Vejr: | U1: Sol, 20 grader, jævn vind | W1: Turnering: | X1: Tirsdagsklub
H3: Tee shot | K3: Fairway hits i % | N3: Bunker | R3: Approach shots
A4: Hul | B4: Gul tee | C4: Par | D4: HCP | E4: Score | F4: Netto | G4: Driver | H4: Wood | I4: Jern | J4: Venstre | K4: Midt | L4: Højre | M4: FB | N4: GB | O4: SS | P4: Putts | Q4: GIR | R4: Dist. to pin (m) | S4: Dist. to hole (m) | T4: % SS | U4: % GIR | V4: Putts/GIR | W4: Eagles | X4: Birdies | Y4: Bogeys | Z4: Værre | AA4: % Scramble | AB4: 3+ Putts | AC4: % Driver/Fairwayhits
A5: 1 | B5: 313 | C5: 4 | D5: 11 | E5: 6 | F5: 6 | G5: 1 | K5: 1 | P5: 2 | V5: =IF(Q5=0,"",P5) ->  | AA5: =IF(AND(Q5="",P5=1),1,"") ->  | AC5: =IF(AND(G5=""),"",SUM(K5)) -> 1
A6: 2 | B6: 340 | C6: 4 | D6: 5 | E6: 4 | F6: 4 | G6: 1 | K6: 1 | P6: 2 | Q6: 1 | V6: 2 | AC6: 1
A7: 3 | B7: 143 | C7: 3 | D7: 15 | E7: 3 | F7: 3 | P7: 1 | AA7: 1
A8: 4 | B8: 335 | C8: 4 | D8: 13 | E8: 6 | F8: 6 | H8: 1 | J8: 1 | P8: 2
A9: 5 | B9: 443 | C9: 5 | D9: 3 | E9: 4 | F9: 3 | G9: 1 | K9: 1 | P9: 1 | Q9: 1 | V9: 1 | AC9: 1
A10: 6 | B10: 319 | C10: 4 | D10: 9 | E10: 4 | F10: 4 | G10: 1 | K10: 1 | P10: 2 | Q10: 1 | V10: 2 | AC10: 1
A11: 7 | B11: 555 | C11: 5 | D11: 1 | E11: 6 | F11: 5 | G11: 1 | K11: 1 | P11: 2 | AC11: 1
A12: 8 | B12: 143 | C12: 3 | D12: 17 | E12: 3 | F12: 3 | N12: 1 | O12: 1 | P12: 1 | AA12: 1
A13: 9 | B13: 320 | C13: 4 | D13: 7 | E13: 4 | F13: 4 | H13: 1 | K13: 1 | P13: 2 | Q13: 1 | V13: 2
B14: =SUM(B5:B13) -> 2911 | C14: =SUM(C5:C13) -> 36 | D14: UD | E14: =SUM(E5:E13) -> 40 | F14: =SUM(F5:F13) -> 38 | G14: =SUM(G5:G13) -> 5 | H14: =SUM(H5:H13) -> 2 | I14: =SUM(I5:I13) -> 0 | J14: =IF((A28=27),"",(SUM(J5:J13)/SUM(J5:L13))*100) -> 14.28571429 | K14: =IF((A28=27),"",(SUM(K5:K13)/SUM(J5:L13))*100) -> 85.71428571 | L14: =IF((A28=27),"",(SUM(L5:L13)/SUM(J5:L13))*100) -> 0 | M14: =SUM(M5:M13) -> 0 | N14: =SUM(N5:N13) -> 1 | O14: =SUM(O5:O13) -> 1 | P14: =SUM(P5:P13) -> 15 | Q14: =SUM(Q5:Q13) -> 4 | S14: =IF(Q14=0,0,SUM(S5:S13)/Q14) -> 0 | V14: =SUM(V5:V13) -> 7 | W14: =ColorFunction($E$30,$E$5:$E$13) -> 0 | X14: =ColorFunction($E$31,$E$5:$E$13) -> 1 | Y14: =ColorFunction($E$32,$E$5:$E$13) -> 1 | Z14: =ColorFunction($E$33,$E$5:$E$13) -> 2 | AA14: =SUM(AA5:AA13)/(9-Q14)*100 -> 40 | AB14: =COUNTIF(P5:P13,">2") -> 0 | AC14: =IF((G14=0),"",SUM(AC5:AC13)/G14*100) -> 100
A15: 10 | B15: 490 | C15: 5 | D15: 4 | E15: 5 | F15: 4 | G15: 1 | K15: 1 | P15: 2 | Q15: 1 | V15: =IF(Q15=0,"",P15) -> 2 | AA15: =IF(AND(Q15="",P15=1),1,"") ->  | AC15: =IF(AND(G15=""),"",SUM(K15)) -> 1
A16: 11 | B16: 330 | C16: 4 | D16: 16 | E16: 3 | F16: 3 | H16: 1 | K16: 1 | P16: 1 | Q16: 1 | V16: 1
A17: 12 | B17: 451 | C17: 5 | D17: 2 | E17: 4 | F17: 3 | G17: 1 | K17: 1 | P17: 1 | Q17: 1 | V17: 1 | AC17: 1
A18: 13 | B18: 140 | C18: 3 | D18: 18 | E18: 3 | F18: 3 | P18: 2 | Q18: 1 | V18: 2
A19: 14 | B19: 383 | C19: 4 | D19: 6 | E19: 4 | F19: 4 | G19: 1 | K19: 1 | P19: 2 | Q19: 1 | V19: 2 | AC19: 1
A20: 15 | B20: 332 | C20: 4 | D20: 8 | E20: 4 | F20: 4 | G20: 1 | K20: 1 | P20: 2 | Q20: 1 | V20: 2 | AC20: 1
A21: 16 | B21: 334 | C21: 4 | D21: 14 | E21: 4 | F21: 4 | H21: 1 | K21: 1 | P21: 1 | AA21: 1
A22: 17 | B22: 368 | C22: 4 | D22: 10 | E22: 4 | F22: 4 | G22: 1 | K22: 1 | P22: 1 | AA22: 1 | AC22: 1
A23: 18 | B23: 299 | C23: 4 | D23: 12 | E23: 5 | F23: 5 | H23: 1 | L23: 1 | P23: 2
B24: =SUM(B15:B23) -> 3127 | C24: =SUM(C15:C23) -> 37 | D24: IND | E24: =SUM(E15:E23) -> 36 | F24: =SUM(F15:F23) -> 34 | G24: =SUM(G15:G23) -> 5 | H24: =SUM(H15:H23) -> 3 | I24: =SUM(I15:I23) -> 0 | J24: =IF((A29=27),"",(SUM(J15:J23)/SUM(J15:L23))*100) -> 0 | K24: =IF((A29=27),"",(SUM(K15:K23)/SUM(J15:L23))*100) -> 87.5 | L24: =IF((A29=27),"",(SUM(L15:L23)/SUM(J15:L23))*100) -> 12.5 | M24: =SUM(M15:M23) -> 0 | N24: =SUM(N15:N23) -> 0 | O24: =SUM(O15:O23) -> 0 | P24: =SUM(P15:P23) -> 14 | Q24: =SUM(Q15:Q23) -> 6 | S24: =IF(Q24=0,0,SUM(S15:S23)/Q24) -> 0 | V24: =SUM(V15:V23) -> 10 | W24: =ColorFunction($E$30,$E$15:$E$23) -> 0 | X24: =ColorFunction($E$31,$E$15:$E$23) -> 2 | Y24: =ColorFunction($E$32,$E$15:$E$23) -> 1 | Z24: =ColorFunction($E$33,$E$15:$E$23) -> 0 | AA24: =SUM(AA15:AA23)/(9-Q24)*100 -> 66.66666667 | AB24: =COUNTIF(P15:P23,">2") -> 0 | AC24: =IF((G24=0),"",SUM(AC15:AC23)/G24*100) -> 100
B25: =SUM(B24,B14) -> 6038 | C25: =SUM(C24,C14) -> 73 | D25: TOTAL | E25: =IF(E14=0,"0",(E24+E14)) -> 76 | F25: =SUM(F14,F24) -> 72 | G25: =SUM(G24,G14) -> 10 | H25: =SUM(H24,H14) -> 5 | I25: =SUM(I24,I14) -> 0 | J25: =IF((A28=27),"",(SUM(J14,J24)/2)) -> 7.142857143 | K25: =IF((A28=27),"",(SUM(K14,K24)/2)) -> 86.60714286 | L25: =IF((A28=27),"",(SUM(L14,L24)/2)) -> 6.25 | M25: =SUM(M24,M14) -> 0 | N25: =SUM(N24,N14) -> 1 | O25: =SUM(O24,O14) -> 1 | P25: =IF(P14+P24=0,"",SUM(P24,P14)) -> 29 | Q25: =IF(Q14+Q24=0,"",SUM(Q24,Q14)) -> 10 | S25: =IF(S14+S24=0,"",SUM(S24,S14)/2) ->  | T25: =IF(N25=0,"",(O25)/N25*100) -> 100 | U25: =IF(Q25="","",(Q25)/18*100) -> 55.55555556 | V25: =IF(Q25="","",(V14+V24)/Q25) -> 1.7 | W25: =SUM(W14,W24) -> 0 | X25: =SUM(X14,X24) -> 3 | Y25: =SUM(Y14,Y24) -> 2 | Z25: =SUM(Z14,Z24) -> 2 | AA25: =SUM(AA14,AA24)/2 -> 53.33333333 | AB25: =SUM(AB14,AB24) -> 0 | AC25: =SUM(AC24,AC14)/2 -> 100
E27: Udfyld alle grønne felter med 1 for positiv eller antal i tal
A28: =COUNTBLANK(I5:K13) -> 20 | W28: Approach
A29: =COUNTBLANK(I15:K23) -> 20 | E29: Udfyld følgende farver: | S29: Holes to par | W29: Længde (m) | X29: Antal | Y29: Afstand (m)
A30: =SUM(L5:L23) -> 1 | E30: Eagles | J30: * Slog fra forkert teested på hul 9, hvilket gav en double pga strafslag | S30: Par 3 | T30: =SUMIF(C:C,"3",E:E)/COUNTIF(C:C,3) -> 3 | W30: 45-70 | X30: =COUNTIFS(R5:R23,">=45",R5:R23,"<=70") -> 0 | Y30: =IF(X30=0,"",AVERAGEIFS(S5:S23,R5:R23,">=45",R5:R23,"<=70")) -> 
E31: Birdies | S31: Par 4 | T31: =SUMIF(C:C,"4",E:E)/COUNTIF(C:C,4) -> 4.363636364 | W31: 71-90 | X31: =COUNTIFS(R5:R23,">=71",R5:R23,"<=90") -> 0 | Y31: =IF(X31=0,"",AVERAGEIFS(S5:S23,R5:R23,">=71",R5:R23,"<=90")) -> 
E32: Bogeys | S32: Par 5 | T32: =SUMIF(C:C,"5",E:E)/COUNTIF(C:C,5) -> 4.75 | W32: 91-115 | X32: =COUNTIFS(R5:R23,">=91",R5:R23,"<=115") -> 0 | Y32: =IF(X32=0,"",AVERAGEIFS(S5:S23,R5:R23,">=91",R5:R23,"<=115")) -> 
E33: Doublebogeys eller værre | W33: 116-140 | X33: =COUNTIFS(R5:R23,">=116",R5:R23,"<=140") -> 0 | Y33: =IF(X33=0,"",AVERAGEIFS(S5:S23,R5:R23,">=116",R5:R23,"<=140")) -> 
S34: First 4 | T34: =IF(E25="0","",SUM(E5:E8)-SUM(C5:C8)) -> 4 | W34: 141-160 | X34: =COUNTIFS(R5:R23,">=141",R5:R23,"<=161") -> 0 | Y34: =IF(X34=0,"",AVERAGEIFS(S5:S23,R5:R23,">=141",R5:R23,"<=160")) -> 
S35: Last 4 | T35: =IF(E25="0","",SUM(E20:E23)-SUM(C20:C23)) -> 1 | W35: 161-180 | X35: =COUNTIFS(R5:R23,">=161",R5:R23,"<=180") -> 0 | Y35: =IF(X35=0,"",AVERAGEIFS(S5:S23,R5:R23,">=161",R5:R23,"<=180")) -> 
W37: Putting
W38: Længde (m) | X38: Antal | Y38: Holet | Z38: Holet (%)
W39: under 1 m | X39: =COUNTIFS(S5:S23,">=0,1",S5:S23,"<=0,9") -> 0 | Y39: =IF(X39=0,"",COUNTIFS(P5:P23,"=1",S5:S23,"<1")) ->  | Z39: =IF(X39=0,"",Y39/X39*100) -> 
W40: 1 - 1,5 | X40: =COUNTIFS(S5:S23,">=1",S5:S23,"<=1,5") -> 0 | Y40: =IF(X40=0,"",COUNTIFS(P5:P23,"=1",S5:S23,">=1",S5:S23,"<=1,5")) ->  | Z40: =IF(X40=0,"",Y40/X40*100) -> 
W41: 1,5 - 3 | X41: =COUNTIFS(S5:S23,">=1,6",S5:S23,"<=3") -> 0 | Y41: =IF(X41=0,"",COUNTIFS(P5:P23,"=1",S5:S23,">=1,6",S5:S23,"<=3")) ->  | Z41: =IF(X41=0,"",Y41/X41*100) -> 
W42: 3 - 4,5 | X42: =COUNTIFS(S5:S23,">=3,1",S5:S23,"<=4,5") -> 0 | Y42: =IF(X42=0,"",COUNTIFS(P5:P23,"=1",S5:S23,">=3,1",S5:S23,"<=4,5")) -> 
W43: 4,5 - 6 | X43: =COUNTIFS(S5:S23,">=4,6",S5:S23,"<=6") -> 0 | Y43: =IF(X43=0,"",COUNTIFS(P5:P23,"=1",S5:S23,">=4,6",S5:S23,"<=6")) -> 
W44: over 6 meter | X44: =COUNTIFS(S5:S23,">6") -> 0 | Y44: =IF(X44=0,"",COUNTIFS(P5:P23,"=1",S5:S23,">6")) -> 

Sheet Runde 24
A1: Korsør Golf Klub - 18 huller - Gul tee | J1: =IF(E25="0","0","1") -> 1 | K1: Dato: | L1: 2010-08-10 | N1: Handicap: | O1: 3.9 | Q1: ATS: | R1: 3 | T1: Vejr: | U1: Jævn vind, skyet, 20 grader | W1: Turnering: | X1: Tirsdagsklub
H3: Tee shot | K3: Fairway hits i % | N3: Bunker | R3: Approach shots
A4: Hul | B4: Gul tee | C4: Par | D4: HCP | E4: Score | F4: Netto | G4: Driver | H4: Wood | I4: Jern | J4: Venstre | K4: Midt | L4: Højre | M4: FB | N4: GB | O4: SS | P4: Putts | Q4: GIR | R4: Dist. to pin (m) | S4: Dist. to hole (m) | T4: % SS | U4: % GIR | V4: Putts/GIR | W4: Eagles | X4: Birdies | Y4: Bogeys | Z4: Værre | AA4: % Scramble | AB4: 3+ Putts | AC4: % Driver/Fairwayhits
A5: 1 | B5: 307 | C5: 4 | D5: 11 | E5: 3 | F5: 3 | G5: 1 | K5: 1 | P5: 1 | Q5: 1 | R5: 62 | S5: 4 | V5: =IF(Q5=0,"",P5) -> 1 | AA5: =IF(AND(Q5="",P5=1),1,"") ->  | AC5: =IF(AND(G5=""),"",SUM(K5)) -> 1
A6: 2 | B6: 323 | C6: 4 | D6: 5 | E6: 3 | F6: 3 | G6: 1 | K6: 1 | P6: 1 | Q6: 1 | R6: 89 | S6: 4 | V6: 1 | AC6: 1
A7: 3 | B7: 138 | C7: 3 | D7: 15 | E7: 2 | F7: 2 | P7: 1 | Q7: 1 | R7: 145 | S7: 3 | V7: 1
A8: 4 | B8: 310 | C8: 4 | D8: 13 | E8: 4 | F8: 4 | H8: 1 | K8: 1 | P8: 1 | AA8: 1
A9: 5 | B9: 431 | C9: 5 | D9: 3 | E9: 5 | F9: 4 | G9: 1 | K9: 1 | P9: 2 | Q9: 1 | R9: 39 | S9: 3.5 | V9: 2 | AC9: 1
A10: 6 | B10: 312 | C10: 4 | D10: 9 | E10: 4 | F10: 4 | G10: 1 | L10: 1 | N10: 1 | P10: 2 | Q10: 1 | R10: 20 | S10: 7 | V10: 2 | AC10: 0
A11: 7 | B11: 498 | C11: 5 | D11: 1 | E11: 5 | F11: 4 | I11: 1 | K11: 1 | P11: 2 | Q11: 1 | R11: 122 | S11: 2 | V11: 2
A12: 8 | B12: 138 | C12: 3 | D12: 17 | E12: 3 | F12: 3 | P12: 2 | Q12: 1 | R12: 141 | S12: 6 | V12: 2
A13: 9 | B13: 310 | C13: 4 | D13: 7 | E13: 4 | F13: 4 | H13: 1 | K13: 1 | P13: 1 | AA13: 1
B14: =SUM(B5:B13) -> 2767 | C14: =SUM(C5:C13) -> 36 | D14: UD | E14: =SUM(E5:E13) -> 33 | F14: =SUM(F5:F13) -> 31 | G14: =SUM(G5:G13) -> 4 | H14: =SUM(H5:H13) -> 2 | I14: =SUM(I5:I13) -> 1 | J14: =IF((A28=27),"",(SUM(J5:J13)/SUM(J5:L13))*100) -> 0 | K14: =IF((A28=27),"",(SUM(K5:K13)/SUM(J5:L13))*100) -> 85.71428571 | L14: =IF((A28=27),"",(SUM(L5:L13)/SUM(J5:L13))*100) -> 14.28571429 | M14: =SUM(M5:M13) -> 0 | N14: =SUM(N5:N13) -> 1 | O14: =SUM(O5:O13) -> 0 | P14: =SUM(P5:P13) -> 13 | Q14: =SUM(Q5:Q13) -> 7 | S14: =IF(Q14=0,0,SUM(S5:S13)/Q14) -> 4.214285714 | V14: =SUM(V5:V13) -> 11 | W14: =ColorFunction($E$30,$E$5:$E$13) -> 0 | X14: =ColorFunction($E$31,$E$5:$E$13) -> 3 | Y14: =ColorFunction($E$32,$E$5:$E$13) -> 0 | Z14: =ColorFunction($E$33,$E$5:$E$13) -> 0 | AA14: =SUM(AA5:AA13)/(9-Q14)*100 -> 100 | AB14: =COUNTIF(P5:P13,">2") -> 0 | AC14: =IF((G14=0),"",SUM(AC5:AC13)/G14*100) -> 75
A15: 10 | B15: 481 | C15: 5 | D15: 4 | E15: 5 | F15: 5 | G15: 1 | K15: 1 | P15: 2 | Q15: 1 | R15: 20 | S15: 3 | V15: =IF(Q15=0,"",P15) -> 2 | AA15: =IF(AND(Q15="",P15=1),1,"") ->  | AC15: =IF(AND(G15=""),"",SUM(K15)) -> 1
A16: 11 | B16: 319 | C16: 4 | D16: 16 | E16: 5 | F16: 5 | H16: 1 | K16: 1 | P16: 3 | Q16: 1 | R16: 142 | S16: 8 | V16: 3
A17: 12 | B17: 431 | C17: 5 | D17: 2 | E17: 5 | F17: 4 | G17: 1 | K17: 1 | P17: 2 | Q17: 1 | R17: 35 | S17: 3 | V17: 2 | AC17: 1
A18: 13 | B18: 122 | C18: 3 | D18: 18 | E18: 3 | F18: 3 | P18: 1 | AA18: 1
A19: 14 | B19: 379 | C19: 4 | D19: 6 | E19: 5 | F19: 5 | G19: 1 | L19: 1 | P19: 2 | AC19: 0
A20: 15 | B20: 316 | C20: 4 | D20: 8 | E20: 3 | F20: 3 | G20: 1 | K20: 1 | P20: 1 | Q20: 1 | R20: 48 | S20: 3 | V20: 1 | AC20: 1
A21: 16 | B21: 322 | C21: 4 | D21: 14 | E21: 4 | F21: 4 | G21: 1 | L21: 1 | P21: 2 | Q21: 1 | R21: 79 | S21: 5 | V21: 2 | AC21: 0
A22: 17 | B22: 345 | C22: 4 | D22: 10 | E22: 4 | F22: 4 | H22: 1 | K22: 1 | P22: 2 | Q22: 1 | R22: 116 | S22: 4 | V22: 2
A23: 18 | B23: 281 | C23: 4 | D23: 12 | E23: 5 | F23: 5 | G23: 1 | L23: 1 | P23: 2 | AC23: 0
B24: =SUM(B15:B23) -> 2996 | C24: =SUM(C15:C23) -> 37 | D24: IND | E24: =SUM(E15:E23) -> 39 | F24: =SUM(F15:F23) -> 38 | G24: =SUM(G15:G23) -> 6 | H24: =SUM(H15:H23) -> 2 | I24: =SUM(I15:I23) -> 0 | J24: =IF((A29=27),"",(SUM(J15:J23)/SUM(J15:L23))*100) -> 0 | K24: =IF((A29=27),"",(SUM(K15:K23)/SUM(J15:L23))*100) -> 62.5 | L24: =IF((A29=27),"",(SUM(L15:L23)/SUM(J15:L23))*100) -> 37.5 | M24: =SUM(M15:M23) -> 0 | N24: =SUM(N15:N23) -> 0 | O24: =SUM(O15:O23) -> 0 | P24: =SUM(P15:P23) -> 17 | Q24: =SUM(Q15:Q23) -> 6 | S24: =IF(Q24=0,0,SUM(S15:S23)/Q24) -> 4.333333333 | V24: =SUM(V15:V23) -> 12 | W24: =ColorFunction($E$30,$E$15:$E$23) -> 0 | X24: =ColorFunction($E$31,$E$15:$E$23) -> 1 | Y24: =ColorFunction($E$32,$E$15:$E$23) -> 3 | Z24: =ColorFunction($E$33,$E$15:$E$23) -> 0 | AA24: =SUM(AA15:AA23)/(9-Q24)*100 -> 33.33333333 | AB24: =COUNTIF(P15:P23,">2") -> 1 | AC24: =IF((G24=0),"",SUM(AC15:AC23)/G24*100) -> 50
B25: =SUM(B24,B14) -> 5763 | C25: =SUM(C24,C14) -> 73 | D25: TOTAL | E25: =IF(E14=0,"0",(E24+E14)) -> 72 | F25: =SUM(F14,F24) -> 69 | G25: =SUM(G24,G14) -> 10 | H25: =SUM(H24,H14) -> 4 | I25: =SUM(I24,I14) -> 1 | J25: =IF((A28=27),"",(SUM(J14,J24)/2)) -> 0 | K25: =IF((A28=27),"",(SUM(K14,K24)/2)) -> 74.10714286 | L25: =IF((A28=27),"",(SUM(L14,L24)/2)) -> 25.89285714 | M25: =SUM(M24,M14) -> 0 | N25: =SUM(N24,N14) -> 1 | O25: =SUM(O24,O14) -> 0 | P25: =IF(P14+P24=0,"",SUM(P24,P14)) -> 30 | Q25: =IF(Q14+Q24=0,"",SUM(Q24,Q14)) -> 13 | S25: =IF(S14+S24=0,"",SUM(S24,S14)/2) -> 4.273809524 | T25: =IF(N25=0,"",(O25)/N25*100) -> 0 | U25: =IF(Q25="","",(Q25)/18*100) -> 72.22222222 | V25: =IF(Q25="","",(V14+V24)/Q25) -> 1.769230769 | W25: =SUM(W14,W24) -> 0 | X25: =SUM(X14,X24) -> 4 | Y25: =SUM(Y14,Y24) -> 3 | Z25: =SUM(Z14,Z24) -> 0 | AA25: =SUM(AA14,AA24)/2 -> 66.66666667 | AB25: =SUM(AB14,AB24) -> 1 | AC25: =SUM(AC24,AC14)/2 -> 62.5
E27: Udfyld alle grønne felter med 1 for positiv eller antal i tal
A28: =COUNTBLANK(I5:K13) -> 20 | W28: Approach
A29: =COUNTBLANK(I15:K23) -> 22 | E29: Udfyld følgende farver: | S29: Holes to par | W29: Længde (m) | X29: Antal | Y29: Afstand (m)
A30: =SUM(L5:L23) -> 18.28571429 | E30: Eagles | S30: Par 3 | T30: =SUMIF(C:C,"3",E:E)/COUNTIF(C:C,3) -> 2.666666667 | W30: 45-70 | X30: =COUNTIFS(R5:R23,">=45",R5:R23,"<=70") -> 2 | Y30: =IF(X30=0,"",AVERAGEIFS(S5:S23,R5:R23,">=45",R5:R23,"<=70")) -> 3.5
E31: Birdies | S31: Par 4 | T31: =SUMIF(C:C,"4",E:E)/COUNTIF(C:C,4) -> 4 | W31: 71-90 | X31: =COUNTIFS(R5:R23,">=71",R5:R23,"<=90") -> 2 | Y31: =IF(X31=0,"",AVERAGEIFS(S5:S23,R5:R23,">=71",R5:R23,"<=90")) -> 4.5
E32: Bogeys | S32: Par 5 | T32: =SUMIF(C:C,"5",E:E)/COUNTIF(C:C,5) -> 5 | W32: 91-115 | X32: =COUNTIFS(R5:R23,">=91",R5:R23,"<=115") -> 0 | Y32: =IF(X32=0,"",AVERAGEIFS(S5:S23,R5:R23,">=91",R5:R23,"<=115")) -> 
E33: Doublebogeys eller værre | W33: 116-140 | X33: =COUNTIFS(R5:R23,">=116",R5:R23,"<=140") -> 2 | Y33: =IF(X33=0,"",AVERAGEIFS(S5:S23,R5:R23,">=116",R5:R23,"<=140")) -> 3
S34: First 4 | T34: =IF(E25="0","",SUM(E5:E8)-SUM(C5:C8)) -> -3 | W34: 141-160 | X34: =COUNTIFS(R5:R23,">=141",R5:R23,"<=161") -> 3 | Y34: =IF(X34=0,"",AVERAGEIFS(S5:S23,R5:R23,">=141",R5:R23,"<=160")) -> 5.666666667
S35: Last 4 | T35: =IF(E25="0","",SUM(E20:E23)-SUM(C20:C23)) -> 0 | W35: 161-180 | X35: =COUNTIFS(R5:R23,">=161",R5:R23,"<=180") -> 0 | Y35: =IF(X35=0,"",AVERAGEIFS(S5:S23,R5:R23,">=161",R5:R23,"<=180")) -> 
W37: Putting
W38: Længde (m) | X38: Antal | Y38: Holet | Z38: Holet (%)
W39: under 1 m | X39: =COUNTIFS(S5:S23,">=0,1",S5:S23,"<=0,9") -> 0 | Y39: =IF(X39=0,"",COUNTIFS(P5:P23,"=1",S5:S23,"<1")) ->  | Z39: =IF(X39=0,"",Y39/X39*100) -> 
W40: 1 - 1,5 | X40: =COUNTIFS(S5:S23,">=1",S5:S23,"<=1,5") -> 0 | Y40: =IF(X40=0,"",COUNTIFS(P5:P23,"=1",S5:S23,">=1",S5:S23,"<=1,5")) ->  | Z40: =IF(X40=0,"",Y40/X40*100) -> 
W41: 1,5 - 3 | X41: =COUNTIFS(S5:S23,">=1,6",S5:S23,"<=3") -> 5 | Y41: =IF(X41=0,"",COUNTIFS(P5:P23,"=1",S5:S23,">=1,6",S5:S23,"<=3")) -> 2 | Z41: =IF(X41=0,"",Y41/X41*100) -> 40
W42: 3 - 4,5 | X42: =COUNTIFS(S5:S23,">=3,1",S5:S23,"<=4,5") -> 5 | Y42: =IF(X42=0,"",COUNTIFS(P5:P23,"=1",S5:S23,">=3,1",S5:S23,"<=4,5")) -> 2 | Z42: 40
W43: 4,5 - 6 | X43: =COUNTIFS(S5:S23,">=4,6",S5:S23,"<=6") -> 2 | Y43: =IF(X43=0,"",COUNTIFS(P5:P23,"=1",S5:S23,">=4,6",S5:S23,"<=6")) -> 0 | Z43: 0
W44: over 6 meter | X44: =COUNTIFS(S5:S23,">6") -> 2 | Y44: =IF(X44=0,"",COUNTIFS(P5:P23,"=1",S5:S23,">6")) -> 0 | Z44: 0

Sheet Runde 25
A1: Korsør Golf Klub - 18 huller - Gul tee | J1: =IF(E25="0","0","1") -> 1 | K1: Dato: | L1: 2010-08-14 | N1: Handicap: | O1: 3.9 | Q1: ATS: | R1: 3 | T1: Vejr: | U1: Regn, 19 grader, hård vind | W1: Turnering: | X1: Privat med Michael og Peter
H3: Tee shot | K3: Fairway hits i % | N3: Bunker | R3: Approach shots
A4: Hul | B4: Gul tee | C4: Par | D4: HCP | E4: Score | F4: Netto | G4: Driver | H4: Wood | I4: Jern | J4: Venstre | K4: Midt | L4: Højre | M4: FB | N4: GB | O4: SS | P4: Putts | Q4: GIR | R4: Dist. to pin (m) | S4: Dist. to hole (m) | T4: % SS | U4: % GIR | V4: Putts/GIR | W4: Eagles | X4: Birdies | Y4: Bogeys | Z4: Værre | AA4: % Scramble | AB4: 3+ Putts | AC4: % Driver/Fairwayhits
A5: 1 | B5: 307 | C5: 4 | D5: 11 | E5: 5 | F5: 5 | G5: 1 | K5: 1 | P5: 2 | V5: =IF(Q5=0,"",P5) ->  | AA5: =IF(AND(Q5="",P5=1),1,"") ->  | AC5: =IF(AND(G5=""),"",SUM(K5)) -> 1
A6: 2 | B6: 323 | C6: 4 | D6: 5 | E6: 5 | F6: 5 | G6: 1 | K6: 1 | P6: 3 | Q6: 1 | R6: 90 | S6: 6 | V6: 3 | AC6: 1
A7: 3 | B7: 138 | C7: 3 | D7: 15 | E7: 4 | F7: 4 | P7: 2
A8: 4 | B8: 310 | C8: 4 | D8: 13 | E8: 4 | F8: 4 | I8: 1 | K8: 1 | P8: 2 | Q8: 1 | R8: 128 | S8: 2 | V8: 2
A9: 5 | B9: 431 | C9: 5 | D9: 3 | E9: 5 | F9: 4 | G9: 1 | K9: 1 | P9: 2 | Q9: 1 | R9: 35 | S9: 3.5 | V9: 2 | AC9: 1
A10: 6 | B10: 312 | C10: 4 | D10: 9 | E10: 6 | F10: 6 | G10: 1 | J10: 1 | P10: 1 | AA10: 1 | AC10: 0
A11: 7 | B11: 498 | C11: 5 | D11: 1 | E11: 7 | F11: 6 | I11: 1 | K11: 1 | P11: 2
A12: 8 | B12: 138 | C12: 3 | D12: 17 | E12: 3 | F12: 3 | N12: 1 | O12: 1 | P12: 1 | AA12: 1
A13: 9 | B13: 310 | C13: 4 | D13: 7 | E13: 3 | F13: 3 | H13: 1 | K13: 1 | P13: 1 | Q13: 1 | R13: 102 | S13: 2.5 | V13: 1
B14: =SUM(B5:B13) -> 2767 | C14: =SUM(C5:C13) -> 36 | D14: UD | E14: =SUM(E5:E13) -> 42 | F14: =SUM(F5:F13) -> 40 | G14: =SUM(G5:G13) -> 4 | H14: =SUM(H5:H13) -> 1 | I14: =SUM(I5:I13) -> 2 | J14: =IF((A28=27),"",(SUM(J5:J13)/SUM(J5:L13))*100) -> 14.28571429 | K14: =IF((A28=27),"",(SUM(K5:K13)/SUM(J5:L13))*100) -> 85.71428571 | L14: =IF((A28=27),"",(SUM(L5:L13)/SUM(J5:L13))*100) -> 0 | M14: =SUM(M5:M13) -> 0 | N14: =SUM(N5:N13) -> 1 | O14: =SUM(O5:O13) -> 1 | P14: =SUM(P5:P13) -> 16 | Q14: =SUM(Q5:Q13) -> 4 | S14: =IF(Q14=0,0,SUM(S5:S13)/Q14) -> 3.5 | V14: =SUM(V5:V13) -> 8 | W14: =ColorFunction($E$30,$E$5:$E$13) -> 0 | X14: =ColorFunction($E$31,$E$5:$E$13) -> 1 | Y14: =ColorFunction($E$32,$E$5:$E$13) -> 3 | Z14: =ColorFunction($E$33,$E$5:$E$13) -> 2 | AA14: =SUM(AA5:AA13)/(9-Q14)*100 -> 40 | AB14: =COUNTIF(P5:P13,">2") -> 1 | AC14: =IF((G14=0),"",SUM(AC5:AC13)/G14*100) -> 75
A15: 10 | B15: 481 | C15: 5 | D15: 4 | E15: 5 | F15: 5 | G15: 1 | K15: 1 | P15: 2 | Q15: 1 | R15: 48 | S15: 3 | V15: =IF(Q15=0,"",P15) -> 2 | AA15: =IF(AND(Q15="",P15=1),1,"") ->  | AC15: =IF(AND(G15=""),"",SUM(K15)) -> 1
A16: 11 | B16: 319 | C16: 4 | D16: 16 | E16: 4 | F16: 4 | H16: 1 | K16: 1 | P16: 1 | AA16: 1
A17: 12 | B17: 431 | C17: 5 | D17: 2 | E17: 5 | F17: 4 | G17: 1 | L17: 1 | P17: 1 | AA17: 1 | AC17: 0
A18: 13 | B18: 122 | C18: 3 | D18: 18 | E18: 3 | F18: 3 | P18: 2 | Q18: 1 | R18: 109 | S18: 5 | V18: 2
A19: 14 | B19: 379 | C19: 4 | D19: 6 | E19: 4 | F19: 4 | G19: 1 | K19: 1 | P19: 2 | Q19: 1 | R19: 155 | S19: 1 | V19: 2 | AC19: 1
A20: 15 | B20: 316 | C20: 4 | D20: 8 | E20: 5 | F20: 5 | G20: 1 | J20: 1 | P20: 2 | AC20: 0
A21: 16 | B21: 322 | C21: 4 | D21: 14 | E21: 4 | F21: 4 | G21: 1 | K21: 1 | P21: 2 | Q21: 1 | R21: 110 | S21: 5 | V21: 2 | AC21: 1
A22: 17 | B22: 345 | C22: 4 | D22: 10 | E22: 4 | F22: 4 | H22: 1 | L22: 1 | P22: 1 | AA22: 1
A23: 18 | B23: 281 | C23: 4 | D23: 12 | E23: 4 | F23: 4 | G23: 1 | K23: 1 | P23: 2 | Q23: 1 | R23: 49 | S23: 3 | V23: 2 | AC23: 1
B24: =SUM(B15:B23) -> 2996 | C24: =SUM(C15:C23) -> 37 | D24: IND | E24: =SUM(E15:E23) -> 38 | F24: =SUM(F15:F23) -> 37 | G24: =SUM(G15:G23) -> 6 | H24: =SUM(H15:H23) -> 2 | I24: =SUM(I15:I23) -> 0 | J24: =IF((A29=27),"",(SUM(J15:J23)/SUM(J15:L23))*100) -> 12.5 | K24: =IF((A29=27),"",(SUM(K15:K23)/SUM(J15:L23))*100) -> 62.5 | L24: =IF((A29=27),"",(SUM(L15:L23)/SUM(J15:L23))*100) -> 25 | M24: =SUM(M15:M23) -> 0 | N24: =SUM(N15:N23) -> 0 | O24: =SUM(O15:O23) -> 0 | P24: =SUM(P15:P23) -> 15 | Q24: =SUM(Q15:Q23) -> 5 | S24: =IF(Q24=0,0,SUM(S15:S23)/Q24) -> 3.4 | V24: =SUM(V15:V23) -> 10 | W24: =ColorFunction($E$30,$E$15:$E$23) -> 0 | X24: =ColorFunction($E$31,$E$15:$E$23) -> 0 | Y24: =ColorFunction($E$32,$E$15:$E$23) -> 1 | Z24: =ColorFunction($E$33,$E$15:$E$23) -> 0 | AA24: =SUM(AA15:AA23)/(9-Q24)*100 -> 75 | AB24: =COUNTIF(P15:P23,">2") -> 0 | AC24: =IF((G24=0),"",SUM(AC15:AC23)/G24*100) -> 66.66666667
B25: =SUM(B24,B14) -> 5763 | C25: =SUM(C24,C14) -> 73 | D25: TOTAL | E25: =IF(E14=0,"0",(E24+E14)) -> 80 | F25: =SUM(F14,F24) -> 77 | G25: =SUM(G24,G14) -> 10 | H25: =SUM(H24,H14) -> 3 | I25: =SUM(I24,I14) -> 2 | J25: =IF((A28=27),"",(SUM(J14,J24)/2)) -> 13.39285714 | K25: =IF((A28=27),"",(SUM(K14,K24)/2)) -> 74.10714286 | L25: =IF((A28=27),"",(SUM(L14,L24)/2)) -> 12.5 | M25: =SUM(M24,M14) -> 0 | N25: =SUM(N24,N14) -> 1 | O25: =SUM(O24,O14) -> 1 | P25: =IF(P14+P24=0,"",SUM(P24,P14)) -> 31 | Q25: =IF(Q14+Q24=0,"",SUM(Q24,Q14)) -> 9 | S25: =IF(S14+S24=0,"",SUM(S24,S14)/2) -> 3.45 | T25: =IF(N25=0,"",(O25)/N25*100) -> 100 | U25: =IF(Q25="","",(Q25)/18*100) -> 50 | V25: =IF(Q25="","",(V14+V24)/Q25) -> 2 | W25: =SUM(W14,W24) -> 0 | X25: =SUM(X14,X24) -> 1 | Y25: =SUM(Y14,Y24) -> 4 | Z25: =SUM(Z14,Z24) -> 2 | AA25: =SUM(AA14,AA24)/2 -> 57.5 | AB25: =SUM(AB14,AB24) -> 1 | AC25: =SUM(AC24,AC14)/2 -> 70.83333333
E27: Udfyld alle grønne felter med 1 for positiv eller antal i tal
A28: =COUNTBLANK(I5:K13) -> 18 | W28: Approach
A29: =COUNTBLANK(I15:K23) -> 21 | E29: Udfyld følgende farver: | S29: Holes to par | W29: Længde (m) | X29: Antal | Y29: Afstand (m)
A30: =SUM(L5:L23) -> 2 | E30: Eagles | S30: Par 3 | T30: =SUMIF(C:C,"3",E:E)/COUNTIF(C:C,3) -> 3.333333333 | W30: 45-70 | X30: =COUNTIFS(R5:R23,">=45",R5:R23,"<=70") -> 2 | Y30: =IF(X30=0,"",AVERAGEIFS(S5:S23,R5:R23,">=45",R5:R23,"<=70")) -> 3
E31: Birdies | S31: Par 4 | T31: =SUMIF(C:C,"4",E:E)/COUNTIF(C:C,4) -> 4.363636364 | W31: 71-90 | X31: =COUNTIFS(R5:R23,">=71",R5:R23,"<=90") -> 1 | Y31: =IF(X31=0,"",AVERAGEIFS(S5:S23,R5:R23,">=71",R5:R23,"<=90")) -> 6
E32: Bogeys | S32: Par 5 | T32: =SUMIF(C:C,"5",E:E)/COUNTIF(C:C,5) -> 5.5 | W32: 91-115 | X32: =COUNTIFS(R5:R23,">=91",R5:R23,"<=115") -> 3 | Y32: =IF(X32=0,"",AVERAGEIFS(S5:S23,R5:R23,">=91",R5:R23,"<=115")) -> 4.166666667
E33: Doublebogeys eller værre | W33: 116-140 | X33: =COUNTIFS(R5:R23,">=116",R5:R23,"<=140") -> 1 | Y33: =IF(X33=0,"",AVERAGEIFS(S5:S23,R5:R23,">=116",R5:R23,"<=140")) -> 2
S34: First 4 | T34: =IF(E25="0","",SUM(E5:E8)-SUM(C5:C8)) -> 3 | W34: 141-160 | X34: =COUNTIFS(R5:R23,">=141",R5:R23,"<=161") -> 1 | Y34: =IF(X34=0,"",AVERAGEIFS(S5:S23,R5:R23,">=141",R5:R23,"<=160")) -> 1
S35: Last 4 | T35: =IF(E25="0","",SUM(E20:E23)-SUM(C20:C23)) -> 1 | W35: 161-180 | X35: =COUNTIFS(R5:R23,">=161",R5:R23,"<=180") -> 0 | Y35: =IF(X35=0,"",AVERAGEIFS(S5:S23,R5:R23,">=161",R5:R23,"<=180")) -> 
W37: Putting
W38: Længde (m) | X38: Antal | Y38: Holet | Z38: Holet (%)
W39: under 1 m | X39: =COUNTIFS(S5:S23,">=0,1",S5:S23,"<=0,9") -> 0 | Y39: =IF(X39=0,"",COUNTIFS(P5:P23,"=1",S5:S23,"<1")) ->  | Z39: =IF(X39=0,"",Y39/X39*100) -> 
W40: 1 - 1,5 | X40: =COUNTIFS(S5:S23,">=1",S5:S23,"<=1,5") -> 1 | Y40: =IF(X40=0,"",COUNTIFS(P5:P23,"=1",S5:S23,">=1",S5:S23,"<=1,5")) -> 0 | Z40: =IF(X40=0,"",Y40/X40*100) -> 0
W41: 1,5 - 3 | X41: =COUNTIFS(S5:S23,">=1,6",S5:S23,"<=3") -> 4 | Y41: =IF(X41=0,"",COUNTIFS(P5:P23,"=1",S5:S23,">=1,6",S5:S23,"<=3")) -> 1 | Z41: =IF(X41=0,"",Y41/X41*100) -> 25
W42: 3 - 4,5 | X42: =COUNTIFS(S5:S23,">=3,1",S5:S23,"<=4,5") -> 2 | Y42: =IF(X42=0,"",COUNTIFS(P5:P23,"=1",S5:S23,">=3,1",S5:S23,"<=4,5")) -> 0 | Z42: 0
W43: 4,5 - 6 | X43: =COUNTIFS(S5:S23,">=4,6",S5:S23,"<=6") -> 3 | Y43: =IF(X43=0,"",COUNTIFS(P5:P23,"=1",S5:S23,">=4,6",S5:S23,"<=6")) -> 0 | Z43: 0
W44: over 6 meter | X44: =COUNTIFS(S5:S23,">6") -> 0 | Y44: =IF(X44=0,"",COUNTIFS(P5:P23,"=1",S5:S23,">6")) -> 

Sheet Runde 26
A1: Korsør Golf Klub - 18 huller - Gul tee | J1: =IF(E25="0","0","1") -> 1 | K1: Dato: | L1: 2010-09-05 | N1: Handicap: | O1: 4.1 | Q1: ATS: | R1: 3 | T1: Vejr: | U1: Sol, 18 grader, svag vind | W1: Turnering: | X1: Løvfaldsturneringen
H3: Tee shot | K3: Fairway hits i % | N3: Bunker | R3: Approach shots
A4: Hul | B4: Gul tee | C4: Par | D4: HCP | E4: Score | F4: Netto | G4: Driver | H4: Wood | I4: Jern | J4: Venstre | K4: Midt | L4: Højre | M4: FB | N4: GB | O4: SS | P4: Putts | Q4: GIR | R4: Dist. to pin (m) | S4: Dist. to hole (m) | T4: % SS | U4: % GIR | V4: Putts/GIR | W4: Eagles | X4: Birdies | Y4: Bogeys | Z4: Værre | AA4: % Scramble | AB4: 3+ Putts | AC4: % Driver/Fairwayhits
A5: 1 | B5: 307 | C5: 4 | D5: 11 | E5: 3 | F5: 3 | G5: 1 | K5: 1 | P5: 1 | Q5: 1 | R5: 72 | S5: 2.5 | V5: =IF(Q5=0,"",P5) -> 1 | AA5: =IF(AND(Q5="",P5=1),1,"") ->  | AC5: =IF(AND(G5=""),"",SUM(K5)) -> 1
A6: 2 | B6: 323 | C6: 4 | D6: 5 | E6: 4 | F6: 4 | G6: 1 | K6: 1 | P6: 2 | Q6: 1 | R6: 80 | S6: 4 | V6: 2 | AC6: 1
A7: 3 | B7: 138 | C7: 3 | D7: 15 | E7: 3 | F7: 3 | P7: 2 | Q7: 1 | V7: 2
A8: 4 | B8: 310 | C8: 4 | D8: 13 | E8: 3 | F8: 3 | I8: 1 | K8: 1 | P8: 1 | Q8: 1 | R8: 136 | S8: 0.4 | V8: 1
A9: 5 | B9: 431 | C9: 5 | D9: 3 | E9: 4 | F9: 3 | G9: 1 | K9: 1 | P9: 1 | Q9: 1 | R9: 6 | S9: 0.3 | V9: 1 | AC9: 1
A10: 6 | B10: 312 | C10: 4 | D10: 9 | E10: 4 | F10: 4 | G10: 1 | K10: 1 | P10: 2 | Q10: 1 | V10: 2 | AC10: 1
A11: 7 | B11: 498 | C11: 5 | D11: 1 | E11: 5 | F11: 4 | I11: 1 | K11: 1 | P11: 2 | Q11: 1 | R11: 126 | S11: 5 | V11: 2
A12: 8 | B12: 138 | C12: 3 | D12: 17 | E12: 3 | F12: 3 | P12: 2 | Q12: 1 | R12: 137 | S12: 5 | V12: 2
A13: 9 | B13: 310 | C13: 4 | D13: 7 | E13: 4 | F13: 4 | H13: 1 | K13: 1 | P13: 2 | Q13: 1 | R13: 123 | S13: 2.5 | V13: 2
B14: =SUM(B5:B13) -> 2767 | C14: =SUM(C5:C13) -> 36 | D14: UD | E14: =SUM(E5:E13) -> 33 | F14: =SUM(F5:F13) -> 31 | G14: =SUM(G5:G13) -> 4 | H14: =SUM(H5:H13) -> 1 | I14: =SUM(I5:I13) -> 2 | J14: =IF((A28=27),"",(SUM(J5:J13)/SUM(J5:L13))*100) -> 0 | K14: =IF((A28=27),"",(SUM(K5:K13)/SUM(J5:L13))*100) -> 100 | L14: =IF((A28=27),"",(SUM(L5:L13)/SUM(J5:L13))*100) -> 0 | M14: =SUM(M5:M13) -> 0 | N14: =SUM(N5:N13) -> 0 | O14: =SUM(O5:O13) -> 0 | P14: =SUM(P5:P13) -> 15 | Q14: =SUM(Q5:Q13) -> 9 | S14: =IF(Q14=0,0,SUM(S5:S13)/Q14) -> 2.188888889 | V14: =SUM(V5:V13) -> 15 | W14: =ColorFunction($E$30,$E$5:$E$13) -> 0 | X14: =ColorFunction($E$31,$E$5:$E$13) -> 3 | Y14: =ColorFunction($E$32,$E$5:$E$13) -> 0 | Z14: =ColorFunction($E$33,$E$5:$E$13) -> 0 | AB14: =COUNTIF(P5:P13,">2") -> 0 | AC14: =IF((G14=0),"",SUM(AC5:AC13)/G14*100) -> 100
A15: 10 | B15: 481 | C15: 5 | D15: 4 | E15: 5 | F15: 5 | G15: 1 | J15: 1 | P15: 1 | V15: =IF(Q15=0,"",P15) ->  | AA15: =IF(AND(Q15="",P15=1),1,"") -> 1 | AC15: =IF(AND(G15=""),"",SUM(K15)) -> 0
A16: 11 | B16: 319 | C16: 4 | D16: 16 | E16: 4 | F16: 4 | H16: 1 | K16: 1 | P16: 2 | Q16: 1 | R16: 125 | S16: 5 | V16: 2
A17: 12 | B17: 431 | C17: 5 | D17: 2 | E17: 5 | F17: 4 | G17: 1 | K17: 1 | P17: 2 | Q17: 1 | R17: 26 | S17: 2 | V17: 2 | AC17: 1
A18: 13 | B18: 122 | C18: 3 | D18: 18 | E18: 3 | F18: 3 | P18: 2 | Q18: 1 | R18: 114 | S18: 6 | V18: 2
A19: 14 | B19: 379 | C19: 4 | D19: 6 | E19: 4 | F19: 4 | G19: 1 | K19: 1 | P19: 2 | Q19: 1 | R19: 157 | S19: 6 | V19: 2 | AC19: 1
A20: 15 | B20: 316 | C20: 4 | D20: 8 | E20: 5 | F20: 5 | G20: 1 | J20: 1 | P20: 2 | AC20: 0
A21: 16 | B21: 322 | C21: 4 | D21: 14 | E21: 6 | F21: 6 | G21: 1 | J21: 1 | P21: 3 | AC21: 0
A22: 17 | B22: 345 | C22: 4 | D22: 10 | E22: 4 | F22: 4 | H22: 1 | K22: 1 | P22: 2 | Q22: 1 | R22: 148 | S22: 5 | V22: 2
A23: 18 | B23: 281 | C23: 4 | D23: 12 | E23: 4 | F23: 4 | H23: 1 | K23: 1 | P23: 2 | Q23: 1 | R23: 85 | S23: 5 | V23: 2
B24: =SUM(B15:B23) -> 2996 | C24: =SUM(C15:C23) -> 37 | D24: IND | E24: =SUM(E15:E23) -> 40 | F24: =SUM(F15:F23) -> 39 | G24: =SUM(G15:G23) -> 5 | H24: =SUM(H15:H23) -> 3 | I24: =SUM(I15:I23) -> 0 | J24: =IF((A29=27),"",(SUM(J15:J23)/SUM(J15:L23))*100) -> 37.5 | K24: =IF((A29=27),"",(SUM(K15:K23)/SUM(J15:L23))*100) -> 62.5 | L24: =IF((A29=27),"",(SUM(L15:L23)/SUM(J15:L23))*100) -> 0 | M24: =SUM(M15:M23) -> 0 | N24: =SUM(N15:N23) -> 0 | O24: =SUM(O15:O23) -> 0 | P24: =SUM(P15:P23) -> 18 | Q24: =SUM(Q15:Q23) -> 6 | S24: =IF(Q24=0,0,SUM(S15:S23)/Q24) -> 4.833333333 | V24: =SUM(V15:V23) -> 12 | W24: =ColorFunction($E$30,$E$15:$E$23) -> 0 | X24: =ColorFunction($E$31,$E$15:$E$23) -> 0 | Y24: =ColorFunction($E$32,$E$15:$E$23) -> 1 | Z24: =ColorFunction($E$33,$E$15:$E$23) -> 1 | AA24: =SUM(AA15:AA23)/(9-Q24)*100 -> 33.33333333 | AB24: =COUNTIF(P15:P23,">2") -> 1 | AC24: =IF((G24=0),"",SUM(AC15:AC23)/G24*100) -> 40
B25: =SUM(B24,B14) -> 5763 | C25: =SUM(C24,C14) -> 73 | D25: TOTAL | E25: =IF(E14=0,"0",(E24+E14)) -> 73 | F25: =SUM(F14,F24) -> 70 | G25: =SUM(G24,G14) -> 9 | H25: =SUM(H24,H14) -> 4 | I25: =SUM(I24,I14) -> 2 | J25: =IF((A28=27),"",(SUM(J14,J24)/2)) -> 18.75 | K25: =IF((A28=27),"",(SUM(K14,K24)/2)) -> 81.25 | L25: =IF((A28=27),"",(SUM(L14,L24)/2)) -> 0 | M25: =SUM(M24,M14) -> 0 | N25: =SUM(N24,N14) -> 0 | O25: =SUM(O24,O14) -> 0 | P25: =IF(P14+P24=0,"",SUM(P24,P14)) -> 33 | Q25: =IF(Q14+Q24=0,"",SUM(Q24,Q14)) -> 15 | S25: =IF(S14+S24=0,"",SUM(S24,S14)/2) -> 3.511111111 | T25: =IF(N25=0,"",(O25)/N25*100) ->  | U25: =IF(Q25="","",(Q25)/18*100) -> 83.33333333 | V25: =IF(Q25="","",(V14+V24)/Q25) -> 1.8 | W25: =SUM(W14,W24) -> 0 | X25: =SUM(X14,X24) -> 3 | Y25: =SUM(Y14,Y24) -> 1 | Z25: =SUM(Z14,Z24) -> 1 | AA25: 33 | AB25: =SUM(AB14,AB24) -> 1 | AC25: =SUM(AC24,AC14)/2 -> 70
E27: Udfyld alle grønne felter med 1 for positiv eller antal i tal
A28: =COUNTBLANK(I5:K13) -> 18 | W28: Approach
A29: =COUNTBLANK(I15:K23) -> 19 | E29: Udfyld følgende farver: | S29: Holes to par | W29: Længde (m) | X29: Antal | Y29: Afstand (m)
A30: =SUM(L5:L23) -> 0 | E30: Eagles | S30: Par 3 | T30: =SUMIF(C:C,"3",E:E)/COUNTIF(C:C,3) -> 3 | W30: 45-70 | X30: =COUNTIFS(R5:R23,">=45",R5:R23,"<=70") -> 0 | Y30: =IF(X30=0,"",AVERAGEIFS(S5:S23,R5:R23,">=45",R5:R23,"<=70")) -> 
E31: Birdies | S31: Par 4 | T31: =SUMIF(C:C,"4",E:E)/COUNTIF(C:C,4) -> 4.090909091 | W31: 71-90 | X31: =COUNTIFS(R5:R23,">=71",R5:R23,"<=90") -> 3 | Y31: =IF(X31=0,"",AVERAGEIFS(S5:S23,R5:R23,">=71",R5:R23,"<=90")) -> 3.833333333
E32: Bogeys | S32: Par 5 | T32: =SUMIF(C:C,"5",E:E)/COUNTIF(C:C,5) -> 4.75 | W32: 91-115 | X32: =COUNTIFS(R5:R23,">=91",R5:R23,"<=115") -> 1 | Y32: =IF(X32=0,"",AVERAGEIFS(S5:S23,R5:R23,">=91",R5:R23,"<=115")) -> 6
E33: Doublebogeys eller værre | W33: 116-140 | X33: =COUNTIFS(R5:R23,">=116",R5:R23,"<=140") -> 5 | Y33: =IF(X33=0,"",AVERAGEIFS(S5:S23,R5:R23,">=116",R5:R23,"<=140")) -> 3.58
S34: First 4 | T34: =IF(E25="0","",SUM(E5:E8)-SUM(C5:C8)) -> -2 | W34: 141-160 | X34: =COUNTIFS(R5:R23,">=141",R5:R23,"<=161") -> 2 | Y34: =IF(X34=0,"",AVERAGEIFS(S5:S23,R5:R23,">=141",R5:R23,"<=160")) -> 5.5
S35: Last 4 | T35: =IF(E25="0","",SUM(E20:E23)-SUM(C20:C23)) -> 3 | W35: 161-180 | X35: =COUNTIFS(R5:R23,">=161",R5:R23,"<=180") -> 0 | Y35: =IF(X35=0,"",AVERAGEIFS(S5:S23,R5:R23,">=161",R5:R23,"<=180")) -> 
W37: Putting
W38: Længde (m) | X38: Antal | Y38: Holet | Z38: Holet (%)
W39: under 1 m | X39: =COUNTIFS(S5:S23,">=0,1",S5:S23,"<=0,9") -> 2 | Y39: =IF(X39=0,"",COUNTIFS(P5:P23,"=1",S5:S23,"<1")) -> 2 | Z39: =IF(X39=0,"",Y39/X39*100) -> 100
W40: 1 - 1,5 | X40: =COUNTIFS(S5:S23,">=1",S5:S23,"<=1,5") -> 0 | Y40: =IF(X40=0,"",COUNTIFS(P5:P23,"=1",S5:S23,">=1",S5:S23,"<=1,5")) ->  | Z40: =IF(X40=0,"",Y40/X40*100) -> 
W41: 1,5 - 3 | X41: =COUNTIFS(S5:S23,">=1,6",S5:S23,"<=3") -> 4 | Y41: =IF(X41=0,"",COUNTIFS(P5:P23,"=1",S5:S23,">=1,6",S5:S23,"<=3")) -> 1 | Z41: =IF(X41=0,"",Y41/X41*100) -> 25
W42: 3 - 4,5 | X42: =COUNTIFS(S5:S23,">=3,1",S5:S23,"<=4,5") -> 1 | Y42: =IF(X42=0,"",COUNTIFS(P5:P23,"=1",S5:S23,">=3,1",S5:S23,"<=4,5")) -> 0 | Z42: 0
W43: 4,5 - 6 | X43: =COUNTIFS(S5:S23,">=4,6",S5:S23,"<=6") -> 7 | Y43: =IF(X43=0,"",COUNTIFS(P5:P23,"=1",S5:S23,">=4,6",S5:S23,"<=6")) -> 0 | Z43: 0
W44: over 6 meter | X44: =COUNTIFS(S5:S23,">6") -> 0 | Y44: =IF(X44=0,"",COUNTIFS(P5:P23,"=1",S5:S23,">6")) -> 

Sheet Runde 27
A1: Korsør Golf Klub - 18 huller - Gul tee | J1: =IF(E25="0","0","1") -> 0 | K1: Dato: | N1: Handicap: | Q1: ATS: | T1: Vejr: | W1: Turnering:
H3: Tee shot | K3: Fairway hits i % | N3: Bunker | R3: Approach shots
A4: Hul | B4: Gul tee | C4: Par | D4: HCP | E4: Score | F4: Netto | G4: Driver | H4: Wood | I4: Jern | J4: Venstre | K4: Midt | L4: Højre | M4: FB | N4: GB | O4: SS | P4: Putts | Q4: GIR | R4: Dist. to pin (m) | S4: Dist. to hole (m) | T4: % SS | U4: % GIR | V4: Putts/GIR | W4: Eagles | X4: Birdies | Y4: Bogeys | Z4: Værre | AA4: % Scramble | AB4: 3+ Putts | AC4: % Driver/Fairwayhits
A5: 1 | B5: 307 | C5: 4 | D5: 11 | V5: =IF(Q5=0,"",P5) ->  | AA5: =IF(AND(Q5="",P5=1),1,"") ->  | AC5: =IF(AND(G5=""),"",SUM(K5)) -> 
A6: 2 | B6: 323 | C6: 4 | D6: 5
A7: 3 | B7: 138 | C7: 3 | D7: 15
A8: 4 | B8: 310 | C8: 4 | D8: 13
A9: 5 | B9: 431 | C9: 5 | D9: 3
A10: 6 | B10: 312 | C10: 4 | D10: 9
A11: 7 | B11: 498 | C11: 5 | D11: 1
A12: 8 | B12: 138 | C12: 3 | D12: 17
A13: 9 | B13: 310 | C13: 4 | D13: 7
B14: =SUM(B5:B13) -> 2767 | C14: =SUM(C5:C13) -> 36 | D14: UD | E14: =SUM(E5:E13) -> 0 | F14: =SUM(F5:F13) -> 0 | G14: =SUM(G5:G13) -> 0 | H14: =SUM(H5:H13) -> 0 | I14: =SUM(I5:I13) -> 0 | J14: =IF((A28=27),"",(SUM(J5:J13)/SUM(J5:L13))*100) ->  | K14: =IF((A28=27),"",(SUM(K5:K13)/SUM(J5:L13))*100) ->  | L14: =IF((A28=27),"",(SUM(L5:L13)/SUM(J5:L13))*100) ->  | M14: =SUM(M5:M13) -> 0 | N14: =SUM(N5:N13) -> 0 | O14: =SUM(O5:O13) -> 0 | P14: =SUM(P5:P13) -> 0 | Q14: =SUM(Q5:Q13) -> 0 | S14: =IF(Q14=0,0,SUM(S5:S13)/Q14) -> 0 | V14: =SUM(V5:V13) -> 0 | W14: =ColorFunction($E$30,$E$5:$E$13) -> 0 | X14: =ColorFunction($E$31,$E$5:$E$13) -> 0 | Y14: =ColorFunction($E$32,$E$5:$E$13) -> 0 | Z14: =ColorFunction($E$33,$E$5:$E$13) -> 0 | AA14: =SUM(AA5:AA13)/(9-Q14)*100 -> 0 | AB14: =COUNTIF(P5:P13,">2") -> 0 | AC14: =IF((G14=0),"",SUM(AC5:AC13)/G14*100) -> 
A15: 10 | B15: 481 | C15: 5 | D15: 4 | V15: =IF(Q15=0,"",P15) ->  | AA15: =IF(AND(Q15="",P15=1),1,"") ->  | AC15: =IF(AND(G15=""),"",SUM(K15)) -> 
A16: 11 | B16: 319 | C16: 4 | D16: 16
A17: 12 | B17: 431 | C17: 5 | D17: 2
A18: 13 | B18: 122 | C18: 3 | D18: 18
A19: 14 | B19: 379 | C19: 4 | D19: 6
A20: 15 | B20: 316 | C20: 4 | D20: 8
A21: 16 | B21: 322 | C21: 4 | D21: 14
A22: 17 | B22: 345 | C22: 4 | D22: 10
A23: 18 | B23: 281 | C23: 4 | D23: 12
B24: =SUM(B15:B23) -> 2996 | C24: =SUM(C15:C23) -> 37 | D24: IND | E24: =SUM(E15:E23) -> 0 | F24: =SUM(F15:F23) -> 0 | G24: =SUM(G15:G23) -> 0 | H24: =SUM(H15:H23) -> 0 | I24: =SUM(I15:I23) -> 0 | J24: =IF((A29=27),"",(SUM(J15:J23)/SUM(J15:L23))*100) ->  | K24: =IF((A29=27),"",(SUM(K15:K23)/SUM(J15:L23))*100) ->  | L24: =IF((A29=27),"",(SUM(L15:L23)/SUM(J15:L23))*100) ->  | M24: =SUM(M15:M23) -> 0 | N24: =SUM(N15:N23) -> 0 | O24: =SUM(O15:O23) -> 0 | P24: =SUM(P15:P23) -> 0 | Q24: =SUM(Q15:Q23) -> 0 | S24: =IF(Q24=0,0,SUM(S15:S23)/Q24) -> 0 | V24: =SUM(V15:V23) -> 0 | W24: =ColorFunction($E$30,$E$15:$E$23) -> 0 | X24: =ColorFunction($E$31,$E$15:$E$23) -> 0 | Y24: =ColorFunction($E$32,$E$15:$E$23) -> 0 | Z24: =ColorFunction($E$33,$E$15:$E$23) -> 0 | AA24: =SUM(AA15:AA23)/(9-Q24)*100 -> 0 | AB24: =COUNTIF(P15:P23,">2") -> 0 | AC24: =IF((G24=0),"",SUM(AC15:AC23)/G24*100) -> 
B25: =SUM(B24,B14) -> 5763 | C25: =SUM(C24,C14) -> 73 | D25: TOTAL | E25: =IF(E14=0,"0",(E24+E14)) -> 0 | F25: =SUM(F14,F24) -> 0 | G25: =SUM(G24,G14) -> 0 | H25: =SUM(H24,H14) -> 0 | I25: =SUM(I24,I14) -> 0 | J25: =IF((A28=27),"",(SUM(J14,J24)/2)) ->  | K25: =IF((A28=27),"",(SUM(K14,K24)/2)) ->  | L25: =IF((A28=27),"",(SUM(L14,L24)/2)) ->  | M25: =SUM(M24,M14) -> 0 | N25: =SUM(N24,N14) -> 0 | O25: =SUM(O24,O14) -> 0 | P25: =IF(P14+P24=0,"",SUM(P24,P14)) ->  | Q25: =IF(Q14+Q24=0,"",SUM(Q24,Q14)) ->  | S25: =IF(S14+S24=0,"",SUM(S24,S14)/2) ->  | T25: =IF(N25=0,"",(O25)/N25*100) ->  | U25: =IF(Q25="","",(Q25)/18*100) ->  | V25: =IF(Q25="","",(V14+V24)/Q25) ->  | W25: =SUM(W14,W24) -> 0 | X25: =SUM(X14,X24) -> 0 | Y25: =SUM(Y14,Y24) -> 0 | Z25: =SUM(Z14,Z24) -> 0 | AA25: =SUM(AA14,AA24)/2 -> 0 | AB25: =SUM(AB14,AB24) -> 0 | AC25: =SUM(AC24,AC14)/2 -> 0
E27: Udfyld alle grønne felter med 1 for positiv eller antal i tal
A28: =COUNTBLANK(I5:K13) -> 27 | W28: Approach
A29: =COUNTBLANK(I15:K23) -> 27 | E29: Udfyld følgende farver: | S29: Holes to par | W29: Længde (m) | X29: Antal | Y29: Afstand (m)
A30: =SUM(L5:L23) -> 0 | E30: Eagles | S30: Par 3 | T30: =SUMIF(C:C,"3",E:E)/COUNTIF(C:C,3) -> 0 | W30: 45-70 | X30: =COUNTIFS(R5:R23,">=45",R5:R23,"<=70") -> 0 | Y30: =IF(X30=0,"",AVERAGEIFS(S5:S23,R5:R23,">=45",R5:R23,"<=70")) -> 
E31: Birdies | S31: Par 4 | T31: =SUMIF(C:C,"4",E:E)/COUNTIF(C:C,4) -> 0 | W31: 71-90 | X31: =COUNTIFS(R5:R23,">=71",R5:R23,"<=90") -> 0 | Y31: =IF(X31=0,"",AVERAGEIFS(S5:S23,R5:R23,">=71",R5:R23,"<=90")) -> 
E32: Bogeys | S32: Par 5 | T32: =SUMIF(C:C,"5",E:E)/COUNTIF(C:C,5) -> 0 | W32: 91-115 | X32: =COUNTIFS(R5:R23,">=91",R5:R23,"<=115") -> 0 | Y32: =IF(X32=0,"",AVERAGEIFS(S5:S23,R5:R23,">=91",R5:R23,"<=115")) -> 
E33: Doublebogeys eller værre | W33: 116-140 | X33: =COUNTIFS(R5:R23,">=116",R5:R23,"<=140") -> 0 | Y33: =IF(X33=0,"",AVERAGEIFS(S5:S23,R5:R23,">=116",R5:R23,"<=140")) -> 
S34: First 4 | T34: =IF(E25="0","",SUM(E5:E8)-SUM(C5:C8)) ->  | W34: 141-160 | X34: =COUNTIFS(R5:R23,">=141",R5:R23,"<=161") -> 0 | Y34: =IF(X34=0,"",AVERAGEIFS(S5:S23,R5:R23,">=141",R5:R23,"<=160")) -> 
S35: Last 4 | T35: =IF(E25="0","",SUM(E20:E23)-SUM(C20:C23)) ->  | W35: 161-180 | X35: =COUNTIFS(R5:R23,">=161",R5:R23,"<=180") -> 0 | Y35: =IF(X35=0,"",AVERAGEIFS(S5:S23,R5:R23,">=161",R5:R23,"<=180")) -> 
W37: Putting
W38: Længde (m) | X38: Antal | Y38: Holet | Z38: Holet (%)
W39: under 1 m | X39: =COUNTIFS(S5:S23,">=0,1",S5:S23,"<=0,9") -> 0 | Y39: =IF(X39=0,"",COUNTIFS(P5:P23,"=1",S5:S23,"<1")) ->  | Z39: =IF(X39=0,"",Y39/X39*100) -> 
W40: 1 - 1,5 | X40: =COUNTIFS(S5:S23,">=1",S5:S23,"<=1,5") -> 0 | Y40: =IF(X40=0,"",COUNTIFS(P5:P23,"=1",S5:S23,">=1",S5:S23,"<=1,5")) ->  | Z40: =IF(X40=0,"",Y40/X40*100) -> 
W41: 1,5 - 3 | X41: =COUNTIFS(S5:S23,">=1,6",S5:S23,"<=3") -> 0 | Y41: =IF(X41=0,"",COUNTIFS(P5:P23,"=1",S5:S23,">=1,6",S5:S23,"<=3")) ->  | Z41: =IF(X41=0,"",Y41/X41*100) -> 
W42: 3 - 4,5 | X42: =COUNTIFS(S5:S23,">=3,1",S5:S23,"<=4,5") -> 0 | Y42: =IF(X42=0,"",COUNTIFS(P5:P23,"=1",S5:S23,">=3,1",S5:S23,"<=4,5")) -> 
W43: 4,5 - 6 | X43: =COUNTIFS(S5:S23,">=4,6",S5:S23,"<=6") -> 0 | Y43: =IF(X43=0,"",COUNTIFS(P5:P23,"=1",S5:S23,">=4,6",S5:S23,"<=6")) -> 
W44: over 6 meter | X44: =COUNTIFS(S5:S23,">6") -> 0 | Y44: =IF(X44=0,"",COUNTIFS(P5:P23,"=1",S5:S23,">6")) -> 

Sheet Runde 28
A1: Korsør Golf Klub - 18 huller - Gul tee | J1: =IF(E25="0","0","1") -> 0 | K1: Dato: | N1: Handicap: | Q1: ATS: | T1: Vejr: | W1: Turnering:
H3: Tee shot | K3: Fairway hits i % | N3: Bunker | R3: Approach shots
A4: Hul | B4: Gul tee | C4: Par | D4: HCP | E4: Score | F4: Netto | G4: Driver | H4: Wood | I4: Jern | J4: Venstre | K4: Midt | L4: Højre | M4: FB | N4: GB | O4: SS | P4: Putts | Q4: GIR | R4: Dist. to pin (m) | S4: Dist. to hole (m) | T4: % SS | U4: % GIR | V4: Putts/GIR | W4: Eagles | X4: Birdies | Y4: Bogeys | Z4: Værre | AA4: % Scramble | AB4: 3+ Putts | AC4: % Driver/Fairwayhits
A5: 1 | B5: 307 | C5: 4 | D5: 11 | V5: =IF(Q5=0,"",P5) ->  | AA5: =IF(AND(Q5="",P5=1),1,"") ->  | AC5: =IF(AND(G5=""),"",SUM(K5)) -> 
A6: 2 | B6: 323 | C6: 4 | D6: 5
A7: 3 | B7: 138 | C7: 3 | D7: 15
A8: 4 | B8: 310 | C8: 4 | D8: 13
A9: 5 | B9: 431 | C9: 5 | D9: 3
A10: 6 | B10: 312 | C10: 4 | D10: 9
A11: 7 | B11: 498 | C11: 5 | D11: 1
A12: 8 | B12: 138 | C12: 3 | D12: 17
A13: 9 | B13: 310 | C13: 4 | D13: 7
B14: =SUM(B5:B13) -> 2767 | C14: =SUM(C5:C13) -> 36 | D14: UD | E14: =SUM(E5:E13) -> 0 | F14: =SUM(F5:F13) -> 0 | G14: =SUM(G5:G13) -> 0 | H14: =SUM(H5:H13) -> 0 | I14: =SUM(I5:I13) -> 0 | J14: =IF((A28=27),"",(SUM(J5:J13)/SUM(J5:L13))*100) ->  | K14: =IF((A28=27),"",(SUM(K5:K13)/SUM(J5:L13))*100) ->  | L14: =IF((A28=27),"",(SUM(L5:L13)/SUM(J5:L13))*100) ->  | M14: =SUM(M5:M13) -> 0 | N14: =SUM(N5:N13) -> 0 | O14: =SUM(O5:O13) -> 0 | P14: =SUM(P5:P13) -> 0 | Q14: =SUM(Q5:Q13) -> 0 | S14: =IF(Q14=0,0,SUM(S5:S13)/Q14) -> 0 | V14: =SUM(V5:V13) -> 0 | W14: =ColorFunction($E$30,$E$5:$E$13) -> 0 | X14: =ColorFunction($E$31,$E$5:$E$13) -> 0 | Y14: =ColorFunction($E$32,$E$5:$E$13) -> 0 | Z14: =ColorFunction($E$33,$E$5:$E$13) -> 0 | AA14: =SUM(AA5:AA13)/(9-Q14)*100 -> 0 | AB14: =COUNTIF(P5:P13,">2") -> 0 | AC14: =IF((G14=0),"",SUM(AC5:AC13)/G14*100) -> 
A15: 10 | B15: 481 | C15: 5 | D15: 4 | V15: =IF(Q15=0,"",P15) ->  | AA15: =IF(AND(Q15="",P15=1),1,"") ->  | AC15: =IF(AND(G15=""),"",SUM(K15)) -> 
A16: 11 | B16: 319 | C16: 4 | D16: 16
A17: 12 | B17: 431 | C17: 5 | D17: 2
A18: 13 | B18: 122 | C18: 3 | D18: 18
A19: 14 | B19: 379 | C19: 4 | D19: 6
A20: 15 | B20: 316 | C20: 4 | D20: 8
A21: 16 | B21: 322 | C21: 4 | D21: 14
A22: 17 | B22: 345 | C22: 4 | D22: 10
A23: 18 | B23: 281 | C23: 4 | D23: 12
B24: =SUM(B15:B23) -> 2996 | C24: =SUM(C15:C23) -> 37 | D24: IND | E24: =SUM(E15:E23) -> 0 | F24: =SUM(F15:F23) -> 0 | G24: =SUM(G15:G23) -> 0 | H24: =SUM(H15:H23) -> 0 | I24: =SUM(I15:I23) -> 0 | J24: =IF((A29=27),"",(SUM(J15:J23)/SUM(J15:L23))*100) ->  | K24: =IF((A29=27),"",(SUM(K15:K23)/SUM(J15:L23))*100) ->  | L24: =IF((A29=27),"",(SUM(L15:L23)/SUM(J15:L23))*100) ->  | M24: =SUM(M15:M23) -> 0 | N24: =SUM(N15:N23) -> 0 | O24: =SUM(O15:O23) -> 0 | P24: =SUM(P15:P23) -> 0 | Q24: =SUM(Q15:Q23) -> 0 | S24: =IF(Q24=0,0,SUM(S15:S23)/Q24) -> 0 | V24: =SUM(V15:V23) -> 0 | W24: =ColorFunction($E$30,$E$15:$E$23) -> 0 | X24: =ColorFunction($E$31,$E$15:$E$23) -> 0 | Y24: =ColorFunction($E$32,$E$15:$E$23) -> 0 | Z24: =ColorFunction($E$33,$E$15:$E$23) -> 0 | AA24: =SUM(AA15:AA23)/(9-Q24)*100 -> 0 | AB24: =COUNTIF(P15:P23,">2") -> 0 | AC24: =IF((G24=0),"",SUM(AC15:AC23)/G24*100) -> 
B25: =SUM(B24,B14) -> 5763 | C25: =SUM(C24,C14) -> 73 | D25: TOTAL | E25: =IF(E14=0,"0",(E24+E14)) -> 0 | F25: =SUM(F14,F24) -> 0 | G25: =SUM(G24,G14) -> 0 | H25: =SUM(H24,H14) -> 0 | I25: =SUM(I24,I14) -> 0 | J25: =IF((A28=27),"",(SUM(J14,J24)/2)) ->  | K25: =IF((A28=27),"",(SUM(K14,K24)/2)) ->  | L25: =IF((A28=27),"",(SUM(L14,L24)/2)) ->  | M25: =SUM(M24,M14) -> 0 | N25: =SUM(N24,N14) -> 0 | O25: =SUM(O24,O14) -> 0 | P25: =IF(P14+P24=0,"",SUM(P24,P14)) ->  | Q25: =IF(Q14+Q24=0,"",SUM(Q24,Q14)) ->  | S25: =IF(S14+S24=0,"",SUM(S24,S14)/2) ->  | T25: =IF(N25=0,"",(O25)/N25*100) ->  | U25: =IF(Q25="","",(Q25)/18*100) ->  | V25: =IF(Q25="","",(V14+V24)/Q25) ->  | W25: =SUM(W14,W24) -> 0 | X25: =SUM(X14,X24) -> 0 | Y25: =SUM(Y14,Y24) -> 0 | Z25: =SUM(Z14,Z24) -> 0 | AA25: =SUM(AA14,AA24)/2 -> 0 | AB25: =SUM(AB14,AB24) -> 0 | AC25: =SUM(AC24,AC14)/2 -> 0
E27: Udfyld alle grønne felter med 1 for positiv eller antal i tal
A28: =COUNTBLANK(I5:K13) -> 27 | W28: Approach
A29: =COUNTBLANK(I15:K23) -> 27 | E29: Udfyld følgende farver: | S29: Holes to par | W29: Længde (m) | X29: Antal | Y29: Afstand (m)
A30: =SUM(L5:L23) -> 0 | E30: Eagles | S30: Par 3 | T30: =SUMIF(C:C,"3",E:E)/COUNTIF(C:C,3) -> 0 | W30: 45-70 | X30: =COUNTIFS(R5:R23,">=45",R5:R23,"<=70") -> 0 | Y30: =IF(X30=0,"",AVERAGEIFS(S5:S23,R5:R23,">=45",R5:R23,"<=70")) -> 
E31: Birdies | S31: Par 4 | T31: =SUMIF(C:C,"4",E:E)/COUNTIF(C:C,4) -> 0 | W31: 71-90 | X31: =COUNTIFS(R5:R23,">=71",R5:R23,"<=90") -> 0 | Y31: =IF(X31=0,"",AVERAGEIFS(S5:S23,R5:R23,">=71",R5:R23,"<=90")) -> 
E32: Bogeys | S32: Par 5 | T32: =SUMIF(C:C,"5",E:E)/COUNTIF(C:C,5) -> 0 | W32: 91-115 | X32: =COUNTIFS(R5:R23,">=91",R5:R23,"<=115") -> 0 | Y32: =IF(X32=0,"",AVERAGEIFS(S5:S23,R5:R23,">=91",R5:R23,"<=115")) -> 
E33: Doublebogeys eller værre | W33: 116-140 | X33: =COUNTIFS(R5:R23,">=116",R5:R23,"<=140") -> 0 | Y33: =IF(X33=0,"",AVERAGEIFS(S5:S23,R5:R23,">=116",R5:R23,"<=140")) -> 
S34: First 4 | T34: =IF(E25="0","",SUM(E5:E8)-SUM(C5:C8)) ->  | W34: 141-160 | X34: =COUNTIFS(R5:R23,">=141",R5:R23,"<=161") -> 0 | Y34: =IF(X34=0,"",AVERAGEIFS(S5:S23,R5:R23,">=141",R5:R23,"<=160")) -> 
S35: Last 4 | T35: =IF(E25="0","",SUM(E20:E23)-SUM(C20:C23)) ->  | W35: 161-180 | X35: =COUNTIFS(R5:R23,">=161",R5:R23,"<=180") -> 0 | Y35: =IF(X35=0,"",AVERAGEIFS(S5:S23,R5:R23,">=161",R5:R23,"<=180")) -> 
W37: Putting
W38: Længde (m) | X38: Antal | Y38: Holet | Z38: Holet (%)
W39: under 1 m | X39: =COUNTIFS(S5:S23,">=0,1",S5:S23,"<=0,9") -> 0 | Y39: =IF(X39=0,"",COUNTIFS(P5:P23,"=1",S5:S23,"<1")) ->  | Z39: =IF(X39=0,"",Y39/X39*100) -> 
W40: 1 - 1,5 | X40: =COUNTIFS(S5:S23,">=1",S5:S23,"<=1,5") -> 0 | Y40: =IF(X40=0,"",COUNTIFS(P5:P23,"=1",S5:S23,">=1",S5:S23,"<=1,5")) ->  | Z40: =IF(X40=0,"",Y40/X40*100) -> 
W41: 1,5 - 3 | X41: =COUNTIFS(S5:S23,">=1,6",S5:S23,"<=3") -> 0 | Y41: =IF(X41=0,"",COUNTIFS(P5:P23,"=1",S5:S23,">=1,6",S5:S23,"<=3")) ->  | Z41: =IF(X41=0,"",Y41/X41*100) -> 
W42: 3 - 4,5 | X42: =COUNTIFS(S5:S23,">=3,1",S5:S23,"<=4,5") -> 0 | Y42: =IF(X42=0,"",COUNTIFS(P5:P23,"=1",S5:S23,">=3,1",S5:S23,"<=4,5")) -> 
W43: 4,5 - 6 | X43: =COUNTIFS(S5:S23,">=4,6",S5:S23,"<=6") -> 0 | Y43: =IF(X43=0,"",COUNTIFS(P5:P23,"=1",S5:S23,">=4,6",S5:S23,"<=6")) -> 
W44: over 6 meter | X44: =COUNTIFS(S5:S23,">6") -> 0 | Y44: =IF(X44=0,"",COUNTIFS(P5:P23,"=1",S5:S23,">6")) -> 

Sheet Runde 29
A1: Korsør Golf Klub - 18 huller - Gul tee | J1: =IF(E25="0","0","1") -> 0 | K1: Dato: | N1: Handicap: | Q1: ATS: | T1: Vejr: | W1: Turnering:
H3: Tee shot | K3: Fairway hits i % | N3: Bunker | R3: Approach shots
A4: Hul | B4: Gul tee | C4: Par | D4: HCP | E4: Score | F4: Netto | G4: Driver | H4: Wood | I4: Jern | J4: Venstre | K4: Midt | L4: Højre | M4: FB | N4: GB | O4: SS | P4: Putts | Q4: GIR | R4: Dist. to pin (m) | S4: Dist. to hole (m) | T4: % SS | U4: % GIR | V4: Putts/GIR | W4: Eagles | X4: Birdies | Y4: Bogeys | Z4: Værre | AA4: % Scramble | AB4: 3+ Putts | AC4: % Driver/Fairwayhits
A5: 1 | B5: 307 | C5: 4 | D5: 11 | V5: =IF(Q5=0,"",P5) ->  | AA5: =IF(AND(Q5="",P5=1),1,"") ->  | AC5: =IF(AND(G5=""),"",SUM(K5)) -> 
A6: 2 | B6: 323 | C6: 4 | D6: 5
A7: 3 | B7: 138 | C7: 3 | D7: 15
A8: 4 | B8: 310 | C8: 4 | D8: 13
A9: 5 | B9: 431 | C9: 5 | D9: 3
A10: 6 | B10: 312 | C10: 4 | D10: 9
A11: 7 | B11: 498 | C11: 5 | D11: 1
A12: 8 | B12: 138 | C12: 3 | D12: 17
A13: 9 | B13: 310 | C13: 4 | D13: 7
B14: =SUM(B5:B13) -> 2767 | C14: =SUM(C5:C13) -> 36 | D14: UD | E14: =SUM(E5:E13) -> 0 | F14: =SUM(F5:F13) -> 0 | G14: =SUM(G5:G13) -> 0 | H14: =SUM(H5:H13) -> 0 | I14: =SUM(I5:I13) -> 0 | J14: =IF((A28=27),"",(SUM(J5:J13)/SUM(J5:L13))*100) ->  | K14: =IF((A28=27),"",(SUM(K5:K13)/SUM(J5:L13))*100) ->  | L14: =IF((A28=27),"",(SUM(L5:L13)/SUM(J5:L13))*100) ->  | M14: =SUM(M5:M13) -> 0 | N14: =SUM(N5:N13) -> 0 | O14: =SUM(O5:O13) -> 0 | P14: =SUM(P5:P13) -> 0 | Q14: =SUM(Q5:Q13) -> 0 | S14: =IF(Q14=0,0,SUM(S5:S13)/Q14) -> 0 | V14: =SUM(V5:V13) -> 0 | W14: =ColorFunction($E$30,$E$5:$E$13) -> 0 | X14: =ColorFunction($E$31,$E$5:$E$13) -> 0 | Y14: =ColorFunction($E$32,$E$5:$E$13) -> 0 | Z14: =ColorFunction($E$33,$E$5:$E$13) -> 0 | AA14: =SUM(AA5:AA13)/(9-Q14)*100 -> 0 | AB14: =COUNTIF(P5:P13,">2") -> 0 | AC14: =IF((G14=0),"",SUM(AC5:AC13)/G14*100) -> 
A15: 10 | B15: 481 | C15: 5 | D15: 4 | V15: =IF(Q15=0,"",P15) ->  | AA15: =IF(AND(Q15="",P15=1),1,"") ->  | AC15: =IF(AND(G15=""),"",SUM(K15)) -> 
A16: 11 | B16: 319 | C16: 4 | D16: 16
A17: 12 | B17: 431 | C17: 5 | D17: 2
A18: 13 | B18: 122 | C18: 3 | D18: 18
A19: 14 | B19: 379 | C19: 4 | D19: 6
A20: 15 | B20: 316 | C20: 4 | D20: 8
A21: 16 | B21: 322 | C21: 4 | D21: 14
A22: 17 | B22: 345 | C22: 4 | D22: 10
A23: 18 | B23: 281 | C23: 4 | D23: 12
B24: =SUM(B15:B23) -> 2996 | C24: =SUM(C15:C23) -> 37 | D24: IND | E24: =SUM(E15:E23) -> 0 | F24: =SUM(F15:F23) -> 0 | G24: =SUM(G15:G23) -> 0 | H24: =SUM(H15:H23) -> 0 | I24: =SUM(I15:I23) -> 0 | J24: =IF((A29=27),"",(SUM(J15:J23)/SUM(J15:L23))*100) ->  | K24: =IF((A29=27),"",(SUM(K15:K23)/SUM(J15:L23))*100) ->  | L24: =IF((A29=27),"",(SUM(L15:L23)/SUM(J15:L23))*100) ->  | M24: =SUM(M15:M23) -> 0 | N24: =SUM(N15:N23) -> 0 | O24: =SUM(O15:O23) -> 0 | P24: =SUM(P15:P23) -> 0 | Q24: =SUM(Q15:Q23) -> 0 | S24: =IF(Q24=0,0,SUM(S15:S23)/Q24) -> 0 | V24: =SUM(V15:V23) -> 0 | W24: =ColorFunction($E$30,$E$15:$E$23) -> 0 | X24: =ColorFunction($E$31,$E$15:$E$23) -> 0 | Y24: =ColorFunction($E$32,$E$15:$E$23) -> 0 | Z24: =ColorFunction($E$33,$E$15:$E$23) -> 0 | AA24: =SUM(AA15:AA23)/(9-Q24)*100 -> 0 | AB24: =COUNTIF(P15:P23,">2") -> 0 | AC24: =IF((G24=0),"",SUM(AC15:AC23)/G24*100) -> 
B25: =SUM(B24,B14) -> 5763 | C25: =SUM(C24,C14) -> 73 | D25: TOTAL | E25: =IF(E14=0,"0",(E24+E14)) -> 0 | F25: =SUM(F14,F24) -> 0 | G25: =SUM(G24,G14) -> 0 | H25: =SUM(H24,H14) -> 0 | I25: =SUM(I24,I14) -> 0 | J25: =IF((A28=27),"",(SUM(J14,J24)/2)) ->  | K25: =IF((A28=27),"",(SUM(K14,K24)/2)) ->  | L25: =IF((A28=27),"",(SUM(L14,L24)/2)) ->  | M25: =SUM(M24,M14) -> 0 | N25: =SUM(N24,N14) -> 0 | O25: =SUM(O24,O14) -> 0 | P25: =IF(P14+P24=0,"",SUM(P24,P14)) ->  | Q25: =IF(Q14+Q24=0,"",SUM(Q24,Q14)) ->  | S25: =IF(S14+S24=0,"",SUM(S24,S14)/2) ->  | T25: =IF(N25=0,"",(O25)/N25*100) ->  | U25: =IF(Q25="","",(Q25)/18*100) ->  | V25: =IF(Q25="","",(V14+V24)/Q25) ->  | W25: =SUM(W14,W24) -> 0 | X25: =SUM(X14,X24) -> 0 | Y25: =SUM(Y14,Y24) -> 0 | Z25: =SUM(Z14,Z24) -> 0 | AA25: =SUM(AA14,AA24)/2 -> 0 | AB25: =SUM(AB14,AB24) -> 0 | AC25: =SUM(AC24,AC14)/2 -> 0
E27: Udfyld alle grønne felter med 1 for positiv eller antal i tal
A28: =COUNTBLANK(I5:K13) -> 27 | W28: Approach
A29: =COUNTBLANK(I15:K23) -> 27 | E29: Udfyld følgende farver: | S29: Holes to par | W29: Længde (m) | X29: Antal | Y29: Afstand (m)
A30: =SUM(L5:L23) -> 0 | E30: Eagles | S30: Par 3 | T30: =SUMIF(C:C,"3",E:E)/COUNTIF(C:C,3) -> 0 | W30: 45-70 | X30: =COUNTIFS(R5:R23,">=45",R5:R23,"<=70") -> 0 | Y30: =IF(X30=0,"",AVERAGEIFS(S5:S23,R5:R23,">=45",R5:R23,"<=70")) -> 
E31: Birdies | S31: Par 4 | T31: =SUMIF(C:C,"4",E:E)/COUNTIF(C:C,4) -> 0 | W31: 71-90 | X31: =COUNTIFS(R5:R23,">=71",R5:R23,"<=90") -> 0 | Y31: =IF(X31=0,"",AVERAGEIFS(S5:S23,R5:R23,">=71",R5:R23,"<=90")) -> 
E32: Bogeys | S32: Par 5 | T32: =SUMIF(C:C,"5",E:E)/COUNTIF(C:C,5) -> 0 | W32: 91-115 | X32: =COUNTIFS(R5:R23,">=91",R5:R23,"<=115") -> 0 | Y32: =IF(X32=0,"",AVERAGEIFS(S5:S23,R5:R23,">=91",R5:R23,"<=115")) -> 
E33: Doublebogeys eller værre | W33: 116-140 | X33: =COUNTIFS(R5:R23,">=116",R5:R23,"<=140") -> 0 | Y33: =IF(X33=0,"",AVERAGEIFS(S5:S23,R5:R23,">=116",R5:R23,"<=140")) -> 
S34: First 4 | T34: =IF(E25="0","",SUM(E5:E8)-SUM(C5:C8)) ->  | W34: 141-160 | X34: =COUNTIFS(R5:R23,">=141",R5:R23,"<=161") -> 0 | Y34: =IF(X34=0,"",AVERAGEIFS(S5:S23,R5:R23,">=141",R5:R23,"<=160")) -> 
S35: Last 4 | T35: =IF(E25="0","",SUM(E20:E23)-SUM(C20:C23)) ->  | W35: 161-180 | X35: =COUNTIFS(R5:R23,">=161",R5:R23,"<=180") -> 0 | Y35: =IF(X35=0,"",AVERAGEIFS(S5:S23,R5:R23,">=161",R5:R23,"<=180")) -> 
W37: Putting
W38: Længde (m) | X38: Antal | Y38: Holet | Z38: Holet (%)
W39: under 1 m | X39: =COUNTIFS(S5:S23,">=0,1",S5:S23,"<=0,9") -> 0 | Y39: =IF(X39=0,"",COUNTIFS(P5:P23,"=1",S5:S23,"<1")) ->  | Z39: =IF(X39=0,"",Y39/X39*100) -> 
W40: 1 - 1,5 | X40: =COUNTIFS(S5:S23,">=1",S5:S23,"<=1,5") -> 0 | Y40: =IF(X40=0,"",COUNTIFS(P5:P23,"=1",S5:S23,">=1",S5:S23,"<=1,5")) ->  | Z40: =IF(X40=0,"",Y40/X40*100) -> 
W41: 1,5 - 3 | X41: =COUNTIFS(S5:S23,">=1,6",S5:S23,"<=3") -> 0 | Y41: =IF(X41=0,"",COUNTIFS(P5:P23,"=1",S5:S23,">=1,6",S5:S23,"<=3")) ->  | Z41: =IF(X41=0,"",Y41/X41*100) -> 
W42: 3 - 4,5 | X42: =COUNTIFS(S5:S23,">=3,1",S5:S23,"<=4,5") -> 0 | Y42: =IF(X42=0,"",COUNTIFS(P5:P23,"=1",S5:S23,">=3,1",S5:S23,"<=4,5")) -> 
W43: 4,5 - 6 | X43: =COUNTIFS(S5:S23,">=4,6",S5:S23,"<=6") -> 0 | Y43: =IF(X43=0,"",COUNTIFS(P5:P23,"=1",S5:S23,">=4,6",S5:S23,"<=6")) -> 
W44: over 6 meter | X44: =COUNTIFS(S5:S23,">6") -> 0 | Y44: =IF(X44=0,"",COUNTIFS(P5:P23,"=1",S5:S23,">6")) -> 

Sheet Runde 30
A1: Korsør Golf Klub - 18 huller - Gul tee | J1: =IF(E25="0","0","1") -> 0 | K1: Dato: | N1: Handicap: | Q1: ATS: | T1: Vejr: | W1: Turnering:
H3: Tee shot | K3: Fairway hits i % | N3: Bunker | R3: Approach shots
A4: Hul | B4: Gul tee | C4: Par | D4: HCP | E4: Score | F4: Netto | G4: Driver | H4: Wood | I4: Jern | J4: Venstre | K4: Midt | L4: Højre | M4: FB | N4: GB | O4: SS | P4: Putts | Q4: GIR | R4: Dist. to pin (m) | S4: Dist. to hole (m) | T4: % SS | U4: % GIR | V4: Putts/GIR | W4: Eagles | X4: Birdies | Y4: Bogeys | Z4: Værre | AA4: % Scramble | AB4: 3+ Putts | AC4: % Driver/Fairwayhits
A5: 1 | B5: 307 | C5: 4 | D5: 11 | V5: =IF(Q5=0,"",P5) ->  | AA5: =IF(AND(Q5="",P5=1),1,"") ->  | AC5: =IF(AND(G5=""),"",SUM(K5)) -> 
A6: 2 | B6: 323 | C6: 4 | D6: 5
A7: 3 | B7: 138 | C7: 3 | D7: 15
A8: 4 | B8: 310 | C8: 4 | D8: 13
A9: 5 | B9: 431 | C9: 5 | D9: 3
A10: 6 | B10: 312 | C10: 4 | D10: 9
A11: 7 | B11: 498 | C11: 5 | D11: 1
A12: 8 | B12: 138 | C12: 3 | D12: 17
A13: 9 | B13: 310 | C13: 4 | D13: 7
B14: =SUM(B5:B13) -> 2767 | C14: =SUM(C5:C13) -> 36 | D14: UD | E14: =SUM(E5:E13) -> 0 | F14: =SUM(F5:F13) -> 0 | G14: =SUM(G5:G13) -> 0 | H14: =SUM(H5:H13) -> 0 | I14: =SUM(I5:I13) -> 0 | J14: =IF((A28=27),"",(SUM(J5:J13)/SUM(J5:L13))*100) ->  | K14: =IF((A28=27),"",(SUM(K5:K13)/SUM(J5:L13))*100) ->  | L14: =IF((A28=27),"",(SUM(L5:L13)/SUM(J5:L13))*100) ->  | M14: =SUM(M5:M13) -> 0 | N14: =SUM(N5:N13) -> 0 | O14: =SUM(O5:O13) -> 0 | P14: =SUM(P5:P13) -> 0 | Q14: =SUM(Q5:Q13) -> 0 | S14: =IF(Q14=0,0,SUM(S5:S13)/Q14) -> 0 | V14: =SUM(V5:V13) -> 0 | W14: =ColorFunction($E$30,$E$5:$E$13) -> 0 | X14: =ColorFunction($E$31,$E$5:$E$13) -> 0 | Y14: =ColorFunction($E$32,$E$5:$E$13) -> 0 | Z14: =ColorFunction($E$33,$E$5:$E$13) -> 0 | AA14: =SUM(AA5:AA13)/(9-Q14)*100 -> 0 | AB14: =COUNTIF(P5:P13,">2") -> 0 | AC14: =IF((G14=0),"",SUM(AC5:AC13)/G14*100) -> 
A15: 10 | B15: 481 | C15: 5 | D15: 4 | V15: =IF(Q15=0,"",P15) ->  | AA15: =IF(AND(Q15="",P15=1),1,"") ->  | AC15: =IF(AND(G15=""),"",SUM(K15)) -> 
A16: 11 | B16: 319 | C16: 4 | D16: 16
A17: 12 | B17: 431 | C17: 5 | D17: 2
A18: 13 | B18: 122 | C18: 3 | D18: 18
A19: 14 | B19: 379 | C19: 4 | D19: 6
A20: 15 | B20: 316 | C20: 4 | D20: 8
A21: 16 | B21: 322 | C21: 4 | D21: 14
A22: 17 | B22: 345 | C22: 4 | D22: 10
A23: 18 | B23: 281 | C23: 4 | D23: 12
B24: =SUM(B15:B23) -> 2996 | C24: =SUM(C15:C23) -> 37 | D24: IND | E24: =SUM(E15:E23) -> 0 | F24: =SUM(F15:F23) -> 0 | G24: =SUM(G15:G23) -> 0 | H24: =SUM(H15:H23) -> 0 | I24: =SUM(I15:I23) -> 0 | J24: =IF((A29=27),"",(SUM(J15:J23)/SUM(J15:L23))*100) ->  | K24: =IF((A29=27),"",(SUM(K15:K23)/SUM(J15:L23))*100) ->  | L24: =IF((A29=27),"",(SUM(L15:L23)/SUM(J15:L23))*100) ->  | M24: =SUM(M15:M23) -> 0 | N24: =SUM(N15:N23) -> 0 | O24: =SUM(O15:O23) -> 0 | P24: =SUM(P15:P23) -> 0 | Q24: =SUM(Q15:Q23) -> 0 | S24: =IF(Q24=0,0,SUM(S15:S23)/Q24) -> 0 | V24: =SUM(V15:V23) -> 0 | W24: =ColorFunction($E$30,$E$15:$E$23) -> 0 | X24: =ColorFunction($E$31,$E$15:$E$23) -> 0 | Y24: =ColorFunction($E$32,$E$15:$E$23) -> 0 | Z24: =ColorFunction($E$33,$E$15:$E$23) -> 0 | AA24: =SUM(AA15:AA23)/(9-Q24)*100 -> 0 | AB24: =COUNTIF(P15:P23,">2") -> 0 | AC24: =IF((G24=0),"",SUM(AC15:AC23)/G24*100) -> 
B25: =SUM(B24,B14) -> 5763 | C25: =SUM(C24,C14) -> 73 | D25: TOTAL | E25: =IF(E14=0,"0",(E24+E14)) -> 0 | F25: =SUM(F14,F24) -> 0 | G25: =SUM(G24,G14) -> 0 | H25: =SUM(H24,H14) -> 0 | I25: =SUM(I24,I14) -> 0 | J25: =IF((A28=27),"",(SUM(J14,J24)/2)) ->  | K25: =IF((A28=27),"",(SUM(K14,K24)/2)) ->  | L25: =IF((A28=27),"",(SUM(L14,L24)/2)) ->  | M25: =SUM(M24,M14) -> 0 | N25: =SUM(N24,N14) -> 0 | O25: =SUM(O24,O14) -> 0 | P25: =IF(P14+P24=0,"",SUM(P24,P14)) ->  | Q25: =IF(Q14+Q24=0,"",SUM(Q24,Q14)) ->  | S25: =IF(S14+S24=0,"",SUM(S24,S14)/2) ->  | T25: =IF(N25=0,"",(O25)/N25*100) ->  | U25: =IF(Q25="","",(Q25)/18*100) ->  | V25: =IF(Q25="","",(V14+V24)/Q25) ->  | W25: =SUM(W14,W24) -> 0 | X25: =SUM(X14,X24) -> 0 | Y25: =SUM(Y14,Y24) -> 0 | Z25: =SUM(Z14,Z24) -> 0 | AA25: =SUM(AA14,AA24)/2 -> 0 | AB25: =SUM(AB14,AB24) -> 0 | AC25: =SUM(AC24,AC14)/2 -> 0
E27: Udfyld alle grønne felter med 1 for positiv eller antal i tal
A28: =COUNTBLANK(I5:K13) -> 27 | W28: Approach
A29: =COUNTBLANK(I15:K23) -> 27 | E29: Udfyld følgende farver: | S29: Holes to par | W29: Længde (m) | X29: Antal | Y29: Afstand (m)
A30: =SUM(L5:L23) -> 0 | E30: Eagles | S30: Par 3 | T30: =SUMIF(C:C,"3",E:E)/COUNTIF(C:C,3) -> 0 | W30: 45-70 | X30: =COUNTIFS(R5:R23,">=45",R5:R23,"<=70") -> 0 | Y30: =IF(X30=0,"",AVERAGEIFS(S5:S23,R5:R23,">=45",R5:R23,"<=70")) -> 
E31: Birdies | S31: Par 4 | T31: =SUMIF(C:C,"4",E:E)/COUNTIF(C:C,4) -> 0 | W31: 71-90 | X31: =COUNTIFS(R5:R23,">=71",R5:R23,"<=90") -> 0 | Y31: =IF(X31=0,"",AVERAGEIFS(S5:S23,R5:R23,">=71",R5:R23,"<=90")) -> 
E32: Bogeys | S32: Par 5 | T32: =SUMIF(C:C,"5",E:E)/COUNTIF(C:C,5) -> 0 | W32: 91-115 | X32: =COUNTIFS(R5:R23,">=91",R5:R23,"<=115") -> 0 | Y32: =IF(X32=0,"",AVERAGEIFS(S5:S23,R5:R23,">=91",R5:R23,"<=115")) -> 
E33: Doublebogeys eller værre | W33: 116-140 | X33: =COUNTIFS(R5:R23,">=116",R5:R23,"<=140") -> 0 | Y33: =IF(X33=0,"",AVERAGEIFS(S5:S23,R5:R23,">=116",R5:R23,"<=140")) -> 
S34: First 4 | T34: =IF(E25="0","",SUM(E5:E8)-SUM(C5:C8)) ->  | W34: 141-160 | X34: =COUNTIFS(R5:R23,">=141",R5:R23,"<=161") -> 0 | Y34: =IF(X34=0,"",AVERAGEIFS(S5:S23,R5:R23,">=141",R5:R23,"<=160")) -> 
S35: Last 4 | T35: =IF(E25="0","",SUM(E20:E23)-SUM(C20:C23)) ->  | W35: 161-180 | X35: =COUNTIFS(R5:R23,">=161",R5:R23,"<=180") -> 0 | Y35: =IF(X35=0,"",AVERAGEIFS(S5:S23,R5:R23,">=161",R5:R23,"<=180")) -> 
W37: Putting
W38: Længde (m) | X38: Antal | Y38: Holet | Z38: Holet (%)
W39: under 1 m | X39: =COUNTIFS(S5:S23,">=0,1",S5:S23,"<=0,9") -> 0 | Y39: =IF(X39=0,"",COUNTIFS(P5:P23,"=1",S5:S23,"<1")) ->  | Z39: =IF(X39=0,"",Y39/X39*100) -> 
W40: 1 - 1,5 | X40: =COUNTIFS(S5:S23,">=1",S5:S23,"<=1,5") -> 0 | Y40: =IF(X40=0,"",COUNTIFS(P5:P23,"=1",S5:S23,">=1",S5:S23,"<=1,5")) ->  | Z40: =IF(X40=0,"",Y40/X40*100) -> 
W41: 1,5 - 3 | X41: =COUNTIFS(S5:S23,">=1,6",S5:S23,"<=3") -> 0 | Y41: =IF(X41=0,"",COUNTIFS(P5:P23,"=1",S5:S23,">=1,6",S5:S23,"<=3")) ->  | Z41: =IF(X41=0,"",Y41/X41*100) -> 
W42: 3 - 4,5 | X42: =COUNTIFS(S5:S23,">=3,1",S5:S23,"<=4,5") -> 0 | Y42: =IF(X42=0,"",COUNTIFS(P5:P23,"=1",S5:S23,">=3,1",S5:S23,"<=4,5")) -> 
W43: 4,5 - 6 | X43: =COUNTIFS(S5:S23,">=4,6",S5:S23,"<=6") -> 0 | Y43: =IF(X43=0,"",COUNTIFS(P5:P23,"=1",S5:S23,">=4,6",S5:S23,"<=6")) -> 
W44: over 6 meter | X44: =COUNTIFS(S5:S23,">6") -> 0 | Y44: =IF(X44=0,"",COUNTIFS(P5:P23,"=1",S5:S23,">6")) -> 

Sheet DATA - nix pille
A3: Runder i alt | B3: =('Runde 1'!J1+'Runde 2'!J1+'Runde 3'!J1+'Runde 4'!J1+'Runde 5'!J1+'Runde 6'!J1+'Runde 7'!J1+'Runde 8'!J1+'Runde 9'!J1+'Runde 10'!J1+'Runde 11'!J1+'Runde 12'!J1+'Runde 13'!J1+'Runde 14'!J1+'Runde 15'!J1+'Runde 16'!J1+'Runde 17'!J1+'Runde 18'!J1+'Runde 19'!J1+'Runde 20'!J1+'Runde 21'!J1+'Runde 22'!J1+'Runde 23'!J1+'Runde 24'!J1+'Runde 25'!J1+'Runde 26'!J1+'Runde 27'!J1+'Runde 28'!J1+'Runde 29'!J1+'Runde 30'!J1) -> 26
A6: Score
A7: =IF('Runde 1'!L1="","",'Runde 1'!L1) -> 2010-04-18 | B7: =IF('Runde 2'!L1="","",'Runde 2'!L1) -> 2010-04-20 | C7: =IF('Runde 3'!L1="","",'Runde 3'!L1) -> 2010-04-27 | D7: =IF('Runde 4'!L1="","",'Runde 4'!L1) -> 2010-05-11 | E7: =IF('Runde 5'!L1="","",'Runde 5'!L1) -> 2010-05-18 | F7: =IF('Runde 6'!L1="","",'Runde 6'!L1) -> 22-05-2010* | G7: =IF('Runde 7'!L1="","",'Runde 7'!L1) -> 2010-05-24 | H7: =IF('Runde 8'!L1="","",'Runde 8'!L1) -> 2010-06-08 | I7: =IF('Runde 9'!L1="","",'Runde 9'!L1) -> 2010-06-15 | J7: =IF('Runde 10'!L1="","",'Runde 10'!L1) -> 2010-06-22 | K7: =IF('Runde 11'!L1="","",'Runde 11'!L1) -> 2010-06-29 | L7: =IF('Runde 12'!L1="","",'Runde 12'!L1) -> 2010-07-03 | M7: =IF('Runde 13'!L1="","",'Runde 13'!L1) -> 07-07-2010* | N7: =IF('Runde 14'!L1="","",'Runde 14'!L1) -> 2010-07-13 | O7: =IF('Runde 15'!L1="","",'Runde 15'!L1) -> 2010-07-20 | P7: =IF('Runde 16'!L1="","",'Runde 16'!L1) -> 2010-07-22 | Q7: =IF('Runde 17'!L1="","",'Runde 17'!L1) -> 2010-07-23 | R7: =IF('Runde 18'!L1="","",'Runde 18'!L1) -> 2010-07-26 | S7: =IF('Runde 19'!L1="","",'Runde 19'!L1) -> 2010-07-27 | T7: =IF('Runde 20'!L1="","",'Runde 20'!L1) -> 2010-06-28 | U7: =IF('Runde 21'!L1="","",'Runde 21'!L1) -> 2010-07-29 | V7: =IF('Runde 22'!L1="","",'Runde 22'!L1) -> 2010-07-31 | W7: =IF('Runde 23'!L1="","",'Runde 23'!L1) -> 03-08-2010* | X7: =IF('Runde 24'!L1="","",'Runde 24'!L1) -> 2010-08-10 | Y7: =IF('Runde 25'!L1="","",'Runde 25'!L1) -> 2010-08-14 | Z7: =IF('Runde 26'!L1="","",'Runde 26'!L1) -> 2010-09-05 | AA7: =IF('Runde 27'!L1="","",'Runde 27'!L1) ->  | AB7: =IF('Runde 28'!L1="","",'Runde 28'!L1) ->  | AC7: =IF('Runde 29'!L1="","",'Runde 29'!L1) ->  | AD7: =IF('Runde 30'!L1="","",'Runde 30'!L1) -> 
A8: ='Runde 1'!E25 -> 81 | B8: ='Runde 2'!E25 -> 78 | C8: ='Runde 3'!E25 -> 78 | D8: ='Runde 4'!E25 -> 76 | E8: ='Runde 5'!E25 -> 74 | F8: ='Runde 6'!E25 -> 73 | G8: ='Runde 7'!E25 -> 78 | H8: ='Runde 8'!E25 -> 76 | I8: ='Runde 9'!E25 -> 76 | J8: ='Runde 10'!E25 -> 74 | K8: ='Runde 11'!E25 -> 81 | L8: ='Runde 12'!E25 -> 74 | M8: ='Runde 13'!E25 -> 74 | N8: ='Runde 14'!E25 -> 77 | O8: ='Runde 15'!E25 -> 77 | P8: ='Runde 16'!E25 -> 75 | Q8: ='Runde 17'!E25 -> 72 | R8: ='Runde 18'!E25 -> 77 | S8: ='Runde 19'!E25 -> 75 | T8: ='Runde 20'!E25 -> 70 | U8: ='Runde 21'!E25 -> 75 | V8: ='Runde 22'!E25 -> 77 | W8: ='Runde 23'!E25 -> 76 | X8: ='Runde 24'!E25 -> 72 | Y8: ='Runde 25'!E25 -> 80 | Z8: ='Runde 26'!E25 -> 73 | AA8: ='Runde 27'!E25 -> 0 | AB8: ='Runde 28'!E25 -> 0 | AC8: ='Runde 29'!E25 -> 0 | AD8: ='Runde 30'!E25 -> 0
A10: % GIR
A11: Runde 1 | B11: Runde 2 | C11: Runde 3 | D11: Runde 4 | E11: Runde 5 | F11: Runde 6 | G11: Runde 7 | H11: Runde 8 | I11: Runde 9 | J11: Runde 10 | K11: Runde 11 | L11: Runde 12 | M11: Runde 13 | N11: Runde 14 | O11: Runde 15 | P11: Runde 16 | Q11: Runde 17 | R11: Runde 18 | S11: Runde 19 | T11: Runde 20 | U11: Runde 21 | V11: Runde 22 | W11: Runde 23 | X11: Runde 24 | Y11: Runde 25 | Z11: Runde 26 | AA11: Runde 27 | AB11: Runde 28 | AC11: Runde 29 | AD11: Runde 30
A12: ='Runde 1'!U25 -> 55.55555556 | B12: ='Runde 2'!U25 -> 61.11111111 | C12: ='Runde 3'!U25 -> 72.22222222 | D12: ='Runde 4'!U25 -> 61.11111111 | E12: ='Runde 5'!U25 -> 72.22222222 | F12: ='Runde 6'!U25 -> 61.11111111 | G12: ='Runde 7'!U25 -> 55.55555556 | H12: ='Runde 8'!U25 -> 66.66666667 | I12: ='Runde 9'!U25 -> 55.55555556 | J12: ='Runde 10'!U25 -> 72.22222222 | K12: ='Runde 11'!U25 -> 55.55555556 | L12: ='Runde 12'!U25 -> 61.11111111 | M12: ='Runde 13'!U25 -> 66.66666667 | N12: ='Runde 14'!U25 -> 88.88888889 | O12: ='Runde 15'!U25 -> 77.77777778 | P12: ='Runde 16'!U25 -> 55.55555556 | Q12: ='Runde 17'!U25 -> 94.44444444 | R12: ='Runde 18'!U25 -> 72.22222222 | S12: ='Runde 19'!U25 -> 55.55555556 | T12: ='Runde 20'!U25 -> 88.88888889 | U12: ='Runde 21'!U25 -> 72.22222222 | V12: ='Runde 22'!U25 -> 38.88888889 | W12: ='Runde 23'!U25 -> 55.55555556 | X12: ='Runde 24'!U25 -> 72.22222222 | Y12: ='Runde 25'!U25 -> 50 | Z12: ='Runde 26'!U25 -> 83.33333333 | AA12: ='Runde 27'!U25 ->  | AB12: ='Runde 28'!U25 ->  | AC12: ='Runde 29'!U25 ->  | AD12: ='Runde 30'!U25 -> 
A14: % Fairwayhits
A15: Runde 1 | B15: Runde 2 | C15: Runde 3 | D15: Runde 4 | E15: Runde 5 | F15: Runde 6 | G15: Runde 7 | H15: Runde 8 | I15: Runde 9 | J15: Runde 10 | K15: Runde 11 | L15: Runde 12 | M15: Runde 13 | N15: Runde 14 | O15: Runde 15 | P15: Runde 16 | Q15: Runde 17 | R15: Runde 18 | S15: Runde 19 | T15: Runde 20 | U15: Runde 21 | V15: Runde 22 | W15: Runde 23 | X15: Runde 24 | Y15: Runde 25 | Z15: Runde 26 | AA15: Runde 27 | AB15: Runde 28 | AC15: Runde 29 | AD15: Runde 30
A16: ='Runde 1'!K25 -> 58.92857143 | B16: ='Runde 2'!K25 -> 79.46428571 | C16: ='Runde 3'!K25 -> 73.21428571 | D16: ='Runde 4'!K25 -> 100 | E16: ='Runde 5'!K25 -> 93.75 | F16: ='Runde 6'!K25 -> 59.82142857 | G16: ='Runde 7'!K25 -> 73.75 | H16: ='Runde 8'!K25 -> 92.85714286 | I16: ='Runde 9'!K25 -> 87.5 | J16: ='Runde 10'!K25 -> 73.21428571 | K16: ='Runde 11'!K25 -> 47.32142857 | L16: ='Runde 12'!K25 -> 73.21428571 | M16: ='Runde 13'!K25 -> 79.46428571 | N16: ='Runde 14'!K25 -> 92.85714286 | O16: ='Runde 15'!K25 -> 81.25 | P16: ='Runde 16'!K25 -> 74.10714286 | Q16: ='Runde 17'!K25 -> 80.35714286 | R16: ='Runde 18'!K25 -> 80.35714286 | S16: ='Runde 19'!K25 -> 53.57142857 | T16: ='Runde 20'!K25 -> 93.75 | U16: ='Runde 21'!K25 -> 93.75 | V16: ='Runde 22'!K25 -> 80.35714286 | W16: ='Runde 23'!K25 -> 86.60714286 | X16: ='Runde 24'!K25 -> 74.10714286 | Y16: ='Runde 25'!K25 -> 74.10714286 | Z16: ='Runde 26'!K25 -> 81.25 | AA16: ='Runde 27'!K25 ->  | AB16: ='Runde 28'!K25 ->  | AC16: ='Runde 29'!K25 ->  | AD16: ='Runde 30'!K25 -> 
A18: Putts
A19: Runde 1 | B19: Runde 2 | C19: Runde 3 | D19: Runde 4 | E19: Runde 5 | F19: Runde 6 | G19: Runde 7 | H19: Runde 8 | I19: Runde 9 | J19: Runde 10 | K19: Runde 11 | L19: Runde 12 | M19: Runde 13 | N19: Runde 14 | O19: Runde 15 | P19: Runde 16 | Q19: Runde 17 | R19: Runde 18 | S19: Runde 19 | T19: Runde 20 | U19: Runde 21 | V19: Runde 22 | W19: Runde 23 | X19: Runde 24 | Y19: Runde 25 | Z19: Runde 26 | AA19: Runde 27 | AB19: Runde 28 | AC19: Runde 29 | AD19: Runde 30
A20: ='Runde 1'!P25 -> 34 | B20: ='Runde 2'!P25 -> 32 | C20: ='Runde 3'!P25 -> 36 | D20: ='Runde 4'!P25 -> 32 | E20: ='Runde 5'!P25 -> 30 | F20: ='Runde 6'!P25 -> 29 | G20: ='Runde 7'!P25 -> 32 | H20: ='Runde 8'!P25 -> 32 | I20: ='Runde 9'!P25 -> 31 | J20: ='Runde 10'!P25 -> 30 | K20: ='Runde 11'!P25 -> 31 | L20: ='Runde 12'!P25 -> 27 | M20: ='Runde 13'!P25 -> 30 | N20: ='Runde 14'!P25 -> 37 | O20: ='Runde 15'!P25 -> 36 | P20: ='Runde 16'!P25 -> 30 | Q20: ='Runde 17'!P25 -> 35 | R20: ='Runde 18'!P25 -> 36 | S20: ='Runde 19'!P25 -> 31 | T20: ='Runde 20'!P25 -> 29 | U20: ='Runde 21'!P25 -> 31 | V20: ='Runde 22'!P25 -> 27 | W20: ='Runde 23'!P25 -> 29 | X20: ='Runde 24'!P25 -> 30 | Y20: ='Runde 25'!P25 -> 31 | Z20: ='Runde 26'!P25 -> 33 | AA20: ='Runde 27'!P25 ->  | AB20: ='Runde 28'!P25 ->  | AC20: ='Runde 29'!P25 ->  | AD20: ='Runde 30'!P25 -> 
A22: Bunkers totalt | C22: =IF(B3=0,"",SUM('Runde 1'!N25,'Runde 2'!N25,'Runde 3'!N25,'Runde 4'!N25,'Runde 5'!N25,'Runde 6'!U35,'Runde 7'!N25,'Runde 8'!N25,'Runde 9'!N25,'Runde 10'!N25,'Runde 11'!N25,'Runde 12'!N25,'Runde 13'!N25,'Runde 14'!N25,'Runde 15'!N25,'Runde 16'!N25,'Runde 17'!N25,'Runde 18'!N25,'Runde 19'!N25,'Runde 20'!N25,'Runde 21'!N25,'Runde 22'!N25,'Runde 23'!N25,'Runde 24'!N25,'Runde 25'!N25,'Runde 26'!N25,'Runde 27'!N25,'Runde 27'!N25,'Runde 28'!N25,'Runde 29'!N25,'Runde 30'!N25)) -> 20
A23: Sandsaves totalt | C23: =IF(B3=0,"",SUM('Runde 1'!O25,'Runde 2'!O25,'Runde 3'!O25,'Runde 4'!O25,'Runde 5'!O25,'Runde 6'!U35,'Runde 7'!O25,'Runde 8'!O25,'Runde 9'!O25,'Runde 10'!O25,'Runde 11'!O25,'Runde 12'!O25,'Runde 13'!O25,'Runde 14'!O25,'Runde 15'!O25,'Runde 16'!O25,'Runde 17'!O25,'Runde 18'!O25,'Runde 19'!O25,'Runde 20'!O25,'Runde 21'!O25,'Runde 22'!O25,'Runde 23'!O25,'Runde 24'!O25,'Runde 25'!O25,'Runde 26'!O25,'Runde 27'!O25,'Runde 27'!O25,'Runde 28'!O25,'Runde 29'!O25,'Runde 30'!O25)) -> 4
